Workbook

Sheet 2019-2020
BS1: Data | BT1: Sarbatoare
BS2: 2019-11-30 | BT2: Sf Andrei
BS3: 2019-12-01 | BT3: Ziua Nationala
BS4: 2019-12-25 | BT4: Craciun prima zi
BS5: 2019-12-26 | BT5: Craciun a doua zi
BS6: 2020-01-01 | BT6: Anul nou prima zi
BS7: 2020-01-02 | BT7: Anul nou a doua zi
BC8: parteneri adiacenti | BD8: UR | BP8: parteneri adiacenti | BQ8: UR | BS8: 2020-01-24 | BT8: Ziua unirii
A9: EVIDENȚA LIMITĂRILOR ȘI/SAU ÎNTRERUPERILOR PLANIFICATE ȘI NEPLANIFICATE pentru anul gazier 2019 - 2020 / RECORD OF THE PLANNED AND UNPLANNED LIMITATIONS AND/OR INTERRUPTIONS related to the gas year 2019 - 2020 | AR9: Lucrari neprogramate | BB9: NU6 | BC9: =SUBTOTAL(9,AS:AS) -> 10 | BD9: =SUBTOTAL(9,AV:AV) -> 338 | BF9: Lucrari programate | BO9: NU5 | BP9: =SUBTOTAL(9,BG:BG) -> 0 | BQ9: =SUBTOTAL(9,BJ:BJ) -> 0 | BS9: 2020-04-17 | BT9: Vinerea Mare
AR10: Partener adiacent | AU10: UR | BB10: NUafectati | BC10: =SUBTOTAL(9,AT:AT) -> 10 | BD10: =SUBTOTAL(9,AW:AW) -> 338 | BF10: Partener adiacent | BI10: UR | BO10: NUafectati | BP10: =SUBTOTAL(9,BH:BH) -> 0 | BQ10: =SUBTOTAL(9,BK:BK) -> 0 | BS10: 2020-04-20 | BT10: Paste
A11: Nr. crt. / Item No. | B11: Tipul limitării/întreruperii / Type of limitation/interruption | D11: Denumire lucrare/motiv limitare și/sau întrerupere / Name of the works/reason for the limitation and/or interruption | E11: Locația limitării/întreruperii / Location of the limitation/interruption | L11: Punct de ieșire/intrare afectat / Affected exit/entry point | T11: Cod punct relevant / Code of the relevant point | U11: Utilizator ST afectat / Affected TS user | W11: Perioada planificată de execuție a lucrării / Planned period for the execution of the works | X11: Data și ora limitării/întreruperii / Date and hour of the limitation/interruption | Z11: Data și ora reluării prestării serviciului / Date and hour the service supply is resumed | AB11: Exploatarea Teritorială / Regional Office | AC11: Observații / Comments | AD11: Justificarea modificării perioadei planificate de execuție a lucrări | AE11: Data și ora efectivă de limitare/întrerupere | AG11: Data și ora efectivă de reluare a prestării serviciului | AI11: Data și ora informării UR | AK11: Data și ora informării partenerului adiacent | AM11: Foaia de manevră | AN11: A fost afectat producătorul (în cazul PM) sau consumatorul final (în cazul SM)? (DA/NU) | AO11: Observatii | AP11: Program bugetat | AR11: Numar de ore de la producerea intreruperii / limitarii pana la anuntarea partenerului adiacent (trebuie sa fie mai mic decat 6) | AS11: NU6 | AT11: NUafectati | AU11: Numar de ore de la producerea intreruperii / limitarii pana la anuntarea UR (trebuie sa fie mai mic decat 6) | AV11: NU6 | AW11: NUafectati | AX11: Durata intreruperii / limitarii [ore] (daca este mai mare de 24, trebuie sa fie completata celula aferenta de pe coloana AZ) | AY11: NU24 | AZ11: Nuafectati | BA11: Partener adiacent informat din 12 in 12 ore, daca durata mai mare de 24h (DA/NU) | BB11: NU6 | BC11: =BC9+BD9 -> 348 | BD11: IP51 | BF11: Numar de zile lucratoare de anuntare partener adiacent pana la limitare / intrerupere (trebuie sa fie mai mare de 5) | BG11: NU5 | BH11: NUafectati | BI11: Numar de zile de anuntare UR pana la limitare / intrerupere (trebuie sa fie mai mare de 5) | BJ11: NU5 | BK11: NUafectati | BL11: Numar ore intre data anuntata si cea efectiva de reluare (trebuie sa fie mai mic sau egal cu 0) | BM11: NUreluate | BN11: NUafectati | BO11: NU5 | BP11: =BP9+BQ9 -> 0 | BQ11: IP61 | BS11: 2020-05-01 | BT11: Ziua muncii
E12: Siruta / Siruta code | F12: Localitate / Locality | G12: Județ / County | H12: Coordonate GPS început / GPS coordinates-beginning | J12: Coordonate GPS sfârșit / GPS coordinates-end | L12: Puncte de ieșire din SNT / NTS exit points | P12: Puncte de intrare în SNT / NTS entry points | BB12: NUafectati | BC12: =BC10+BD10 -> 348 | BD12: =IF(BC12=0,1,BC11/BC12) -> 1 | BO12: NUafectati | BP12: =BP10+BQ10 -> 0 | BQ12: =IF(BP12=0,1,BP11/BP12) -> 1 | BS12: 2020-06-01 | BT12: Ziua copilului
B13: Neplanificată / Unplanned | C13: Planificată / Planned | L13: Limitare / Limitation | N13: Întrerupere / Interruption | P13: Limitare / Limitation | R13: Întrerupere / Interruption | X13: Data / Date | Y13: Ora / Hour | Z13: Data / Date | AA13: Ora / Hour | AE13: Data | AF13: Ora | AG13: Data | AH13: Ora | AI13: Data | AJ13: Ora | AK13: Data | AL13: Ora | BB13: NU24 | BC13: =SUBTOTAL(9,AY:AY) -> 0 | BD13: IP52 | BO13: NUreluare | BP13: =SUBTOTAL(9,BM:BM) -> 0 | BQ13: IP62 | BS13: 2020-06-08 | BT13: Rusalii
H14: X1 | I14: Y1 | J14: X2 | K14: Y2 | L14: Cod / Code | M14: Denumire / Name | N14: Cod / Code | O14: Denumire / Name | P14: Cod / Code | Q14: Denumire / Name | R14: Cod / Code | S14: Denumire / Name | U14: Utilizator de rețea / Network User | V14: Partener adiacent / Adjacent Partner | BB14: NUafectati | BC14: =SUBTOTAL(9,AZ:AZ) -> 0 | BD14: =IF(BC14=0,1,BC13/BC14) -> 1 | BO14: NUafectati | BP14: =SUBTOTAL(9,BN:BN) -> 0 | BQ14: =IF(BP14=0,1,BP13/BP14) -> 1 | BS14: 2020-08-15 | BT14: Adormirea Maicii Domnului
A15: 0 | B15: 1 | C15: 2 | D15: 3 | E15: 4 | F15: 5 | G15: 6 | H15: 7 | I15: 8 | J15: 9 | K15: 10 | L15: 11 | M15: 12 | N15: 13 | O15: 14 | P15: 15 | Q15: 16 | R15: 17 | S15: 18 | T15: 19 | V15: 21 | W15: 22 | X15: 23 | Y15: 24 | Z15: 25 | AA15: 26 | AB15: 27 | AC15: 28 | AD15: 29 | AE15: 30 | AF15: 31 | AG15: 32 | AH15: 33 | AI15: 34 | AJ15: 35 | AK15: 36 | AL15: 37 | AM15: 38 | AN15: 39 | AO15: 40 | AP15: 41
A16: 1 | B16: - | C16: X | D16: Dezvoltare SNT - Conducta de transport gaze 20” Craiova - Segarcea - Băilești - Calafat, et.I, tronson Craiova - Segarcea | E16: 72409 | F16: Ghercești | G16: Dolj | H16: 409849.8983 | I16: 314332.0136 | J16: 409849.8983 | K16: 314332.0136 | L16: - | M16: - | N16: SM1194D0 | O16: Ghercești II | P16: - | Q16: - | R16: - | S16: - | T16: SM-SD001 | U16: Energy Distribution, Engie, Petrom, Restart Energy, Romgaz | V16: SNGN Romgaz SA - Distribuție | W16: octombrie - decembrie 2019 februarie - iunie 2020 | AB16: Craiova | AD16: Termen PIF conform contract - februarie 2020 | AP16: PMDI 2019_2.1.A.7 | AR16: =IF(B16="X",IF(AN16="","Afectat sau NU?",IF(AN16="DA",IF(((AK16+AL16)-(AE16+AF16))*24<-720,"Neinformat",((AK16+AL16)-(AE16+AF16))*24),"Nu a fost afectat producator/consumator")),"") ->  | AS16: =IF(B16="X",IF(AN16="DA",IF(AR16<6,LEN(TRIM(V16))-LEN(SUBSTITUTE(V16,CHAR(44),""))+1,0),"-"),"") ->  | AT16: =IF(B16="X",IF(AN16="DA",LEN(TRIM(V16))-LEN(SUBSTITUTE(V16,CHAR(44),""))+1,"-"),"") ->  | AU16: =IF(B16="X",IF(AN16="","Afectat sau NU?",IF(AN16="DA",IF(((AI16+AJ16)-(AE16+AF16))*24<-720,"Neinformat",((AI16+AJ16)-(AE16+AF16))*24),"Nu a fost afectat producator/consumator")),"") ->  | AV16: =IF(B16="X",IF(AN16="DA",IF(AU16<6,LEN(TRIM(U16))-LEN(SUBSTITUTE(U16,CHAR(44),""))+1,0),"-"),"") ->  | AW16: =IF(B16="X",IF(AN16="DA",LEN(TRIM(U16))-LEN(SUBSTITUTE(U16,CHAR(44),""))+1,"-"),"") ->  | AX16: =IF(B16="X",IF(AN16="","Afectat sau NU?",IF(AN16="DA",((AG16+AH16)-(AE16+AF16))*24,"Nu a fost afectat producator/consumator")),"") ->  | AY16: =IF(B16="X",IF(AN16="DA",IF(AX16>24,IF(BA16="NU",0,LEN(TRIM(V16))-LEN(SUBSTITUTE(V16,CHAR(44),""))+1),0),"-"),"") ->  | AZ16: =IF(B16="X",IF(AN16="DA",IF(AX16>24,LEN(TRIM(V16))-LEN(SUBSTITUTE(V16,CHAR(44),""))+1,0),"-"),"") ->  | BF16: =IF(C16="X",IF(AN16="","Afectat sau NU?",IF(AN16="DA",IF(AK16="","Neinformat",NETWORKDAYS(AK16+AL16,AE16+AF16,$BS$2:$BS$14)-2),"Nu a fost afectat producator/consumator")),"") -> Afectat sau NU? | BG16: =IF(C16="X",IF(AN16="DA",IF(AND(BF16>=5,AK16<>""),LEN(TRIM(V16))-LEN(SUBSTITUTE(V16,CHAR(44),""))+1,0),"-"),"") -> - | BH16: =IF(C16="X",IF(AN16="DA",LEN(TRIM(V16))-LEN(SUBSTITUTE(V16,CHAR(44),""))+1,"-"),"") -> - | BI16: =IF(C16="X",IF(AN16="","Afectat sau NU?",IF(AN16="DA",IF(AI16="","Neinformat",NETWORKDAYS(AI16+AJ16,AE16+AF16,$BS$2:$BS$14)-2),"Nu a fost afectat producator/consumator")),"") -> Afectat sau NU? | BJ16: =IF(C16="X",IF(AN16="DA",IF(AND(BI16>=5,AI16<>""),LEN(TRIM(U16))-LEN(SUBSTITUTE(U16,CHAR(44),""))+1,0),"-"),"") -> - | BK16: =IF(C16="X",IF(AN16="DA",LEN(TRIM(U16))-LEN(SUBSTITUTE(U16,CHAR(44),""))+1,"-"),"") -> - | BL16: =IF(C16="X",IF(AN16="","Afectat sau NU?",IF(AN16="DA",((AG16+AH16)-(Z16+AA16))*24,"Nu a fost afectat producator/consumator")),"") -> Afectat sau NU? | BM16: =IF(C16="X",IF(AN16<>"DA","-",IF(AND(AN16="DA",BL16<=0),LEN(TRIM(V16))-LEN(SUBSTITUTE(V16,CHAR(44),""))+1+LEN(TRIM(U16))-LEN(SUBSTITUTE(U16,CHAR(44),""))+1,0)),"") -> - | BN16: =IF(C16="X",IF(AN16="DA",LEN(TRIM(V16))-LEN(SUBSTITUTE(V16,CHAR(44),""))+1+LEN(TRIM(U16))-LEN(SUBSTITUTE(U16,CHAR(44),""))+1,"-"),"") -> -
A17: =SUM(1,$A16) -> 2 | B17: - | C17: X | D17: Dezvoltare SNT - Conducta de transport gaze 20” Craiova - Segarcea - Băilești - Calafat, et.I, tronson Craiova - Segarcea | E17: 69919 | F17: Craiova | G17: Dolj | H17: 408229.2898 | I17: 311000.1356 | J17: 408229.2898 | K17: 311000.1356 | L17: - | M17: - | N17: SM0209D1 | O17: SC Ford Combinat | P17: - | Q17: - | R17: - | S17: - | T17: SM-CF001 | U17: Engie | V17: SC Ford România SA | W17: octombrie - decembrie 2019 februarie - iunie 2020 | AB17: Craiova | AD17: Termen PIF conform contract - februarie 2020 | AP17: PMDI 2019_2.1.A.7 | AR17: =IF(B17="X",IF(AN17="","Afectat sau NU?",IF(AN17="DA",IF(((AK17+AL17)-(AE17+AF17))*24<-720,"Neinformat",((AK17+AL17)-(AE17+AF17))*24),"Nu a fost afectat producator/consumator")),"") ->  | AS17: =IF(B17="X",IF(AN17="DA",IF(AR17<6,LEN(TRIM(V17))-LEN(SUBSTITUTE(V17,CHAR(44),""))+1,0),"-"),"") ->  | AT17: =IF(B17="X",IF(AN17="DA",LEN(TRIM(V17))-LEN(SUBSTITUTE(V17,CHAR(44),""))+1,"-"),"") ->  | AU17: =IF(B17="X",IF(AN17="","Afectat sau NU?",IF(AN17="DA",IF(((AI17+AJ17)-(AE17+AF17))*24<-720,"Neinformat",((AI17+AJ17)-(AE17+AF17))*24),"Nu a fost afectat producator/consumator")),"") ->  | AV17: =IF(B17="X",IF(AN17="DA",IF(AU17<6,LEN(TRIM(U17))-LEN(SUBSTITUTE(U17,CHAR(44),""))+1,0),"-"),"") ->  | AW17: =IF(B17="X",IF(AN17="DA",LEN(TRIM(U17))-LEN(SUBSTITUTE(U17,CHAR(44),""))+1,"-"),"") ->  | AX17: =IF(B17="X",IF(AN17="","Afectat sau NU?",IF(AN17="DA",((AG17+AH17)-(AE17+AF17))*24,"Nu a fost afectat producator/consumator")),"") ->  | AY17: =IF(B17="X",IF(AN17="DA",IF(AX17>24,IF(BA17="NU",0,LEN(TRIM(V17))-LEN(SUBSTITUTE(V17,CHAR(44),""))+1),0),"-"),"") ->  | AZ17: =IF(B17="X",IF(AN17="DA",IF(AX17>24,LEN(TRIM(V17))-LEN(SUBSTITUTE(V17,CHAR(44),""))+1,0),"-"),"") ->  | BF17: =IF(C17="X",IF(AN17="","Afectat sau NU?",IF(AN17="DA",IF(AK17="","Neinformat",NETWORKDAYS(AK17+AL17,AE17+AF17,$BS$2:$BS$14)-2),"Nu a fost afectat producator/consumator")),"") -> Afectat sau NU? | BG17: =IF(C17="X",IF(AN17="DA",IF(AND(BF17>=5,AK17<>""),LEN(TRIM(V17))-LEN(SUBSTITUTE(V17,CHAR(44),""))+1,0),"-"),"") -> - | BH17: =IF(C17="X",IF(AN17="DA",LEN(TRIM(V17))-LEN(SUBSTITUTE(V17,CHAR(44),""))+1,"-"),"") -> - | BI17: =IF(C17="X",IF(AN17="","Afectat sau NU?",IF(AN17="DA",IF(AI17="","Neinformat",NETWORKDAYS(AI17+AJ17,AE17+AF17,$BS$2:$BS$14)-2),"Nu a fost afectat producator/consumator")),"") -> Afectat sau NU? | BJ17: =IF(C17="X",IF(AN17="DA",IF(AND(BI17>=5,AI17<>""),LEN(TRIM(U17))-LEN(SUBSTITUTE(U17,CHAR(44),""))+1,0),"-"),"") -> - | BK17: =IF(C17="X",IF(AN17="DA",LEN(TRIM(U17))-LEN(SUBSTITUTE(U17,CHAR(44),""))+1,"-"),"") -> - | BL17: =IF(C17="X",IF(AN17="","Afectat sau NU?",IF(AN17="DA",((AG17+AH17)-(Z17+AA17))*24,"Nu a fost afectat producator/consumator")),"") -> Afectat sau NU? | BM17: =IF(C17="X",IF(AN17<>"DA","-",IF(AND(AN17="DA",BL17<=0),LEN(TRIM(V17))-LEN(SUBSTITUTE(V17,CHAR(44),""))+1+LEN(TRIM(U17))-LEN(SUBSTITUTE(U17,CHAR(44),""))+1,0)),"") -> - | BN17: =IF(C17="X",IF(AN17="DA",LEN(TRIM(V17))-LEN(SUBSTITUTE(V17,CHAR(44),""))+1+LEN(TRIM(U17))-LEN(SUBSTITUTE(U17,CHAR(44),""))+1,"-"),"") -> -
A18: =SUM(1,$A17) -> 3 | B18: - | C18: X | D18: Dezvoltare SNT - Conducta de transport gaze 20” Craiova - Segarcea - Băilești - Calafat, et.I, tronson Craiova - Segarcea | E18: 69919 | F18: Craiova | G18: Dolj | H18: 408229.2898 | I18: 311000.1356 | J18: 408229.2898 | K18: 311000.1356 | L18: - | M18: - | N18: SM0209D2 | O18: Ford Craiova Casnici | P18: - | Q18: - | R18: - | S18: - | T18: SM-SD001 | U18: Cez Vânzare, E.on Energie, Electric Planners, Electrica Furnizare, Electrocentrale București, Enel Energie, Energy Distribution, Engie, Met România, Monsson, Premier Energy Trading, RWE, Aderro GP, Cis Gaz, Conef Gaz, Cyeb, Distrigaz Vest, Electric&Gas, Electrocentrale Constanța, Enel Muntenia, Gas Provider, Entrex, Euro Seven, Gaz Est, Hargaz, Megaconstruct, Next Energy, Nova Power, Oligopol, Petrom, Premier Energy, Renovatio, Restart Energy, Transenergo, Wiee, Romgaz, Tinmar, Veolia | V18: SC Distrigaz Sud Rețele | W18: octombrie - decembrie 2019 februarie - iunie 2020 | AB18: Craiova | AD18: Termen PIF conform contract - februarie 2020 | AP18: PMDI 2019_2.1.A.7 | AV18: =IF(B18="X",IF(AN18="DA",IF(AU18<6,LEN(TRIM(U18))-LEN(SUBSTITUTE(U18,CHAR(44),""))+1,0),"-"),"") ->  | AW18: =IF(B18="X",IF(AN18="DA",LEN(TRIM(U18))-LEN(SUBSTITUTE(U18,CHAR(44),""))+1,"-"),"") ->  | BF18: Afectat sau NU? | BG18: - | BH18: - | BI18: Afectat sau NU? | BJ18: =IF(C18="X",IF(AN18="DA",IF(AND(BI18>=5,AI18<>""),LEN(TRIM(U18))-LEN(SUBSTITUTE(U18,CHAR(44),""))+1,0),"-"),"") -> - | BK18: =IF(C18="X",IF(AN18="DA",LEN(TRIM(U18))-LEN(SUBSTITUTE(U18,CHAR(44),""))+1,"-"),"") -> - | BL18: Afectat sau NU? | BM18: =IF(C18="X",IF(AN18<>"DA","-",IF(AND(AN18="DA",BL18<=0),LEN(TRIM(V18))-LEN(SUBSTITUTE(V18,CHAR(44),""))+1+LEN(TRIM(U18))-LEN(SUBSTITUTE(U18,CHAR(44),""))+1,0)),"") -> - | BN18: =IF(C18="X",IF(AN18="DA",LEN(TRIM(V18))-LEN(SUBSTITUTE(V18,CHAR(44),""))+1+LEN(TRIM(U18))-LEN(SUBSTITUTE(U18,CHAR(44),""))+1,"-"),"") -> -
A19: 4 | B19: - | C19: X | D19: Dezvoltare SNT - Conducta de transport gaze 20” Craiova - Segarcea - Băilești - Calafat, et.I, tronson Craiova - Segarcea | E19: 69919 | F19: Craiova | G19: Dolj | H19: 404628.8399 | I19: 311354.1039 | J19: 404628.8399 | K19: 311354.1039 | L19: - | M19: - | N19: SM0208D0 | O19: Craiova Sud | P19: - | Q19: - | R19: - | S19: - | T19: SM-SD001 | U19: Cez Vânzare, E.on Energie, Electric Planners, Electrica Furnizare, Electrocentrale București, Enel Energie, Energy Distribution, Engie, Met România, Monsson, Premier Energy Trading, RWE, Aderro GP, Cis Gaz, Conef Gaz, Cyeb, Distrigaz Vest, Electric&Gas, Electrocentrale Constanța, Enel Muntenia, Gas Provider, Entrex, Euro Seven, Gaz Est, Hargaz, Megaconstruct, Next Energy, Nova Power, Oligopol, Petrom, Premier Energy, Renovatio, Restart Energy, Transenergo, Wiee, Romgaz, Tinmar, Veolia | V19: SC Distrigaz Sud Rețele | W19: octombrie - decembrie 2019 februarie - iunie 2020 | AB19: Craiova | AD19: Termen PIF conform contract - februarie 2020 | AP19: PMDI 2019_2.1.A.7 | BF19: Afectat sau NU? | BG19: - | BH19: - | BI19: Afectat sau NU? | BJ19: - | BK19: - | BL19: Afectat sau NU? | BM19: - | BN19: -
A20: 5 | B20: - | C20: X | D20: Dezvoltare SNT - Conducta de transport gaze 20” Craiova - Segarcea - Băilești - Calafat, et.I, tronson Craiova - Segarcea | E20: 70129 | F20: Podari | G20: Dolj | H20: 404627.6737 | I20: 311347.6397 | J20: 404627.6737 | K20: 311347.6397 | L20: - | M20: - | N20: SM1053D0 | O20: Podari | P20: - | Q20: - | R20: - | S20: - | T20: SM-SD001 | U20: Cez Vânzare, E.on Energie, Electric Planners, Electrica Furnizare, Electrocentrale București, Enel Energie, Energy Distribution, Engie, Met România, Monsson, Premier Energy Trading, RWE, Aderro GP, Cis Gaz, Conef Gaz, Cyeb, Distrigaz Vest, Electric&Gas, Electrocentrale Constanța, Enel Muntenia, Gas Provider, Entrex, Euro Seven, Gaz Est, Hargaz, Megaconstruct, Next Energy, Nova Power, Oligopol, Petrom, Premier Energy, Renovatio, Restart Energy, Transenergo, Wiee, Romgaz, Tinmar, Veolia | V20: SC Distrigaz Sud Rețele | W20: octombrie - decembrie 2019 februarie - iunie 2020 | AB20: Craiova | AD20: Termen PIF conform contract - februarie 2020 | AP20: PMDI 2019_2.1.A.7 | BF20: Afectat sau NU? | BG20: - | BH20: - | BI20: Afectat sau NU? | BJ20: - | BK20: - | BL20: Afectat sau NU? | BM20: - | BN20: -
A21: =SUM(1,$A20) -> 6 | B21: - | C21: X | D21: Refacere subtraversare râu Strei cu conducta Vest II, zona Totia | E21: - | F21: Csanadpalota | G21: - | H21: 170687.288 | I21: 531495.4565 | J21: 170687.288 | K21: 531495.4565 | L21: SM1281D0 | M21: Csanadpalota Export | N21: - | O21: - | P21: - | Q21: - | R21: - | S21: - | T21: SM1281D0 | V21: FGSZ Ltd | W21: aprilie - iunie 2020 | AB21: Arad | AP21: PMDI 2019_2.1.B.19 | BF21: Afectat sau NU? | BG21: - | BH21: - | BI21: Afectat sau NU? | BJ21: - | BK21: - | BL21: Afectat sau NU? | BM21: - | BN21: -
A22: 7 | B22: - | C22: X | D22: Refacere subtraversare râu Strei cu conducta Vest II, zona Totia | E22: - | F22: Csanadpalota | G22: - | H22: 170687.288 | I22: 531495.4565 | J22: 170687.288 | K22: 531495.4565 | L22: - | M22: - | N22: - | O22: - | P22: PM0266 | Q22: Csanadpalota Import | R22: - | S22: - | T22: PM0266 | U22: Engie, Met România, Axpo Energy, Petrom, Premier Energy, Uniper Global, Valahia Gaz | V22: FGSZ Ltd | W22: aprilie - iunie 2020 | AB22: Arad | AP22: PMDI 2019_2.1.B.19 | BF22: Afectat sau NU? | BG22: - | BH22: - | BI22: Afectat sau NU? | BJ22: - | BK22: - | BL22: Afectat sau NU? | BM22: - | BN22: -
A23: 8 | B23: - | C23: X | D23: Refacere subtraversare râu Strei cu conducta Vest III, zona Totia | E23: - | F23: Csanadpalota | G23: - | H23: 170687.288 | I23: 531495.4565 | J23: 170687.288 | K23: 531495.4565 | L23: SM1281D0 | M23: Csanadpalota Export | N23: - | O23: - | P23: - | Q23: - | R23: - | S23: - | T23: SM1281D0 | V23: FGSZ Ltd | W23: aprilie - iunie 2020 | AB23: Arad | AP23: PMDI 2019_2.1.B.19 | BF23: Afectat sau NU? | BG23: - | BH23: - | BI23: Afectat sau NU? | BJ23: - | BK23: - | BL23: Afectat sau NU? | BM23: - | BN23: -
A24: 9 | B24: - | C24: X | D24: Refacere subtraversare râu Strei cu conducta Vest III, zona Totia | E24: - | F24: Csanadpalota | G24: - | H24: 170687.288 | I24: 531495.4565 | J24: 170687.288 | K24: 531495.4565 | L24: - | M24: - | N24: - | O24: - | P24: PM0266 | Q24: Csanadpalota Import | R24: - | S24: - | T24: PM0266 | U24: Engie, Met România, Axpo Energy, Petrom, Premier Energy, Uniper Global, Valahia Gaz | V24: FGSZ Ltd | W24: aprilie - iunie 2020 | AB24: Arad | AP24: PMDI 2019_2.1.B.19 | BF24: Afectat sau NU? | BG24: - | BH24: - | BI24: Afectat sau NU? | BJ24: - | BK24: - | BL24: Afectat sau NU? | BM24: - | BN24: -
A25: =SUM(1,$A24) -> 10 | B25: - | C25: X | D25: Modernizare NT Schitu Goleşti - montare gară godevil | E25: 18689 | F25: Schitu Golești | G25: Argeș | H25: 499964.406 | I25: 409075.773 | J25: 499964.406 | K25: 409075.773 | L25: - | M25: - | N25: SM1089D0 | O25: Schitu Golești | P25: - | Q25: - | R25: - | S25: - | T25: SM-SD001 | U25: Cez Vânzare, E.on Energie, Electric Planners, Electrica Furnizare, Electrocentrale București, Enel Energie, Energy Distribution, Engie, Met România, Monsson, Premier Energy Trading, RWE, Aderro GP, Cis Gaz, Conef Gaz, Cyeb, Distrigaz Vest, Electric&Gas, Electrocentrale Constanța, Enel Muntenia, Gas Provider, Entrex, Euro Seven, Gaz Est, Hargaz, Megaconstruct, Next Energy, Nova Power, Oligopol | V25: SC Distrigaz Sud Rețele | W25: iulie - septembrie 2020 | AB25: Craiova | AP25: PMDI 2019_10 (Anexa 1) | BF25: Afectat sau NU? | BG25: - | BH25: - | BI25: Afectat sau NU? | BJ25: - | BK25: - | BL25: Afectat sau NU? | BM25: - | BN25: -
A26: 11 | B26: - | C26: X | D26: Modernizare NT Schitu Goleşti - montare gară godevil | E26: 17254 | F26: Mihăești | G26: Argeș | H26: 500598.145 | I26: 401110.1547 | J26: 500598.145 | K26: 401110.1547 | L26: - | M26: - | N26: SM1243D0 | O26: Mihaești AG | P26: - | Q26: - | R26: - | S26: - | T26: SM-SD001 | U26: Cez Vânzare, E.on Energie, Electric Planners, Electrica Furnizare, Electrocentrale București, Enel Energie, Energy Distribution, Engie, Met România, Monsson, Premier Energy Trading, RWE, Aderro GP, Cis Gaz, Conef Gaz, Cyeb, Distrigaz Vest, Electric&Gas, Electrocentrale Constanța, Enel Muntenia, Gas Provider, Entrex, Euro Seven, Gaz Est, Hargaz, Megaconstruct, Next Energy, Nova Power, Oligopol | V26: SC Distrigaz Sud Rețele | W26: iulie - septembrie 2020 | AB26: Craiova | AP26: PMDI 2019_10 (Anexa 1) | AR26: =IF(B26="X",IF(AN26="","Afectat sau NU?",IF(AN26="DA",IF(((AK26+AL26)-(AE26+AF26))*24<-720,"Neinformat",((AK26+AL26)-(AE26+AF26))*24),"Nu a fost afectat producator/consumator")),"") ->  | AS26: =IF(B26="X",IF(AN26="DA",IF(AR26<6,LEN(TRIM(V26))-LEN(SUBSTITUTE(V26,CHAR(44),""))+1,0),"-"),"") ->  | AT26: =IF(B26="X",IF(AN26="DA",LEN(TRIM(V26))-LEN(SUBSTITUTE(V26,CHAR(44),""))+1,"-"),"") ->  | AU26: =IF(B26="X",IF(AN26="","Afectat sau NU?",IF(AN26="DA",IF(((AI26+AJ26)-(AE26+AF26))*24<-720,"Neinformat",((AI26+AJ26)-(AE26+AF26))*24),"Nu a fost afectat producator/consumator")),"") ->  | AV26: =IF(B26="X",IF(AN26="DA",IF(AU26<6,LEN(TRIM(U26))-LEN(SUBSTITUTE(U26,CHAR(44),""))+1,0),"-"),"") ->  | AW26: =IF(B26="X",IF(AN26="DA",LEN(TRIM(U26))-LEN(SUBSTITUTE(U26,CHAR(44),""))+1,"-"),"") ->  | AX26: =IF(B26="X",IF(AN26="","Afectat sau NU?",IF(AN26="DA",((AG26+AH26)-(AE26+AF26))*24,"Nu a fost afectat producator/consumator")),"") ->  | AY26: =IF(B26="X",IF(AN26="DA",IF(AX26>24,IF(BA26="NU",0,LEN(TRIM(V26))-LEN(SUBSTITUTE(V26,CHAR(44),""))+1),0),"-"),"") ->  | AZ26: =IF(B26="X",IF(AN26="DA",IF(AX26>24,LEN(TRIM(V26))-LEN(SUBSTITUTE(V26,CHAR(44),""))+1,0),"-"),"") ->  | BF26: =IF(C26="X",IF(AN26="","Afectat sau NU?",IF(AN26="DA",IF(AK26="","Neinformat",NETWORKDAYS(AK26+AL26,AE26+AF26,$BS$2:$BS$14)-2),"Nu a fost afectat producator/consumator")),"") -> Afectat sau NU? | BG26: =IF(C26="X",IF(AN26="DA",IF(AND(BF26>=5,AK26<>""),LEN(TRIM(V26))-LEN(SUBSTITUTE(V26,CHAR(44),""))+1,0),"-"),"") -> - | BH26: =IF(C26="X",IF(AN26="DA",LEN(TRIM(V26))-LEN(SUBSTITUTE(V26,CHAR(44),""))+1,"-"),"") -> - | BI26: =IF(C26="X",IF(AN26="","Afectat sau NU?",IF(AN26="DA",IF(AI26="","Neinformat",NETWORKDAYS(AI26+AJ26,AE26+AF26,$BS$2:$BS$14)-2),"Nu a fost afectat producator/consumator")),"") -> Afectat sau NU? | BJ26: =IF(C26="X",IF(AN26="DA",IF(AND(BI26>=5,AI26<>""),LEN(TRIM(U26))-LEN(SUBSTITUTE(U26,CHAR(44),""))+1,0),"-"),"") -> - | BK26: =IF(C26="X",IF(AN26="DA",LEN(TRIM(U26))-LEN(SUBSTITUTE(U26,CHAR(44),""))+1,"-"),"") -> - | BL26: =IF(C26="X",IF(AN26="","Afectat sau NU?",IF(AN26="DA",((AG26+AH26)-(Z26+AA26))*24,"Nu a fost afectat producator/consumator")),"") -> Afectat sau NU? | BM26: =IF(C26="X",IF(AN26<>"DA","-",IF(AND(AN26="DA",BL26<=0),LEN(TRIM(V26))-LEN(SUBSTITUTE(V26,CHAR(44),""))+1+LEN(TRIM(U26))-LEN(SUBSTITUTE(U26,CHAR(44),""))+1,0)),"") -> - | BN26: =IF(C26="X",IF(AN26="DA",LEN(TRIM(V26))-LEN(SUBSTITUTE(V26,CHAR(44),""))+1+LEN(TRIM(U26))-LEN(SUBSTITUTE(U26,CHAR(44),""))+1,"-"),"") -> -
A27: 12 | B27: - | C27: X | D27: Modernizare și înlocuire instalații tehnologice în cadrul SRM Miercurea Ciuc | E27: 83339 | F27: Miercurea Ciuc | G27: Harghita | H27: 559632.478 | I27: 541553.1167 | J27: 559632.478 | K27: 541553.1167 | L27: - | M27: - | N27: SM0415D1 | O27: Mercurea Ciuc | P27: - | Q27: - | R27: - | S27: - | T27: SM-SD001 | U27: Cez Vânzare, E.on Energie, E.on Furnizare, Electric Planners, Electrica Furnizare, Enel Energie, Energy Distribution, Engie, Met România, Monsson, Premier Energy Trading, RWE, Aderro GP, Cis Gaz, Conef Gaz, CPL Concordia, Cyeb, Design Proiect, Distrigaz Vest, Electric&Gas, Enel Muntenia, Gas Provider, Entrex, Gaz Est, Hargaz, Next Energy, Nova Power, Petrom, Premier Energy, Renovatio, Restart Energy, Tinmar, Wiee, Tetarom, SST Grup, Pado Group, Mihoc Oil, Gaz Vest, Gazmir Iași, Prisma Serv | V27: Delgaz Grid SA | W27: iulie - august 2020 | AB27: Brașov | AP27: PMDI 2019_9 (Anexa 3) | BF27: Afectat sau NU? | BG27: - | BH27: - | BI27: Afectat sau NU? | BJ27: - | BK27: - | BL27: Afectat sau NU? | BM27: - | BN27: -
A28: 13 | B28: - | C28: X | D28: Modernizare și înlocuire instalații tehnologice în cadrul SRM Miercurea Ciuc | E28: 83339 | F28: Miercurea Ciuc | G28: Harghita | H28: 559632.478 | I28: 541553.1167 | J28: 559632.478 | K28: 541553.1167 | L28: - | M28: - | N28: SM0415D2 | O28: SC Heineken M. Ciuc | P28: - | Q28: - | R28: - | S28: - | T28: SM-CF001 | U28: Petrom | V28: SC Heineken România SA | W28: iulie - august 2020 | AB28: Brașov | AP28: PMDI 2019_9 (Anexa 3) | AR28: =IF(B28="X",IF(AN28="","Afectat sau NU?",IF(AN28="DA",IF(((AK28+AL28)-(AE28+AF28))*24<-720,"Neinformat",((AK28+AL28)-(AE28+AF28))*24),"Nu a fost afectat producator/consumator")),"") ->  | AS28: =IF(B28="X",IF(AN28="DA",IF(AR28<6,LEN(TRIM(V28))-LEN(SUBSTITUTE(V28,CHAR(44),""))+1,0),"-"),"") ->  | AT28: =IF(B28="X",IF(AN28="DA",LEN(TRIM(V28))-LEN(SUBSTITUTE(V28,CHAR(44),""))+1,"-"),"") ->  | AU28: =IF(B28="X",IF(AN28="","Afectat sau NU?",IF(AN28="DA",IF(((AI28+AJ28)-(AE28+AF28))*24<-720,"Neinformat",((AI28+AJ28)-(AE28+AF28))*24),"Nu a fost afectat producator/consumator")),"") ->  | AV28: =IF(B28="X",IF(AN28="DA",IF(AU28<6,LEN(TRIM(U28))-LEN(SUBSTITUTE(U28,CHAR(44),""))+1,0),"-"),"") ->  | AW28: =IF(B28="X",IF(AN28="DA",LEN(TRIM(U28))-LEN(SUBSTITUTE(U28,CHAR(44),""))+1,"-"),"") ->  | AX28: =IF(B28="X",IF(AN28="","Afectat sau NU?",IF(AN28="DA",((AG28+AH28)-(AE28+AF28))*24,"Nu a fost afectat producator/consumator")),"") ->  | AY28: =IF(B28="X",IF(AN28="DA",IF(AX28>24,IF(BA28="NU",0,LEN(TRIM(V28))-LEN(SUBSTITUTE(V28,CHAR(44),""))+1),0),"-"),"") ->  | AZ28: =IF(B28="X",IF(AN28="DA",IF(AX28>24,LEN(TRIM(V28))-LEN(SUBSTITUTE(V28,CHAR(44),""))+1,0),"-"),"") ->  | BF28: =IF(C28="X",IF(AN28="","Afectat sau NU?",IF(AN28="DA",IF(AK28="","Neinformat",NETWORKDAYS(AK28+AL28,AE28+AF28,$BS$2:$BS$14)-2),"Nu a fost afectat producator/consumator")),"") -> Afectat sau NU? | BG28: =IF(C28="X",IF(AN28="DA",IF(AND(BF28>=5,AK28<>""),LEN(TRIM(V28))-LEN(SUBSTITUTE(V28,CHAR(44),""))+1,0),"-"),"") -> - | BH28: =IF(C28="X",IF(AN28="DA",LEN(TRIM(V28))-LEN(SUBSTITUTE(V28,CHAR(44),""))+1,"-"),"") -> - | BI28: =IF(C28="X",IF(AN28="","Afectat sau NU?",IF(AN28="DA",IF(AI28="","Neinformat",NETWORKDAYS(AI28+AJ28,AE28+AF28,$BS$2:$BS$14)-2),"Nu a fost afectat producator/consumator")),"") -> Afectat sau NU? | BJ28: =IF(C28="X",IF(AN28="DA",IF(AND(BI28>=5,AI28<>""),LEN(TRIM(U28))-LEN(SUBSTITUTE(U28,CHAR(44),""))+1,0),"-"),"") -> - | BK28: =IF(C28="X",IF(AN28="DA",LEN(TRIM(U28))-LEN(SUBSTITUTE(U28,CHAR(44),""))+1,"-"),"") -> - | BL28: =IF(C28="X",IF(AN28="","Afectat sau NU?",IF(AN28="DA",((AG28+AH28)-(Z28+AA28))*24,"Nu a fost afectat producator/consumator")),"") -> Afectat sau NU? | BM28: =IF(C28="X",IF(AN28<>"DA","-",IF(AND(AN28="DA",BL28<=0),LEN(TRIM(V28))-LEN(SUBSTITUTE(V28,CHAR(44),""))+1+LEN(TRIM(U28))-LEN(SUBSTITUTE(U28,CHAR(44),""))+1,0)),"") -> - | BN28: =IF(C28="X",IF(AN28="DA",LEN(TRIM(V28))-LEN(SUBSTITUTE(V28,CHAR(44),""))+1+LEN(TRIM(U28))-LEN(SUBSTITUTE(U28,CHAR(44),""))+1,"-"),"") -> -
A29: 14 | B29: - | C29: X | D29: Punerea în siguranță (deviere) a conductei de transport gaze naturale 20” Hațeg - Dealul Babii - Paroșeni, zona Dealul Babii, jud. Hunedoara | E29: - | F29: Csanadpalota | G29: - | H29: 170687.288 | I29: 531495.4565 | J29: 170687.288 | K29: 531495.4565 | L29: SM1281D0 | M29: Csanadpalota Export | N29: - | O29: - | P29: - | Q29: - | R29: - | S29: - | T29: SM1281D0 | V29: FGSZ Ltd | W29: iulie - septembrie 2020 | AB29: Arad | AP29: PMDI 2019_4 (Anexa 7) | BF29: Afectat sau NU? | BG29: - | BH29: - | BI29: Afectat sau NU? | BJ29: - | BK29: - | BL29: Afectat sau NU? | BM29: - | BN29: -
A30: 15 | B30: - | C30: X | D30: Punerea în siguranță (deviere) a conductei de transport gaze naturale 20” Hațeg - Dealul Babii - Paroșeni, zona Dealul Babii, jud. Hunedoara | E30: - | F30: Csanadpalota | G30: - | H30: 170687.288 | I30: 531495.4565 | J30: 170687.288 | K30: 531495.4565 | L30: - | M30: - | N30: - | O30: - | P30: PM0266 | Q30: Csanadpalota Import | R30: - | S30: - | T30: PM0266 | U30: Engie, Met România, RWE, Axpo Energy, Petrom, Premier Energy, Uniper Global, Valahia Gaz | V30: FGSZ Ltd | W30: iulie - septembrie 2020 | AB30: Arad | AP30: PMDI 2019_4 (Anexa 7) | BF30: Afectat sau NU? | BG30: - | BH30: - | BI30: Afectat sau NU? | BJ30: - | BK30: - | BL30: Afectat sau NU? | BM30: - | BN30: -
A31: 16 | B31: - | C31: X | D31: Punerea în siguranță (deviere) a conductei 10” Frasin - Spătărești în zona Spătărești | E31: 146548 | F31: Fălticeni | G31: Suceava | H31: 598080.5563 | I31: 662273.5562 | J31: 598080.5563 | K31: 662273.5562 | L31: - | M31: - | N31: SM0490D0 | O31: Fălticeni | P31: - | Q31: - | R31: - | S31: - | T31: SM-SD001 | U31: Cez Vânzare, E.on Energie, E.on Furnizare, Electric Planners, Electrica Furnizare, Enel Energie, Energy Distribution, Engie, Met România, Monsson, Premier Energy Trading, RWE, Aderro GP, Cis Gaz, Conef Gaz, CPL Concordia, Cyeb, Design Proiect, Distrigaz Vest, Electric&Gas, Enel Muntenia, Gas Provider, Entrex, Gaz Est, Hargaz, Next Energy, Nova Power, Petrom, Premier Energy, Renovatio, Restart Energy, Tinmar, Wiee, Tetarom, SST Grup, Pado Group, Mihoc Oil, Gaz Vest, Gazmir Iași, Prisma Serv | V31: Delgaz Grid SA | W31: iulie - septembrie 2020 | AB31: Bacău | AP31: PMDI 2019_5 (Anexa 7) | AR31: =IF(B31="X",IF(AN31="","Afectat sau NU?",IF(AN31="DA",IF(((AK31+AL31)-(AE31+AF31))*24<-720,"Neinformat",((AK31+AL31)-(AE31+AF31))*24),"Nu a fost afectat producator/consumator")),"") ->  | AS31: =IF(B31="X",IF(AN31="DA",IF(AR31<6,LEN(TRIM(V31))-LEN(SUBSTITUTE(V31,CHAR(44),""))+1,0),"-"),"") ->  | AT31: =IF(B31="X",IF(AN31="DA",LEN(TRIM(V31))-LEN(SUBSTITUTE(V31,CHAR(44),""))+1,"-"),"") ->  | AU31: =IF(B31="X",IF(AN31="","Afectat sau NU?",IF(AN31="DA",IF(((AI31+AJ31)-(AE31+AF31))*24<-720,"Neinformat",((AI31+AJ31)-(AE31+AF31))*24),"Nu a fost afectat producator/consumator")),"") ->  | AV31: =IF(B31="X",IF(AN31="DA",IF(AU31<6,LEN(TRIM(U31))-LEN(SUBSTITUTE(U31,CHAR(44),""))+1,0),"-"),"") ->  | AW31: =IF(B31="X",IF(AN31="DA",LEN(TRIM(U31))-LEN(SUBSTITUTE(U31,CHAR(44),""))+1,"-"),"") ->  | AX31: =IF(B31="X",IF(AN31="","Afectat sau NU?",IF(AN31="DA",((AG31+AH31)-(AE31+AF31))*24,"Nu a fost afectat producator/consumator")),"") ->  | AY31: =IF(B31="X",IF(AN31="DA",IF(AX31>24,IF(BA31="NU",0,LEN(TRIM(V31))-LEN(SUBSTITUTE(V31,CHAR(44),""))+1),0),"-"),"") ->  | AZ31: =IF(B31="X",IF(AN31="DA",IF(AX31>24,LEN(TRIM(V31))-LEN(SUBSTITUTE(V31,CHAR(44),""))+1,0),"-"),"") ->  | BF31: Afectat sau NU? | BG31: - | BH31: - | BI31: Afectat sau NU? | BJ31: - | BK31: - | BL31: Afectat sau NU? | BM31: - | BN31: -
A32: =SUM(1,$A31) -> 17 | B32: - | C32: X | D32: Punere în siguranță conductă 20” Hurezani – Corbu – București, Fir 1 negodevilabil, tronson Oporelu - Teu Albeni, zona loc. Bârla, jud. Argeș | E32: 80506 | F32: Hurezani | G32: Gorj | H32: 394212.6896 | I32: 369126.4888 | J32: 394212.6896 | K32: 369126.4888 | L32: - | M32: - | N32: - | O32: - | P32: PM0205 | Q32: Hurezani SU | R32: - | S32: - | T32: PM-PP001 | U32: Romgaz | V32: SNGN Romgaz SA | W32: septembrie 2020 | AB32: Craiova | AP32: propunere PRRASM 2020 | AR32: =IF(B32="X",IF(AN32="","Afectat sau NU?",IF(AN32="DA",IF(((AK32+AL32)-(AE32+AF32))*24<-720,"Neinformat",((AK32+AL32)-(AE32+AF32))*24),"Nu a fost afectat producator/consumator")),"") ->  | AS32: =IF(B32="X",IF(AN32="DA",IF(AR32<6,LEN(TRIM(V32))-LEN(SUBSTITUTE(V32,CHAR(44),""))+1,0),"-"),"") ->  | AT32: =IF(B32="X",IF(AN32="DA",LEN(TRIM(V32))-LEN(SUBSTITUTE(V32,CHAR(44),""))+1,"-"),"") ->  | AU32: =IF(B32="X",IF(AN32="","Afectat sau NU?",IF(AN32="DA",IF(((AI32+AJ32)-(AE32+AF32))*24<-720,"Neinformat",((AI32+AJ32)-(AE32+AF32))*24),"Nu a fost afectat producator/consumator")),"") ->  | AV32: =IF(B32="X",IF(AN32="DA",IF(AU32<6,LEN(TRIM(U32))-LEN(SUBSTITUTE(U32,CHAR(44),""))+1,0),"-"),"") ->  | AW32: =IF(B32="X",IF(AN32="DA",LEN(TRIM(U32))-LEN(SUBSTITUTE(U32,CHAR(44),""))+1,"-"),"") ->  | AX32: =IF(B32="X",IF(AN32="","Afectat sau NU?",IF(AN32="DA",((AG32+AH32)-(AE32+AF32))*24,"Nu a fost afectat producator/consumator")),"") ->  | AY32: =IF(B32="X",IF(AN32="DA",IF(AX32>24,IF(BA32="NU",0,LEN(TRIM(V32))-LEN(SUBSTITUTE(V32,CHAR(44),""))+1),0),"-"),"") ->  | AZ32: =IF(B32="X",IF(AN32="DA",IF(AX32>24,LEN(TRIM(V32))-LEN(SUBSTITUTE(V32,CHAR(44),""))+1,0),"-"),"") ->  | BF32: =IF(C32="X",IF(AN32="","Afectat sau NU?",IF(AN32="DA",IF(AK32="","Neinformat",NETWORKDAYS(AK32+AL32,AE32+AF32,$BS$2:$BS$14)-2),"Nu a fost afectat producator/consumator")),"") -> Afectat sau NU? | BG32: =IF(C32="X",IF(AN32="DA",IF(AND(BF32>=5,AK32<>""),LEN(TRIM(V32))-LEN(SUBSTITUTE(V32,CHAR(44),""))+1,0),"-"),"") -> - | BH32: =IF(C32="X",IF(AN32="DA",LEN(TRIM(V32))-LEN(SUBSTITUTE(V32,CHAR(44),""))+1,"-"),"") -> - | BI32: =IF(C32="X",IF(AN32="","Afectat sau NU?",IF(AN32="DA",IF(AI32="","Neinformat",NETWORKDAYS(AI32+AJ32,AE32+AF32,$BS$2:$BS$14)-2),"Nu a fost afectat producator/consumator")),"") -> Afectat sau NU? | BJ32: =IF(C32="X",IF(AN32="DA",IF(AND(BI32>=5,AI32<>""),LEN(TRIM(U32))-LEN(SUBSTITUTE(U32,CHAR(44),""))+1,0),"-"),"") -> - | BK32: =IF(C32="X",IF(AN32="DA",LEN(TRIM(U32))-LEN(SUBSTITUTE(U32,CHAR(44),""))+1,"-"),"") -> - | BL32: =IF(C32="X",IF(AN32="","Afectat sau NU?",IF(AN32="DA",((AG32+AH32)-(Z32+AA32))*24,"Nu a fost afectat producator/consumator")),"") -> Afectat sau NU? | BM32: =IF(C32="X",IF(AN32<>"DA","-",IF(AND(AN32="DA",BL32<=0),LEN(TRIM(V32))-LEN(SUBSTITUTE(V32,CHAR(44),""))+1+LEN(TRIM(U32))-LEN(SUBSTITUTE(U32,CHAR(44),""))+1,0)),"") -> - | BN32: =IF(C32="X",IF(AN32="DA",LEN(TRIM(V32))-LEN(SUBSTITUTE(V32,CHAR(44),""))+1+LEN(TRIM(U32))-LEN(SUBSTITUTE(U32,CHAR(44),""))+1,"-"),"") -> -
A33: 18 | B33: - | C33: X | D33: Punere în siguranță conductă 20” Hurezani – Corbu – București, Fir 1 negodevilabil, tronson Oporelu - Teu Albeni, zona loc. Bârla, jud. Argeș | E33: 80506 | F33: Hurezani | G33: Gorj | H33: 394174.3345 | I33: 369081.6569 | J33: 394174.3345 | K33: 369081.6569 | L33: - | M33: - | N33: - | O33: - | P33: PM0062 | Q33: Hurezani Bulbuceni | R33: - | S33: - | T33: PM-PP001 | U33: Petrom | V33: SC OMV Petrom SA | W33: septembrie 2020 | AB33: Craiova | AP33: propunere PRRASM 2020 | AR33: =IF(B33="X",IF(AN33="","Afectat sau NU?",IF(AN33="DA",IF(((AK33+AL33)-(AE33+AF33))*24<-720,"Neinformat",((AK33+AL33)-(AE33+AF33))*24),"Nu a fost afectat producator/consumator")),"") ->  | AS33: =IF(B33="X",IF(AN33="DA",IF(AR33<6,LEN(TRIM(V33))-LEN(SUBSTITUTE(V33,CHAR(44),""))+1,0),"-"),"") ->  | AT33: =IF(B33="X",IF(AN33="DA",LEN(TRIM(V33))-LEN(SUBSTITUTE(V33,CHAR(44),""))+1,"-"),"") ->  | AU33: =IF(B33="X",IF(AN33="","Afectat sau NU?",IF(AN33="DA",IF(((AI33+AJ33)-(AE33+AF33))*24<-720,"Neinformat",((AI33+AJ33)-(AE33+AF33))*24),"Nu a fost afectat producator/consumator")),"") ->  | AV33: =IF(B33="X",IF(AN33="DA",IF(AU33<6,LEN(TRIM(U33))-LEN(SUBSTITUTE(U33,CHAR(44),""))+1,0),"-"),"") ->  | AW33: =IF(B33="X",IF(AN33="DA",LEN(TRIM(U33))-LEN(SUBSTITUTE(U33,CHAR(44),""))+1,"-"),"") ->  | AX33: =IF(B33="X",IF(AN33="","Afectat sau NU?",IF(AN33="DA",((AG33+AH33)-(AE33+AF33))*24,"Nu a fost afectat producator/consumator")),"") ->  | AY33: =IF(B33="X",IF(AN33="DA",IF(AX33>24,IF(BA33="NU",0,LEN(TRIM(V33))-LEN(SUBSTITUTE(V33,CHAR(44),""))+1),0),"-"),"") ->  | AZ33: =IF(B33="X",IF(AN33="DA",IF(AX33>24,LEN(TRIM(V33))-LEN(SUBSTITUTE(V33,CHAR(44),""))+1,0),"-"),"") ->  | BF33: =IF(C33="X",IF(AN33="","Afectat sau NU?",IF(AN33="DA",IF(AK33="","Neinformat",NETWORKDAYS(AK33+AL33,AE33+AF33,$BS$2:$BS$14)-2),"Nu a fost afectat producator/consumator")),"") -> Afectat sau NU? | BG33: =IF(C33="X",IF(AN33="DA",IF(AND(BF33>=5,AK33<>""),LEN(TRIM(V33))-LEN(SUBSTITUTE(V33,CHAR(44),""))+1,0),"-"),"") -> - | BH33: =IF(C33="X",IF(AN33="DA",LEN(TRIM(V33))-LEN(SUBSTITUTE(V33,CHAR(44),""))+1,"-"),"") -> - | BI33: =IF(C33="X",IF(AN33="","Afectat sau NU?",IF(AN33="DA",IF(AI33="","Neinformat",NETWORKDAYS(AI33+AJ33,AE33+AF33,$BS$2:$BS$14)-2),"Nu a fost afectat producator/consumator")),"") -> Afectat sau NU? | BJ33: =IF(C33="X",IF(AN33="DA",IF(AND(BI33>=5,AI33<>""),LEN(TRIM(U33))-LEN(SUBSTITUTE(U33,CHAR(44),""))+1,0),"-"),"") -> - | BK33: =IF(C33="X",IF(AN33="DA",LEN(TRIM(U33))-LEN(SUBSTITUTE(U33,CHAR(44),""))+1,"-"),"") -> - | BL33: =IF(C33="X",IF(AN33="","Afectat sau NU?",IF(AN33="DA",((AG33+AH33)-(Z33+AA33))*24,"Nu a fost afectat producator/consumator")),"") -> Afectat sau NU? | BM33: =IF(C33="X",IF(AN33<>"DA","-",IF(AND(AN33="DA",BL33<=0),LEN(TRIM(V33))-LEN(SUBSTITUTE(V33,CHAR(44),""))+1+LEN(TRIM(U33))-LEN(SUBSTITUTE(U33,CHAR(44),""))+1,0)),"") -> - | BN33: =IF(C33="X",IF(AN33="DA",LEN(TRIM(V33))-LEN(SUBSTITUTE(V33,CHAR(44),""))+1+LEN(TRIM(U33))-LEN(SUBSTITUTE(U33,CHAR(44),""))+1,"-"),"") -> -
A34: 19 | B34: - | C34: X | D34: Punere în siguranță conductă 20” Hurezani – Corbu – București, Fir 1 negodevilabil, tronson Oporelu - Teu Albeni, zona loc. Bârla, jud. Argeș | E34: 82252 | F34: Stejari (Băcești) | G34: Gorj | H34: 396359.6843 | I34: 364898.3753 | J34: 396359.6843 | K34: 364898.3753 | L34: - | M34: - | N34: - | O34: - | P34: PM0206 | Q34: Piscu Stejari SU | R34: - | S34: - | T34: PM-PP001 | U34: Romgaz | V34: SNGN Romgaz SA | W34: septembrie 2020 | AB34: Craiova | AP34: propunere PRRASM 2020 | BF34: Afectat sau NU? | BG34: - | BH34: - | BI34: Afectat sau NU? | BJ34: - | BK34: - | BL34: Afectat sau NU? | BM34: - | BN34: -
A35: 20 | B35: - | C35: X | D35: Punere în siguranță conductă 20” Hurezani – Corbu – București, Fir 1 negodevilabil, tronson Oporelu - Teu Albeni, zona loc. Bârla, jud. Argeș | E35: 174307 | F35: Zătreni | G35: Vâlcea | H35: 410095.9203 | I35: 362876.8564 | J35: 410095.9203 | K35: 362876.8564 | L35: - | M35: - | N35: - | O35: - | P35: PM0270 | Q35: SU Zătreni | R35: - | S35: - | T35: PM-PP001 | U35: Romgaz, Amromco, Foraj Sonde | V35: SNGN Romgaz SA, SC Amromco Energy SRL, SC Foraj Sonde SA | W35: septembrie 2020 | AB35: Craiova | AP35: propunere PRRASM 2020 | BF35: Afectat sau NU? | BG35: - | BH35: - | BI35: Afectat sau NU? | BJ35: - | BK35: - | BL35: Afectat sau NU? | BM35: - | BN35: -
A36: 21 | B36: - | C36: X | D36: Punere în siguranță conductă 20” Hurezani – Corbu – București, Fir 1 negodevilabil, tronson Oporelu - Teu Albeni, zona loc. Bârla, jud. Argeș | E36: 174307 | F36: Zătreni | G36: Vâlcea | H36: 410096.0021 | I36: 362876.7523 | J36: 410096.0021 | K36: 362876.7523 | L36: - | M36: - | N36: - | O36: - | P36: PM0054 | Q36: Zătreni | R36: - | S36: - | T36: PM-PP001 | U36: Romgaz, Amromco | V36: SNGN Romgaz SA, SC Amromco Energy SRL | W36: septembrie 2020 | AB36: Craiova | AP36: propunere PRRASM 2020 | BF36: Afectat sau NU? | BG36: - | BH36: - | BI36: Afectat sau NU? | BJ36: - | BK36: - | BL36: Afectat sau NU? | BM36: - | BN36: -
A37: 22 | B37: - | C37: X | D37: Punere în siguranță conductă 20” Hurezani – Corbu – București, Fir 1 negodevilabil, tronson Oporelu - Teu Albeni, zona loc. Bârla, jud. Argeș | E37: 170355 | F37: Grădiștea | G37: Vâlcea | H37: 408181.079 | I37: 379756.6068 | J37: 408181.079 | K37: 379756.6068 | L37: - | M37: - | N37: - | O37: - | P37: PM0053 | Q37: Grădiștea | R37: - | S37: - | T37: PM-PP001 | U37: Romgaz, Petrom | V37: SNGN Romgaz SA, SC OMV Petrom SA | W37: septembrie 2020 | AB37: Craiova | AP37: propunere PRRASM 2020 | BF37: Afectat sau NU? | BG37: - | BH37: - | BI37: Afectat sau NU? | BJ37: - | BK37: - | BL37: Afectat sau NU? | BM37: - | BN37: -
A38: 23 | B38: - | C38: X | D38: Punere în siguranță conductă 20” Hurezani – Corbu – București, Fir 1 negodevilabil, tronson Oporelu - Teu Albeni, zona loc. Bârla, jud. Argeș | E38: 170907 | F38: Pârâienii de Jos | G38: Vâlcea | H38: 407916.5342 | I38: 366668.7789 | J38: 407916.5342 | K38: 366668.7789 | L38: - | M38: - | N38: - | O38: - | P38: PM0259 | Q38: Pârâienii de Jos | R38: - | S38: - | T38: PM-PP001 | U38: Petrom | V38: SC OMV Petrom SA | W38: septembrie 2020 | AB38: Craiova | AP38: propunere PRRASM 2020 | BF38: Afectat sau NU? | BG38: - | BH38: - | BI38: Afectat sau NU? | BJ38: - | BK38: - | BL38: Afectat sau NU? | BM38: - | BN38: -
A39: 24 | B39: - | C39: X | D39: Punere în siguranță conductă 20” Hurezani – Corbu – București, Fir 1 negodevilabil, tronson Oporelu - Teu Albeni, zona loc. Bârla, jud. Argeș | E39: 171263 | F39: Mamu | G39: Vâlcea | H39: 432509.8138 | I39: 353934.1037 | J39: 432509.8138 | K39: 353934.1037 | L39: - | M39: - | N39: - | O39: - | P39: PM0296 | Q39: Mamu (Crețeni) | R39: - | S39: - | T39: PM-PP001 | U39: Petrom | V39: SC OMV Petrom SA | W39: septembrie 2020 | AB39: Craiova | AP39: propunere PRRASM 2020 | BF39: Afectat sau NU? | BG39: - | BH39: - | BI39: Afectat sau NU? | BJ39: - | BK39: - | BL39: Afectat sau NU? | BM39: - | BN39: -
A40: 25 | B40: - | C40: X | D40: Punere în siguranță conductă 20” Hurezani – Corbu – București, Fir 1 negodevilabil, tronson Oporelu - Teu Albeni, zona loc. Bârla, jud. Argeș | E40: 171209 | F40: Mădulari | G40: Vâlcea | H40: 428807.9047 | I40: 356611.1101 | J40: 428807.9047 | K40: 356611.1101 | L40: - | M40: - | N40: - | O40: - | P40: PM0191 | Q40: Mădulari | R40: - | S40: - | T40: PM-PP001 | U40: Petrom, Amromco | V40: SC OMV Petrom SA, SC Amromco Energy SRL | W40: septembrie 2020 | AB40: Craiova | AP40: propunere PRRASM 2020 | BF40: Afectat sau NU? | BG40: - | BH40: - | BI40: Afectat sau NU? | BJ40: - | BK40: - | BL40: Afectat sau NU? | BM40: - | BN40: -
A41: 26 | B41: - | C41: X | D41: Punere în siguranță conductă 20” Hurezani – Corbu – București, Fir 1 negodevilabil, tronson Oporelu - Teu Albeni, zona loc. Bârla, jud. Argeș | E41: 172386 | F41: Popești | G41: Vâlcea | H41: 431868.6333 | I41: 384475.2689 | J41: 431868.6333 | K41: 384475.2689 | L41: - | M41: - | N41: - | O41: - | P41: PM0034 | Q41: Popești Lăpușata | R41: - | S41: - | T41: PM-PP001 | U41: Petrom | V41: SC OMV Petrom SA | W41: septembrie 2020 | AB41: Craiova | AP41: propunere PRRASM 2020 | BF41: Afectat sau NU? | BG41: - | BH41: - | BI41: Afectat sau NU? | BJ41: - | BK41: - | BL41: Afectat sau NU? | BM41: - | BN41: -
A42: 27 | B42: - | C42: X | D42: Punere în siguranță conductă 20” Hurezani – Corbu – București, Fir 1 negodevilabil, tronson Oporelu - Teu Albeni, zona loc. Bârla, jud. Argeș | E42: 168372 | F42: Tătărani | G42: Vâlcea | H42: 441512.0399 | I42: 388186.2574 | J42: 441512.0399 | K42: 388186.2574 | L42: - | M42: - | N42: - | O42: - | P42: PM0068 | Q42: Tătărani | R42: - | S42: - | T42: PM-PP001 | U42: Petrom | V42: SC OMV Petrom SA | W42: septembrie 2020 | AB42: Craiova | AP42: propunere PRRASM 2020 | BF42: Afectat sau NU? | BG42: - | BH42: - | BI42: Afectat sau NU? | BJ42: - | BK42: - | BL42: Afectat sau NU? | BM42: - | BN42: -
A43: 28 | B43: - | C43: X | D43: Punere în siguranță conductă 20” Hurezani – Corbu – București, Fir 1 negodevilabil, tronson Oporelu - Teu Albeni, zona loc. Bârla, jud. Argeș | E43: 126326 | F43: Corbu | G43: Olt | H43: 478431.2424 | I43: 331691.6553 | J43: 478431.2424 | K43: 331691.6553 | L43: - | M43: - | N43: - | O43: - | P43: PM0069 | Q43: Corbu | R43: - | S43: - | T43: PM-PP001 | U43: Petrom | V43: SC OMV Petrom SA | W43: septembrie 2020 | AB43: Craiova | AP43: propunere PRRASM 2020 | BF43: Afectat sau NU? | BG43: - | BH43: - | BI43: Afectat sau NU? | BJ43: - | BK43: - | BL43: Afectat sau NU? | BM43: - | BN43: -
A44: 29 | B44: - | C44: X | D44: Punere în siguranță traversare aeriană peste canal râu Bistrița cu conducta 12” Piatra Neamț – Bicaz, zona Pângărați, Stejaru și Bicaz | E44: 124965 | F44: Bisericani | G44: Neamț | H44: 594524.2825 | I44: 607357.2597 | J44: 594524.2825 | K44: 607357.2597 | L44: - | M44: - | N44: SM0456D0 | O44: Spitalul de Pneumoftiziologie Bisericani | P44: - | Q44: - | R44: - | S44: - | T44: SM-CF001 | U44: Enel Muntenia | V44: Spitalul de Pneumoftiziologie Bisericani | W44: mai - iulie 2020 | AB44: Bacău | AP44: propunere PRRASM 2020 | AR44: =IF(B44="X",IF(AN44="","Afectat sau NU?",IF(AN44="DA",IF(((AK44+AL44)-(AE44+AF44))*24<-720,"Neinformat",((AK44+AL44)-(AE44+AF44))*24),"Nu a fost afectat producator/consumator")),"") ->  | AS44: =IF(B44="X",IF(AN44="DA",IF(AR44<6,LEN(TRIM(V44))-LEN(SUBSTITUTE(V44,CHAR(44),""))+1,0),"-"),"") ->  | AT44: =IF(B44="X",IF(AN44="DA",LEN(TRIM(V44))-LEN(SUBSTITUTE(V44,CHAR(44),""))+1,"-"),"") ->  | AU44: =IF(B44="X",IF(AN44="","Afectat sau NU?",IF(AN44="DA",IF(((AI44+AJ44)-(AE44+AF44))*24<-720,"Neinformat",((AI44+AJ44)-(AE44+AF44))*24),"Nu a fost afectat producator/consumator")),"") ->  | AV44: =IF(B44="X",IF(AN44="DA",IF(AU44<6,LEN(TRIM(U44))-LEN(SUBSTITUTE(U44,CHAR(44),""))+1,0),"-"),"") ->  | AW44: =IF(B44="X",IF(AN44="DA",LEN(TRIM(U44))-LEN(SUBSTITUTE(U44,CHAR(44),""))+1,"-"),"") ->  | AX44: =IF(B44="X",IF(AN44="","Afectat sau NU?",IF(AN44="DA",((AG44+AH44)-(AE44+AF44))*24,"Nu a fost afectat producator/consumator")),"") ->  | AY44: =IF(B44="X",IF(AN44="DA",IF(AX44>24,IF(BA44="NU",0,LEN(TRIM(V44))-LEN(SUBSTITUTE(V44,CHAR(44),""))+1),0),"-"),"") ->  | AZ44: =IF(B44="X",IF(AN44="DA",IF(AX44>24,LEN(TRIM(V44))-LEN(SUBSTITUTE(V44,CHAR(44),""))+1,0),"-"),"") ->  | BF44: =IF(C44="X",IF(AN44="","Afectat sau NU?",IF(AN44="DA",IF(AK44="","Neinformat",NETWORKDAYS(AK44+AL44,AE44+AF44,$BS$2:$BS$14)-2),"Nu a fost afectat producator/consumator")),"") -> Afectat sau NU? | BG44: =IF(C44="X",IF(AN44="DA",IF(AND(BF44>=5,AK44<>""),LEN(TRIM(V44))-LEN(SUBSTITUTE(V44,CHAR(44),""))+1,0),"-"),"") -> - | BH44: =IF(C44="X",IF(AN44="DA",LEN(TRIM(V44))-LEN(SUBSTITUTE(V44,CHAR(44),""))+1,"-"),"") -> - | BI44: =IF(C44="X",IF(AN44="","Afectat sau NU?",IF(AN44="DA",IF(AI44="","Neinformat",NETWORKDAYS(AI44+AJ44,AE44+AF44,$BS$2:$BS$14)-2),"Nu a fost afectat producator/consumator")),"") -> Afectat sau NU? | BJ44: =IF(C44="X",IF(AN44="DA",IF(AND(BI44>=5,AI44<>""),LEN(TRIM(U44))-LEN(SUBSTITUTE(U44,CHAR(44),""))+1,0),"-"),"") -> - | BK44: =IF(C44="X",IF(AN44="DA",LEN(TRIM(U44))-LEN(SUBSTITUTE(U44,CHAR(44),""))+1,"-"),"") -> - | BL44: =IF(C44="X",IF(AN44="","Afectat sau NU?",IF(AN44="DA",((AG44+AH44)-(Z44+AA44))*24,"Nu a fost afectat producator/consumator")),"") -> Afectat sau NU? | BM44: =IF(C44="X",IF(AN44<>"DA","-",IF(AND(AN44="DA",BL44<=0),LEN(TRIM(V44))-LEN(SUBSTITUTE(V44,CHAR(44),""))+1+LEN(TRIM(U44))-LEN(SUBSTITUTE(U44,CHAR(44),""))+1,0)),"") -> - | BN44: =IF(C44="X",IF(AN44="DA",LEN(TRIM(V44))-LEN(SUBSTITUTE(V44,CHAR(44),""))+1+LEN(TRIM(U44))-LEN(SUBSTITUTE(U44,CHAR(44),""))+1,"-"),"") -> -
A45: 30 | B45: - | C45: X | D45: Punere în siguranță traversare aeriană peste canal râu Bistrița cu conducta 12” Piatra Neamț – Bicaz, zona Pângărați, Stejaru și Bicaz | E45: 124992 | F45: Vaduri | G45: Neamț | H45: 595078.5159 | I45: 604354.3936 | J45: 595078.5159 | K45: 604354.3936 | L45: - | M45: - | N45: SM0461D0 | O45: SC Kober Vaduri | P45: - | Q45: - | R45: - | S45: - | T45: SM-CF001 | U45: Petrom | V45: SC Kober SRL - Sucursala Vaduri | W45: mai - iulie 2020 | AB45: Bacău | AP45: propunere PRRASM 2020 | BF45: Afectat sau NU? | BG45: - | BH45: - | BI45: Afectat sau NU? | BJ45: - | BK45: - | BL45: Afectat sau NU? | BM45: - | BN45: -
A46: 31 | B46: - | C46: X | D46: Punere în siguranță traversare aeriană peste canal râu Bistrița cu conducta 12” Piatra Neamț – Bicaz, zona Pângărați, Stejaru și Bicaz | E46: 124992 | F46: Vaduri | G46: Neamț | H46: 595164.763 | I46: 604317.6584 | J46: 595164.763 | K46: 604317.6584 | L46: - | M46: - | N46: SM0457D0 | O46: SC Unopan SRL Vaduri | P46: - | Q46: - | R46: - | S46: - | T46: SM-CF001 | U46: Cordun Gaz | V46: SC Unopan SRL | W46: mai - iulie 2020 | AB46: Bacău | AP46: propunere PRRASM 2020 | BF46: Afectat sau NU? | BG46: - | BH46: - | BI46: Afectat sau NU? | BJ46: - | BK46: - | BL46: Afectat sau NU? | BM46: - | BN46: -
A47: 32 | B47: - | C47: X | D47: Punere în siguranță traversare aeriană peste canal râu Bistrița cu conducta 12” Piatra Neamț – Bicaz, zona Pângărați, Stejaru și Bicaz | E47: 124992 | F47: Vaduri | G47: Neamț | H47: 594758.2879 | I47: 604040.5662 | J47: 594758.2879 | K47: 604040.5662 | L47: - | M47: - | N47: SM1052D0 | O47: Vaduri | P47: - | Q47: - | R47: - | S47: - | T47: SM-SD001 | U47: Cez Vânzare, E.on Energie, E.on Furnizare, Electric Planners, Electrica Furnizare, Enel Energie, Energy Distribution, Engie, Met România, Monsson, Premier Energy Trading, RWE, Aderro GP, Cis Gaz, Conef Gaz, CPL Concordia, Cyeb, Design Proiect, Distrigaz Vest, Electric&Gas, Enel Muntenia, Gas Provider, Entrex, Gaz Est, Hargaz, Next Energy, Nova Power, Petrom, Premier Energy, Renovatio, Restart Energy, Tinmar, Wiee, Tetarom, SST Grup, Pado Group, Mihoc Oil, Gaz Vest, Gazmir Iași, Prisma Serv | V47: Delgaz Grid SA | W47: mai - iulie 2020 | AB47: Bacău | AP47: propunere PRRASM 2020 | BF47: Afectat sau NU? | BG47: - | BH47: - | BI47: Afectat sau NU? | BJ47: - | BK47: - | BL47: Afectat sau NU? | BM47: - | BN47: -
A48: 33 | B48: - | C48: X | D48: Punere în siguranță traversare aeriană peste canal râu Bistrița cu conducta 12” Piatra Neamț – Bicaz, zona Pângărați, Stejaru și Bicaz | E48: 123665 | F48: Stejaru | G48: Neamț | H48: 589703.3005 | I48: 602610.3066 | J48: 589703.3005 | K48: 602610.3066 | L48: - | M48: - | N48: SM0458D0 | O48: Stejaru | P48: - | Q48: - | R48: - | S48: - | T48: SM-SD001 | U48: Cez Vânzare, E.on Energie, E.on Furnizare, Electric Planners, Electrica Furnizare, Enel Energie, Energy Distribution, Engie, Met România, Monsson, Premier Energy Trading, RWE, Aderro GP, Cis Gaz, Conef Gaz, CPL Concordia, Cyeb, Design Proiect, Distrigaz Vest, Electric&Gas, Enel Muntenia, Gas Provider, Entrex, Gaz Est, Hargaz, Next Energy, Nova Power, Petrom, Premier Energy, Renovatio, Restart Energy, Tinmar, Wiee, Tetarom, SST Grup, Pado Group, Mihoc Oil, Gaz Vest, Gazmir Iași, Prisma Serv | V48: Delgaz Grid SA | W48: mai - iulie 2020 | AB48: Bacău | AP48: propunere PRRASM 2020 | BF48: Afectat sau NU? | BG48: - | BH48: - | BI48: Afectat sau NU? | BJ48: - | BK48: - | BL48: Afectat sau NU? | BM48: - | BN48: -
A49: 34 | B49: - | C49: X | D49: Punere în siguranță traversare aeriană peste canal râu Bistrița cu conducta 12” Piatra Neamț – Bicaz, zona Pângărați, Stejaru și Bicaz | E49: 120977 | F49: Bicaz | G49: Neamț | H49: 583336.3311 | I49: 601827.1189 | J49: 583336.3311 | K49: 601827.1189 | L49: - | M49: - | N49: SM0459D0 | O49: Bicaz | P49: - | Q49: - | R49: - | S49: - | T49: SM-SD001 | U49: Cez Vânzare, E.on Energie, E.on Furnizare, Electric Planners, Electrica Furnizare, Enel Energie, Energy Distribution, Engie, Met România, Monsson, Premier Energy Trading, RWE, Aderro GP, Cis Gaz, Conef Gaz, CPL Concordia, Cyeb, Design Proiect, Distrigaz Vest, Electric&Gas, Enel Muntenia, Gas Provider, Entrex, Gaz Est, Hargaz, Next Energy, Nova Power, Petrom, Premier Energy, Renovatio, Restart Energy, Tinmar, Wiee, Tetarom, SST Grup, Pado Group, Mihoc Oil, Gaz Vest, Gazmir Iași, Prisma Serv | V49: Delgaz Grid SA | W49: mai - iulie 2020 | AB49: Bacău | AP49: propunere PRRASM 2020 | BF49: Afectat sau NU? | BG49: - | BH49: - | BI49: Afectat sau NU? | BJ49: - | BK49: - | BL49: Afectat sau NU? | BM49: - | BN49: -
A50: =SUM(1,$A49) -> 35 | B50: - | C50: X | D50: Pregătire conductă 28” Stâlp 89 - Filipești pentru transformare în conductă godevilabilă | E50: 134069 | F50: Măgureni | G50: Prahova | H50: 558808.0246 | I50: 394539.7363 | J50: 558808.0246 | K50: 394539.7363 | L50: - | M50: - | N50: SM0506D0 | O50: Măgureni | P50: - | Q50: - | R50: - | S50: - | T50: SM-SD001 | U50: Enel, Engie România, Enel Muntenia, MM Data | V50: SC MM Data SRL | W50: aprilie - septembrie 2020 | AB50: București | AP50: propunere PRRASM 2020 | BF50: Afectat sau NU? | BG50: - | BH50: - | BI50: Afectat sau NU? | BJ50: - | BK50: - | BL50: Afectat sau NU? | BM50: - | BN50: -
A51: 36 | B51: - | C51: X | D51: Pregătire conductă 28” Stâlp 89 - Filipești pentru transformare în conductă godevilabilă | E51: 134862 | F51: Provița de Jos | G51: Prahova | H51: 552168.0599 | I51: 402387.5876 | J51: 552168.0599 | K51: 402387.5876 | L51: - | M51: - | N51: SM0096D0 | O51: Provița de Jos | P51: - | Q51: - | R51: - | S51: - | T51: SM-SD001 | U51: Cez Vânzare, E.on Energie, Electric Planners, Electrica Furnizare, Electrocentrale București, Enel Energie, Energy Distribution, Engie, Met România, Monsson, Premier Energy Trading, RWE, Aderro GP, Cis Gaz, Conef Gaz, Cyeb, Distrigaz Vest, Electric&Gas, Electrocentrale Constanța, Enel Muntenia, Gas Provider, Entrex, Euro Seven, Gaz Est, Hargaz, Megaconstruct, Next Energy, Nova Power, Oligopol | V51: SC Distrigaz Sud Rețele | W51: aprilie - septembrie 2020 | AB51: București | AP51: propunere PRRASM 2020 | BF51: Afectat sau NU? | BG51: - | BH51: - | BI51: Afectat sau NU? | BJ51: - | BK51: - | BL51: Afectat sau NU? | BM51: - | BN51: -
A52: 37 | B52: - | C52: X | D52: Pregătire conductă 28” Stâlp 89 - Filipești pentru transformare în conductă godevilabilă | E52: 131121 | F52: Breaza de Sus | G52: Prahova | H52: 551059.1515 | I52: 410660.8987 | J52: 551059.1515 | K52: 410660.8987 | L52: - | M52: - | N52: SM0085D1 | O52: Breaza PH | P52: - | Q52: - | R52: - | S52: - | T52: SM-SD001 | U52: Cez Vânzare, E.on Energie, Electric Planners, Electrica Furnizare, Electrocentrale București, Enel Energie, Energy Distribution, Engie, Met România, Monsson, Premier Energy Trading, RWE, Aderro GP, Cis Gaz, Conef Gaz, Cyeb, Distrigaz Vest, Electric&Gas, Electrocentrale Constanța, Enel Muntenia, Gas Provider, Entrex, Euro Seven, Gaz Est, Hargaz, Megaconstruct, Next Energy, Nova Power, Oligopol | V52: SC Distrigaz Sud Rețele | W52: aprilie - septembrie 2020 | AB52: București | AP52: propunere PRRASM 2020 | BF52: Afectat sau NU? | BG52: - | BH52: - | BI52: Afectat sau NU? | BJ52: - | BK52: - | BL52: Afectat sau NU? | BM52: - | BN52: -
A53: 38 | B53: - | C53: X | D53: Pregătire conductă 28” Stâlp 89 - Filipești pentru transformare în conductă godevilabilă | E53: 131381 | F53: Posada | G53: Prahova | H53: 548893.7001 | I53: 420137.2183 | J53: 548893.7001 | K53: 420137.2183 | L53: - | M53: - | N53: SM0081D0 | O53: Posada | P53: - | Q53: - | R53: - | S53: - | T53: SM-SD001 | U53: Cez Vânzare, E.on Energie, Electric Planners, Electrica Furnizare, Electrocentrale București, Enel Energie, Energy Distribution, Engie, Met România, Monsson, Premier Energy Trading, RWE, Aderro GP, Cis Gaz, Conef Gaz, Cyeb, Distrigaz Vest, Electric&Gas, Electrocentrale Constanța, Enel Muntenia, Gas Provider, Entrex, Euro Seven, Gaz Est, Hargaz, Megaconstruct, Next Energy, Nova Power, Oligopol | V53: SC Distrigaz Sud Rețele | W53: aprilie - septembrie 2020 | AB53: București | AP53: propunere PRRASM 2020 | BF53: Afectat sau NU? | BG53: - | BH53: - | BI53: Afectat sau NU? | BJ53: - | BK53: - | BL53: Afectat sau NU? | BM53: - | BN53: -
A54: 39 | B54: - | C54: X | D54: Pregătire conductă 20” Stâlp 89 - Filipești pentru transformare în conductă godevilabilă | E54: 131345 | F54: Comarnic | G54: Prahova | H54: 549781.5202 | I54: 415513.8386 | J54: 549781.5202 | K54: 415513.8386 | L54: - | M54: - | N54: SM0084D1 | O54: Comarnic | P54: - | Q54: - | R54: - | S54: - | T54: SM-SD001 | U54: Cez Vânzare, E.on Energie, Electric Planners, Electrica Furnizare, Electrocentrale București, Enel Energie, Energy Distribution, Engie, Met România, Monsson, Premier Energy Trading, RWE, Aderro GP, Cis Gaz, Conef Gaz, Cyeb, Distrigaz Vest, Electric&Gas, Electrocentrale Constanța, Enel Muntenia, Gas Provider, Entrex, Euro Seven, Gaz Est, Hargaz, Megaconstruct, Next Energy, Nova Power, Oligopol | V54: SC Distrigaz Sud Rețele | W54: aprilie - septembrie 2020 | AB54: București | AP54: propunere PRRASM 2020 | BF54: Afectat sau NU? | BG54: - | BH54: - | BI54: Afectat sau NU? | BJ54: - | BK54: - | BL54: Afectat sau NU? | BM54: - | BN54: -
A55: 40 | B55: - | C55: X | D55: Pregătire conductă 20” Stâlp 89 - Filipești pentru transformare în conductă godevilabilă | E55: 131158 | F55: Nistorești | G55: Prahova | H55: 552080.234 | I55: 411911.363 | J55: 552080.234 | K55: 411911.363 | L55: - | M55: - | N55: SM0087D0 | O55: SC Izvorul Rece Nistorești | P55: - | Q55: - | R55: - | S55: - | T55: SM-CF001 | U55: Engie | V55: SC Izvorul Rece PS SRL | W55: aprilie - septembrie 2020 | AB55: București | AP55: propunere PRRASM 2020 | AR55: =IF(B55="X",IF(AN55="","Afectat sau NU?",IF(AN55="DA",IF(((AK55+AL55)-(AE55+AF55))*24<-720,"Neinformat",((AK55+AL55)-(AE55+AF55))*24),"Nu a fost afectat producator/consumator")),"") ->  | AS55: =IF(B55="X",IF(AN55="DA",IF(AR55<6,LEN(TRIM(V55))-LEN(SUBSTITUTE(V55,CHAR(44),""))+1,0),"-"),"") ->  | AT55: =IF(B55="X",IF(AN55="DA",LEN(TRIM(V55))-LEN(SUBSTITUTE(V55,CHAR(44),""))+1,"-"),"") ->  | AU55: =IF(B55="X",IF(AN55="","Afectat sau NU?",IF(AN55="DA",IF(((AI55+AJ55)-(AE55+AF55))*24<-720,"Neinformat",((AI55+AJ55)-(AE55+AF55))*24),"Nu a fost afectat producator/consumator")),"") ->  | AV55: =IF(B55="X",IF(AN55="DA",IF(AU55<6,LEN(TRIM(U55))-LEN(SUBSTITUTE(U55,CHAR(44),""))+1,0),"-"),"") ->  | AW55: =IF(B55="X",IF(AN55="DA",LEN(TRIM(U55))-LEN(SUBSTITUTE(U55,CHAR(44),""))+1,"-"),"") ->  | AX55: =IF(B55="X",IF(AN55="","Afectat sau NU?",IF(AN55="DA",((AG55+AH55)-(AE55+AF55))*24,"Nu a fost afectat producator/consumator")),"") ->  | AY55: =IF(B55="X",IF(AN55="DA",IF(AX55>24,IF(BA55="NU",0,LEN(TRIM(V55))-LEN(SUBSTITUTE(V55,CHAR(44),""))+1),0),"-"),"") ->  | AZ55: =IF(B55="X",IF(AN55="DA",IF(AX55>24,LEN(TRIM(V55))-LEN(SUBSTITUTE(V55,CHAR(44),""))+1,0),"-"),"") ->  | BF55: =IF(C55="X",IF(AN55="","Afectat sau NU?",IF(AN55="DA",IF(AK55="","Neinformat",NETWORKDAYS(AK55+AL55,AE55+AF55,$BS$2:$BS$14)-2),"Nu a fost afectat producator/consumator")),"") -> Afectat sau NU? | BG55: =IF(C55="X",IF(AN55="DA",IF(AND(BF55>=5,AK55<>""),LEN(TRIM(V55))-LEN(SUBSTITUTE(V55,CHAR(44),""))+1,0),"-"),"") -> - | BH55: =IF(C55="X",IF(AN55="DA",LEN(TRIM(V55))-LEN(SUBSTITUTE(V55,CHAR(44),""))+1,"-"),"") -> - | BI55: =IF(C55="X",IF(AN55="","Afectat sau NU?",IF(AN55="DA",IF(AI55="","Neinformat",NETWORKDAYS(AI55+AJ55,AE55+AF55,$BS$2:$BS$14)-2),"Nu a fost afectat producator/consumator")),"") -> Afectat sau NU? | BJ55: =IF(C55="X",IF(AN55="DA",IF(AND(BI55>=5,AI55<>""),LEN(TRIM(U55))-LEN(SUBSTITUTE(U55,CHAR(44),""))+1,0),"-"),"") -> - | BK55: =IF(C55="X",IF(AN55="DA",LEN(TRIM(U55))-LEN(SUBSTITUTE(U55,CHAR(44),""))+1,"-"),"") -> - | BL55: =IF(C55="X",IF(AN55="","Afectat sau NU?",IF(AN55="DA",((AG55+AH55)-(Z55+AA55))*24,"Nu a fost afectat producator/consumator")),"") -> Afectat sau NU? | BM55: =IF(C55="X",IF(AN55<>"DA","-",IF(AND(AN55="DA",BL55<=0),LEN(TRIM(V55))-LEN(SUBSTITUTE(V55,CHAR(44),""))+1+LEN(TRIM(U55))-LEN(SUBSTITUTE(U55,CHAR(44),""))+1,0)),"") -> - | BN55: =IF(C55="X",IF(AN55="DA",LEN(TRIM(V55))-LEN(SUBSTITUTE(V55,CHAR(44),""))+1+LEN(TRIM(U55))-LEN(SUBSTITUTE(U55,CHAR(44),""))+1,"-"),"") -> -
A56: 41 | B56: - | C56: X | D56: Pregătire conductă 20” Stâlp 89 - Filipești pentru transformare în conductă godevilabilă | E56: 131283 | F56: Poiana Câmpina | G56: Prahova | H56: 556095.0815 | I56: 404225.6945 | J56: 556095.0815 | K56: 404225.6945 | L56: - | M56: - | N56: SM0089D0 | O56: Poiana Câmpina | P56: - | Q56: - | R56: - | S56: - | T56: SM-SD001 | U56: Cez Vânzare, E.on Energie, Electric Planners, Electrica Furnizare, Electrocentrale București, Enel Energie, Energy Distribution, Engie, Met România, Monsson, Premier Energy Trading, RWE, Aderro GP, Cis Gaz, Conef Gaz, Cyeb, Distrigaz Vest, Electric&Gas, Electrocentrale Constanța, Enel Muntenia, Gas Provider, Entrex, Euro Seven, Gaz Est, Hargaz, Megaconstruct, Next Energy, Nova Power, Oligopol | V56: SC Distrigaz Sud Rețele | W56: aprilie - septembrie 2020 | AB56: București | AP56: propunere PRRASM 2020 | BF56: Afectat sau NU? | BG56: - | BH56: - | BI56: Afectat sau NU? | BJ56: - | BK56: - | BL56: Afectat sau NU? | BM56: - | BN56: -
A57: 42 | B57: - | C57: X | D57: Pregătire conductă 20” Stâlp 89 - Filipești pentru transformare în conductă godevilabilă | E57: 131229 | F57: Bușteni | G57: Prahova | H57: 540786.679 | I57: 438967.0847 | J57: 540786.679 | K57: 438967.0847 | L57: - | M57: - | N57: SM0070D0 | O57: SC Cabana Gura Diham | P57: - | Q57: - | R57: - | S57: - | T57: SM-CF001 | U57: Engie | V57: SC Gura Diham SRL | W57: aprilie - septembrie 2020 | AB57: Brașov | AP57: propunere PRRASM 2020 | AR57: =IF(B57="X",IF(AN57="","Afectat sau NU?",IF(AN57="DA",IF(((AK57+AL57)-(AE57+AF57))*24<-720,"Neinformat",((AK57+AL57)-(AE57+AF57))*24),"Nu a fost afectat producator/consumator")),"") ->  | AS57: =IF(B57="X",IF(AN57="DA",IF(AR57<6,LEN(TRIM(V57))-LEN(SUBSTITUTE(V57,CHAR(44),""))+1,0),"-"),"") ->  | AT57: =IF(B57="X",IF(AN57="DA",LEN(TRIM(V57))-LEN(SUBSTITUTE(V57,CHAR(44),""))+1,"-"),"") ->  | AU57: =IF(B57="X",IF(AN57="","Afectat sau NU?",IF(AN57="DA",IF(((AI57+AJ57)-(AE57+AF57))*24<-720,"Neinformat",((AI57+AJ57)-(AE57+AF57))*24),"Nu a fost afectat producator/consumator")),"") ->  | AV57: =IF(B57="X",IF(AN57="DA",IF(AU57<6,LEN(TRIM(U57))-LEN(SUBSTITUTE(U57,CHAR(44),""))+1,0),"-"),"") ->  | AW57: =IF(B57="X",IF(AN57="DA",LEN(TRIM(U57))-LEN(SUBSTITUTE(U57,CHAR(44),""))+1,"-"),"") ->  | AX57: =IF(B57="X",IF(AN57="","Afectat sau NU?",IF(AN57="DA",((AG57+AH57)-(AE57+AF57))*24,"Nu a fost afectat producator/consumator")),"") ->  | AY57: =IF(B57="X",IF(AN57="DA",IF(AX57>24,IF(BA57="NU",0,LEN(TRIM(V57))-LEN(SUBSTITUTE(V57,CHAR(44),""))+1),0),"-"),"") ->  | AZ57: =IF(B57="X",IF(AN57="DA",IF(AX57>24,LEN(TRIM(V57))-LEN(SUBSTITUTE(V57,CHAR(44),""))+1,0),"-"),"") ->  | BF57: =IF(C57="X",IF(AN57="","Afectat sau NU?",IF(AN57="DA",IF(AK57="","Neinformat",NETWORKDAYS(AK57+AL57,AE57+AF57,$BS$2:$BS$14)-2),"Nu a fost afectat producator/consumator")),"") -> Afectat sau NU? | BG57: =IF(C57="X",IF(AN57="DA",IF(AND(BF57>=5,AK57<>""),LEN(TRIM(V57))-LEN(SUBSTITUTE(V57,CHAR(44),""))+1,0),"-"),"") -> - | BH57: =IF(C57="X",IF(AN57="DA",LEN(TRIM(V57))-LEN(SUBSTITUTE(V57,CHAR(44),""))+1,"-"),"") -> - | BI57: =IF(C57="X",IF(AN57="","Afectat sau NU?",IF(AN57="DA",IF(AI57="","Neinformat",NETWORKDAYS(AI57+AJ57,AE57+AF57,$BS$2:$BS$14)-2),"Nu a fost afectat producator/consumator")),"") -> Afectat sau NU? | BJ57: =IF(C57="X",IF(AN57="DA",IF(AND(BI57>=5,AI57<>""),LEN(TRIM(U57))-LEN(SUBSTITUTE(U57,CHAR(44),""))+1,0),"-"),"") -> - | BK57: =IF(C57="X",IF(AN57="DA",LEN(TRIM(U57))-LEN(SUBSTITUTE(U57,CHAR(44),""))+1,"-"),"") -> - | BL57: =IF(C57="X",IF(AN57="","Afectat sau NU?",IF(AN57="DA",((AG57+AH57)-(Z57+AA57))*24,"Nu a fost afectat producator/consumator")),"") -> Afectat sau NU? | BM57: =IF(C57="X",IF(AN57<>"DA","-",IF(AND(AN57="DA",BL57<=0),LEN(TRIM(V57))-LEN(SUBSTITUTE(V57,CHAR(44),""))+1+LEN(TRIM(U57))-LEN(SUBSTITUTE(U57,CHAR(44),""))+1,0)),"") -> - | BN57: =IF(C57="X",IF(AN57="DA",LEN(TRIM(V57))-LEN(SUBSTITUTE(V57,CHAR(44),""))+1+LEN(TRIM(U57))-LEN(SUBSTITUTE(U57,CHAR(44),""))+1,"-"),"") -> -
A58: 43 | B58: - | C58: X | D58: Pregătire conductă 28” Inel București pentru transformare în conductă godevilabilă | E58: 101760 | F58: Cernica | G58: Ilfov | H58: 602275.4927 | I58: 322657.2336 | J58: 602275.4927 | K58: 322657.2336 | L58: - | M58: - | N58: SM1133D0 | O58: Cernica II (Bălăceanca) | P58: - | Q58: - | R58: - | S58: - | T58: SM-SD001 | U58: Cez Vânzare, E.On Energie, Electric Planners, Electrica Furnizare, Enel Energie, Energy Distribution, Engie, Met România, Aderro GP, Cis Gaz, Conef Gaz, Electric&Gas, Enel Muntenia, Gas Provider, Gaz Est, Megaconstruct, Next Energy, Nova Power, Petrom, Premier Energy, Renovatio, Restart Energy, Tinmar, Wiee, Transenergo | V58: SC Premier Energy SRL | W58: august - septembrie 2020 | AB58: București | AP58: propunere PRRASM 2020 | BF58: Afectat sau NU? | BG58: - | BH58: - | BI58: Afectat sau NU? | BJ58: - | BK58: - | BL58: Afectat sau NU? | BM58: - | BN58: -
A59: 44 | B59: - | C59: X | D59: Pregătire conductă 28” Inel București pentru transformare în conductă godevilabilă | E59: 179418 | F59: Măgurele | G59: Ilfov | H59: 583333.363 | I59: 319855.8228 | J59: 583333.363 | K59: 319855.8228 | L59: - | M59: - | N59: SM0252D0 | O59: Măgurele București | P59: - | Q59: - | R59: - | S59: - | T59: SM-SD001 | U59: Cez Vânzare, E.on Energie, Electric Planners, Electrica Furnizare, Electrocentrale București, Enel Energie, Energy Distribution, Engie, Met România, Monsson, Premier Energy Trading, RWE, Aderro GP, Cis Gaz, Conef Gaz, Cyeb, Distrigaz Vest, Electric&Gas, Electrocentrale Constanța, Enel Muntenia, Gas Provider, Entrex, Euro Seven, Gaz Est, Hargaz, Megaconstruct, Next Energy, Nova Power, Oligopol, Petrom, Premier Energy, Renovatio, Restart Energy, Tinmar, Wiee, Romgaz, Transenergo, Veolia | V59: SC Distrigaz Sud Rețele | W59: august - septembrie 2020 | AB59: București | AP59: propunere PRRASM 2020 | AR59: =IF(B59="X",IF(AN59="","Afectat sau NU?",IF(AN59="DA",IF(((AK59+AL59)-(AE59+AF59))*24<-720,"Neinformat",((AK59+AL59)-(AE59+AF59))*24),"Nu a fost afectat producator/consumator")),"") ->  | AS59: =IF(B59="X",IF(AN59="DA",IF(AR59<6,LEN(TRIM(V59))-LEN(SUBSTITUTE(V59,CHAR(44),""))+1,0),"-"),"") ->  | AT59: =IF(B59="X",IF(AN59="DA",LEN(TRIM(V59))-LEN(SUBSTITUTE(V59,CHAR(44),""))+1,"-"),"") ->  | AU59: =IF(B59="X",IF(AN59="","Afectat sau NU?",IF(AN59="DA",IF(((AI59+AJ59)-(AE59+AF59))*24<-720,"Neinformat",((AI59+AJ59)-(AE59+AF59))*24),"Nu a fost afectat producator/consumator")),"") ->  | AV59: =IF(B59="X",IF(AN59="DA",IF(AU59<6,LEN(TRIM(U59))-LEN(SUBSTITUTE(U59,CHAR(44),""))+1,0),"-"),"") ->  | AW59: =IF(B59="X",IF(AN59="DA",LEN(TRIM(U59))-LEN(SUBSTITUTE(U59,CHAR(44),""))+1,"-"),"") ->  | AX59: =IF(B59="X",IF(AN59="","Afectat sau NU?",IF(AN59="DA",((AG59+AH59)-(AE59+AF59))*24,"Nu a fost afectat producator/consumator")),"") ->  | AY59: =IF(B59="X",IF(AN59="DA",IF(AX59>24,IF(BA59="NU",0,LEN(TRIM(V59))-LEN(SUBSTITUTE(V59,CHAR(44),""))+1),0),"-"),"") ->  | AZ59: =IF(B59="X",IF(AN59="DA",IF(AX59>24,LEN(TRIM(V59))-LEN(SUBSTITUTE(V59,CHAR(44),""))+1,0),"-"),"") ->  | BF59: =IF(C59="X",IF(AN59="","Afectat sau NU?",IF(AN59="DA",IF(AK59="","Neinformat",NETWORKDAYS(AK59+AL59,AE59+AF59,$BS$2:$BS$14)-2),"Nu a fost afectat producator/consumator")),"") -> Afectat sau NU? | BG59: =IF(C59="X",IF(AN59="DA",IF(AND(BF59>=5,AK59<>""),LEN(TRIM(V59))-LEN(SUBSTITUTE(V59,CHAR(44),""))+1,0),"-"),"") -> - | BH59: =IF(C59="X",IF(AN59="DA",LEN(TRIM(V59))-LEN(SUBSTITUTE(V59,CHAR(44),""))+1,"-"),"") -> - | BI59: =IF(C59="X",IF(AN59="","Afectat sau NU?",IF(AN59="DA",IF(AI59="","Neinformat",NETWORKDAYS(AI59+AJ59,AE59+AF59,$BS$2:$BS$14)-2),"Nu a fost afectat producator/consumator")),"") -> Afectat sau NU? | BJ59: =IF(C59="X",IF(AN59="DA",IF(AND(BI59>=5,AI59<>""),LEN(TRIM(U59))-LEN(SUBSTITUTE(U59,CHAR(44),""))+1,0),"-"),"") -> - | BK59: =IF(C59="X",IF(AN59="DA",LEN(TRIM(U59))-LEN(SUBSTITUTE(U59,CHAR(44),""))+1,"-"),"") -> - | BL59: =IF(C59="X",IF(AN59="","Afectat sau NU?",IF(AN59="DA",((AG59+AH59)-(Z59+AA59))*24,"Nu a fost afectat producator/consumator")),"") -> Afectat sau NU? | BM59: =IF(C59="X",IF(AN59<>"DA","-",IF(AND(AN59="DA",BL59<=0),LEN(TRIM(V59))-LEN(SUBSTITUTE(V59,CHAR(44),""))+1+LEN(TRIM(U59))-LEN(SUBSTITUTE(U59,CHAR(44),""))+1,0)),"") -> - | BN59: =IF(C59="X",IF(AN59="DA",LEN(TRIM(V59))-LEN(SUBSTITUTE(V59,CHAR(44),""))+1+LEN(TRIM(U59))-LEN(SUBSTITUTE(U59,CHAR(44),""))+1,"-"),"") -> -
A60: 45 | B60: - | C60: X | D60: Pregătire conductă 28” Inel București pentru transformare în conductă godevilabilă | E60: 179230 | F60: Bragadiru | G60: Ilfov | H60: 578545.5687 | I60: 319774.3454 | J60: 578545.5687 | K60: 319774.3454 | L60: - | M60: - | N60: SM0250D2 | O60: Bragadiru | P60: - | Q60: - | R60: - | S60: - | T60: SM-SD001 | U60: Cez Vânzare, E.on Energie, Electric Planners, Electrica Furnizare, Electrocentrale București, Enel Energie, Energy Distribution, Engie, Met România, Monsson, Premier Energy Trading, RWE, Aderro GP, Cis Gaz, Conef Gaz, Cyeb, Distrigaz Vest, Electric&Gas, Electrocentrale Constanța, Enel Muntenia, Gas Provider, Entrex, Euro Seven, Gaz Est, Hargaz, Megaconstruct, Next Energy, Nova Power, Oligopol, Petrom, Premier Energy, Renovatio, Restart Energy, Tinmar, Wiee, Romgaz, Transenergo, Veolia | V60: SC Distrigaz Sud Rețele | W60: august - septembrie 2020 | AB60: București | AP60: propunere PRRASM 2020 | BF60: Afectat sau NU? | BG60: - | BH60: - | BI60: Afectat sau NU? | BJ60: - | BK60: - | BL60: Afectat sau NU? | BM60: - | BN60: -
A61: 46 | B61: - | C61: X | D61: Pregătire conductă 28” Inel București pentru transformare în conductă godevilabilă | E61: 179230 | F61: Bragadiru | G61: Ilfov | H61: 578545.5687 | I61: 319774.3454 | J61: 578545.5687 | K61: 319774.3454 | L61: - | M61: - | N61: SM0250D1 | O61: SC Good Work Bragadiru | P61: - | Q61: - | R61: - | S61: - | T61: SM-SD001 | U61: Cez Vânzare, E.on Energie, Electric Planners, Electrica Furnizare, Electrocentrale București, Enel Energie, Energy Distribution, Engie, Met România, Monsson, Premier Energy Trading, RWE, Aderro GP, Cis Gaz, Conef Gaz, Cyeb, Distrigaz Vest, Electric&Gas, Electrocentrale Constanța, Enel Muntenia, Gas Provider, Entrex, Euro Seven, Gaz Est, Hargaz, Megaconstruct, Next Energy, Nova Power, Oligopol, Petrom, Premier Energy, Renovatio, Restart Energy, Tinmar, Wiee, Romgaz, Transenergo, Veolia | V61: SC Distrigaz Sud Rețele | W61: august - septembrie 2020 | AB61: București | AP61: propunere PRRASM 2020 | BF61: Afectat sau NU? | BG61: - | BH61: - | BI61: Afectat sau NU? | BJ61: - | BK61: - | BL61: Afectat sau NU? | BM61: - | BN61: -
A62: 47 | B62: - | C62: X | D62: Pregătire conductă 28” Inel București pentru transformare în conductă godevilabilă | E62: 179230 | F62: Bragadiru | G62: Ilfov | H62: 579794.5365 | I62: 320163.2946 | J62: 579794.5365 | K62: 320163.2946 | L62: - | M62: - | N62: SM0940D0 | O62: SC Eurovia Bragadiru | P62: - | Q62: - | R62: - | S62: - | T62: SM-CF001 | U62: Engie | V62: SC Eurovia-Construct Internațional SA | W62: august - septembrie 2020 | AB62: București | AP62: propunere PRRASM 2020 | BF62: Afectat sau NU? | BG62: - | BH62: - | BI62: Afectat sau NU? | BJ62: - | BK62: - | BL62: Afectat sau NU? | BM62: - | BN62: -
A63: 48 | B63: - | C63: X | D63: Pregătire conductă 28” Inel București pentru transformare în conductă godevilabilă | E63: 179392 | F63: Jilava | G63: Ilfov | H63: 586543.5082 | I63: 317539.4311 | J63: 586543.5082 | K63: 317539.4311 | L63: - | M63: - | N63: SM1051D0 | O63: Jilava | P63: - | Q63: - | R63: - | S63: - | T63: SM-SD001 | U63: Cez Vânzare, E.on Energie, Electric Planners, Electrica Furnizare, Electrocentrale București, Enel Energie, Energy Distribution, Engie, Met România, Monsson, Premier Energy Trading, RWE, Aderro GP, Cis Gaz, Conef Gaz, Cyeb, Distrigaz Vest, Electric&Gas, Electrocentrale Constanța, Enel Muntenia, Gas Provider, Entrex, Euro Seven, Gaz Est, Hargaz, Megaconstruct, Next Energy, Nova Power, Oligopol, Petrom, Premier Energy, Renovatio, Restart Energy, Tinmar, Wiee, Romgaz, Transenergo, Veolia | V63: SC Distrigaz Sud Rețele | W63: august - septembrie 2020 | AB63: București | AP63: propunere PRRASM 2020 | BF63: Afectat sau NU? | BG63: - | BH63: - | BI63: Afectat sau NU? | BJ63: - | BK63: - | BL63: Afectat sau NU? | BM63: - | BN63: -
A64: 49 | B64: - | C64: X | D64: Pregătire conductă 28” Inel București pentru transformare în conductă godevilabilă | E64: 105945 | F64: Vidra | G64: Ilfov | H64: 588819.9832 | I64: 315459.7611 | J64: 588819.9832 | K64: 315459.7611 | L64: - | M64: - | N64: SM0152D0 | O64: Vidra | P64: - | Q64: - | R64: - | S64: - | T64: SM-SD001 | U64: Cez Vânzare, E.on Energie, Electric Planners, Electrica Furnizare, Electrocentrale București, Enel Energie, Energy Distribution, Engie, Met România, Monsson, Premier Energy Trading, RWE, Aderro GP, Cis Gaz, Conef Gaz, Cyeb, Distrigaz Vest, Electric&Gas, Electrocentrale Constanța, Enel Muntenia, Gas Provider, Entrex, Euro Seven, Gaz Est, Hargaz, Megaconstruct, Next Energy, Nova Power, Oligopol, Petrom, Premier Energy, Renovatio, Restart Energy, Tinmar, Wiee, Romgaz, Transenergo, Veolia | V64: SC Distrigaz Sud Rețele | W64: august - septembrie 2020 | AB64: București | AP64: propunere PRRASM 2020 | BF64: Afectat sau NU? | BG64: - | BH64: - | BI64: Afectat sau NU? | BJ64: - | BK64: - | BL64: Afectat sau NU? | BM64: - | BN64: -
A65: 50 | B65: - | C65: X | D65: Pregătire conductă 24” Paltin - Schitu Golești pentru transformare în conductă godevilabilă | E65: 13506 | F65: Câmpulung | G65: Argeș | H65: 506375.179 | I65: 420606.434 | J65: 506375.179 | K65: 420606.434 | L65: - | M65: - | N65: SM0429D0 | O65: SC Edilul Câmpulung | P65: - | Q65: - | R65: - | S65: - | T65: SM-CF001 | U65: Engie | V65: SC Edilul C.G.A. SA | W65: mai - iulie 2020 | AB65: Craiova | AP65: propunere PRRASM 2020 | BF65: Afectat sau NU? | BG65: - | BH65: - | BI65: Afectat sau NU? | BJ65: - | BK65: - | BL65: Afectat sau NU? | BM65: - | BN65: -
A66: 51 | B66: - | C66: X | D66: Pregătire conductă 24” Paltin - Schitu Golești pentru transformare în conductă godevilabilă | E66: 13506 | F66: Câmpulung | G66: Argeș | H66: 506435.561 | I66: 420938.471 | J66: 506435.561 | K66: 420938.471 | L66: - | M66: - | N66: SM0874D0 | O66: SC Complex Holcim Câmpulung Sediu | P66: - | Q66: - | R66: - | S66: - | T66: SM-CF001 | V66: SC Holcim (România) SA | W66: mai - iulie 2020 | AB66: Craiova | AP66: propunere PRRASM 2020 | AR66: =IF(B66="X",IF(AN66="","Afectat sau NU?",IF(AN66="DA",IF(((AK66+AL66)-(AE66+AF66))*24<-720,"Neinformat",((AK66+AL66)-(AE66+AF66))*24),"Nu a fost afectat producator/consumator")),"") ->  | AS66: =IF(B66="X",IF(AN66="DA",IF(AR66<6,LEN(TRIM(V66))-LEN(SUBSTITUTE(V66,CHAR(44),""))+1,0),"-"),"") ->  | AT66: =IF(B66="X",IF(AN66="DA",LEN(TRIM(V66))-LEN(SUBSTITUTE(V66,CHAR(44),""))+1,"-"),"") ->  | AU66: =IF(B66="X",IF(AN66="","Afectat sau NU?",IF(AN66="DA",IF(((AI66+AJ66)-(AE66+AF66))*24<-720,"Neinformat",((AI66+AJ66)-(AE66+AF66))*24),"Nu a fost afectat producator/consumator")),"") ->  | AV66: =IF(B66="X",IF(AN66="DA",IF(AU66<6,LEN(TRIM(U66))-LEN(SUBSTITUTE(U66,CHAR(44),""))+1,0),"-"),"") ->  | AW66: =IF(B66="X",IF(AN66="DA",LEN(TRIM(U66))-LEN(SUBSTITUTE(U66,CHAR(44),""))+1,"-"),"") ->  | AX66: =IF(B66="X",IF(AN66="","Afectat sau NU?",IF(AN66="DA",((AG66+AH66)-(AE66+AF66))*24,"Nu a fost afectat producator/consumator")),"") ->  | AY66: =IF(B66="X",IF(AN66="DA",IF(AX66>24,IF(BA66="NU",0,LEN(TRIM(V66))-LEN(SUBSTITUTE(V66,CHAR(44),""))+1),0),"-"),"") ->  | AZ66: =IF(B66="X",IF(AN66="DA",IF(AX66>24,LEN(TRIM(V66))-LEN(SUBSTITUTE(V66,CHAR(44),""))+1,0),"-"),"") ->  | BF66: =IF(C66="X",IF(AN66="","Afectat sau NU?",IF(AN66="DA",IF(AK66="","Neinformat",NETWORKDAYS(AK66+AL66,AE66+AF66,$BS$2:$BS$14)-2),"Nu a fost afectat producator/consumator")),"") -> Afectat sau NU? | BG66: =IF(C66="X",IF(AN66="DA",IF(AND(BF66>=5,AK66<>""),LEN(TRIM(V66))-LEN(SUBSTITUTE(V66,CHAR(44),""))+1,0),"-"),"") -> - | BH66: =IF(C66="X",IF(AN66="DA",LEN(TRIM(V66))-LEN(SUBSTITUTE(V66,CHAR(44),""))+1,"-"),"") -> - | BI66: =IF(C66="X",IF(AN66="","Afectat sau NU?",IF(AN66="DA",IF(AI66="","Neinformat",NETWORKDAYS(AI66+AJ66,AE66+AF66,$BS$2:$BS$14)-2),"Nu a fost afectat producator/consumator")),"") -> Afectat sau NU? | BJ66: =IF(C66="X",IF(AN66="DA",IF(AND(BI66>=5,AI66<>""),LEN(TRIM(U66))-LEN(SUBSTITUTE(U66,CHAR(44),""))+1,0),"-"),"") -> - | BK66: =IF(C66="X",IF(AN66="DA",LEN(TRIM(U66))-LEN(SUBSTITUTE(U66,CHAR(44),""))+1,"-"),"") -> - | BL66: =IF(C66="X",IF(AN66="","Afectat sau NU?",IF(AN66="DA",((AG66+AH66)-(Z66+AA66))*24,"Nu a fost afectat producator/consumator")),"") -> Afectat sau NU? | BM66: =IF(C66="X",IF(AN66<>"DA","-",IF(AND(AN66="DA",BL66<=0),LEN(TRIM(V66))-LEN(SUBSTITUTE(V66,CHAR(44),""))+1+LEN(TRIM(U66))-LEN(SUBSTITUTE(U66,CHAR(44),""))+1,0)),"") -> - | BN66: =IF(C66="X",IF(AN66="DA",LEN(TRIM(V66))-LEN(SUBSTITUTE(V66,CHAR(44),""))+1+LEN(TRIM(U66))-LEN(SUBSTITUTE(U66,CHAR(44),""))+1,"-"),"") -> -
A67: 52 | B67: - | C67: X | D67: Pregătire conductă 24” Paltin - Schitu Golești pentru transformare în conductă godevilabilă | E67: 13506 | F67: Câmpulung | G67: Argeș | H67: 506492.155 | I67: 421280.194 | J67: 506492.155 | K67: 421280.194 | L67: - | M67: - | N67: SM0078D0 | O67: SC Romturingia Câmpulung | P67: - | Q67: - | R67: - | S67: - | T67: SM-CF001 | V67: SC Romturingia SRL | W67: mai - iulie 2020 | AB67: Craiova | AP67: propunere PRRASM 2020 | BF67: Afectat sau NU? | BG67: - | BH67: - | BI67: Afectat sau NU? | BJ67: - | BK67: - | BL67: Afectat sau NU? | BM67: - | BN67: -
A68: 53 | B68: - | C68: X | D68: Pregătire conductă 24” Paltin - Schitu Golești pentru transformare în conductă godevilabilă | E68: 13506 | F68: Câmpulung | G68: Argeș | H68: 509108.281 | I68: 421227.1767 | J68: 509108.281 | K68: 421227.1767 | L68: - | M68: - | N68: SM0213D1 | O68: SC Holcim Câmpulung | P68: - | Q68: - | R68: - | S68: - | T68: SM-CF001 | V68: SC Holcim (România) SA | W68: mai - iulie 2020 | AB68: Craiova | AP68: propunere PRRASM 2020 | BF68: Afectat sau NU? | BG68: - | BH68: - | BI68: Afectat sau NU? | BJ68: - | BK68: - | BL68: Afectat sau NU? | BM68: - | BN68: -
A69: 54 | B69: - | C69: X | D69: Pregătire conductă 24” Paltin - Schitu Golești pentru transformare în conductă godevilabilă | E69: 13506 | F69: Câmpulung | G69: Argeș | H69: 509108.281 | I69: 421227.1767 | J69: 509108.281 | K69: 421227.1767 | L69: - | M69: - | N69: SM0213D2 | O69: SC Carmeuse Holding Câmpulung | P69: - | Q69: - | R69: - | S69: - | T69: SM-CF001 | V69: SC Carmeuse Holding SRL | W69: mai - iulie 2020 | AB69: Craiova | AP69: propunere PRRASM 2020 | BF69: Afectat sau NU? | BG69: - | BH69: - | BI69: Afectat sau NU? | BJ69: - | BK69: - | BL69: Afectat sau NU? | BM69: - | BN69: -
A70: 55 | B70: - | C70: X | D70: Pregătire conductă 24” Paltin - Schitu Golești pentru transformare în conductă godevilabilă | E70: 13533 | F70: Valea Mare Pravăț | G70: Argeș | H70: 509108.281 | I70: 421227.1767 | J70: 509108.281 | K70: 421227.1767 | L70: - | M70: - | N70: SM0213D3 | O70: SC Star Multitrade Pravăț | P70: - | Q70: - | R70: - | S70: - | T70: SM-SD001 | V70: SC Distrigaz Sud Rețele | W70: mai - iulie 2020 | AB70: Craiova | AP70: propunere PRRASM 2020 | BF70: Afectat sau NU? | BG70: - | BH70: - | BI70: Afectat sau NU? | BJ70: - | BK70: - | BL70: Afectat sau NU? | BM70: - | BN70: -
A71: 56 | B71: - | C71: X | D71: Pregătire conductă 24” Paltin - Schitu Golești pentru transformare în conductă godevilabilă | E71: 13506 | F71: Câmpulung | G71: Argeș | H71: 504544.1711 | I71: 418845.7315 | J71: 504544.1711 | K71: 418845.7315 | L71: - | M71: - | N71: SM0216D0 | O71: Câmpulung Muscel | P71: - | Q71: - | R71: - | S71: - | T71: SM-SD001 | U71: Cez Vânzare, E.on Energie, Electric Planners, Electrica Furnizare, Electrocentrale București, Enel Energie, Energy Distribution, Engie, Met România, Monsson, Premier Energy Trading, RWE, Aderro GP, Cis Gaz, Conef Gaz, Cyeb, Distrigaz Vest, Electric&Gas, Electrocentrale Constanța, Enel Muntenia, Gas Provider, Entrex, Euro Seven, Gaz Est, Hargaz, Megaconstruct, Next Energy, Nova Power, Oligopol, Petrom, Premier Energy, Renovatio, Restart Energy, Transenergo, Wiee, Romgaz, Tinmar, Veolia | V71: SC Distrigaz Sud Rețele | W71: mai - iulie 2020 | AB71: Craiova | AP71: propunere PRRASM 2020 | BF71: Afectat sau NU? | BG71: - | BH71: - | BI71: Afectat sau NU? | BJ71: - | BK71: - | BL71: Afectat sau NU? | BM71: - | BN71: -
A72: 57 | B72: - | C72: X | D72: Pregătire conductă 24” Paltin - Schitu Golești pentru transformare în conductă godevilabilă | E72: 16917 | F72: Lerești | G72: Argeș | H72: 505375.834 | I72: 421813.476 | J72: 505375.834 | K72: 421813.476 | L72: - | M72: - | N72: SM1242D0 | O72: Lerești | P72: - | Q72: - | R72: - | S72: - | T72: SM-SD001 | U72: Cez Vânzare, E.on Energie, Electric Planners, Electrica Furnizare, Electrocentrale București, Enel Energie, Energy Distribution, Engie, Met România, Monsson, Premier Energy Trading, RWE, Aderro GP, Cis Gaz, Conef Gaz, Cyeb, Distrigaz Vest, Electric&Gas, Electrocentrale Constanța, Enel Muntenia, Gas Provider, Entrex, Euro Seven, Gaz Est, Hargaz, Megaconstruct, Next Energy, Nova Power, Oligopol, Petrom, Premier Energy, Renovatio, Restart Energy, Transenergo, Wiee, Romgaz, Tinmar, Veolia | V72: SC Distrigaz Sud Rețele | W72: mai - iulie 2020 | AB72: Craiova | AP72: propunere PRRASM 2020 | BF72: Afectat sau NU? | BG72: - | BH72: - | BI72: Afectat sau NU? | BJ72: - | BK72: - | BL72: Afectat sau NU? | BM72: - | BN72: -
A73: 58 | B73: - | C73: X | D73: Pregătire conductă 24” Paltin - Schitu Golești pentru transformare în conductă godevilabilă | E73: 41630 | F73: Poiana Mărului | G73: Brașov | H73: 523056.6423 | I73: 457084.3566 | J73: 523056.6423 | K73: 457084.3566 | L73: - | M73: - | N73: SM0212D0 | O73: Poiana Mărului | P73: - | Q73: - | R73: - | S73: - | T73: SM-SD001 | U73: Cez Vânzare, E.on Energie, Electric Planners, Electrica Furnizare, Electrocentrale București, Enel Energie, Energy Distribution, Engie, Met România, Monsson, Premier Energy Trading, RWE, Aderro GP, Cis Gaz, Conef Gaz, Cyeb, Distrigaz Vest, Electric&Gas, Electrocentrale Constanța, Enel Muntenia, Gas Provider, Entrex, Euro Seven, Gaz Est, Hargaz, Megaconstruct, Next Energy, Nova Power, Oligopol, Petrom, Premier Energy, Renovatio, Restart Energy, Transenergo, Wiee, Romgaz, Tinmar, Veolia | V73: SC Distrigaz Sud Rețele | W73: mai - iulie 2020 | AB73: Brașov | AP73: propunere PRRASM 2020 | AR73: =IF(B73="X",IF(AN73="","Afectat sau NU?",IF(AN73="DA",IF(((AK73+AL73)-(AE73+AF73))*24<-720,"Neinformat",((AK73+AL73)-(AE73+AF73))*24),"Nu a fost afectat producator/consumator")),"") ->  | AS73: =IF(B73="X",IF(AN73="DA",IF(AR73<6,LEN(TRIM(V73))-LEN(SUBSTITUTE(V73,CHAR(44),""))+1,0),"-"),"") ->  | AT73: =IF(B73="X",IF(AN73="DA",LEN(TRIM(V73))-LEN(SUBSTITUTE(V73,CHAR(44),""))+1,"-"),"") ->  | AU73: =IF(B73="X",IF(AN73="","Afectat sau NU?",IF(AN73="DA",IF(((AI73+AJ73)-(AE73+AF73))*24<-720,"Neinformat",((AI73+AJ73)-(AE73+AF73))*24),"Nu a fost afectat producator/consumator")),"") ->  | AV73: =IF(B73="X",IF(AN73="DA",IF(AU73<6,LEN(TRIM(U73))-LEN(SUBSTITUTE(U73,CHAR(44),""))+1,0),"-"),"") ->  | AW73: =IF(B73="X",IF(AN73="DA",LEN(TRIM(U73))-LEN(SUBSTITUTE(U73,CHAR(44),""))+1,"-"),"") ->  | AX73: =IF(B73="X",IF(AN73="","Afectat sau NU?",IF(AN73="DA",((AG73+AH73)-(AE73+AF73))*24,"Nu a fost afectat producator/consumator")),"") ->  | AY73: =IF(B73="X",IF(AN73="DA",IF(AX73>24,IF(BA73="NU",0,LEN(TRIM(V73))-LEN(SUBSTITUTE(V73,CHAR(44),""))+1),0),"-"),"") ->  | AZ73: =IF(B73="X",IF(AN73="DA",IF(AX73>24,LEN(TRIM(V73))-LEN(SUBSTITUTE(V73,CHAR(44),""))+1,0),"-"),"") ->  | BF73: =IF(C73="X",IF(AN73="","Afectat sau NU?",IF(AN73="DA",IF(AK73="","Neinformat",NETWORKDAYS(AK73+AL73,AE73+AF73,$BS$2:$BS$14)-2),"Nu a fost afectat producator/consumator")),"") -> Afectat sau NU? | BG73: =IF(C73="X",IF(AN73="DA",IF(AND(BF73>=5,AK73<>""),LEN(TRIM(V73))-LEN(SUBSTITUTE(V73,CHAR(44),""))+1,0),"-"),"") -> - | BH73: =IF(C73="X",IF(AN73="DA",LEN(TRIM(V73))-LEN(SUBSTITUTE(V73,CHAR(44),""))+1,"-"),"") -> - | BI73: =IF(C73="X",IF(AN73="","Afectat sau NU?",IF(AN73="DA",IF(AI73="","Neinformat",NETWORKDAYS(AI73+AJ73,AE73+AF73,$BS$2:$BS$14)-2),"Nu a fost afectat producator/consumator")),"") -> Afectat sau NU? | BJ73: =IF(C73="X",IF(AN73="DA",IF(AND(BI73>=5,AI73<>""),LEN(TRIM(U73))-LEN(SUBSTITUTE(U73,CHAR(44),""))+1,0),"-"),"") -> - | BK73: =IF(C73="X",IF(AN73="DA",LEN(TRIM(U73))-LEN(SUBSTITUTE(U73,CHAR(44),""))+1,"-"),"") -> - | BL73: =IF(C73="X",IF(AN73="","Afectat sau NU?",IF(AN73="DA",((AG73+AH73)-(Z73+AA73))*24,"Nu a fost afectat producator/consumator")),"") -> Afectat sau NU? | BM73: =IF(C73="X",IF(AN73<>"DA","-",IF(AND(AN73="DA",BL73<=0),LEN(TRIM(V73))-LEN(SUBSTITUTE(V73,CHAR(44),""))+1+LEN(TRIM(U73))-LEN(SUBSTITUTE(U73,CHAR(44),""))+1,0)),"") -> - | BN73: =IF(C73="X",IF(AN73="DA",LEN(TRIM(V73))-LEN(SUBSTITUTE(V73,CHAR(44),""))+1+LEN(TRIM(U73))-LEN(SUBSTITUTE(U73,CHAR(44),""))+1,"-"),"") -> -
A74: 59 | B74: - | C74: X | D74: Pregătire conductă 24” Paltin - Schitu Golești pentru transformare în conductă godevilabilă | E74: 40508 | F74: Zărnești | G74: Brașov | H74: 525537.907 | I74: 451706.175 | J74: 525537.907 | K74: 451706.175 | L74: - | M74: - | N74: SM1251D0 | O74: DS Smith Paper Zărnești | P74: - | Q74: - | R74: - | S74: - | T74: SM-CF001 | U74: Petrom | V74: DS Smith Paper Zarnești SRL | W74: mai - iulie 2020 | AB74: Brașov | AP74: propunere PRRASM 2020 | AR74: =IF(B74="X",IF(AN74="","Afectat sau NU?",IF(AN74="DA",IF(((AK74+AL74)-(AE74+AF74))*24<-720,"Neinformat",((AK74+AL74)-(AE74+AF74))*24),"Nu a fost afectat producator/consumator")),"") ->  | AS74: =IF(B74="X",IF(AN74="DA",IF(AR74<6,LEN(TRIM(V74))-LEN(SUBSTITUTE(V74,CHAR(44),""))+1,0),"-"),"") ->  | AT74: =IF(B74="X",IF(AN74="DA",LEN(TRIM(V74))-LEN(SUBSTITUTE(V74,CHAR(44),""))+1,"-"),"") ->  | AU74: =IF(B74="X",IF(AN74="","Afectat sau NU?",IF(AN74="DA",IF(((AI74+AJ74)-(AE74+AF74))*24<-720,"Neinformat",((AI74+AJ74)-(AE74+AF74))*24),"Nu a fost afectat producator/consumator")),"") ->  | AV74: =IF(B74="X",IF(AN74="DA",IF(AU74<6,LEN(TRIM(U74))-LEN(SUBSTITUTE(U74,CHAR(44),""))+1,0),"-"),"") ->  | AW74: =IF(B74="X",IF(AN74="DA",LEN(TRIM(U74))-LEN(SUBSTITUTE(U74,CHAR(44),""))+1,"-"),"") ->  | AX74: =IF(B74="X",IF(AN74="","Afectat sau NU?",IF(AN74="DA",((AG74+AH74)-(AE74+AF74))*24,"Nu a fost afectat producator/consumator")),"") ->  | AY74: =IF(B74="X",IF(AN74="DA",IF(AX74>24,IF(BA74="NU",0,LEN(TRIM(V74))-LEN(SUBSTITUTE(V74,CHAR(44),""))+1),0),"-"),"") ->  | AZ74: =IF(B74="X",IF(AN74="DA",IF(AX74>24,LEN(TRIM(V74))-LEN(SUBSTITUTE(V74,CHAR(44),""))+1,0),"-"),"") ->  | BF74: =IF(C74="X",IF(AN74="","Afectat sau NU?",IF(AN74="DA",IF(AK74="","Neinformat",NETWORKDAYS(AK74+AL74,AE74+AF74,$BS$2:$BS$14)-2),"Nu a fost afectat producator/consumator")),"") -> Afectat sau NU? | BG74: =IF(C74="X",IF(AN74="DA",IF(AND(BF74>=5,AK74<>""),LEN(TRIM(V74))-LEN(SUBSTITUTE(V74,CHAR(44),""))+1,0),"-"),"") -> - | BH74: =IF(C74="X",IF(AN74="DA",LEN(TRIM(V74))-LEN(SUBSTITUTE(V74,CHAR(44),""))+1,"-"),"") -> - | BI74: =IF(C74="X",IF(AN74="","Afectat sau NU?",IF(AN74="DA",IF(AI74="","Neinformat",NETWORKDAYS(AI74+AJ74,AE74+AF74,$BS$2:$BS$14)-2),"Nu a fost afectat producator/consumator")),"") -> Afectat sau NU? | BJ74: =IF(C74="X",IF(AN74="DA",IF(AND(BI74>=5,AI74<>""),LEN(TRIM(U74))-LEN(SUBSTITUTE(U74,CHAR(44),""))+1,0),"-"),"") -> - | BK74: =IF(C74="X",IF(AN74="DA",LEN(TRIM(U74))-LEN(SUBSTITUTE(U74,CHAR(44),""))+1,"-"),"") -> - | BL74: =IF(C74="X",IF(AN74="","Afectat sau NU?",IF(AN74="DA",((AG74+AH74)-(Z74+AA74))*24,"Nu a fost afectat producator/consumator")),"") -> Afectat sau NU? | BM74: =IF(C74="X",IF(AN74<>"DA","-",IF(AND(AN74="DA",BL74<=0),LEN(TRIM(V74))-LEN(SUBSTITUTE(V74,CHAR(44),""))+1+LEN(TRIM(U74))-LEN(SUBSTITUTE(U74,CHAR(44),""))+1,0)),"") -> - | BN74: =IF(C74="X",IF(AN74="DA",LEN(TRIM(V74))-LEN(SUBSTITUTE(V74,CHAR(44),""))+1+LEN(TRIM(U74))-LEN(SUBSTITUTE(U74,CHAR(44),""))+1,"-"),"") -> -
A75: 60 | B75: - | C75: X | D75: Pregătire conductă 24” Paltin - Schitu Golești pentru transformare în conductă godevilabilă | E75: 41480 | F75: Moieciu de Jos | G75: Brașov | H75: 520679.8634 | I75: 445316.5338 | J75: 520679.8634 | K75: 445316.5338 | L75: - | M75: - | N75: SM1139D0 | O75: Moieciu | P75: - | Q75: - | R75: - | S75: - | T75: SM-SD001 | U75: Cez Vânzare, E.on Energie, Electric Planners, Electrica Furnizare, Enel Energie, Energy Distribution, Engie, Met România, Aderro GP, Cis Gaz, Conef Gaz, Electric&Gas, Enel Muntenia, Gas Provider, Gaz Est, Megaconstruct, Next Energy, Nova Power, Petrom, Premier Energy, Renovatio, Restart Energy, Transenergo, Wiee, Tinmar | V75: SC Premier Energy SRL | W75: mai - iulie 2020 | AB75: Brașov | AP75: propunere PRRASM 2020 | AR75: =IF(B75="X",IF(AN75="","Afectat sau NU?",IF(AN75="DA",IF(((AK75+AL75)-(AE75+AF75))*24<-720,"Neinformat",((AK75+AL75)-(AE75+AF75))*24),"Nu a fost afectat producator/consumator")),"") ->  | AS75: =IF(B75="X",IF(AN75="DA",IF(AR75<6,LEN(TRIM(V75))-LEN(SUBSTITUTE(V75,CHAR(44),""))+1,0),"-"),"") ->  | AT75: =IF(B75="X",IF(AN75="DA",LEN(TRIM(V75))-LEN(SUBSTITUTE(V75,CHAR(44),""))+1,"-"),"") ->  | AU75: =IF(B75="X",IF(AN75="","Afectat sau NU?",IF(AN75="DA",IF(((AI75+AJ75)-(AE75+AF75))*24<-720,"Neinformat",((AI75+AJ75)-(AE75+AF75))*24),"Nu a fost afectat producator/consumator")),"") ->  | AV75: =IF(B75="X",IF(AN75="DA",IF(AU75<6,LEN(TRIM(U75))-LEN(SUBSTITUTE(U75,CHAR(44),""))+1,0),"-"),"") ->  | AW75: =IF(B75="X",IF(AN75="DA",LEN(TRIM(U75))-LEN(SUBSTITUTE(U75,CHAR(44),""))+1,"-"),"") ->  | AX75: =IF(B75="X",IF(AN75="","Afectat sau NU?",IF(AN75="DA",((AG75+AH75)-(AE75+AF75))*24,"Nu a fost afectat producator/consumator")),"") ->  | AY75: =IF(B75="X",IF(AN75="DA",IF(AX75>24,IF(BA75="NU",0,LEN(TRIM(V75))-LEN(SUBSTITUTE(V75,CHAR(44),""))+1),0),"-"),"") ->  | AZ75: =IF(B75="X",IF(AN75="DA",IF(AX75>24,LEN(TRIM(V75))-LEN(SUBSTITUTE(V75,CHAR(44),""))+1,0),"-"),"") ->  | BF75: =IF(C75="X",IF(AN75="","Afectat sau NU?",IF(AN75="DA",IF(AK75="","Neinformat",NETWORKDAYS(AK75+AL75,AE75+AF75,$BS$2:$BS$14)-2),"Nu a fost afectat producator/consumator")),"") -> Afectat sau NU? | BG75: =IF(C75="X",IF(AN75="DA",IF(AND(BF75>=5,AK75<>""),LEN(TRIM(V75))-LEN(SUBSTITUTE(V75,CHAR(44),""))+1,0),"-"),"") -> - | BH75: =IF(C75="X",IF(AN75="DA",LEN(TRIM(V75))-LEN(SUBSTITUTE(V75,CHAR(44),""))+1,"-"),"") -> - | BI75: =IF(C75="X",IF(AN75="","Afectat sau NU?",IF(AN75="DA",IF(AI75="","Neinformat",NETWORKDAYS(AI75+AJ75,AE75+AF75,$BS$2:$BS$14)-2),"Nu a fost afectat producator/consumator")),"") -> Afectat sau NU? | BJ75: =IF(C75="X",IF(AN75="DA",IF(AND(BI75>=5,AI75<>""),LEN(TRIM(U75))-LEN(SUBSTITUTE(U75,CHAR(44),""))+1,0),"-"),"") -> - | BK75: =IF(C75="X",IF(AN75="DA",LEN(TRIM(U75))-LEN(SUBSTITUTE(U75,CHAR(44),""))+1,"-"),"") -> - | BL75: =IF(C75="X",IF(AN75="","Afectat sau NU?",IF(AN75="DA",((AG75+AH75)-(Z75+AA75))*24,"Nu a fost afectat producator/consumator")),"") -> Afectat sau NU? | BM75: =IF(C75="X",IF(AN75<>"DA","-",IF(AND(AN75="DA",BL75<=0),LEN(TRIM(V75))-LEN(SUBSTITUTE(V75,CHAR(44),""))+1+LEN(TRIM(U75))-LEN(SUBSTITUTE(U75,CHAR(44),""))+1,0)),"") -> - | BN75: =IF(C75="X",IF(AN75="DA",LEN(TRIM(V75))-LEN(SUBSTITUTE(V75,CHAR(44),""))+1+LEN(TRIM(U75))-LEN(SUBSTITUTE(U75,CHAR(44),""))+1,"-"),"") -> -
A76: 61 | B76: - | C76: X | D76: Pregătire conductă 24” Paltin - Schitu Golești pentru transformare în conductă godevilabilă | E76: 16356 | F76: Podu Dâmboviței | G76: Argeș | H76: 515779.4133 | I76: 434408.4633 | J76: 515779.4133 | K76: 434408.4633 | L76: - | M76: - | N76: SM1088D0 | O76: Podu Dâmboviței | P76: - | Q76: - | R76: - | S76: - | T76: SM-SD001 | U76: Cez Vânzare, E.on Energie, Electric Planners, Electrica Furnizare, Electrocentrale București, Enel Energie, Energy Distribution, Engie, Met România, Monsson, Premier Energy Trading, RWE, Aderro GP, Cis Gaz, Conef Gaz, Cyeb, Distrigaz Vest, Electric&Gas, Electrocentrale Constanța, Enel Muntenia, Gas Provider, Entrex, Euro Seven, Gaz Est, Hargaz, Megaconstruct, Next Energy, Nova Power, Oligopol, Petrom, Premier Energy, Renovatio, Restart Energy, Transenergo, Wiee, Romgaz, Tinmar, Veolia | V76: SC Distrigaz Sud Rețele | W76: mai - iulie 2020 | AB76: Brașov | AP76: propunere PRRASM 2020 | AR76: =IF(B76="X",IF(AN76="","Afectat sau NU?",IF(AN76="DA",IF(((AK76+AL76)-(AE76+AF76))*24<-720,"Neinformat",((AK76+AL76)-(AE76+AF76))*24),"Nu a fost afectat producator/consumator")),"") ->  | AS76: =IF(B76="X",IF(AN76="DA",IF(AR76<6,LEN(TRIM(V76))-LEN(SUBSTITUTE(V76,CHAR(44),""))+1,0),"-"),"") ->  | AT76: =IF(B76="X",IF(AN76="DA",LEN(TRIM(V76))-LEN(SUBSTITUTE(V76,CHAR(44),""))+1,"-"),"") ->  | AU76: =IF(B76="X",IF(AN76="","Afectat sau NU?",IF(AN76="DA",IF(((AI76+AJ76)-(AE76+AF76))*24<-720,"Neinformat",((AI76+AJ76)-(AE76+AF76))*24),"Nu a fost afectat producator/consumator")),"") ->  | AV76: =IF(B76="X",IF(AN76="DA",IF(AU76<6,LEN(TRIM(U76))-LEN(SUBSTITUTE(U76,CHAR(44),""))+1,0),"-"),"") ->  | AW76: =IF(B76="X",IF(AN76="DA",LEN(TRIM(U76))-LEN(SUBSTITUTE(U76,CHAR(44),""))+1,"-"),"") ->  | AX76: =IF(B76="X",IF(AN76="","Afectat sau NU?",IF(AN76="DA",((AG76+AH76)-(AE76+AF76))*24,"Nu a fost afectat producator/consumator")),"") ->  | AY76: =IF(B76="X",IF(AN76="DA",IF(AX76>24,IF(BA76="NU",0,LEN(TRIM(V76))-LEN(SUBSTITUTE(V76,CHAR(44),""))+1),0),"-"),"") ->  | AZ76: =IF(B76="X",IF(AN76="DA",IF(AX76>24,LEN(TRIM(V76))-LEN(SUBSTITUTE(V76,CHAR(44),""))+1,0),"-"),"") ->  | BF76: =IF(C76="X",IF(AN76="","Afectat sau NU?",IF(AN76="DA",IF(AK76="","Neinformat",NETWORKDAYS(AK76+AL76,AE76+AF76,$BS$2:$BS$14)-2),"Nu a fost afectat producator/consumator")),"") -> Afectat sau NU? | BG76: =IF(C76="X",IF(AN76="DA",IF(AND(BF76>=5,AK76<>""),LEN(TRIM(V76))-LEN(SUBSTITUTE(V76,CHAR(44),""))+1,0),"-"),"") -> - | BH76: =IF(C76="X",IF(AN76="DA",LEN(TRIM(V76))-LEN(SUBSTITUTE(V76,CHAR(44),""))+1,"-"),"") -> - | BI76: =IF(C76="X",IF(AN76="","Afectat sau NU?",IF(AN76="DA",IF(AI76="","Neinformat",NETWORKDAYS(AI76+AJ76,AE76+AF76,$BS$2:$BS$14)-2),"Nu a fost afectat producator/consumator")),"") -> Afectat sau NU? | BJ76: =IF(C76="X",IF(AN76="DA",IF(AND(BI76>=5,AI76<>""),LEN(TRIM(U76))-LEN(SUBSTITUTE(U76,CHAR(44),""))+1,0),"-"),"") -> - | BK76: =IF(C76="X",IF(AN76="DA",LEN(TRIM(U76))-LEN(SUBSTITUTE(U76,CHAR(44),""))+1,"-"),"") -> - | BL76: =IF(C76="X",IF(AN76="","Afectat sau NU?",IF(AN76="DA",((AG76+AH76)-(Z76+AA76))*24,"Nu a fost afectat producator/consumator")),"") -> Afectat sau NU? | BM76: =IF(C76="X",IF(AN76<>"DA","-",IF(AND(AN76="DA",BL76<=0),LEN(TRIM(V76))-LEN(SUBSTITUTE(V76,CHAR(44),""))+1+LEN(TRIM(U76))-LEN(SUBSTITUTE(U76,CHAR(44),""))+1,0)),"") -> - | BN76: =IF(C76="X",IF(AN76="DA",LEN(TRIM(V76))-LEN(SUBSTITUTE(V76,CHAR(44),""))+1+LEN(TRIM(U76))-LEN(SUBSTITUTE(U76,CHAR(44),""))+1,"-"),"") -> -
A77: 62 | B77: - | C77: X | D77: Pregătire conductă 24” Paltin - Schitu Golești pentru transformare în conductă godevilabilă | E77: 42272 | F77: Rucăr | G77: Argeș | H77: 514200.6351 | I77: 431834.6871 | J77: 514200.6351 | K77: 431834.6871 | L77: - | M77: - | N77: SM0938D0 | O77: Rucăr | P77: - | Q77: - | R77: - | S77: - | T77: SM-SD001 | U77: Cez Vânzare, E.on Energie, Electric Planners, Electrica Furnizare, Electrocentrale București, Enel Energie, Energy Distribution, Engie, Met România, Monsson, Premier Energy Trading, RWE, Aderro GP, Cis Gaz, Conef Gaz, Cyeb, Distrigaz Vest, Electric&Gas, Electrocentrale Constanța, Enel Muntenia, Gas Provider, Entrex, Euro Seven, Gaz Est, Hargaz, Megaconstruct, Next Energy, Nova Power, Oligopol, Petrom, Premier Energy, Renovatio, Restart Energy, Transenergo, Wiee, Romgaz, Tinmar, Veolia | V77: SC Distrigaz Sud Rețele | W77: mai - iulie 2020 | AB77: Brașov | AP77: propunere PRRASM 2020 | AR77: =IF(B77="X",IF(AN77="","Afectat sau NU?",IF(AN77="DA",IF(((AK77+AL77)-(AE77+AF77))*24<-720,"Neinformat",((AK77+AL77)-(AE77+AF77))*24),"Nu a fost afectat producator/consumator")),"") ->  | AS77: =IF(B77="X",IF(AN77="DA",IF(AR77<6,LEN(TRIM(V77))-LEN(SUBSTITUTE(V77,CHAR(44),""))+1,0),"-"),"") ->  | AT77: =IF(B77="X",IF(AN77="DA",LEN(TRIM(V77))-LEN(SUBSTITUTE(V77,CHAR(44),""))+1,"-"),"") ->  | AU77: =IF(B77="X",IF(AN77="","Afectat sau NU?",IF(AN77="DA",IF(((AI77+AJ77)-(AE77+AF77))*24<-720,"Neinformat",((AI77+AJ77)-(AE77+AF77))*24),"Nu a fost afectat producator/consumator")),"") ->  | AV77: =IF(B77="X",IF(AN77="DA",IF(AU77<6,LEN(TRIM(U77))-LEN(SUBSTITUTE(U77,CHAR(44),""))+1,0),"-"),"") ->  | AW77: =IF(B77="X",IF(AN77="DA",LEN(TRIM(U77))-LEN(SUBSTITUTE(U77,CHAR(44),""))+1,"-"),"") ->  | AX77: =IF(B77="X",IF(AN77="","Afectat sau NU?",IF(AN77="DA",((AG77+AH77)-(AE77+AF77))*24,"Nu a fost afectat producator/consumator")),"") ->  | AY77: =IF(B77="X",IF(AN77="DA",IF(AX77>24,IF(BA77="NU",0,LEN(TRIM(V77))-LEN(SUBSTITUTE(V77,CHAR(44),""))+1),0),"-"),"") ->  | AZ77: =IF(B77="X",IF(AN77="DA",IF(AX77>24,LEN(TRIM(V77))-LEN(SUBSTITUTE(V77,CHAR(44),""))+1,0),"-"),"") ->  | BF77: =IF(C77="X",IF(AN77="","Afectat sau NU?",IF(AN77="DA",IF(AK77="","Neinformat",NETWORKDAYS(AK77+AL77,AE77+AF77,$BS$2:$BS$14)-2),"Nu a fost afectat producator/consumator")),"") -> Afectat sau NU? | BG77: =IF(C77="X",IF(AN77="DA",IF(AND(BF77>=5,AK77<>""),LEN(TRIM(V77))-LEN(SUBSTITUTE(V77,CHAR(44),""))+1,0),"-"),"") -> - | BH77: =IF(C77="X",IF(AN77="DA",LEN(TRIM(V77))-LEN(SUBSTITUTE(V77,CHAR(44),""))+1,"-"),"") -> - | BI77: =IF(C77="X",IF(AN77="","Afectat sau NU?",IF(AN77="DA",IF(AI77="","Neinformat",NETWORKDAYS(AI77+AJ77,AE77+AF77,$BS$2:$BS$14)-2),"Nu a fost afectat producator/consumator")),"") -> Afectat sau NU? | BJ77: =IF(C77="X",IF(AN77="DA",IF(AND(BI77>=5,AI77<>""),LEN(TRIM(U77))-LEN(SUBSTITUTE(U77,CHAR(44),""))+1,0),"-"),"") -> - | BK77: =IF(C77="X",IF(AN77="DA",LEN(TRIM(U77))-LEN(SUBSTITUTE(U77,CHAR(44),""))+1,"-"),"") -> - | BL77: =IF(C77="X",IF(AN77="","Afectat sau NU?",IF(AN77="DA",((AG77+AH77)-(Z77+AA77))*24,"Nu a fost afectat producator/consumator")),"") -> Afectat sau NU? | BM77: =IF(C77="X",IF(AN77<>"DA","-",IF(AND(AN77="DA",BL77<=0),LEN(TRIM(V77))-LEN(SUBSTITUTE(V77,CHAR(44),""))+1+LEN(TRIM(U77))-LEN(SUBSTITUTE(U77,CHAR(44),""))+1,0)),"") -> - | BN77: =IF(C77="X",IF(AN77="DA",LEN(TRIM(V77))-LEN(SUBSTITUTE(V77,CHAR(44),""))+1+LEN(TRIM(U77))-LEN(SUBSTITUTE(U77,CHAR(44),""))+1,"-"),"") -> -
A78: =SUM(1,$A77) -> 63 | B78: - | C78: X | D78: Pregătire conductă 28” Hetiur - Onești pentru transformare în conductă godevilabilă | E78: 85591 | F78: Secuieni HG | G78: Harghita | H78: 498017.4402 | I78: 528594.7771 | J78: 498017.4402 | K78: 528594.7771 | L78: - | M78: - | N78: SM0374D0 | O78: Secuieni I HG | P78: - | Q78: - | R78: - | S78: - | T78: SM-SD001 | U78: E.On Energie, Electric&Gas, Enel Muntenia, Nova Power, Cez Vânzare, Gaz Est, Engie, Hargaz, Petrom, Restart Energy, Enel Energie, Electrica Furnizare | V78: SC Hargaz Harghita Gaz SA | W78: septembrie 2020 | AB78: Brașov | AP78: propunere PRRASM 2020 | BF78: Afectat sau NU? | BG78: - | BH78: - | BI78: Afectat sau NU? | BJ78: - | BK78: - | BL78: Afectat sau NU? | BM78: - | BN78: -
A79: 64 | B79: - | C79: X | D79: Pregătire conductă 28” Hetiur - Onești pentru transformare în conductă godevilabilă | E79: 85591 | F79: Secuieni HG | G79: Harghita | H79: 498017.4402 | I79: 528594.7771 | J79: 498017.4402 | K79: 528594.7771 | L79: - | M79: - | N79: SM0374D1 | O79: Secuieni II HG | P79: - | Q79: - | R79: - | S79: - | T79: SM-SD001 | U79: E.On Energie, Electric&Gas, Enel Muntenia, Nova Power, Cez Vânzare, Gaz Est, Engie, Hargaz, Petrom, Restart Energy, Enel Energie, Electrica Furnizare | V79: SC Hargaz Harghita Gaz SA | W79: septembrie 2020 | AB79: Brașov | AP79: propunere PRRASM 2020 | AR79: =IF(B79="X",IF(AN79="","Afectat sau NU?",IF(AN79="DA",IF(((AK79+AL79)-(AE79+AF79))*24<-720,"Neinformat",((AK79+AL79)-(AE79+AF79))*24),"Nu a fost afectat producator/consumator")),"") ->  | AS79: =IF(B79="X",IF(AN79="DA",IF(AR79<6,LEN(TRIM(V79))-LEN(SUBSTITUTE(V79,CHAR(44),""))+1,0),"-"),"") ->  | AT79: =IF(B79="X",IF(AN79="DA",LEN(TRIM(V79))-LEN(SUBSTITUTE(V79,CHAR(44),""))+1,"-"),"") ->  | AU79: =IF(B79="X",IF(AN79="","Afectat sau NU?",IF(AN79="DA",IF(((AI79+AJ79)-(AE79+AF79))*24<-720,"Neinformat",((AI79+AJ79)-(AE79+AF79))*24),"Nu a fost afectat producator/consumator")),"") ->  | AV79: =IF(B79="X",IF(AN79="DA",IF(AU79<6,LEN(TRIM(U79))-LEN(SUBSTITUTE(U79,CHAR(44),""))+1,0),"-"),"") ->  | AW79: =IF(B79="X",IF(AN79="DA",LEN(TRIM(U79))-LEN(SUBSTITUTE(U79,CHAR(44),""))+1,"-"),"") ->  | AX79: =IF(B79="X",IF(AN79="","Afectat sau NU?",IF(AN79="DA",((AG79+AH79)-(AE79+AF79))*24,"Nu a fost afectat producator/consumator")),"") ->  | AY79: =IF(B79="X",IF(AN79="DA",IF(AX79>24,IF(BA79="NU",0,LEN(TRIM(V79))-LEN(SUBSTITUTE(V79,CHAR(44),""))+1),0),"-"),"") ->  | AZ79: =IF(B79="X",IF(AN79="DA",IF(AX79>24,LEN(TRIM(V79))-LEN(SUBSTITUTE(V79,CHAR(44),""))+1,0),"-"),"") ->  | BF79: =IF(C79="X",IF(AN79="","Afectat sau NU?",IF(AN79="DA",IF(AK79="","Neinformat",NETWORKDAYS(AK79+AL79,AE79+AF79,$BS$2:$BS$14)-2),"Nu a fost afectat producator/consumator")),"") -> Afectat sau NU? | BG79: =IF(C79="X",IF(AN79="DA",IF(AND(BF79>=5,AK79<>""),LEN(TRIM(V79))-LEN(SUBSTITUTE(V79,CHAR(44),""))+1,0),"-"),"") -> - | BH79: =IF(C79="X",IF(AN79="DA",LEN(TRIM(V79))-LEN(SUBSTITUTE(V79,CHAR(44),""))+1,"-"),"") -> - | BI79: =IF(C79="X",IF(AN79="","Afectat sau NU?",IF(AN79="DA",IF(AI79="","Neinformat",NETWORKDAYS(AI79+AJ79,AE79+AF79,$BS$2:$BS$14)-2),"Nu a fost afectat producator/consumator")),"") -> Afectat sau NU? | BJ79: =IF(C79="X",IF(AN79="DA",IF(AND(BI79>=5,AI79<>""),LEN(TRIM(U79))-LEN(SUBSTITUTE(U79,CHAR(44),""))+1,0),"-"),"") -> - | BK79: =IF(C79="X",IF(AN79="DA",LEN(TRIM(U79))-LEN(SUBSTITUTE(U79,CHAR(44),""))+1,"-"),"") -> - | BL79: =IF(C79="X",IF(AN79="","Afectat sau NU?",IF(AN79="DA",((AG79+AH79)-(Z79+AA79))*24,"Nu a fost afectat producator/consumator")),"") -> Afectat sau NU? | BM79: =IF(C79="X",IF(AN79<>"DA","-",IF(AND(AN79="DA",BL79<=0),LEN(TRIM(V79))-LEN(SUBSTITUTE(V79,CHAR(44),""))+1+LEN(TRIM(U79))-LEN(SUBSTITUTE(U79,CHAR(44),""))+1,0)),"") -> - | BN79: =IF(C79="X",IF(AN79="DA",LEN(TRIM(V79))-LEN(SUBSTITUTE(V79,CHAR(44),""))+1+LEN(TRIM(U79))-LEN(SUBSTITUTE(U79,CHAR(44),""))+1,"-"),"") -> -
A80: 65 | B80: - | C80: X | D80: Pregătire conductă 28” Hetiur - Onești pentru transformare în conductă godevilabilă | E80: 83534 | F80: Cristuru Secuiesc | G80: Harghita | H80: 502768.6178 | I80: 530742.3828 | J80: 502768.6178 | K80: 530742.3828 | L80: - | M80: - | N80: SM0373D0 | O80: Cristuru Secuiesc | P80: - | Q80: - | R80: - | S80: - | T80: SM-SD001 | U80: Cez Vânzare, E.on Energie, E.on Furnizare, Electric Planners, Electrica Furnizare, Enel Energie, Energy Distribution, Engie, Met România, Monsson, Premier Energy Trading, RWE, Aderro GP, Cis Gaz, Conef Gaz, CPL Concordia, Cyeb, Design Proiect, Distrigaz Vest, Electric&Gas, Enel Muntenia, Gas Provider, Entrex, Gaz Est, Hargaz, Next Energy, Nova Power, Petrom, Premier Energy, Renovatio, Restart Energy, Tinmar, Wiee, Tetarom, SST Grup, Pado Group, Mihoc Oil, Gaz Vest, Gazmir Iași, Prisma Serv | V80: Delgaz Grid SA | W80: septembrie 2020 | AB80: Brașov | AP80: propunere PRRASM 2020 | BF80: Afectat sau NU? | BG80: - | BH80: - | BI80: Afectat sau NU? | BJ80: - | BK80: - | BL80: Afectat sau NU? | BM80: - | BN80: -
A81: 66 | B81: - | C81: X | D81: Pregătire conductă 28” Hetiur - Onești pentru transformare în conductă godevilabilă | E81: 85216 | F81: Porumbenii Mari | G81: Harghita | H81: 510974.5899 | I81: 529794.7582 | J81: 510974.5899 | K81: 529794.7582 | L81: - | M81: - | N81: SM0383D0 | O81: Porumbenii Mari | P81: - | Q81: - | R81: - | S81: - | T81: SM-SD001 | U81: E.On Energie, Electric&Gas, Enel Muntenia, Nova Power, Cez Vânzare, Gaz Est, Engie, Hargaz, Petrom, Restart Energy, Enel Energie, Electrica Furnizare | V81: SC Hargaz Harghita Gaz SA | W81: septembrie 2020 | AB81: Brașov | AP81: propunere PRRASM 2020 | BF81: Afectat sau NU? | BG81: - | BH81: - | BI81: Afectat sau NU? | BJ81: - | BK81: - | BL81: Afectat sau NU? | BM81: - | BN81: -
A82: 67 | B82: - | C82: X | D82: Pregătire conductă 28” Hetiur - Onești pentru transformare în conductă godevilabilă | E82: 85225 | F82: Porumbenii Mici | G82: Harghita | H82: 508387.8914 | I82: 530077.5794 | J82: 508387.8914 | K82: 530077.5794 | L82: - | M82: - | N82: SM0382D0 | O82: Prorumbenii Mici | P82: - | Q82: - | R82: - | S82: - | T82: SM-SD001 | U82: E.On Energie, Electric&Gas, Enel Muntenia, Nova Power, Cez Vânzare, Gaz Est, Engie, Hargaz, Petrom, Restart Energy, Enel Energie, Electrica Furnizare | V82: SC Hargaz Harghita Gaz SA | W82: septembrie 2020 | AB82: Brașov | AP82: propunere PRRASM 2020 | BF82: Afectat sau NU? | BG82: - | BH82: - | BI82: Afectat sau NU? | BJ82: - | BK82: - | BL82: Afectat sau NU? | BM82: - | BN82: -
A83: 68 | B83: - | C83: X | D83: Pregătire conductă 28” Hetiur - Onești pentru transformare în conductă godevilabilă | E83: 85190 | F83: Lutița | G83: Harghita | H83: 514498.4822 | I83: 528362.5702 | J83: 514498.4822 | K83: 528362.5702 | L83: - | M83: - | N83: SM0384D0 | O83: Lutița | P83: - | Q83: - | R83: - | S83: - | T83: SM-SD001 | U83: Cez Vânzare, E.on Energie, E.on Furnizare, Electric Planners, Electrica Furnizare, Enel Energie, Energy Distribution, Engie, Met România, Monsson, Premier Energy Trading, RWE, Aderro GP, Cis Gaz, Conef Gaz, CPL Concordia, Cyeb, Design Proiect, Distrigaz Vest, Electric&Gas, Enel Muntenia, Gas Provider, Entrex, Gaz Est, Hargaz, Next Energy, Nova Power, Petrom, Premier Energy, Renovatio, Restart Energy, Tinmar, Wiee, Tetarom, SST Grup, Pado Group, Mihoc Oil, Gaz Vest, Gazmir Iași, Prisma Serv | V83: Delgaz Grid SA | W83: septembrie 2020 | AB83: Brașov | AP83: propunere PRRASM 2020 | BF83: Afectat sau NU? | BG83: - | BH83: - | BI83: Afectat sau NU? | BJ83: - | BK83: - | BL83: Afectat sau NU? | BM83: - | BN83: -
A84: 69 | B84: - | C84: X | D84: Pregătire conductă 28” Hetiur - Onești pentru transformare în conductă godevilabilă | E84: 63465 | F84: Biborțeni | G84: Covasna | H84: 550911.5137 | I84: 510828.5782 | J84: 550911.5137 | K84: 510828.5782 | L84: - | M84: - | N84: SM0393D0 | O84: Biborțeni | P84: - | Q84: - | R84: - | S84: - | T84: SM-SD001 | U84: Cez Vânzare, E.on Energie, Electric Planners, Electrica Furnizare, Electrocentrale București, Enel Energie, Energy Distribution, Engie, Met România, Monsson, Premier Energy Trading, RWE, Aderro GP, Cis Gaz, Conef Gaz, Cyeb, Distrigaz Vest, Electric&Gas, Electrocentrale Constanța, Enel Muntenia, Gas Provider, Entrex, Euro Seven, Gaz Est, Hargaz, Megaconstruct, Next Energy, Nova Power, Oligopol, Petrom, Premier Energy, Renovatio, Restart Energy, Tinmar, Wiee, Romgaz, Transenergo, Veolia | V84: SC Distrigaz Sud Rețele | W84: septembrie 2020 | AB84: Brașov | AP84: propunere PRRASM 2020 | BF84: Afectat sau NU? | BG84: - | BH84: - | BI84: Afectat sau NU? | BJ84: - | BK84: - | BL84: Afectat sau NU? | BM84: - | BN84: -
A85: 70 | B85: - | C85: X | D85: Pregătire conductă 28” Hetiur - Onești pentru transformare în conductă godevilabilă | E85: 64470 | F85: Lemnia | G85: Covasna | H85: 597464.4554 | I85: 506826.1648 | J85: 597464.4554 | K85: 506826.1648 | L85: - | M85: - | N85: SM0407D0 | O85: Lemnia | P85: - | Q85: - | R85: - | S85: - | T85: SM-SD001 | U85: Cez Vânzare, E.on Energie, Electric Planners, Electrica Furnizare, Electrocentrale București, Enel Energie, Energy Distribution, Engie, Met România, Monsson, Premier Energy Trading, RWE, Aderro GP, Cis Gaz, Conef Gaz, Cyeb, Distrigaz Vest, Electric&Gas, Electrocentrale Constanța, Enel Muntenia, Gas Provider, Entrex, Euro Seven, Gaz Est, Hargaz, Megaconstruct, Next Energy, Nova Power, Oligopol, Petrom, Premier Energy, Renovatio, Restart Energy, Tinmar, Wiee, Romgaz, Transenergo, Veolia | V85: SC Distrigaz Sud Rețele | W85: septembrie 2020 | AB85: Brașov | AP85: propunere PRRASM 2020 | BF85: Afectat sau NU? | BG85: - | BH85: - | BI85: Afectat sau NU? | BJ85: - | BK85: - | BL85: Afectat sau NU? | BM85: - | BN85: -
A86: 71 | B86: - | C86: X | D86: Pregătire conductă 28” Hetiur - Onești pentru transformare în conductă godevilabilă | E86: 64103 | F86: Brețcu | G86: Covasna | H86: 600756.0625 | I86: 506224.71 | J86: 600756.0625 | K86: 506224.71 | L86: - | M86: - | N86: SM0408D0 | O86: Brețcu | P86: - | Q86: - | R86: - | S86: - | T86: SM-SD001 | U86: Cez Vânzare, E.on Energie, Electric Planners, Electrica Furnizare, Electrocentrale București, Enel Energie, Energy Distribution, Engie, Met România, Monsson, Premier Energy Trading, RWE, Aderro GP, Cis Gaz, Conef Gaz, Cyeb, Distrigaz Vest, Electric&Gas, Electrocentrale Constanța, Enel Muntenia, Gas Provider, Entrex, Euro Seven, Gaz Est, Hargaz, Megaconstruct, Next Energy, Nova Power, Oligopol, Petrom, Premier Energy, Renovatio, Restart Energy, Tinmar, Wiee, Romgaz, Transenergo, Veolia | V86: SC Distrigaz Sud Rețele | W86: septembrie 2020 | AB86: Brașov | AP86: propunere PRRASM 2020 | BF86: Afectat sau NU? | BG86: - | BH86: - | BI86: Afectat sau NU? | BJ86: - | BK86: - | BL86: Afectat sau NU? | BM86: - | BN86: -
A87: 72 | B87: - | C87: X | D87: Pregătire conductă 28” Hetiur - Onești pentru transformare în conductă godevilabilă | E87: 22585 | F87: Filipești | G87: Bacău | H87: 632633.7757 | I87: 526820.4424 | J87: 632633.7757 | K87: 526820.4424 | L87: - | M87: - | N87: SM0128D0 | O87: SC Fabrica de pâine Șerban Filipești | P87: - | Q87: - | R87: - | S87: - | T87: SM-CF001 | U87: E.on Energie | V87: SC Fabrica de pâine Șerban SRL | W87: septembrie 2020 | AB87: Bacău | AP87: propunere PRRASM 2020 | BF87: Afectat sau NU? | BG87: - | BH87: - | BI87: Afectat sau NU? | BJ87: - | BK87: - | BL87: Afectat sau NU? | BM87: - | BN87: -
A88: 73 | B88: - | C88: X | D88: Pregătire conductă 28” Hetiur - Onești pentru transformare în conductă godevilabilă | E88: 23859 | F88: Poiana Sărată | G88: Bacău | H88: 610737.309 | I88: 514516.762 | J88: 610737.309 | K88: 514516.762 | L88: - | M88: - | N88: SM0385D0 | O88: SC Pem Turist Poiana Sărată | P88: - | Q88: - | R88: - | S88: - | T88: SM-CF001 | U88: E.on Energie | V88: SC Pem Turist SRL | W88: septembrie 2020 | AB88: Bacău | AP88: propunere PRRASM 2020 | BF88: Afectat sau NU? | BG88: - | BH88: - | BI88: Afectat sau NU? | BJ88: - | BK88: - | BL88: Afectat sau NU? | BM88: - | BN88: -
A89: 74 | B89: - | C89: X | D89: Pregătire conductă 28” Hetiur - Onești pentru transformare în conductă godevilabilă | E89: 23804 | F89: Oituz | G89: Bicaz | H89: 622831.6223 | I89: 524130.3287 | J89: 622831.6223 | K89: 524130.3287 | L89: - | M89: - | N89: SM0386D0 | O89: Oituz | P89: - | Q89: - | R89: - | S89: - | T89: SM-SD001 | U89: Cez Vânzare, E.on Energie, E.on Furnizare, Electric Planners, Electrica Furnizare, Enel Energie, Energy Distribution, Engie, Met România, Monsson, Premier Energy Trading, RWE, Aderro GP, Cis Gaz, Conef Gaz, CPL Concordia, Cyeb, Design Proiect, Distrigaz Vest, Electric&Gas, Enel Muntenia, Gas Provider, Entrex, Gaz Est, Hargaz, Next Energy, Nova Power, Petrom, Premier Energy, Renovatio, Restart Energy, Tinmar, Wiee, Tetarom, SST Grup, Pado Group, Mihoc Oil, Gaz Vest, Gazmir Iași, Prisma Serv | V89: Delgaz Grid SA | W89: septembrie 2020 | AB89: Bacău | AP89: propunere PRRASM 2020 | BF89: Afectat sau NU? | BG89: - | BH89: - | BI89: Afectat sau NU? | BJ89: - | BK89: - | BL89: Afectat sau NU? | BM89: - | BN89: -
A90: 75 | B90: - | C90: X | D90: Pregătire conductă 28” Hetiur - Onești pentru transformare în conductă godevilabilă | E90: 23804 | F90: Oituz | G90: Bicaz | H90: 623001.9761 | I90: 524169.2557 | J90: 623001.9761 | K90: 524169.2557 | L90: - | M90: - | N90: SM0387D0 | O90: SC PA&CO Inernațional Oituz | P90: - | Q90: - | R90: - | S90: - | T90: SM-CF001 | V90: SC PA&CO Inernațional SRL | W90: septembrie 2020 | AB90: Bacău | AP90: propunere PRRASM 2020 | BF90: Afectat sau NU? | BG90: - | BH90: - | BI90: Afectat sau NU? | BJ90: - | BK90: - | BL90: Afectat sau NU? | BM90: - | BN90: -
A91: 76 | B91: - | C91: X | D91: Pregătire conductă 28” Hetiur - Onești pentru transformare în conductă godevilabilă | E91: 23804 | F91: Oituz | G91: Bacău | H91: 624041.5056 | I91: 524592.2806 | J91: 624041.5056 | K91: 524592.2806 | L91: - | M91: - | N91: SM0909D0 | O91: PA&CO Inernațional Oituz locuință | P91: - | Q91: - | R91: - | S91: - | T91: SM-CF001 | V91: SC PA&CO Inernațional SRL | W91: septembrie 2020 | AB91: Bacău | AP91: propunere PRRASM 2020 | BF91: Afectat sau NU? | BG91: - | BH91: - | BI91: Afectat sau NU? | BJ91: - | BK91: - | BL91: Afectat sau NU? | BM91: - | BN91: -
A92: =SUM(1,$A91) -> 77 | B92: - | C92: X | D92: Pregătire conductă 20” Ceanu Mare - Cluj I pentru transformare în conductă godevilabilă | E92: 57369 | F92: Cojocna | G92: Cluj | H92: 411637.5465 | I92: 583557.9 | J92: 411637.5465 | K92: 583557.9 | L92: - | M92: - | N92: SM0871D0 | O92: Cojocna | P92: - | Q92: - | R92: - | S92: - | T92: SM-SD001 | U92: Aderro GP, Nova Power, Cez Vânzare, Ciz Gaz, CPL Concordia, Engie, E.On Energie, Electrica Furnizare, Electric&Gas, Enel, Enel Muntenia, E.On Furnizare, Gaz Est, Met România, Petrom, Renovatio, Restart Energy, Tinmar | V92: CPL Concordia Filiala Cluj | W92: mai - iulie 2020 | AB92: Cluj | AP92: propunere PRRASM 2020 | AR92: =IF(B92="X",IF(AN92="","Afectat sau NU?",IF(AN92="DA",IF(((AK92+AL92)-(AE92+AF92))*24<-720,"Neinformat",((AK92+AL92)-(AE92+AF92))*24),"Nu a fost afectat producator/consumator")),"") ->  | AS92: =IF(B92="X",IF(AN92="DA",IF(AR92<6,LEN(TRIM(V92))-LEN(SUBSTITUTE(V92,CHAR(44),""))+1,0),"-"),"") ->  | AT92: =IF(B92="X",IF(AN92="DA",LEN(TRIM(V92))-LEN(SUBSTITUTE(V92,CHAR(44),""))+1,"-"),"") ->  | AU92: =IF(B92="X",IF(AN92="","Afectat sau NU?",IF(AN92="DA",IF(((AI92+AJ92)-(AE92+AF92))*24<-720,"Neinformat",((AI92+AJ92)-(AE92+AF92))*24),"Nu a fost afectat producator/consumator")),"") ->  | AV92: =IF(B92="X",IF(AN92="DA",IF(AU92<6,LEN(TRIM(U92))-LEN(SUBSTITUTE(U92,CHAR(44),""))+1,0),"-"),"") ->  | AW92: =IF(B92="X",IF(AN92="DA",LEN(TRIM(U92))-LEN(SUBSTITUTE(U92,CHAR(44),""))+1,"-"),"") ->  | AX92: =IF(B92="X",IF(AN92="","Afectat sau NU?",IF(AN92="DA",((AG92+AH92)-(AE92+AF92))*24,"Nu a fost afectat producator/consumator")),"") ->  | AY92: =IF(B92="X",IF(AN92="DA",IF(AX92>24,IF(BA92="NU",0,LEN(TRIM(V92))-LEN(SUBSTITUTE(V92,CHAR(44),""))+1),0),"-"),"") ->  | AZ92: =IF(B92="X",IF(AN92="DA",IF(AX92>24,LEN(TRIM(V92))-LEN(SUBSTITUTE(V92,CHAR(44),""))+1,0),"-"),"") ->  | BF92: =IF(C92="X",IF(AN92="","Afectat sau NU?",IF(AN92="DA",IF(AK92="","Neinformat",NETWORKDAYS(AK92+AL92,AE92+AF92,$BS$2:$BS$14)-2),"Nu a fost afectat producator/consumator")),"") -> Afectat sau NU? | BG92: =IF(C92="X",IF(AN92="DA",IF(AND(BF92>=5,AK92<>""),LEN(TRIM(V92))-LEN(SUBSTITUTE(V92,CHAR(44),""))+1,0),"-"),"") -> - | BH92: =IF(C92="X",IF(AN92="DA",LEN(TRIM(V92))-LEN(SUBSTITUTE(V92,CHAR(44),""))+1,"-"),"") -> - | BI92: =IF(C92="X",IF(AN92="","Afectat sau NU?",IF(AN92="DA",IF(AI92="","Neinformat",NETWORKDAYS(AI92+AJ92,AE92+AF92,$BS$2:$BS$14)-2),"Nu a fost afectat producator/consumator")),"") -> Afectat sau NU? | BJ92: =IF(C92="X",IF(AN92="DA",IF(AND(BI92>=5,AI92<>""),LEN(TRIM(U92))-LEN(SUBSTITUTE(U92,CHAR(44),""))+1,0),"-"),"") -> - | BK92: =IF(C92="X",IF(AN92="DA",LEN(TRIM(U92))-LEN(SUBSTITUTE(U92,CHAR(44),""))+1,"-"),"") -> - | BL92: =IF(C92="X",IF(AN92="","Afectat sau NU?",IF(AN92="DA",((AG92+AH92)-(Z92+AA92))*24,"Nu a fost afectat producator/consumator")),"") -> Afectat sau NU? | BM92: =IF(C92="X",IF(AN92<>"DA","-",IF(AND(AN92="DA",BL92<=0),LEN(TRIM(V92))-LEN(SUBSTITUTE(V92,CHAR(44),""))+1+LEN(TRIM(U92))-LEN(SUBSTITUTE(U92,CHAR(44),""))+1,0)),"") -> - | BN92: =IF(C92="X",IF(AN92="DA",LEN(TRIM(V92))-LEN(SUBSTITUTE(V92,CHAR(44),""))+1+LEN(TRIM(U92))-LEN(SUBSTITUTE(U92,CHAR(44),""))+1,"-"),"") -> -
A93: =SUM(1,$A92) -> 78 | B93: - | C93: X | D93: Reabilitare conductă 32” Afumați - Butimanu | E93: 102179 | F93: Corbeanca | G93: Ilfov | H93: 582899.261 | I93: 344014.59 | J93: 582899.261 | K93: 344014.59 | L93: - | M93: - | N93: SM0148D0 | O93: Corbeanca | P93: - | Q93: - | R93: - | S93: - | T93: SM-SD001 | U93: Cez Vânzare, E.on Energie, Electric Planners, Electrica Furnizare, Electrocentrale București, Enel Energie, Energy Distribution, Engie, Met România, Monsson, Premier Energy Trading, RWE, Aderro GP, Cis Gaz, Conef Gaz, Cyeb, Distrigaz Vest, Electric&Gas, Electrocentrale Constanța, Enel Muntenia, Gas Provider, Entrex, Euro Seven, Gaz Est, Hargaz, Megaconstruct, Next Energy, Nova Power, Oligopol | V93: SC Distrigaz Sud Rețele | W93: aprilie - septembrie 2020 | AB93: București | AP93: propunere PRRASM 2020 | BF93: Afectat sau NU? | BG93: - | BH93: - | BI93: Afectat sau NU? | BJ93: - | BK93: - | BL93: Afectat sau NU? | BM93: - | BN93: -
A94: 79 | B94: - | C94: X | D94: Reabilitare conductă 32” Afumați - Butimanu | E94: 100978 | F94: Balotești | G94: Ilfov | H94: 589605.2684 | I94: 346450.6578 | J94: 589605.2684 | K94: 346450.6578 | L94: - | M94: - | N94: SM0198D0 | O94: Balotești | P94: - | Q94: - | R94: - | S94: - | T94: SM-SD001 | U94: Cez Vânzare, E.on Energie, Electrica Furnizare, Enel Energie, Engie, Met România, Aderro GP, Enel Muntenia, Entrex, Megaconstruct, Petrom, Restart Energy, Tinmar | V94: SC Megaconstruct SA | W94: aprilie - septembrie 2020 | AB94: București | AP94: propunere PRRASM 2020 | AR94: =IF(B94="X",IF(AN94="","Afectat sau NU?",IF(AN94="DA",IF(((AK94+AL94)-(AE94+AF94))*24<-720,"Neinformat",((AK94+AL94)-(AE94+AF94))*24),"Nu a fost afectat producator/consumator")),"") ->  | AS94: =IF(B94="X",IF(AN94="DA",IF(AR94<6,LEN(TRIM(V94))-LEN(SUBSTITUTE(V94,CHAR(44),""))+1,0),"-"),"") ->  | AT94: =IF(B94="X",IF(AN94="DA",LEN(TRIM(V94))-LEN(SUBSTITUTE(V94,CHAR(44),""))+1,"-"),"") ->  | AU94: =IF(B94="X",IF(AN94="","Afectat sau NU?",IF(AN94="DA",IF(((AI94+AJ94)-(AE94+AF94))*24<-720,"Neinformat",((AI94+AJ94)-(AE94+AF94))*24),"Nu a fost afectat producator/consumator")),"") ->  | AV94: =IF(B94="X",IF(AN94="DA",IF(AU94<6,LEN(TRIM(U94))-LEN(SUBSTITUTE(U94,CHAR(44),""))+1,0),"-"),"") ->  | AW94: =IF(B94="X",IF(AN94="DA",LEN(TRIM(U94))-LEN(SUBSTITUTE(U94,CHAR(44),""))+1,"-"),"") ->  | AX94: =IF(B94="X",IF(AN94="","Afectat sau NU?",IF(AN94="DA",((AG94+AH94)-(AE94+AF94))*24,"Nu a fost afectat producator/consumator")),"") ->  | AY94: =IF(B94="X",IF(AN94="DA",IF(AX94>24,IF(BA94="NU",0,LEN(TRIM(V94))-LEN(SUBSTITUTE(V94,CHAR(44),""))+1),0),"-"),"") ->  | AZ94: =IF(B94="X",IF(AN94="DA",IF(AX94>24,LEN(TRIM(V94))-LEN(SUBSTITUTE(V94,CHAR(44),""))+1,0),"-"),"") ->  | BF94: =IF(C94="X",IF(AN94="","Afectat sau NU?",IF(AN94="DA",IF(AK94="","Neinformat",NETWORKDAYS(AK94+AL94,AE94+AF94,$BS$2:$BS$14)-2),"Nu a fost afectat producator/consumator")),"") -> Afectat sau NU? | BG94: =IF(C94="X",IF(AN94="DA",IF(AND(BF94>=5,AK94<>""),LEN(TRIM(V94))-LEN(SUBSTITUTE(V94,CHAR(44),""))+1,0),"-"),"") -> - | BH94: =IF(C94="X",IF(AN94="DA",LEN(TRIM(V94))-LEN(SUBSTITUTE(V94,CHAR(44),""))+1,"-"),"") -> - | BI94: =IF(C94="X",IF(AN94="","Afectat sau NU?",IF(AN94="DA",IF(AI94="","Neinformat",NETWORKDAYS(AI94+AJ94,AE94+AF94,$BS$2:$BS$14)-2),"Nu a fost afectat producator/consumator")),"") -> Afectat sau NU? | BJ94: =IF(C94="X",IF(AN94="DA",IF(AND(BI94>=5,AI94<>""),LEN(TRIM(U94))-LEN(SUBSTITUTE(U94,CHAR(44),""))+1,0),"-"),"") -> - | BK94: =IF(C94="X",IF(AN94="DA",LEN(TRIM(U94))-LEN(SUBSTITUTE(U94,CHAR(44),""))+1,"-"),"") -> - | BL94: =IF(C94="X",IF(AN94="","Afectat sau NU?",IF(AN94="DA",((AG94+AH94)-(Z94+AA94))*24,"Nu a fost afectat producator/consumator")),"") -> Afectat sau NU? | BM94: =IF(C94="X",IF(AN94<>"DA","-",IF(AND(AN94="DA",BL94<=0),LEN(TRIM(V94))-LEN(SUBSTITUTE(V94,CHAR(44),""))+1+LEN(TRIM(U94))-LEN(SUBSTITUTE(U94,CHAR(44),""))+1,0)),"") -> - | BN94: =IF(C94="X",IF(AN94="DA",LEN(TRIM(V94))-LEN(SUBSTITUTE(V94,CHAR(44),""))+1+LEN(TRIM(U94))-LEN(SUBSTITUTE(U94,CHAR(44),""))+1,"-"),"") -> -
A95: 80 | B95: - | C95: X | D95: Reabilitare conductă 32” Afumați - Butimanu | E95: 105179 | F95: Snagov | G95: Ilfov | H95: 589606.4939 | I95: 346458.6352 | J95: 589606.4939 | K95: 346458.6352 | L95: - | M95: - | N95: SM0922D0 | O95: Snagov | P95: - | Q95: - | R95: - | S95: - | T95: SM-SD001 | U95: Cez Vânzare, E.on Energie, Electric Planners, Electrica Furnizare, Enel Energie, Energy Distribution, Engie, Met România, Aderro GP, Cis Gaz, Conef Gaz, Electric&Gas, Enel Muntenia, Gas Provider, Gaz Est, Megaconstruct, Next Energy, Nova Power, Petrom, Premier Energy, Renovatio, Restart Energy, Transenergo, Wiee, Tinmar | V95: SC Premier Energy SRL | W95: aprilie - septembrie 2020 | AB95: București | AP95: propunere PRRASM 2020 | BF95: Afectat sau NU? | BG95: - | BH95: - | BI95: Afectat sau NU? | BJ95: - | BK95: - | BL95: Afectat sau NU? | BM95: - | BN95: -
A96: 81 | B96: - | C96: X | D96: Reabilitare conductă 20” Hurezani - Oveselu, fir I | E96: 80506 | F96: Hurezani | G96: Gorj | H96: 394212.6896 | I96: 369126.4888 | J96: 394212.6896 | K96: 369126.4888 | L96: - | M96: - | N96: - | O96: - | P96: PM0205 | Q96: Hurezani SU | R96: - | S96: - | T96: PM-PP001 | U96: Romgaz | V96: SNGN Romgaz SA | W96: aprilie - septembrie 2020 | AB96: Craiova | AP96: propunere PRRASM 2020 | BF96: Afectat sau NU? | BG96: - | BH96: - | BI96: Afectat sau NU? | BJ96: - | BK96: - | BL96: Afectat sau NU? | BM96: - | BN96: -
A97: 82 | B97: - | C97: X | D97: Reabilitare conductă 20” Hurezani - Oveselu, fir I | E97: 80506 | F97: Hurezani | G97: Gorj | H97: 394174.3345 | I97: 369081.6569 | J97: 394174.3345 | K97: 369081.6569 | L97: - | M97: - | N97: - | O97: - | P97: PM0062 | Q97: Hurezani Bulbuceni | R97: - | S97: - | T97: PM-PP001 | U97: Petrom | V97: SC OMV Petrom SA | W97: aprilie - septembrie 2020 | AB97: Craiova | AP97: propunere PRRASM 2020 | BF97: =IF(C97="X",IF(AN97="","Afectat sau NU?",IF(AN97="DA",IF(AK97="","Neinformat",NETWORKDAYS(AK97+AL97,AE97+AF97,$BS$2:$BS$14)-2),"Nu a fost afectat producator/consumator")),"") -> Afectat sau NU? | BG97: =IF(C97="X",IF(AN97="DA",IF(AND(BF97>=5,AK97<>""),LEN(TRIM(V97))-LEN(SUBSTITUTE(V97,CHAR(44),""))+1,0),"-"),"") -> - | BH97: =IF(C97="X",IF(AN97="DA",LEN(TRIM(V97))-LEN(SUBSTITUTE(V97,CHAR(44),""))+1,"-"),"") -> - | BI97: =IF(C97="X",IF(AN97="","Afectat sau NU?",IF(AN97="DA",IF(AI97="","Neinformat",NETWORKDAYS(AI97+AJ97,AE97+AF97,$BS$2:$BS$14)-2),"Nu a fost afectat producator/consumator")),"") -> Afectat sau NU? | BJ97: =IF(C97="X",IF(AN97="DA",IF(AND(BI97>=5,AI97<>""),LEN(TRIM(U97))-LEN(SUBSTITUTE(U97,CHAR(44),""))+1,0),"-"),"") -> - | BK97: =IF(C97="X",IF(AN97="DA",LEN(TRIM(U97))-LEN(SUBSTITUTE(U97,CHAR(44),""))+1,"-"),"") -> - | BL97: =IF(C97="X",IF(AN97="","Afectat sau NU?",IF(AN97="DA",((AG97+AH97)-(Z97+AA97))*24,"Nu a fost afectat producator/consumator")),"") -> Afectat sau NU? | BM97: =IF(C97="X",IF(AN97<>"DA","-",IF(AND(AN97="DA",BL97<=0),LEN(TRIM(V97))-LEN(SUBSTITUTE(V97,CHAR(44),""))+1+LEN(TRIM(U97))-LEN(SUBSTITUTE(U97,CHAR(44),""))+1,0)),"") -> - | BN97: =IF(C97="X",IF(AN97="DA",LEN(TRIM(V97))-LEN(SUBSTITUTE(V97,CHAR(44),""))+1+LEN(TRIM(U97))-LEN(SUBSTITUTE(U97,CHAR(44),""))+1,"-"),"") -> -
A98: 83 | B98: - | C98: X | D98: Reabilitare conductă 20” Hurezani - Oveselu, fir I | E98: 82252 | F98: Stejari (Băcești) | G98: Gorj | H98: 396359.6843 | I98: 364898.3753 | J98: 396359.6843 | K98: 364898.3753 | L98: - | M98: - | N98: - | O98: - | P98: PM0206 | Q98: Piscu Stejari SU | R98: - | S98: - | T98: PM-PP001 | U98: Romgaz | V98: SNGN Romgaz SA | W98: aprilie - septembrie 2020 | AB98: Craiova | AP98: propunere PRRASM 2020 | BF98: Afectat sau NU? | BG98: - | BH98: - | BI98: Afectat sau NU? | BJ98: - | BK98: - | BL98: Afectat sau NU? | BM98: - | BN98: -
A99: 84 | B99: - | C99: X | D99: Reabilitare conductă 20” Hurezani - Oveselu, fir I | E99: 174307 | F99: Zătreni | G99: Vâlcea | H99: 410095.9203 | I99: 362876.8564 | J99: 410095.9203 | K99: 362876.8564 | L99: - | M99: - | N99: - | O99: - | P99: PM0270 | Q99: SU Zătreni | R99: - | S99: - | T99: PM-PP001 | U99: Amromco, Romgaz, Foraj Sonde | V99: SNGN Romgaz SA, SC Amromco Energy SRL, SC Foraj Sonde SA | W99: aprilie - septembrie 2020 | AB99: Craiova | AP99: propunere PRRASM 2020 | BF99: Afectat sau NU? | BG99: - | BH99: - | BI99: Afectat sau NU? | BJ99: - | BK99: - | BL99: Afectat sau NU? | BM99: - | BN99: -
A100: 85 | B100: - | C100: X | D100: Reabilitare conductă 20” Hurezani - Oveselu, fir I | E100: 174307 | F100: Zătreni | G100: Vâlcea | H100: 410096.0021 | I100: 362876.7523 | J100: 410096.0021 | K100: 362876.7523 | L100: - | M100: - | N100: - | O100: - | P100: PM0054 | Q100: Zătreni | R100: - | S100: - | T100: PM-PP001 | U100: Amromco, Romgaz | V100: SNGN Romgaz SA, SC Amromco Energy SRL | W100: aprilie - septembrie 2020 | AB100: Craiova | AP100: propunere PRRASM 2020 | BF100: Afectat sau NU? | BG100: - | BH100: - | BI100: Afectat sau NU? | BJ100: - | BK100: - | BL100: Afectat sau NU? | BM100: - | BN100: -
A101: 86 | B101: - | C101: X | D101: Reabilitare conductă 20” Hurezani - Oveselu, fir I | E101: 170355 | F101: Grădiștea | G101: Vâlcea | H101: 408181.079 | I101: 379756.6068 | J101: 408181.079 | K101: 379756.6068 | L101: - | M101: - | N101: - | O101: - | P101: PM0053 | Q101: Grădiștea | R101: - | S101: - | T101: PM-PP001 | U101: Petrom, Romgaz | V101: SNGN Romgaz SA, SC OMV Petrom SA | W101: aprilie - septembrie 2020 | AB101: Craiova | AP101: propunere PRRASM 2020 | BF101: Afectat sau NU? | BG101: - | BH101: - | BI101: Afectat sau NU? | BJ101: - | BK101: - | BL101: Afectat sau NU? | BM101: - | BN101: -
A102: 87 | B102: - | C102: X | D102: Reabilitare conductă 20” Hurezani - Oveselu, fir I | E102: 170907 | F102: Pârâienii de Jos | G102: Vâlcea | H102: 407916.5342 | I102: 366668.7789 | J102: 407916.5342 | K102: 366668.7789 | L102: - | M102: - | N102: - | O102: - | P102: PM0259 | Q102: Pârâienii de Jos | R102: - | S102: - | T102: PM-PP001 | U102: Petrom | V102: SC OMV Petrom SA | W102: aprilie - septembrie 2020 | AB102: Craiova | AP102: propunere PRRASM 2020 | BF102: Afectat sau NU? | BG102: - | BH102: - | BI102: Afectat sau NU? | BJ102: - | BK102: - | BL102: Afectat sau NU? | BM102: - | BN102: -
A103: 88 | B103: - | C103: X | D103: Reabilitare conductă 20” Oveselu - Drăgășani, fir I | E103: 80506 | F103: Hurezani | G103: Gorj | H103: 394212.6896 | I103: 369126.4888 | J103: 394212.6896 | K103: 369126.4888 | L103: - | M103: - | N103: - | O103: - | P103: PM0205 | Q103: Hurezani SU | R103: - | S103: - | T103: PM-PP001 | U103: Romgaz | V103: SNGN Romgaz SA | W103: aprilie - septembrie 2020 | AB103: Craiova | AP103: propunere PRRASM 2020 | AR103: =IF(B103="X",IF(AN103="","Afectat sau NU?",IF(AN103="DA",IF(((AK103+AL103)-(AE103+AF103))*24<-720,"Neinformat",((AK103+AL103)-(AE103+AF103))*24),"Nu a fost afectat producator/consumator")),"") ->  | AS103: =IF(B103="X",IF(AN103="DA",IF(AR103<6,LEN(TRIM(V103))-LEN(SUBSTITUTE(V103,CHAR(44),""))+1,0),"-"),"") ->  | AT103: =IF(B103="X",IF(AN103="DA",LEN(TRIM(V103))-LEN(SUBSTITUTE(V103,CHAR(44),""))+1,"-"),"") ->  | AU103: =IF(B103="X",IF(AN103="","Afectat sau NU?",IF(AN103="DA",IF(((AI103+AJ103)-(AE103+AF103))*24<-720,"Neinformat",((AI103+AJ103)-(AE103+AF103))*24),"Nu a fost afectat producator/consumator")),"") ->  | AV103: =IF(B103="X",IF(AN103="DA",IF(AU103<6,LEN(TRIM(U103))-LEN(SUBSTITUTE(U103,CHAR(44),""))+1,0),"-"),"") ->  | AW103: =IF(B103="X",IF(AN103="DA",LEN(TRIM(U103))-LEN(SUBSTITUTE(U103,CHAR(44),""))+1,"-"),"") ->  | AX103: =IF(B103="X",IF(AN103="","Afectat sau NU?",IF(AN103="DA",((AG103+AH103)-(AE103+AF103))*24,"Nu a fost afectat producator/consumator")),"") ->  | AY103: =IF(B103="X",IF(AN103="DA",IF(AX103>24,IF(BA103="NU",0,LEN(TRIM(V103))-LEN(SUBSTITUTE(V103,CHAR(44),""))+1),0),"-"),"") ->  | AZ103: =IF(B103="X",IF(AN103="DA",IF(AX103>24,LEN(TRIM(V103))-LEN(SUBSTITUTE(V103,CHAR(44),""))+1,0),"-"),"") ->  | BF103: =IF(C103="X",IF(AN103="","Afectat sau NU?",IF(AN103="DA",IF(AK103="","Neinformat",NETWORKDAYS(AK103+AL103,AE103+AF103,$BS$2:$BS$14)-2),"Nu a fost afectat producator/consumator")),"") -> Afectat sau NU? | BG103: =IF(C103="X",IF(AN103="DA",IF(AND(BF103>=5,AK103<>""),LEN(TRIM(V103))-LEN(SUBSTITUTE(V103,CHAR(44),""))+1,0),"-"),"") -> - | BH103: =IF(C103="X",IF(AN103="DA",LEN(TRIM(V103))-LEN(SUBSTITUTE(V103,CHAR(44),""))+1,"-"),"") -> - | BI103: =IF(C103="X",IF(AN103="","Afectat sau NU?",IF(AN103="DA",IF(AI103="","Neinformat",NETWORKDAYS(AI103+AJ103,AE103+AF103,$BS$2:$BS$14)-2),"Nu a fost afectat producator/consumator")),"") -> Afectat sau NU? | BJ103: =IF(C103="X",IF(AN103="DA",IF(AND(BI103>=5,AI103<>""),LEN(TRIM(U103))-LEN(SUBSTITUTE(U103,CHAR(44),""))+1,0),"-"),"") -> - | BK103: =IF(C103="X",IF(AN103="DA",LEN(TRIM(U103))-LEN(SUBSTITUTE(U103,CHAR(44),""))+1,"-"),"") -> - | BL103: =IF(C103="X",IF(AN103="","Afectat sau NU?",IF(AN103="DA",((AG103+AH103)-(Z103+AA103))*24,"Nu a fost afectat producator/consumator")),"") -> Afectat sau NU? | BM103: =IF(C103="X",IF(AN103<>"DA","-",IF(AND(AN103="DA",BL103<=0),LEN(TRIM(V103))-LEN(SUBSTITUTE(V103,CHAR(44),""))+1+LEN(TRIM(U103))-LEN(SUBSTITUTE(U103,CHAR(44),""))+1,0)),"") -> - | BN103: =IF(C103="X",IF(AN103="DA",LEN(TRIM(V103))-LEN(SUBSTITUTE(V103,CHAR(44),""))+1+LEN(TRIM(U103))-LEN(SUBSTITUTE(U103,CHAR(44),""))+1,"-"),"") -> -
A104: 89 | B104: - | C104: X | D104: Reabilitare conductă 20” Oveselu - Drăgășani, fir I | E104: 80506 | F104: Hurezani | G104: Gorj | H104: 394174.3345 | I104: 369081.6569 | J104: 394174.3345 | K104: 369081.6569 | L104: - | M104: - | N104: - | O104: - | P104: PM0062 | Q104: Hurezani Bulbuceni | R104: - | S104: - | T104: PM-PP001 | U104: Petrom | V104: SC OMV Petrom SA | W104: aprilie - septembrie 2020 | AB104: Craiova | AP104: propunere PRRASM 2020 | AR104: =IF(B104="X",IF(AN104="","Afectat sau NU?",IF(AN104="DA",IF(((AK104+AL104)-(AE104+AF104))*24<-720,"Neinformat",((AK104+AL104)-(AE104+AF104))*24),"Nu a fost afectat producator/consumator")),"") ->  | AS104: =IF(B104="X",IF(AN104="DA",IF(AR104<6,LEN(TRIM(V104))-LEN(SUBSTITUTE(V104,CHAR(44),""))+1,0),"-"),"") ->  | AT104: =IF(B104="X",IF(AN104="DA",LEN(TRIM(V104))-LEN(SUBSTITUTE(V104,CHAR(44),""))+1,"-"),"") ->  | AU104: =IF(B104="X",IF(AN104="","Afectat sau NU?",IF(AN104="DA",IF(((AI104+AJ104)-(AE104+AF104))*24<-720,"Neinformat",((AI104+AJ104)-(AE104+AF104))*24),"Nu a fost afectat producator/consumator")),"") ->  | AV104: =IF(B104="X",IF(AN104="DA",IF(AU104<6,LEN(TRIM(U104))-LEN(SUBSTITUTE(U104,CHAR(44),""))+1,0),"-"),"") ->  | AW104: =IF(B104="X",IF(AN104="DA",LEN(TRIM(U104))-LEN(SUBSTITUTE(U104,CHAR(44),""))+1,"-"),"") ->  | AX104: =IF(B104="X",IF(AN104="","Afectat sau NU?",IF(AN104="DA",((AG104+AH104)-(AE104+AF104))*24,"Nu a fost afectat producator/consumator")),"") ->  | AY104: =IF(B104="X",IF(AN104="DA",IF(AX104>24,IF(BA104="NU",0,LEN(TRIM(V104))-LEN(SUBSTITUTE(V104,CHAR(44),""))+1),0),"-"),"") ->  | AZ104: =IF(B104="X",IF(AN104="DA",IF(AX104>24,LEN(TRIM(V104))-LEN(SUBSTITUTE(V104,CHAR(44),""))+1,0),"-"),"") ->  | BF104: =IF(C104="X",IF(AN104="","Afectat sau NU?",IF(AN104="DA",IF(AK104="","Neinformat",NETWORKDAYS(AK104+AL104,AE104+AF104,$BS$2:$BS$14)-2),"Nu a fost afectat producator/consumator")),"") -> Afectat sau NU? | BG104: =IF(C104="X",IF(AN104="DA",IF(AND(BF104>=5,AK104<>""),LEN(TRIM(V104))-LEN(SUBSTITUTE(V104,CHAR(44),""))+1,0),"-"),"") -> - | BH104: =IF(C104="X",IF(AN104="DA",LEN(TRIM(V104))-LEN(SUBSTITUTE(V104,CHAR(44),""))+1,"-"),"") -> - | BI104: =IF(C104="X",IF(AN104="","Afectat sau NU?",IF(AN104="DA",IF(AI104="","Neinformat",NETWORKDAYS(AI104+AJ104,AE104+AF104,$BS$2:$BS$14)-2),"Nu a fost afectat producator/consumator")),"") -> Afectat sau NU? | BJ104: =IF(C104="X",IF(AN104="DA",IF(AND(BI104>=5,AI104<>""),LEN(TRIM(U104))-LEN(SUBSTITUTE(U104,CHAR(44),""))+1,0),"-"),"") -> - | BK104: =IF(C104="X",IF(AN104="DA",LEN(TRIM(U104))-LEN(SUBSTITUTE(U104,CHAR(44),""))+1,"-"),"") -> - | BL104: =IF(C104="X",IF(AN104="","Afectat sau NU?",IF(AN104="DA",((AG104+AH104)-(Z104+AA104))*24,"Nu a fost afectat producator/consumator")),"") -> Afectat sau NU? | BM104: =IF(C104="X",IF(AN104<>"DA","-",IF(AND(AN104="DA",BL104<=0),LEN(TRIM(V104))-LEN(SUBSTITUTE(V104,CHAR(44),""))+1+LEN(TRIM(U104))-LEN(SUBSTITUTE(U104,CHAR(44),""))+1,0)),"") -> - | BN104: =IF(C104="X",IF(AN104="DA",LEN(TRIM(V104))-LEN(SUBSTITUTE(V104,CHAR(44),""))+1+LEN(TRIM(U104))-LEN(SUBSTITUTE(U104,CHAR(44),""))+1,"-"),"") -> -
A105: 90 | B105: - | C105: X | D105: Reabilitare conductă 20” Oveselu - Drăgășani, fir I | E105: 82252 | F105: Stejari (Băcești) | G105: Gorj | H105: 396359.6843 | I105: 364898.3753 | J105: 396359.6843 | K105: 364898.3753 | L105: - | M105: - | N105: - | O105: - | P105: PM0206 | Q105: Piscu Stejari SU | R105: - | S105: - | T105: PM-PP001 | U105: Romgaz | V105: SNGN Romgaz SA | W105: aprilie - septembrie 2020 | AB105: Craiova | AP105: propunere PRRASM 2020 | BF105: Afectat sau NU? | BG105: - | BH105: - | BI105: Afectat sau NU? | BJ105: - | BK105: - | BL105: Afectat sau NU? | BM105: - | BN105: -
A106: 91 | B106: - | C106: X | D106: Reabilitare conductă 20” Oveselu - Drăgășani, fir I | E106: 174307 | F106: Zătreni | G106: Vâlcea | H106: 410095.9203 | I106: 362876.8564 | J106: 410095.9203 | K106: 362876.8564 | L106: - | M106: - | N106: - | O106: - | P106: PM0270 | Q106: SU Zătreni | R106: - | S106: - | T106: PM-PP001 | U106: Amromco, Romgaz, Foraj Sonde | V106: SNGN Romgaz SA, SC Amromco Energy SRL, SC Foraj Sonde SA | W106: aprilie - septembrie 2020 | AB106: Craiova | AP106: propunere PRRASM 2020 | BF106: Afectat sau NU? | BG106: - | BH106: - | BI106: Afectat sau NU? | BJ106: - | BK106: - | BL106: Afectat sau NU? | BM106: - | BN106: -
A107: 92 | B107: - | C107: X | D107: Reabilitare conductă 20” Oveselu - Drăgășani, fir I | E107: 174307 | F107: Zătreni | G107: Vâlcea | H107: 410096.0021 | I107: 362876.7523 | J107: 410096.0021 | K107: 362876.7523 | L107: - | M107: - | N107: - | O107: - | P107: PM0054 | Q107: Zătreni | R107: - | S107: - | T107: PM-PP001 | U107: Amromco, Romgaz | V107: SNGN Romgaz SA, SC Amromco Energy SRL | W107: aprilie - septembrie 2020 | AB107: Craiova | AP107: propunere PRRASM 2020 | BF107: Afectat sau NU? | BG107: - | BH107: - | BI107: Afectat sau NU? | BJ107: - | BK107: - | BL107: Afectat sau NU? | BM107: - | BN107: -
A108: 93 | B108: - | C108: X | D108: Reabilitare conductă 20” Oveselu - Drăgășani, fir I | E108: 170355 | F108: Grădiștea | G108: Vâlcea | H108: 408181.079 | I108: 379756.6068 | J108: 408181.079 | K108: 379756.6068 | L108: - | M108: - | N108: - | O108: - | P108: PM0053 | Q108: Grădiștea | R108: - | S108: - | T108: PM-PP001 | U108: Petrom, Romgaz | V108: SNGN Romgaz SA, SC OMV Petrom SA | W108: aprilie - septembrie 2020 | AB108: Craiova | AP108: propunere PRRASM 2020 | BF108: Afectat sau NU? | BG108: - | BH108: - | BI108: Afectat sau NU? | BJ108: - | BK108: - | BL108: Afectat sau NU? | BM108: - | BN108: -
A109: 94 | B109: - | C109: X | D109: Reabilitare conductă 20” Oveselu - Drăgășani, fir I | E109: 170907 | F109: Pârâienii de Jos | G109: Vâlcea | H109: 407916.5342 | I109: 366668.7789 | J109: 407916.5342 | K109: 366668.7789 | L109: - | M109: - | N109: - | O109: - | P109: PM0259 | Q109: Pârâienii de Jos | R109: - | S109: - | T109: PM-PP001 | U109: Petrom | V109: SC OMV Petrom SA | W109: aprilie - septembrie 2020 | AB109: Craiova | AP109: propunere PRRASM 2020 | BF109: Afectat sau NU? | BG109: - | BH109: - | BI109: Afectat sau NU? | BJ109: - | BK109: - | BL109: Afectat sau NU? | BM109: - | BN109: -
A110: 95 | B110: - | C110: X | D110: Reabilitare conductă 20” Oveselu - Drăgășani, fir I | E110: 171263 | F110: Mamu | G110: Vâlcea | H110: 432509.8138 | I110: 353934.1037 | J110: 432509.8138 | K110: 353934.1037 | L110: - | M110: - | N110: - | O110: - | P110: PM0296 | Q110: Mamu (Crețeni) | R110: - | S110: - | T110: PM-PP001 | U110: Petrom | V110: SC OMV Petrom SA | W110: aprilie - septembrie 2020 | AB110: Craiova | AP110: propunere PRRASM 2020 | BF110: Afectat sau NU? | BG110: - | BH110: - | BI110: Afectat sau NU? | BJ110: - | BK110: - | BL110: Afectat sau NU? | BM110: - | BN110: -
A111: 96 | B111: - | C111: X | D111: Reabilitare conductă 20” Oveselu - Drăgășani, fir I | E111: 171209 | F111: Mădulari | G111: Vâlcea | H111: 428807.9047 | I111: 356611.1101 | J111: 428807.9047 | K111: 356611.1101 | L111: - | M111: - | N111: - | O111: - | P111: PM0191 | Q111: Mădulari | R111: - | S111: - | T111: PM-PP001 | U111: Petrom, Amromco | V111: SC OMV Petrom SA, SC Amromco Energy SRL | W111: aprilie - septembrie 2020 | AB111: Craiova | AP111: propunere PRRASM 2020 | BF111: Afectat sau NU? | BG111: - | BH111: - | BI111: Afectat sau NU? | BJ111: - | BK111: - | BL111: Afectat sau NU? | BM111: - | BN111: -
A112: 97 | B112: - | C112: X | D112: Reabilitare conductă 20” Drăgășani - Corbu, fir I | E112: 80506 | F112: Hurezani | G112: Gorj | H112: 394212.6896 | I112: 369126.4888 | J112: 394212.6896 | K112: 369126.4888 | L112: - | M112: - | N112: - | O112: - | P112: PM0205 | Q112: Hurezani SU | R112: - | S112: - | T112: PM-PP001 | U112: Romgaz | V112: SNGN Romgaz SA | W112: aprilie - septembrie 2020 | AB112: Craiova | AP112: propunere PRRASM 2020 | AR112: =IF(B112="X",IF(AN112="","Afectat sau NU?",IF(AN112="DA",IF(((AK112+AL112)-(AE112+AF112))*24<-720,"Neinformat",((AK112+AL112)-(AE112+AF112))*24),"Nu a fost afectat producator/consumator")),"") ->  | AS112: =IF(B112="X",IF(AN112="DA",IF(AR112<6,LEN(TRIM(V112))-LEN(SUBSTITUTE(V112,CHAR(44),""))+1,0),"-"),"") ->  | AT112: =IF(B112="X",IF(AN112="DA",LEN(TRIM(V112))-LEN(SUBSTITUTE(V112,CHAR(44),""))+1,"-"),"") ->  | AU112: =IF(B112="X",IF(AN112="","Afectat sau NU?",IF(AN112="DA",IF(((AI112+AJ112)-(AE112+AF112))*24<-720,"Neinformat",((AI112+AJ112)-(AE112+AF112))*24),"Nu a fost afectat producator/consumator")),"") ->  | AV112: =IF(B112="X",IF(AN112="DA",IF(AU112<6,LEN(TRIM(U112))-LEN(SUBSTITUTE(U112,CHAR(44),""))+1,0),"-"),"") ->  | AW112: =IF(B112="X",IF(AN112="DA",LEN(TRIM(U112))-LEN(SUBSTITUTE(U112,CHAR(44),""))+1,"-"),"") ->  | AX112: =IF(B112="X",IF(AN112="","Afectat sau NU?",IF(AN112="DA",((AG112+AH112)-(AE112+AF112))*24,"Nu a fost afectat producator/consumator")),"") ->  | AY112: =IF(B112="X",IF(AN112="DA",IF(AX112>24,IF(BA112="NU",0,LEN(TRIM(V112))-LEN(SUBSTITUTE(V112,CHAR(44),""))+1),0),"-"),"") ->  | AZ112: =IF(B112="X",IF(AN112="DA",IF(AX112>24,LEN(TRIM(V112))-LEN(SUBSTITUTE(V112,CHAR(44),""))+1,0),"-"),"") ->  | BF112: =IF(C112="X",IF(AN112="","Afectat sau NU?",IF(AN112="DA",IF(AK112="","Neinformat",NETWORKDAYS(AK112+AL112,AE112+AF112,$BS$2:$BS$14)-2),"Nu a fost afectat producator/consumator")),"") -> Afectat sau NU? | BG112: =IF(C112="X",IF(AN112="DA",IF(AND(BF112>=5,AK112<>""),LEN(TRIM(V112))-LEN(SUBSTITUTE(V112,CHAR(44),""))+1,0),"-"),"") -> - | BH112: =IF(C112="X",IF(AN112="DA",LEN(TRIM(V112))-LEN(SUBSTITUTE(V112,CHAR(44),""))+1,"-"),"") -> - | BI112: =IF(C112="X",IF(AN112="","Afectat sau NU?",IF(AN112="DA",IF(AI112="","Neinformat",NETWORKDAYS(AI112+AJ112,AE112+AF112,$BS$2:$BS$14)-2),"Nu a fost afectat producator/consumator")),"") -> Afectat sau NU? | BJ112: =IF(C112="X",IF(AN112="DA",IF(AND(BI112>=5,AI112<>""),LEN(TRIM(U112))-LEN(SUBSTITUTE(U112,CHAR(44),""))+1,0),"-"),"") -> - | BK112: =IF(C112="X",IF(AN112="DA",LEN(TRIM(U112))-LEN(SUBSTITUTE(U112,CHAR(44),""))+1,"-"),"") -> - | BL112: =IF(C112="X",IF(AN112="","Afectat sau NU?",IF(AN112="DA",((AG112+AH112)-(Z112+AA112))*24,"Nu a fost afectat producator/consumator")),"") -> Afectat sau NU? | BM112: =IF(C112="X",IF(AN112<>"DA","-",IF(AND(AN112="DA",BL112<=0),LEN(TRIM(V112))-LEN(SUBSTITUTE(V112,CHAR(44),""))+1+LEN(TRIM(U112))-LEN(SUBSTITUTE(U112,CHAR(44),""))+1,0)),"") -> - | BN112: =IF(C112="X",IF(AN112="DA",LEN(TRIM(V112))-LEN(SUBSTITUTE(V112,CHAR(44),""))+1+LEN(TRIM(U112))-LEN(SUBSTITUTE(U112,CHAR(44),""))+1,"-"),"") -> -
A113: 98 | B113: - | C113: X | D113: Reabilitare conductă 20” Drăgășani - Corbu, fir I | E113: 80506 | F113: Hurezani | G113: Gorj | H113: 394174.3345 | I113: 369081.6569 | J113: 394174.3345 | K113: 369081.6569 | L113: - | M113: - | N113: - | O113: - | P113: PM0062 | Q113: Hurezani Bulbuceni | R113: - | S113: - | T113: PM-PP001 | U113: Petrom | V113: SC OMV Petrom SA | W113: aprilie - septembrie 2020 | AB113: Craiova | AP113: propunere PRRASM 2020 | AR113: =IF(B113="X",IF(AN113="","Afectat sau NU?",IF(AN113="DA",IF(((AK113+AL113)-(AE113+AF113))*24<-720,"Neinformat",((AK113+AL113)-(AE113+AF113))*24),"Nu a fost afectat producator/consumator")),"") ->  | AS113: =IF(B113="X",IF(AN113="DA",IF(AR113<6,LEN(TRIM(V113))-LEN(SUBSTITUTE(V113,CHAR(44),""))+1,0),"-"),"") ->  | AT113: =IF(B113="X",IF(AN113="DA",LEN(TRIM(V113))-LEN(SUBSTITUTE(V113,CHAR(44),""))+1,"-"),"") ->  | AU113: =IF(B113="X",IF(AN113="","Afectat sau NU?",IF(AN113="DA",IF(((AI113+AJ113)-(AE113+AF113))*24<-720,"Neinformat",((AI113+AJ113)-(AE113+AF113))*24),"Nu a fost afectat producator/consumator")),"") ->  | AV113: =IF(B113="X",IF(AN113="DA",IF(AU113<6,LEN(TRIM(U113))-LEN(SUBSTITUTE(U113,CHAR(44),""))+1,0),"-"),"") ->  | AW113: =IF(B113="X",IF(AN113="DA",LEN(TRIM(U113))-LEN(SUBSTITUTE(U113,CHAR(44),""))+1,"-"),"") ->  | AX113: =IF(B113="X",IF(AN113="","Afectat sau NU?",IF(AN113="DA",((AG113+AH113)-(AE113+AF113))*24,"Nu a fost afectat producator/consumator")),"") ->  | AY113: =IF(B113="X",IF(AN113="DA",IF(AX113>24,IF(BA113="NU",0,LEN(TRIM(V113))-LEN(SUBSTITUTE(V113,CHAR(44),""))+1),0),"-"),"") ->  | AZ113: =IF(B113="X",IF(AN113="DA",IF(AX113>24,LEN(TRIM(V113))-LEN(SUBSTITUTE(V113,CHAR(44),""))+1,0),"-"),"") ->  | BF113: =IF(C113="X",IF(AN113="","Afectat sau NU?",IF(AN113="DA",IF(AK113="","Neinformat",NETWORKDAYS(AK113+AL113,AE113+AF113,$BS$2:$BS$14)-2),"Nu a fost afectat producator/consumator")),"") -> Afectat sau NU? | BG113: =IF(C113="X",IF(AN113="DA",IF(AND(BF113>=5,AK113<>""),LEN(TRIM(V113))-LEN(SUBSTITUTE(V113,CHAR(44),""))+1,0),"-"),"") -> - | BH113: =IF(C113="X",IF(AN113="DA",LEN(TRIM(V113))-LEN(SUBSTITUTE(V113,CHAR(44),""))+1,"-"),"") -> - | BI113: =IF(C113="X",IF(AN113="","Afectat sau NU?",IF(AN113="DA",IF(AI113="","Neinformat",NETWORKDAYS(AI113+AJ113,AE113+AF113,$BS$2:$BS$14)-2),"Nu a fost afectat producator/consumator")),"") -> Afectat sau NU? | BJ113: =IF(C113="X",IF(AN113="DA",IF(AND(BI113>=5,AI113<>""),LEN(TRIM(U113))-LEN(SUBSTITUTE(U113,CHAR(44),""))+1,0),"-"),"") -> - | BK113: =IF(C113="X",IF(AN113="DA",LEN(TRIM(U113))-LEN(SUBSTITUTE(U113,CHAR(44),""))+1,"-"),"") -> - | BL113: =IF(C113="X",IF(AN113="","Afectat sau NU?",IF(AN113="DA",((AG113+AH113)-(Z113+AA113))*24,"Nu a fost afectat producator/consumator")),"") -> Afectat sau NU? | BM113: =IF(C113="X",IF(AN113<>"DA","-",IF(AND(AN113="DA",BL113<=0),LEN(TRIM(V113))-LEN(SUBSTITUTE(V113,CHAR(44),""))+1+LEN(TRIM(U113))-LEN(SUBSTITUTE(U113,CHAR(44),""))+1,0)),"") -> - | BN113: =IF(C113="X",IF(AN113="DA",LEN(TRIM(V113))-LEN(SUBSTITUTE(V113,CHAR(44),""))+1+LEN(TRIM(U113))-LEN(SUBSTITUTE(U113,CHAR(44),""))+1,"-"),"") -> -
A114: 99 | B114: - | C114: X | D114: Reabilitare conductă 20” Drăgășani - Corbu, fir I | E114: 82252 | F114: Stejari (Băcești) | G114: Gorj | H114: 396359.6843 | I114: 364898.3753 | J114: 396359.6843 | K114: 364898.3753 | L114: - | M114: - | N114: - | O114: - | P114: PM0206 | Q114: Piscu Stejari SU | R114: - | S114: - | T114: PM-PP001 | U114: Romgaz | V114: SNGN Romgaz SA | W114: aprilie - septembrie 2020 | AB114: Craiova | AP114: propunere PRRASM 2020 | BF114: Afectat sau NU? | BG114: - | BH114: - | BI114: Afectat sau NU? | BJ114: - | BK114: - | BL114: Afectat sau NU? | BM114: - | BN114: -
A115: 100 | B115: - | C115: X | D115: Reabilitare conductă 20” Drăgășani - Corbu, fir I | E115: 174307 | F115: Zătreni | G115: Vâlcea | H115: 410095.9203 | I115: 362876.8564 | J115: 410095.9203 | K115: 362876.8564 | L115: - | M115: - | N115: - | O115: - | P115: PM0270 | Q115: SU Zătreni | R115: - | S115: - | T115: PM-PP001 | U115: Amromco, Romgaz, Foraj Sonde | V115: SNGN Romgaz SA, SC Amromco Energy SRL, SC Foraj Sonde SA | W115: aprilie - septembrie 2020 | AB115: Craiova | AP115: propunere PRRASM 2020 | BF115: Afectat sau NU? | BG115: - | BH115: - | BI115: Afectat sau NU? | BJ115: - | BK115: - | BL115: Afectat sau NU? | BM115: - | BN115: -
A116: 101 | B116: - | C116: X | D116: Reabilitare conductă 20” Drăgășani - Corbu, fir I | E116: 174307 | F116: Zătreni | G116: Vâlcea | H116: 410096.0021 | I116: 362876.7523 | J116: 410096.0021 | K116: 362876.7523 | L116: - | M116: - | N116: - | O116: - | P116: PM0054 | Q116: Zătreni | R116: - | S116: - | T116: PM-PP001 | U116: Amromco, Romgaz | V116: SNGN Romgaz SA, SC Amromco Energy SRL | W116: aprilie - septembrie 2020 | AB116: Craiova | AP116: propunere PRRASM 2020 | BF116: Afectat sau NU? | BG116: - | BH116: - | BI116: Afectat sau NU? | BJ116: - | BK116: - | BL116: Afectat sau NU? | BM116: - | BN116: -
A117: 102 | B117: - | C117: X | D117: Reabilitare conductă 20” Drăgășani - Corbu, fir I | E117: 170355 | F117: Grădiștea | G117: Vâlcea | H117: 408181.079 | I117: 379756.6068 | J117: 408181.079 | K117: 379756.6068 | L117: - | M117: - | N117: - | O117: - | P117: PM0053 | Q117: Grădiștea | R117: - | S117: - | T117: PM-PP001 | U117: Petrom, Romgaz | V117: SNGN Romgaz SA, SC OMV Petrom SA | W117: aprilie - septembrie 2020 | AB117: Craiova | AP117: propunere PRRASM 2020 | BF117: Afectat sau NU? | BG117: - | BH117: - | BI117: Afectat sau NU? | BJ117: - | BK117: - | BL117: Afectat sau NU? | BM117: - | BN117: -
A118: 103 | B118: - | C118: X | D118: Reabilitare conductă 20” Drăgășani - Corbu, fir I | E118: 170907 | F118: Pârâienii de Jos | G118: Vâlcea | H118: 407916.5342 | I118: 366668.7789 | J118: 407916.5342 | K118: 366668.7789 | L118: - | M118: - | N118: - | O118: - | P118: PM0259 | Q118: Pârâienii de Jos | R118: - | S118: - | T118: PM-PP001 | U118: Petrom | V118: SC OMV Petrom SA | W118: aprilie - septembrie 2020 | AB118: Craiova | AP118: propunere PRRASM 2020 | BF118: Afectat sau NU? | BG118: - | BH118: - | BI118: Afectat sau NU? | BJ118: - | BK118: - | BL118: Afectat sau NU? | BM118: - | BN118: -
A119: 104 | B119: - | C119: X | D119: Reabilitare conductă 20” Drăgășani - Corbu, fir I | E119: 171263 | F119: Mamu | G119: Vâlcea | H119: 432509.8138 | I119: 353934.1037 | J119: 432509.8138 | K119: 353934.1037 | L119: - | M119: - | N119: - | O119: - | P119: PM0296 | Q119: Mamu (Crețeni) | R119: - | S119: - | T119: PM-PP001 | U119: Petrom | V119: SC OMV Petrom SA | W119: aprilie - septembrie 2020 | AB119: Craiova | AP119: propunere PRRASM 2020 | BF119: Afectat sau NU? | BG119: - | BH119: - | BI119: Afectat sau NU? | BJ119: - | BK119: - | BL119: Afectat sau NU? | BM119: - | BN119: -
A120: 105 | B120: - | C120: X | D120: Reabilitare conductă 20” Drăgășani - Corbu, fir I | E120: 171209 | F120: Mădulari | G120: Vâlcea | H120: 428807.9047 | I120: 356611.1101 | J120: 428807.9047 | K120: 356611.1101 | L120: - | M120: - | N120: - | O120: - | P120: PM0191 | Q120: Mădulari | R120: - | S120: - | T120: PM-PP001 | U120: Petrom, Amromco | V120: SC OMV Petrom SA, SC Amromco Energy SRL | W120: aprilie - septembrie 2020 | AB120: Craiova | AP120: propunere PRRASM 2020 | BF120: Afectat sau NU? | BG120: - | BH120: - | BI120: Afectat sau NU? | BJ120: - | BK120: - | BL120: Afectat sau NU? | BM120: - | BN120: -
A121: 106 | B121: - | C121: X | D121: Reabilitare conductă 20” Drăgășani - Corbu, fir I | E121: 172386 | F121: Popești | G121: Vâlcea | H121: 431868.6333 | I121: 384475.2689 | J121: 431868.6333 | K121: 384475.2689 | L121: - | M121: - | N121: - | O121: - | P121: PM0034 | Q121: Popești Lăpușata | R121: - | S121: - | T121: PM-PP001 | U121: Petrom | V121: SC OMV Petrom SA | W121: aprilie - septembrie 2020 | AB121: Craiova | AP121: propunere PRRASM 2020 | BF121: Afectat sau NU? | BG121: - | BH121: - | BI121: Afectat sau NU? | BJ121: - | BK121: - | BL121: Afectat sau NU? | BM121: - | BN121: -
A122: 107 | B122: - | C122: X | D122: Reabilitare conductă 20” Drăgășani - Corbu, fir I | E122: 168372 | F122: Tătărani | G122: Vâlcea | H122: 441512.0399 | I122: 388186.2574 | J122: 441512.0399 | K122: 388186.2574 | L122: - | M122: - | N122: - | O122: - | P122: PM0068 | Q122: Tătărani | R122: - | S122: - | T122: PM-PP001 | U122: Petrom | V122: SC OMV Petrom SA | W122: aprilie - septembrie 2020 | AB122: Craiova | AP122: propunere PRRASM 2020 | BF122: Afectat sau NU? | BG122: - | BH122: - | BI122: Afectat sau NU? | BJ122: - | BK122: - | BL122: Afectat sau NU? | BM122: - | BN122: -
A123: 108 | B123: - | C123: X | D123: Reabilitare conductă 20” Drăgășani - Corbu, fir I | E123: 126326 | F123: Corbu | G123: Olt | H123: 478431.2424 | I123: 331691.6553 | J123: 478431.2424 | K123: 331691.6553 | L123: - | M123: - | N123: - | O123: - | P123: PM0069 | Q123: Corbu | R123: - | S123: - | T123: PM-PP001 | U123: Petrom | V123: SC OMV Petrom SA | W123: aprilie - septembrie 2020 | AB123: Craiova | AP123: propunere PRRASM 2020 | BF123: Afectat sau NU? | BG123: - | BH123: - | BI123: Afectat sau NU? | BJ123: - | BK123: - | BL123: Afectat sau NU? | BM123: - | BN123: -
A124: =SUM(1,A123) -> 109 | B124: - | C124: X | D124: Reparație conductă 12” ocolire oraș Piatra Neamț | E124: 120735 | F124: Piatra Neamț | G124: Neamț | H124: 602403.6759 | I124: 604575.782 | J124: 602403.6759 | K124: 604575.782 | L124: - | M124: - | N124: SM0454D0 | O124: Piatra Neamț II | P124: - | Q124: - | R124: - | S124: - | T124: SM-SD001 | U124: Cez Vânzare, E.on Energie, E.on Furnizare, Electric Planners, Electrica Furnizare, Enel Energie, Energy Distribution, Engie, Met România, Monsson, Premier Energy Trading, RWE, Aderro GP, Cis Gaz, Conef Gaz, CPL Concordia, Cyeb, Design Proiect, Distrigaz Vest, Electric&Gas, Enel Muntenia, Gas Provider, Entrex, Gaz Est, Hargaz, Next Energy, Nova Power, Petrom, Premier Energy, Renovatio, Restart Energy, Tinmar, Wiee, Tetarom, SST Grup, Pado Group, Mihoc Oil, Gaz Vest, Gazmir Iași, Prisma Serv | V124: Delgaz Grid SA | W124: iunie - septembrie 2020 | AB124: Bacău | AP124: PRRASM 2019_A1_1 | AR124: =IF(B124="X",IF(AN124="","Afectat sau NU?",IF(AN124="DA",IF(((AK124+AL124)-(AE124+AF124))*24<-720,"Neinformat",((AK124+AL124)-(AE124+AF124))*24),"Nu a fost afectat producator/consumator")),"") ->  | AS124: =IF(B124="X",IF(AN124="DA",IF(AR124<6,LEN(TRIM(V124))-LEN(SUBSTITUTE(V124,CHAR(44),""))+1,0),"-"),"") ->  | AT124: =IF(B124="X",IF(AN124="DA",LEN(TRIM(V124))-LEN(SUBSTITUTE(V124,CHAR(44),""))+1,"-"),"") ->  | AU124: =IF(B124="X",IF(AN124="","Afectat sau NU?",IF(AN124="DA",IF(((AI124+AJ124)-(AE124+AF124))*24<-720,"Neinformat",((AI124+AJ124)-(AE124+AF124))*24),"Nu a fost afectat producator/consumator")),"") ->  | AV124: =IF(B124="X",IF(AN124="DA",IF(AU124<6,LEN(TRIM(U124))-LEN(SUBSTITUTE(U124,CHAR(44),""))+1,0),"-"),"") ->  | AW124: =IF(B124="X",IF(AN124="DA",LEN(TRIM(U124))-LEN(SUBSTITUTE(U124,CHAR(44),""))+1,"-"),"") ->  | AX124: =IF(B124="X",IF(AN124="","Afectat sau NU?",IF(AN124="DA",((AG124+AH124)-(AE124+AF124))*24,"Nu a fost afectat producator/consumator")),"") ->  | AY124: =IF(B124="X",IF(AN124="DA",IF(AX124>24,IF(BA124="NU",0,LEN(TRIM(V124))-LEN(SUBSTITUTE(V124,CHAR(44),""))+1),0),"-"),"") ->  | AZ124: =IF(B124="X",IF(AN124="DA",IF(AX124>24,LEN(TRIM(V124))-LEN(SUBSTITUTE(V124,CHAR(44),""))+1,0),"-"),"") ->  | BF124: =IF(C124="X",IF(AN124="","Afectat sau NU?",IF(AN124="DA",IF(AK124="","Neinformat",NETWORKDAYS(AK124+AL124,AE124+AF124,$BS$2:$BS$14)-2),"Nu a fost afectat producator/consumator")),"") -> Afectat sau NU? | BG124: =IF(C124="X",IF(AN124="DA",IF(AND(BF124>=5,AK124<>""),LEN(TRIM(V124))-LEN(SUBSTITUTE(V124,CHAR(44),""))+1,0),"-"),"") -> - | BH124: =IF(C124="X",IF(AN124="DA",LEN(TRIM(V124))-LEN(SUBSTITUTE(V124,CHAR(44),""))+1,"-"),"") -> - | BI124: =IF(C124="X",IF(AN124="","Afectat sau NU?",IF(AN124="DA",IF(AI124="","Neinformat",NETWORKDAYS(AI124+AJ124,AE124+AF124,$BS$2:$BS$14)-2),"Nu a fost afectat producator/consumator")),"") -> Afectat sau NU? | BJ124: =IF(C124="X",IF(AN124="DA",IF(AND(BI124>=5,AI124<>""),LEN(TRIM(U124))-LEN(SUBSTITUTE(U124,CHAR(44),""))+1,0),"-"),"") -> - | BK124: =IF(C124="X",IF(AN124="DA",LEN(TRIM(U124))-LEN(SUBSTITUTE(U124,CHAR(44),""))+1,"-"),"") -> - | BL124: =IF(C124="X",IF(AN124="","Afectat sau NU?",IF(AN124="DA",((AG124+AH124)-(Z124+AA124))*24,"Nu a fost afectat producator/consumator")),"") -> Afectat sau NU? | BM124: =IF(C124="X",IF(AN124<>"DA","-",IF(AND(AN124="DA",BL124<=0),LEN(TRIM(V124))-LEN(SUBSTITUTE(V124,CHAR(44),""))+1+LEN(TRIM(U124))-LEN(SUBSTITUTE(U124,CHAR(44),""))+1,0)),"") -> - | BN124: =IF(C124="X",IF(AN124="DA",LEN(TRIM(V124))-LEN(SUBSTITUTE(V124,CHAR(44),""))+1+LEN(TRIM(U124))-LEN(SUBSTITUTE(U124,CHAR(44),""))+1,"-"),"") -> -
A125: 110 | B125: - | C125: X | D125: Reparație conductă 12” ocolire oraș Piatra Neamț | E125: 120735 | F125: Piatra Neamț | G125: Neamț | H125: 602458.5788 | I125: 604700.6761 | J125: 602458.5788 | K125: 604700.6761 | L125: - | M125: - | N125: SM1074D0 | O125: SC Petrocart Piatra Neamț | P125: - | Q125: - | R125: - | S125: - | T125: SM-CF001 | V125: SC Petrocart SA | W125: iunie - septembrie 2020 | AB125: Bacău | AP125: PRRASM 2019_A1_1 | BF125: =IF(C125="X",IF(AN125="","Afectat sau NU?",IF(AN125="DA",IF(AK125="","Neinformat",NETWORKDAYS(AK125+AL125,AE125+AF125,$BS$2:$BS$14)-2),"Nu a fost afectat producator/consumator")),"") -> Afectat sau NU? | BG125: =IF(C125="X",IF(AN125="DA",IF(AND(BF125>=5,AK125<>""),LEN(TRIM(V125))-LEN(SUBSTITUTE(V125,CHAR(44),""))+1,0),"-"),"") -> - | BH125: =IF(C125="X",IF(AN125="DA",LEN(TRIM(V125))-LEN(SUBSTITUTE(V125,CHAR(44),""))+1,"-"),"") -> - | BI125: =IF(C125="X",IF(AN125="","Afectat sau NU?",IF(AN125="DA",IF(AI125="","Neinformat",NETWORKDAYS(AI125+AJ125,AE125+AF125,$BS$2:$BS$14)-2),"Nu a fost afectat producator/consumator")),"") -> Afectat sau NU? | BJ125: =IF(C125="X",IF(AN125="DA",IF(AND(BI125>=5,AI125<>""),LEN(TRIM(U125))-LEN(SUBSTITUTE(U125,CHAR(44),""))+1,0),"-"),"") -> - | BK125: =IF(C125="X",IF(AN125="DA",LEN(TRIM(U125))-LEN(SUBSTITUTE(U125,CHAR(44),""))+1,"-"),"") -> - | BL125: =IF(C125="X",IF(AN125="","Afectat sau NU?",IF(AN125="DA",((AG125+AH125)-(Z125+AA125))*24,"Nu a fost afectat producator/consumator")),"") -> Afectat sau NU? | BM125: =IF(C125="X",IF(AN125<>"DA","-",IF(AND(AN125="DA",BL125<=0),LEN(TRIM(V125))-LEN(SUBSTITUTE(V125,CHAR(44),""))+1+LEN(TRIM(U125))-LEN(SUBSTITUTE(U125,CHAR(44),""))+1,0)),"") -> - | BN125: =IF(C125="X",IF(AN125="DA",LEN(TRIM(V125))-LEN(SUBSTITUTE(V125,CHAR(44),""))+1+LEN(TRIM(U125))-LEN(SUBSTITUTE(U125,CHAR(44),""))+1,"-"),"") -> -
A126: 111 | B126: - | C126: X | D126: Reparație conductă 12” ocolire oraș Piatra Neamț | E126: 120735 | F126: Piatra Neamț | G126: Neamț | H126: 606028.7905 | I126: 601634.8534 | J126: 606028.7905 | K126: 601634.8534 | L126: - | M126: - | N126: SM1137D0 | O126: Piatra Neamț III | P126: - | Q126: - | R126: - | S126: - | T126: SM-SD001 | U126: Cez Vânzare, E.on Energie, E.on Furnizare, Electric Planners, Electrica Furnizare, Enel Energie, Energy Distribution, Engie, Met România, Monsson, Premier Energy Trading, RWE, Aderro GP, Cis Gaz, Conef Gaz, CPL Concordia, Cyeb, Design Proiect, Distrigaz Vest, Electric&Gas, Enel Muntenia, Gas Provider, Entrex, Gaz Est, Hargaz, Next Energy, Nova Power, Petrom, Premier Energy, Renovatio, Restart Energy, Tinmar, Wiee, Tetarom, SST Grup, Pado Group, Mihoc Oil, Gaz Vest, Gazmir Iași, Prisma Serv | V126: Delgaz Grid SA | W126: iunie - septembrie 2020 | AB126: Bacău | AP126: PRRASM 2019_A1_1 | BF126: =IF(C126="X",IF(AN126="","Afectat sau NU?",IF(AN126="DA",IF(AK126="","Neinformat",NETWORKDAYS(AK126+AL126,AE126+AF126,$BS$2:$BS$14)-2),"Nu a fost afectat producator/consumator")),"") -> Afectat sau NU? | BG126: =IF(C126="X",IF(AN126="DA",IF(AND(BF126>=5,AK126<>""),LEN(TRIM(V126))-LEN(SUBSTITUTE(V126,CHAR(44),""))+1,0),"-"),"") -> - | BH126: =IF(C126="X",IF(AN126="DA",LEN(TRIM(V126))-LEN(SUBSTITUTE(V126,CHAR(44),""))+1,"-"),"") -> - | BI126: =IF(C126="X",IF(AN126="","Afectat sau NU?",IF(AN126="DA",IF(AI126="","Neinformat",NETWORKDAYS(AI126+AJ126,AE126+AF126,$BS$2:$BS$14)-2),"Nu a fost afectat producator/consumator")),"") -> Afectat sau NU? | BJ126: =IF(C126="X",IF(AN126="DA",IF(AND(BI126>=5,AI126<>""),LEN(TRIM(U126))-LEN(SUBSTITUTE(U126,CHAR(44),""))+1,0),"-"),"") -> - | BK126: =IF(C126="X",IF(AN126="DA",LEN(TRIM(U126))-LEN(SUBSTITUTE(U126,CHAR(44),""))+1,"-"),"") -> - | BL126: =IF(C126="X",IF(AN126="","Afectat sau NU?",IF(AN126="DA",((AG126+AH126)-(Z126+AA126))*24,"Nu a fost afectat producator/consumator")),"") -> Afectat sau NU? | BM126: =IF(C126="X",IF(AN126<>"DA","-",IF(AND(AN126="DA",BL126<=0),LEN(TRIM(V126))-LEN(SUBSTITUTE(V126,CHAR(44),""))+1+LEN(TRIM(U126))-LEN(SUBSTITUTE(U126,CHAR(44),""))+1,0)),"") -> - | BN126: =IF(C126="X",IF(AN126="DA",LEN(TRIM(V126))-LEN(SUBSTITUTE(V126,CHAR(44),""))+1+LEN(TRIM(U126))-LEN(SUBSTITUTE(U126,CHAR(44),""))+1,"-"),"") -> -
A127: 112 | B127: - | C127: X | D127: Reparație conductă 12” ocolire oraș Piatra Neamț | E127: 124974 | F127: Bistrița NT | G127: Neamț | H127: 599003.2425 | I127: 605471.1463 | J127: 599003.2425 | K127: 605471.1463 | L127: - | M127: - | N127: SM0307D0 | O127: SC TLSIT Bistrița NT | P127: - | Q127: - | R127: - | S127: - | T127: SM-CF001 | U127: E.On Energie | V127: SC TLSIT SA | W127: iunie - septembrie 2020 | AB127: Bacău | AP127: PRRASM 2019_A1_1 | BF127: =IF(C127="X",IF(AN127="","Afectat sau NU?",IF(AN127="DA",IF(AK127="","Neinformat",NETWORKDAYS(AK127+AL127,AE127+AF127,$BS$2:$BS$14)-2),"Nu a fost afectat producator/consumator")),"") -> Afectat sau NU? | BG127: =IF(C127="X",IF(AN127="DA",IF(AND(BF127>=5,AK127<>""),LEN(TRIM(V127))-LEN(SUBSTITUTE(V127,CHAR(44),""))+1,0),"-"),"") -> - | BH127: =IF(C127="X",IF(AN127="DA",LEN(TRIM(V127))-LEN(SUBSTITUTE(V127,CHAR(44),""))+1,"-"),"") -> - | BI127: =IF(C127="X",IF(AN127="","Afectat sau NU?",IF(AN127="DA",IF(AI127="","Neinformat",NETWORKDAYS(AI127+AJ127,AE127+AF127,$BS$2:$BS$14)-2),"Nu a fost afectat producator/consumator")),"") -> Afectat sau NU? | BJ127: =IF(C127="X",IF(AN127="DA",IF(AND(BI127>=5,AI127<>""),LEN(TRIM(U127))-LEN(SUBSTITUTE(U127,CHAR(44),""))+1,0),"-"),"") -> - | BK127: =IF(C127="X",IF(AN127="DA",LEN(TRIM(U127))-LEN(SUBSTITUTE(U127,CHAR(44),""))+1,"-"),"") -> - | BL127: =IF(C127="X",IF(AN127="","Afectat sau NU?",IF(AN127="DA",((AG127+AH127)-(Z127+AA127))*24,"Nu a fost afectat producator/consumator")),"") -> Afectat sau NU? | BM127: =IF(C127="X",IF(AN127<>"DA","-",IF(AND(AN127="DA",BL127<=0),LEN(TRIM(V127))-LEN(SUBSTITUTE(V127,CHAR(44),""))+1+LEN(TRIM(U127))-LEN(SUBSTITUTE(U127,CHAR(44),""))+1,0)),"") -> - | BN127: =IF(C127="X",IF(AN127="DA",LEN(TRIM(V127))-LEN(SUBSTITUTE(V127,CHAR(44),""))+1+LEN(TRIM(U127))-LEN(SUBSTITUTE(U127,CHAR(44),""))+1,"-"),"") -> -
A128: 113 | B128: - | C128: X | D128: Pregătirea conductei 20” Ișalnița - Cruce Ghercești pentru transformarea în conductă godevilabilă, zonele Melinești, CET II Craiova și Ghercești | E128: 72409 | F128: Ghercești | G128: Dolj | H128: 411337.3385 | I128: 315622.4637 | J128: 411337.3385 | K128: 315622.4637 | L128: - | M128: - | N128: - | O128: - | P128: PM0275 | Q128: Stație Centrală Ghercești EXTR | R128: - | S128: - | T128: VPM01 | U128: E.On Energie, E.On Furnizare, Met România, Cez Vânzare, Nova Power, Romgaz | V128: Depogaz Ploiești | W128: mai - septembrie 2020 | AB128: Craiova | AP128: PRRASM 2019_A2_5 transferat în PMDI 2019 Revizia 7 iunie 2 | BF128: Afectat sau NU? | BG128: - | BH128: - | BI128: Afectat sau NU? | BJ128: - | BK128: - | BL128: Afectat sau NU? | BM128: - | BN128: -
A129: 114 | B129: - | C129: X | D129: Pregătirea conductei 20” Ișalnița - Cruce Ghercești pentru transformarea în conductă godevilabilă, zonele Melinești, CET II Craiova și Ghercești | E129: 72409 | F129: Ghercești | G129: Dolj | H129: 404873.4365 | I129: 317922.641 | J129: 404873.4365 | K129: 317922.641 | L129: - | M129: - | N129: SM1142D0 | O129: Stație Centrală Ghercești INMA | P129: - | Q129: - | R129: - | S129: - | T129: VSM01 | U129: E.On Energie, E.On Furnizare, Met România, Cez Vânzare, Nova Power, Romgaz, Axpo Energy, Gaz Est, Restart Energy, Nord Gaz, Mehedinți Gaz, Energy Distribution | V129: Depogaz Ploiești | W129: mai - septembrie 2020 | AB129: Craiova | AP129: PRRASM 2019_A2_5 transferat în PMDI 2019 Revizia 7 iunie 2 | BF129: Afectat sau NU? | BG129: - | BH129: - | BI129: Afectat sau NU? | BJ129: - | BK129: - | BL129: Afectat sau NU? | BM129: - | BN129: -
A130: 115 | B130: - | C130: X | D130: Pregătirea conductei 20” Ișalnița - Cruce Ghercești pentru transformarea în conductă godevilabilă, zonele Melinești, CET II Craiova și Ghercești | E130: 73246 | F130: Mischii | G130: Dolj | H130: 410109.2022 | I130: 320464.259 | J130: 410109.2022 | K130: 320464.259 | L130: - | M130: - | N130: SM1037D0 | O130: Mischii | P130: - | Q130: - | R130: - | S130: - | T130: SM-SD001 | U130: Cez Vânzare, E.on Energie, Electric Planners, Electrica Furnizare, Electrocentrale București, Enel Energie, Energy Distribution, Engie, Met România, Monsson, Premier Energy Trading, RWE, Aderro GP, Cis Gaz, Conef Gaz, Cyeb, Distrigaz Vest, Electric&Gas, Electrocentrale Constanța, Enel Muntenia, Gas Provider, Entrex, Euro Seven, Gaz Est, Hargaz, Megaconstruct, Next Energy, Nova Power, Oligopol, Petrom, Premier Energy, Renovatio, Restart Energy, Transenergo, Wiee, Romgaz, Tinmar, Veolia | V130: SC Distrigaz Sud Rețele | W130: mai - septembrie 2020 | AB130: Craiova | AP130: PRRASM 2019_A2_5 transferat în PMDI 2019 Revizia 7 iunie 2 | BF130: Afectat sau NU? | BG130: - | BH130: - | BI130: Afectat sau NU? | BJ130: - | BK130: - | BL130: Afectat sau NU? | BM130: - | BN130: -
A131: 116 | B131: - | C131: X | D131: Pregătirea conductei 20” Ișalnița - Cruce Ghercești pentru transformarea în conductă godevilabilă, zonele Melinești, CET II Craiova și Ghercești | E131: 72418 | F131: Ghercești | G131: Dolj | H131: 412675.233 | I131: 316838.1307 | J131: 412675.233 | K131: 316838.1307 | L131: - | M131: - | N131: SM1146D0 | O131: Ghercești | P131: - | Q131: - | R131: - | S131: - | T131: SM-SD001 | U131: Energy Distribution, Engie, Petrom, Restart Energy, Romgaz | V131: SNGN Romgaz SA - Distribuție | W131: mai - septembrie 2020 | AB131: Craiova | AP131: PRRASM 2019_A2_5 transferat în PMDI 2019 Revizia 7 iunie 2 | BF131: Afectat sau NU? | BG131: - | BH131: - | BI131: Afectat sau NU? | BJ131: - | BK131: - | BL131: Afectat sau NU? | BM131: - | BN131: -
A132: 117 | B132: - | C132: X | D132: Pregătirea conductei 20” Ișalnița - Cruce Ghercești pentru transformarea în conductă godevilabilă, zonele Melinești, CET II Craiova și Ghercești | E132: 72409 | F132: Ghercești | G132: Dolj | H132: 409849.8983 | I132: 314332.0136 | J132: 409849.8983 | K132: 314332.0136 | L132: - | M132: - | N132: SM1194D0 | O132: Ghercești II | P132: - | Q132: - | R132: - | S132: - | T132: SM-SD001 | U132: Energy Distribution, Engie, Petrom, Restart Energy, Romgaz | V132: SNGN Romgaz SA - Distribuție | W132: mai - septembrie 2020 | AB132: Craiova | AP132: PRRASM 2019_A2_5 transferat în PMDI 2019 Revizia 7 iunie 2 | BF132: =IF(C132="X",IF(AN132="","Afectat sau NU?",IF(AN132="DA",IF(AK132="","Neinformat",NETWORKDAYS(AK132+AL132,AE132+AF132,$BS$2:$BS$14)-2),"Nu a fost afectat producator/consumator")),"") -> Afectat sau NU? | BG132: =IF(C132="X",IF(AN132="DA",IF(AND(BF132>=5,AK132<>""),LEN(TRIM(V132))-LEN(SUBSTITUTE(V132,CHAR(44),""))+1,0),"-"),"") -> - | BH132: =IF(C132="X",IF(AN132="DA",LEN(TRIM(V132))-LEN(SUBSTITUTE(V132,CHAR(44),""))+1,"-"),"") -> - | BI132: =IF(C132="X",IF(AN132="","Afectat sau NU?",IF(AN132="DA",IF(AI132="","Neinformat",NETWORKDAYS(AI132+AJ132,AE132+AF132,$BS$2:$BS$14)-2),"Nu a fost afectat producator/consumator")),"") -> Afectat sau NU? | BJ132: =IF(C132="X",IF(AN132="DA",IF(AND(BI132>=5,AI132<>""),LEN(TRIM(U132))-LEN(SUBSTITUTE(U132,CHAR(44),""))+1,0),"-"),"") -> - | BK132: =IF(C132="X",IF(AN132="DA",LEN(TRIM(U132))-LEN(SUBSTITUTE(U132,CHAR(44),""))+1,"-"),"") -> - | BL132: =IF(C132="X",IF(AN132="","Afectat sau NU?",IF(AN132="DA",((AG132+AH132)-(Z132+AA132))*24,"Nu a fost afectat producator/consumator")),"") -> Afectat sau NU? | BM132: =IF(C132="X",IF(AN132<>"DA","-",IF(AND(AN132="DA",BL132<=0),LEN(TRIM(V132))-LEN(SUBSTITUTE(V132,CHAR(44),""))+1+LEN(TRIM(U132))-LEN(SUBSTITUTE(U132,CHAR(44),""))+1,0)),"") -> - | BN132: =IF(C132="X",IF(AN132="DA",LEN(TRIM(V132))-LEN(SUBSTITUTE(V132,CHAR(44),""))+1+LEN(TRIM(U132))-LEN(SUBSTITUTE(U132,CHAR(44),""))+1,"-"),"") -> -
A133: 118 | B133: - | C133: X | D133: Pregătirea conductei 20” Ișalnița - Cruce Ghercești pentru transformarea în conductă godevilabilă, zonele Melinești, CET II Craiova și Ghercești | E133: 73629 | F133: Pielești | G133: Dolj | H133: 414077.2752 | I133: 316502.8502 | J133: 414077.2752 | K133: 316502.8502 | L133: - | M133: - | N133: SM1187D0 | O133: Pielești | P133: - | Q133: - | R133: - | S133: - | T133: SM-SD001 | U133: Aderro GP, Cez Vânzare, Engie, E.On Energie, Electrica Furnizare, Enel, Enel Muntenia, Met România, Petrom, Restart Energy, Tinmar, Entrex, Megaconstruct | V133: SC Megaconstruct SA | W133: mai - septembrie 2020 | AB133: Craiova | AP133: PRRASM 2019_A2_5 transferat în PMDI 2019 Revizia 7 iunie 2 | BF133: Afectat sau NU? | BG133: - | BH133: - | BI133: Afectat sau NU? | BJ133: - | BK133: - | BL133: Afectat sau NU? | BM133: - | BN133: -
A134: 119 | B134: - | C134: X | D134: Pregătirea conductei 20” Ișalnița - Cruce Ghercești pentru transformarea în conductă godevilabilă, zonele Melinești, CET II Craiova și Ghercești | E134: 69900 | F134: Craiova | G134: Dolj | H134: 404921.2652 | I134: 317959.3772 | J134: 404921.2652 | K134: 317959.3772 | L134: - | M134: - | N134: SM1158D0 | O134: CET Craiova II | P134: - | Q134: - | R134: - | S134: - | T134: SM-CF001 | V134: Complexul Energetic Oltenia | W134: mai - septembrie 2020 | AB134: Craiova | AP134: PRRASM 2019_A2_5 transferat în PMDI 2019 Revizia 7 iunie 2 | BF134: Afectat sau NU? | BG134: - | BH134: - | BI134: Afectat sau NU? | BJ134: - | BK134: - | BL134: Afectat sau NU? | BM134: - | BN134: -
A135: 120 | B135: - | C135: X | D135: Pregătirea conductei 20” Ișalnița - Cruce Ghercești pentru transformarea în conductă godevilabilă, zonele Melinești, CET II Craiova și Ghercești | E135: 69900 | F135: Craiova | G135: Dolj | H135: 408229.2898 | I135: 311000.1356 | J135: 408229.2898 | K135: 311000.1356 | L135: - | M135: - | N135: SM0209D1 | O135: SC Ford Combinat | P135: - | Q135: - | R135: - | S135: - | T135: SM-CF001 | U135: Engie | V135: SC Ford România SA | W135: mai - septembrie 2020 | AB135: Craiova | AP135: PRRASM 2019_A2_5 transferat în PMDI 2019 Revizia 7 iunie 2 | BF135: Afectat sau NU? | BG135: - | BH135: - | BI135: Afectat sau NU? | BJ135: - | BK135: - | BL135: Afectat sau NU? | BM135: - | BN135: -
A136: 121 | B136: - | C136: X | D136: Pregătirea conductei 20” Ișalnița - Cruce Ghercești pentru transformarea în conductă godevilabilă, zonele Melinești, CET II Craiova și Ghercești | E136: 69900 | F136: Craiova | G136: Dolj | H136: 408229.2898 | I136: 311000.1356 | J136: 408229.2898 | K136: 311000.1356 | L136: - | M136: - | N136: SM0209D2 | O136: Ford Craiova Casnici | P136: - | Q136: - | R136: - | S136: - | T136: SM-SD001 | U136: Cez Vânzare, E.on Energie, Electric Planners, Electrica Furnizare, Electrocentrale București, Enel Energie, Energy Distribution, Engie, Met România, Monsson, Premier Energy Trading, RWE, Aderro GP, Cis Gaz, Conef Gaz, Cyeb, Distrigaz Vest, Electric&Gas, Electrocentrale Constanța, Enel Muntenia, Gas Provider, Entrex, Euro Seven, Gaz Est, Hargaz, Megaconstruct, Next Energy, Nova Power, Oligopol, Petrom, Premier Energy, Renovatio, Restart Energy, Transenergo, Wiee, Romgaz, Tinmar, Veolia | V136: SC Distrigaz Sud Rețele | W136: mai - septembrie 2020 | AB136: Craiova | AP136: PRRASM 2019_A2_5 transferat în PMDI 2019 Revizia 7 iunie 2 | BF136: Afectat sau NU? | BG136: - | BH136: - | BI136: Afectat sau NU? | BJ136: - | BK136: - | BL136: Afectat sau NU? | BM136: - | BN136: -
A137: =SUM(1,$A136) -> 122 | B137: - | C137: X | D137: Pregătirea conductei 20” Ișalnița - Cruce Ghercești pentru transformarea în conductă godevilabilă, zonele Melinești, CET II Craiova și Ghercești | E137: 69900 | F137: Craiova | G137: Dolj | H137: 404628.8399 | I137: 311354.1039 | J137: 404628.8399 | K137: 311354.1039 | L137: - | M137: - | N137: SM0208D0 | O137: Craiova Sud | P137: - | Q137: - | R137: - | S137: - | T137: SM-SD001 | U137: Cez Vânzare, E.on Energie, Electric Planners, Electrica Furnizare, Electrocentrale București, Enel Energie, Energy Distribution, Engie, Met România, Monsson, Premier Energy Trading, RWE, Aderro GP, Cis Gaz, Conef Gaz, Cyeb, Distrigaz Vest, Electric&Gas, Electrocentrale Constanța, Enel Muntenia, Gas Provider, Entrex, Euro Seven, Gaz Est, Hargaz, Megaconstruct, Next Energy, Nova Power, Oligopol, Petrom, Premier Energy, Renovatio, Restart Energy, Transenergo, Wiee, Romgaz, Tinmar, Veolia | V137: SC Distrigaz Sud Rețele | W137: mai - septembrie 2020 | AB137: Craiova | AP137: PRRASM 2019_A2_5 transferat în PMDI 2019 Revizia 7 iunie 2 | BF137: Afectat sau NU? | BG137: - | BH137: - | BI137: Afectat sau NU? | BJ137: - | BK137: - | BL137: Afectat sau NU? | BM137: - | BN137: -
A138: 123 | B138: - | C138: X | D138: Pregătirea conductei 20” Ișalnița - Cruce Ghercești pentru transformarea în conductă godevilabilă, zonele Melinești, CET II Craiova și Ghercești | E138: 70110 | F138: Podari | G138: Dolj | H138: 404627.6737 | I138: 311347.6397 | J138: 404627.6737 | K138: 311347.6397 | L138: - | M138: - | N138: SM1053D0 | O138: Podari | P138: - | Q138: - | R138: - | S138: - | T138: SM-SD001 | U138: Cez Vânzare, E.on Energie, Electric Planners, Electrica Furnizare, Electrocentrale București, Enel Energie, Energy Distribution, Engie, Met România, Monsson, Premier Energy Trading, RWE, Aderro GP, Cis Gaz, Conef Gaz, Cyeb, Distrigaz Vest, Electric&Gas, Electrocentrale Constanța, Enel Muntenia, Gas Provider, Entrex, Euro Seven, Gaz Est, Hargaz, Megaconstruct, Next Energy, Nova Power, Oligopol, Petrom, Premier Energy, Renovatio, Restart Energy, Transenergo, Wiee, Romgaz, Tinmar, Veolia | V138: SC Distrigaz Sud Rețele | W138: mai - septembrie 2020 | AB138: Craiova | AP138: PRRASM 2019_A2_5 transferat în PMDI 2019 Revizia 7 iunie 2 | BF138: Afectat sau NU? | BG138: - | BH138: - | BI138: Afectat sau NU? | BJ138: - | BK138: - | BL138: Afectat sau NU? | BM138: - | BN138: -
A139: 124 | B139: - | C139: X | D139: Înlocuire 2 tronsoane pe conducta 3” racord alimentare SRM Bisericani, zona Bisericani | E139: 124938 | F139: Bisericani | G139: Neamț | H139: 594524.2825 | I139: 607357.2597 | J139: 594524.2825 | K139: 607357.2597 | L139: - | M139: - | N139: SM0456D0 | O139: Spitalul de Pneumoftiziologie Bisericani | P139: - | Q139: - | R139: - | S139: - | T139: SM-CF001 | U139: Enel Muntenia | V139: Spitalul de Pneumoftiziologie Bisericani | W139: august - septembrie 2020 | AB139: Bacău | AP139: Sucursala_B1 | BF139: Afectat sau NU? | BG139: - | BH139: - | BI139: Afectat sau NU? | BJ139: - | BK139: - | BL139: Afectat sau NU? | BM139: - | BN139: -
A140: 125 | B140: - | C140: X | D140: Refacere sudură pe 4” racord alimentare SRM Livezi localitate, în zona de cuplare în 20” Helegiu - Racova, fir I, zona Livezi | E140: 23289 | F140: Livezi | G140: Bacău | H140: 633228.87 | I140: 546356.477 | J140: 633228.87 | K140: 546356.477 | L140: - | M140: - | N140: SM0445D0 | O140: SC Olympus Spedition Livezi | P140: - | Q140: - | R140: - | S140: - | T140: SM-CF001 | U140: Tinmar | V140: SC Olympus Spedition SRL | W140: septembrie 2020 | AB140: Bacău | AP140: Sucursala_B4 | BF140: Afectat sau NU? | BG140: - | BH140: - | BI140: Afectat sau NU? | BJ140: - | BK140: - | BL140: Afectat sau NU? | BM140: - | BN140: -
A141: 126 | B141: - | C141: X | D141: Interconectare 32" Moșu - Podișor cu 16" Gura Șutți, zona Slobozia Moara și relocare Rv16 cu refulator. | E141: 68627 | F141: Răcari | G141: Dâmbovița | H141: 555001.09 | I141: 349955.82 | J141: 569137.31 | K141: 334164.8 | L141: - | M141: - | N141: SM0145D0 | O141: Răcari | P141: - | Q141: - | R141: - | S141: - | T141: SM-SD001 | U141: Cez Vânzare, E.on Energie, Electric Planners, Electrica Furnizare, Electrocentrale București, Enel Energie, Energy Distribution, Engie, Met România, Monsson, Premier Energy Trading, RWE, Aderro GP, Cis Gaz, Conef Gaz, Cyeb, Distrigaz Vest, Electric&Gas, Electrocentrale Constanța, Enel Muntenia, Gas Provider, Entrex, Euro Seven, Gaz Est, Hargaz, Megaconstruct, Next Energy, Nova Power, Oligopol, Petrom, Premier Energy, Renovatio, Restart Energy, Tinmar, Wiee, Romgaz, Transenergo, Veolia | V141: SC Distrigaz Sud Rețele | W141: august - septembrie 2020 | AB141: București | AP141: Sucursala | BF141: Afectat sau NU? | BG141: - | BH141: - | BI141: Afectat sau NU? | BJ141: - | BK141: - | BL141: Afectat sau NU? | BM141: - | BN141: -
A142: 127 | B142: - | C142: X | D142: Interconectare 32" Moșu - Podișor cu 16" Gura Șutți, zona Slobozia Moara și relocare Rv16 cu refulator. | E142: 105534 | F142: Tărtășești | G142: Dâmbovița | H142: 555001.09 | I142: 349955.82 | J142: 569137.31 | K142: 334164.8 | L142: - | M142: - | N142: SM0112D0 | O142: Tărtășești | P142: - | Q142: - | R142: - | S142: - | T142: SM-SD001 | U142: Cez Vânzare, E.On Energie, Electric Planners, Electrica Furnizare, Enel Energie, Energy Distribution, Engie, Met România, Aderro GP, Cis Gaz, Conef Gaz, Electric&Gas, Enel Muntenia, Gas Provider, Gaz Est, Megaconstruct, Next Energy, Nova Power, Petrom, Premier Energy, Renovatio, Restart Energy, Tinmar, Wiee, Transenergo | V142: SC Premier Energy SRL | W142: august - septembrie 2020 | AB142: București | AP142: Sucursala | BF142: Afectat sau NU? | BG142: - | BH142: - | BI142: Afectat sau NU? | BJ142: - | BK142: - | BL142: Afectat sau NU? | BM142: - | BN142: -
A143: 128 | B143: - | C143: X | D143: Interconectare 32" Moșu - Podișor cu 16" Gura Șutți, zona Slobozia Moara și relocare Rv16 cu refulator. | E143: 103997 | F143: Săbăreni | G143: Giurgiu | H143: 555001.09 | I143: 349955.82 | J143: 569137.31 | K143: 334164.8 | L143: - | M143: - | N143: SM1086D0 | O143: Joița | P143: - | Q143: - | R143: - | S143: - | T143: SM-SD001 | U143: Petrom, Euro Seven, Enel Muntenia, Engie, Enel Energie | V143: EuroSeven | W143: august - septembrie 2020 | AB143: București | AP143: Sucursala | BF143: Afectat sau NU? | BG143: - | BH143: - | BI143: Afectat sau NU? | BJ143: - | BK143: - | BL143: Afectat sau NU? | BM143: - | BN143: -
A144: 129 | B144: - | C144: X | D144: SRM Clinceni - Eficientizarea sistemului de măsură prin completarea instalației tehnologice cu elemente/echipamente corespunzătoare | E144: 102044 | F144: Clinceni | G144: Ilfov | H144: 574454.519 | I144: 318647.86 | J144: 574454.519 | K144: 318647.86 | L144: - | M144: - | N144: SM0249D1 | O144: Clinceni | P144: - | Q144: - | R144: - | S144: - | T144: SM-SD001 | U144: Cez Vânzare, E.on Energie, Electric Planners, Electrica Furnizare, Electrocentrale București, Enel Energie, Energy Distribution, Engie, Met România, Monsson, Premier Energy Trading, RWE, Aderro GP, Cis Gaz, Conef Gaz, Cyeb, Distrigaz Vest, Electric&Gas, Electrocentrale Constanța, Enel Muntenia, Gas Provider, Entrex, Euro Seven, Gaz Est, Hargaz, Megaconstruct, Next Energy, Nova Power, Oligopol | V144: SC Distrigaz Sud Rețele | W144: iulie - septembrie 2020 | AB144: București | AP144: PMDI 2019_5 (Anexa 3) | BF144: Afectat sau NU? | BG144: - | BH144: - | BI144: Afectat sau NU? | BJ144: - | BK144: - | BL144: Afectat sau NU? | BM144: - | BN144: -
A145: 130 | B145: - | C145: X | D145: SRM Clinceni - Eficientizarea sistemului de măsură prin completarea instalației tehnologice cu elemente/echipamente corespunzătoare | E145: 102044 | F145: Clinceni | G145: Ilfov | H145: 574454.519 | I145: 318647.86 | J145: 574454.519 | K145: 318647.86 | L145: - | M145: - | N145: SM0249D2 | O145: Cornetu | P145: - | Q145: - | R145: - | S145: - | T145: SM-SD001 | U145: Cez Vânzare, E.On Energie, Electric Planners, Electrica Furnizare, Enel Energie, Energy Distribution, Engie, Met România, Aderro GP, Cis Gaz, Conef Gaz, Electric&Gas, Enel Muntenia, Gas Provider, Gaz Est, Megaconstruct, Next Energy, Nova Power, Petrom, Premier Energy, Renovatio, Restart Energy, Tinmar, Wiee, Transenergo | V145: SC Premier Energy SRL | W145: iulie - septembrie 2020 | AB145: București | AP145: PMDI 2019_5 (Anexa 3) | BF145: =IF(C145="X",IF(AN145="","Afectat sau NU?",IF(AN145="DA",IF(AK145="","Neinformat",NETWORKDAYS(AK145+AL145,AE145+AF145,$BS$2:$BS$14)-2),"Nu a fost afectat producator/consumator")),"") -> Afectat sau NU? | BG145: =IF(C145="X",IF(AN145="DA",IF(AND(BF145>=5,AK145<>""),LEN(TRIM(V145))-LEN(SUBSTITUTE(V145,CHAR(44),""))+1,0),"-"),"") -> - | BH145: - | BI145: Afectat sau NU? | BJ145: - | BK145: - | BL145: Afectat sau NU? | BM145: - | BN145: -
A146: 131 | B146: - | C146: X | D146: SRM Clinceni - Eficientizarea sistemului de măsură prin completarea instalației tehnologice cu elemente/echipamente corespunzătoare | E146: 102044 | F146: Clinceni | G146: Ilfov | H146: 574454.519 | I146: 318647.86 | J146: 574454.519 | K146: 318647.86 | L146: - | M146: - | N146: SM0249D3 | O146: Clinceni Aeroport | P146: - | Q146: - | R146: - | S146: - | T146: SM-SD001 | U146: Cez Vânzare, E.On Energie, Electric Planners, Electrica Furnizare, Enel Energie, Energy Distribution, Engie, Met România, Aderro GP, Cis Gaz, Conef Gaz, Electric&Gas, Enel Muntenia, Gas Provider, Gaz Est, Megaconstruct, Next Energy, Nova Power, Petrom, Premier Energy, Renovatio, Restart Energy, Tinmar, Wiee, Transenergo | V146: SC Premier Energy SRL | W146: iulie - septembrie 2020 | AB146: București | AP146: PMDI 2019_5 (Anexa 3) | BF146: Afectat sau NU? | BG146: - | BH146: - | BI146: Afectat sau NU? | BJ146: - | BK146: - | BL146: Afectat sau NU? | BM146: - | BN146: -
A147: 132 | B147: - | C147: X | D147: Înlocuit robinet R4 Inel București, zona Chiajna | E147: 179249 | F147: Chiajna | G147: Ilfov | H147: 576417.93 | I147: 328975.27 | J147: 577316.43 | K147: 323592.56 | L147: - | M147: - | N147: SM0170D0 | O147: SC Complex Carrefour Chiajna | P147: - | Q147: - | R147: - | S147: - | T147: SM-SD001 | U147: Cez Vânzare, E.on Energie, Electric Planners, Electrica Furnizare, Electrocentrale București, Enel Energie, Energy Distribution, Engie, Met România, Monsson, Premier Energy Trading, RWE, Aderro GP, Cis Gaz, Conef Gaz, Cyeb, Distrigaz Vest, Electric&Gas, Electrocentrale Constanța, Enel Muntenia, Gas Provider, Entrex, Euro Seven, Gaz Est, Hargaz, Megaconstruct, Next Energy, Nova Power, Oligopol, Petrom, Premier Energy, Renovatio, Restart Energy, Transenergo, Wiee, Romgaz, Tinmar, Veolia | V147: SC Distrigaz Sud Rețele | W147: mai - septembrie 2020 | AB147: București | AP147: Forțe proprii + Sucursala | AR147: =IF(B147="X",IF(AN147="","Afectat sau NU?",IF(AN147="DA",IF(((AK147+AL147)-(AE147+AF147))*24<-720,"Neinformat",((AK147+AL147)-(AE147+AF147))*24),"Nu a fost afectat producator/consumator")),"") ->  | AS147: =IF(B147="X",IF(AN147="DA",IF(AR147<6,LEN(TRIM(V147))-LEN(SUBSTITUTE(V147,CHAR(44),""))+1,0),"-"),"") ->  | AT147: =IF(B147="X",IF(AN147="DA",LEN(TRIM(V147))-LEN(SUBSTITUTE(V147,CHAR(44),""))+1,"-"),"") ->  | AU147: =IF(B147="X",IF(AN147="","Afectat sau NU?",IF(AN147="DA",IF(((AI147+AJ147)-(AE147+AF147))*24<-720,"Neinformat",((AI147+AJ147)-(AE147+AF147))*24),"Nu a fost afectat producator/consumator")),"") ->  | AV147: =IF(B147="X",IF(AN147="DA",IF(AU147<6,LEN(TRIM(U147))-LEN(SUBSTITUTE(U147,CHAR(44),""))+1,0),"-"),"") ->  | AW147: =IF(B147="X",IF(AN147="DA",LEN(TRIM(U147))-LEN(SUBSTITUTE(U147,CHAR(44),""))+1,"-"),"") ->  | AX147: =IF(B147="X",IF(AN147="","Afectat sau NU?",IF(AN147="DA",((AG147+AH147)-(AE147+AF147))*24,"Nu a fost afectat producator/consumator")),"") ->  | AY147: =IF(B147="X",IF(AN147="DA",IF(AX147>24,IF(BA147="NU",0,LEN(TRIM(V147))-LEN(SUBSTITUTE(V147,CHAR(44),""))+1),0),"-"),"") ->  | AZ147: =IF(B147="X",IF(AN147="DA",IF(AX147>24,LEN(TRIM(V147))-LEN(SUBSTITUTE(V147,CHAR(44),""))+1,0),"-"),"") ->  | BF147: Afectat sau NU? | BG147: - | BH147: - | BI147: Afectat sau NU? | BJ147: - | BK147: - | BL147: Afectat sau NU? | BM147: - | BN147: -
A148: 133 | B148: - | C148: X | D148: Înlocuit robinet R4 Inel București, zona Chiajna | E148: 179249 | F148: Chiajna | G148: Ilfov | H148: 576729.73 | I148: 326488.7 | J148: 576726.58 | K148: 326494.16 | L148: - | M148: - | N148: SM0154D0 | O148: SC Linde gaz București | P148: - | Q148: - | R148: - | S148: - | T148: SM-SD001 | U148: Cez Vânzare, E.on Energie, Electric Planners, Electrica Furnizare, Electrocentrale București, Enel Energie, Energy Distribution, Engie, Met România, Monsson, Premier Energy Trading, RWE, Aderro GP, Cis Gaz, Conef Gaz, Cyeb, Distrigaz Vest, Electric&Gas, Electrocentrale Constanța, Enel Muntenia, Gas Provider, Entrex, Euro Seven, Gaz Est, Hargaz, Megaconstruct, Next Energy, Nova Power, Oligopol, Petrom, Premier Energy, Renovatio, Restart Energy, Transenergo, Wiee, Romgaz, Tinmar, Veolia | V148: SC Distrigaz Sud Rețele | W148: mai - septembrie 2020 | AB148: București | AP148: Forțe proprii + Sucursala | BF148: Afectat sau NU? | BG148: - | BH148: - | BI148: Afectat sau NU? | BJ148: - | BK148: - | BL148: Afectat sau NU? | BM148: - | BN148: -
A149: 134 | B149: - | C149: X | D149: Lucrări mentenanță robinete și înlocuit flanță Electroizolantă racord 6" PM Fierbinți | E149: 68903 | F149: Dridu | G149: Ialomița | H149: 617333.46 | I149: 351097.3 | J149: 616539.22 | K149: 351926.88 | L149: - | M149: - | N149: - | O149: - | P149: - | Q149: - | R149: PM0030 | S149: Fierbinți | T149: PM-PP001 | U149: Amromco, Romgaz | V149: SNGN Romgaz SA, SC Amromco Energy SRL | W149: mai - septembrie 2020 | AB149: București | AP149: Forțe proprii | BF149: Afectat sau NU? | BG149: - | BH149: - | BI149: Afectat sau NU? | BJ149: - | BK149: - | BL149: Afectat sau NU? | BM149: - | BN149: -
A150: 135 | B150: - | C150: X | D150: Lucrări mentenanță robinete R39 Fir 20", zona Breaza | E150: 131103 | F150: Nistorești | G150: Prahova | H150: 551743.01 | I150: 412063.37 | J150: 554065.31 | K150: 408540.65 | L150: - | M150: - | N150: SM0087D0 | O150: SC Izvorul Rece Nistorești | P150: - | Q150: - | R150: - | S150: - | T150: SM-CF001 | U150: Engie | V150: SC Izvorul Rece PS SRL | W150: mai - septembrie 2020 | AB150: București | AP150: Forțe proprii | BF150: Afectat sau NU? | BG150: - | BH150: - | BI150: Afectat sau NU? | BJ150: - | BK150: - | BL150: Afectat sau NU? | BM150: - | BN150: -
A151: 136 | B151: - | C151: X | D151: Lucrări mentenanță robinete racord 6" SRM Posada | E151: 131336 | F151: Posada | G151: Prahova | H151: 544314.79 | I151: 424330.17 | J151: 548826.61 | K151: 419945.76 | L151: - | M151: - | N151: SM0081D0 | O151: Posada | P151: - | Q151: - | R151: - | S151: - | T151: SM-SD001 | U151: Cez Vânzare, E.on Energie, Electric Planners, Electrica Furnizare, Electrocentrale București, Enel Energie, Energy Distribution, Engie, Met România, Monsson, Premier Energy Trading, RWE, Aderro GP, Cis Gaz, Conef Gaz, Cyeb, Distrigaz Vest, Electric&Gas, Electrocentrale Constanța, Enel Muntenia, Gas Provider, Entrex, Euro Seven, Gaz Est, Hargaz, Megaconstruct, Next Energy, Nova Power, Oligopol, Petrom, Premier Energy, Renovatio, Restart Energy, Transenergo, Wiee, Romgaz, Tinmar, Veolia | V151: SC Distrigaz Sud Rețele | W151: mai - septembrie 2020 | AB151: București | AP151: Forțe proprii | BF151: Afectat sau NU? | BG151: - | BH151: - | BI151: Afectat sau NU? | BJ151: - | BK151: - | BL151: Afectat sau NU? | BM151: - | BN151: -
A152: 137 | B152: - | C152: X | D152: Lucrări mentenanță robinete contor US 28" Posada | E152: 131336 | F152: Posada | G152: Prahova | H152: 544314.79 | I152: 424330.17 | J152: 548826.61 | K152: 419945.76 | L152: - | M152: - | N152: SM0081D0 | O152: Posada | P152: - | Q152: - | R152: - | S152: - | T152: SM-SD001 | U152: Cez Vânzare, E.on Energie, Electric Planners, Electrica Furnizare, Electrocentrale București, Enel Energie, Energy Distribution, Engie, Met România, Monsson, Premier Energy Trading, RWE, Aderro GP, Cis Gaz, Conef Gaz, Cyeb, Distrigaz Vest, Electric&Gas, Electrocentrale Constanța, Enel Muntenia, Gas Provider, Entrex, Euro Seven, Gaz Est, Hargaz, Megaconstruct, Next Energy, Nova Power, Oligopol, Petrom, Premier Energy, Renovatio, Restart Energy, Transenergo, Wiee, Romgaz, Tinmar, Veolia | V152: SC Distrigaz Sud Rețele | W152: mai - septembrie 2020 | AB152: București | AP152: Forțe proprii + Sucursala | BF152: Afectat sau NU? | BG152: - | BH152: - | BI152: Afectat sau NU? | BJ152: - | BK152: - | BL152: Afectat sau NU? | BM152: - | BN152: -
A153: =A152+1 -> 138 | B153: - | C153: X | D153: Redimensionare racord SRM Ford Craiova | E153: 69900 | F153: Craiova | G153: Dolj | H153: 399121.4 | I153: 320728.24 | J153: 409613.93 | K153: 317372.3 | L153: - | M153: - | N153: SM0209D1 | O153: SC Ford Combinat | P153: - | Q153: - | R153: - | S153: - | T153: SM-CF001 | U153: Engie | V153: Ford România | W153: august - septembrie 2020 | AB153: Craiova | AP153: PMDI 2019_2.1.B.15 | AR153: =IF(B153="X",IF(AN153="","Afectat sau NU?",IF(AN153="DA",IF(((AK153+AL153)-(AE153+AF153))*24<-720,"Neinformat",((AK153+AL153)-(AE153+AF153))*24),"Nu a fost afectat producator/consumator")),"") ->  | AS153: =IF(B153="X",IF(AN153="DA",IF(AR153<6,LEN(TRIM(V153))-LEN(SUBSTITUTE(V153,CHAR(44),""))+1,0),"-"),"") ->  | AT153: =IF(B153="X",IF(AN153="DA",LEN(TRIM(V153))-LEN(SUBSTITUTE(V153,CHAR(44),""))+1,"-"),"") ->  | AU153: =IF(B153="X",IF(AN153="","Afectat sau NU?",IF(AN153="DA",IF(((AI153+AJ153)-(AE153+AF153))*24<-720,"Neinformat",((AI153+AJ153)-(AE153+AF153))*24),"Nu a fost afectat producator/consumator")),"") ->  | AV153: =IF(B153="X",IF(AN153="DA",IF(AU153<6,LEN(TRIM(U153))-LEN(SUBSTITUTE(U153,CHAR(44),""))+1,0),"-"),"") ->  | AW153: =IF(B153="X",IF(AN153="DA",LEN(TRIM(U153))-LEN(SUBSTITUTE(U153,CHAR(44),""))+1,"-"),"") ->  | AX153: =IF(B153="X",IF(AN153="","Afectat sau NU?",IF(AN153="DA",((AG153+AH153)-(AE153+AF153))*24,"Nu a fost afectat producator/consumator")),"") ->  | AY153: =IF(B153="X",IF(AN153="DA",IF(AX153>24,IF(#REF!="NU",0,LEN(TRIM(V153))-LEN(SUBSTITUTE(V153,CHAR(44),""))+1),0),"-"),"") ->  | AZ153: =IF(B153="X",IF(AN153="DA",IF(AX153>24,LEN(TRIM(V153))-LEN(SUBSTITUTE(V153,CHAR(44),""))+1,0),"-"),"") ->  | BF153: =IF(C153="X",IF(AN153="","Afectat sau NU?",IF(AN153="DA",IF(AK153="","Neinformat",NETWORKDAYS(AK153+AL153,AE153+AF153,$BR$2:$BR$14)-2),"Nu a fost afectat producator/consumator")),"") -> Afectat sau NU? | BG153: =IF(C153="X",IF(AN153="DA",IF(AND(BF153>=5,AK153<>""),LEN(TRIM(V153))-LEN(SUBSTITUTE(V153,CHAR(44),""))+1,0),"-"),"") -> - | BH153: =IF(C153="X",IF(AN153="DA",LEN(TRIM(V153))-LEN(SUBSTITUTE(V153,CHAR(44),""))+1,"-"),"") -> - | BI153: =IF(C153="X",IF(AN153="","Afectat sau NU?",IF(AN153="DA",IF(AI153="","Neinformat",NETWORKDAYS(AI153+AJ153,AE153+AF153,$BR$2:$BR$14)-2),"Nu a fost afectat producator/consumator")),"") -> Afectat sau NU? | BJ153: =IF(C153="X",IF(AN153="DA",IF(AND(BI153>=5,AI153<>""),LEN(TRIM(U153))-LEN(SUBSTITUTE(U153,CHAR(44),""))+1,0),"-"),"") -> - | BK153: =IF(C153="X",IF(AN153="DA",LEN(TRIM(U153))-LEN(SUBSTITUTE(U153,CHAR(44),""))+1,"-"),"") -> - | BL153: =IF(C153="X",IF(AN153="","Afectat sau NU?",IF(AN153="DA",((AG153+AH153)-(Z153+AA153))*24,"Nu a fost afectat producator/consumator")),"") -> Afectat sau NU? | BM153: =IF(C153="X",IF(AN153<>"DA","-",IF(AND(AN153="DA",BL153<=0),LEN(TRIM(V153))-LEN(SUBSTITUTE(V153,CHAR(44),""))+1+LEN(TRIM(U153))-LEN(SUBSTITUTE(U153,CHAR(44),""))+1,0)),"") -> - | BN153: =IF(C153="X",IF(AN153="DA",LEN(TRIM(V153))-LEN(SUBSTITUTE(V153,CHAR(44),""))+1+LEN(TRIM(U153))-LEN(SUBSTITUTE(U153,CHAR(44),""))+1,"-"),"") -> -
A154: =A153+1 -> 139 | B154: - | C154: X | D154: Redimensionare racord SRM Ford Craiova | E154: 69900 | F154: Craiova | G154: Dolj | H154: 399121.4 | I154: 320728.24 | J154: 409613.93 | K154: 317372.3 | L154: - | M154: - | N154: SM0209D2 | O154: Ford Craiova Casnici | P154: - | Q154: - | R154: - | S154: - | T154: SM-SD001 | U154: Cez Vânzare, E.on Energie, Electric Planners, Electrica Furnizare, Electrocentrale București, Enel Energie, Energy Distribution, Engie, Met România, Monsson, Premier Energy Trading, RWE, Aderro GP, Cis Gaz, Conef Gaz, Cyeb, Distrigaz Vest, Electric&Gas, Electrocentrale Constanța, Enel Muntenia, Gas Provider, Entrex, Euro Seven, Gaz Est, Hargaz, Megaconstruct, Next Energy, Nova Power, Oligopol, Petrom, Premier Energy, Renovatio, Restart Energy, Tinmar, Wiee, Romgaz, Transenergo, Veolia | V154: Distrigaz Sud Rețele | W154: august - septembrie 2020 | AB154: Craiova | AP154: PMDI 2019_2.1.B.15 | AY154: =IF(B154="X",IF(AN154="DA",IF(AX154>24,IF(#REF!="NU",0,LEN(TRIM(V154))-LEN(SUBSTITUTE(V154,CHAR(44),""))+1),0),"-"),"") ->  | BF154: Afectat sau NU? | BG154: - | BH154: - | BI154: Afectat sau NU? | BJ154: - | BK154: - | BL154: Afectat sau NU? | BM154: - | BN154: -
A155: 140 | B155: - | C155: X | D155: Redimensionare racord SRM Ford Craiova | E155: 69900 | F155: Craiova | G155: Dolj | H155: 399121.4 | I155: 320728.24 | J155: 409613.93 | K155: 317372.3 | L155: - | M155: - | N155: SM0208D0 | O155: Craiova Sud | P155: - | Q155: - | R155: - | S155: - | T155: SM-SD001 | U155: Cez Vânzare, E.on Energie, Electric Planners, Electrica Furnizare, Electrocentrale București, Enel Energie, Energy Distribution, Engie, Met România, Monsson, Premier Energy Trading, RWE, Aderro GP, Cis Gaz, Conef Gaz, Cyeb, Distrigaz Vest, Electric&Gas, Electrocentrale Constanța, Enel Muntenia, Gas Provider, Entrex, Euro Seven, Gaz Est, Hargaz, Megaconstruct, Next Energy, Nova Power, Oligopol, Petrom, Premier Energy, Renovatio, Restart Energy, Tinmar, Wiee, Romgaz, Transenergo, Veolia | V155: Distrigaz Sud Rețele | W155: august - septembrie 2020 | AB155: Craiova | AP155: PMDI 2019_2.1.B.15 | AY155: =IF(B155="X",IF(AN155="DA",IF(AX155>24,IF(#REF!="NU",0,LEN(TRIM(V155))-LEN(SUBSTITUTE(V155,CHAR(44),""))+1),0),"-"),"") ->  | BF155: Afectat sau NU? | BG155: - | BH155: - | BI155: Afectat sau NU? | BJ155: - | BK155: - | BL155: Afectat sau NU? | BM155: - | BN155: -
A156: 141 | B156: - | C156: X | D156: Redimensionare racord SRM Ford Craiova | E156: 70110 | F156: Podari | G156: Dolj | H156: 399121.4 | I156: 320728.24 | J156: 409613.93 | K156: 317372.3 | L156: - | M156: - | N156: SM1053D0 | O156: Podari | P156: - | Q156: - | R156: - | S156: - | T156: SM-SD001 | U156: Cez Vânzare, E.on Energie, Electric Planners, Electrica Furnizare, Electrocentrale București, Enel Energie, Energy Distribution, Engie, Met România, Monsson, Premier Energy Trading, RWE, Aderro GP, Cis Gaz, Conef Gaz, Cyeb, Distrigaz Vest, Electric&Gas, Electrocentrale Constanța, Enel Muntenia, Gas Provider, Entrex, Euro Seven, Gaz Est, Hargaz, Megaconstruct, Next Energy, Nova Power, Oligopol, Petrom, Premier Energy, Renovatio, Restart Energy, Tinmar, Wiee, Romgaz, Transenergo, Veolia | V156: Distrigaz Sud Rețele | W156: august - septembrie 2020 | AB156: Craiova | AP156: PMDI 2019_2.1.B.15 | AY156: =IF(B156="X",IF(AN156="DA",IF(AX156>24,IF(#REF!="NU",0,LEN(TRIM(V156))-LEN(SUBSTITUTE(V156,CHAR(44),""))+1),0),"-"),"") ->  | BF156: Afectat sau NU? | BG156: - | BH156: - | BI156: Afectat sau NU? | BJ156: - | BK156: - | BL156: Afectat sau NU? | BM156: - | BN156: -
A157: 142 | B157: - | C157: X | D157: 20” Schitu Golești - Tigveni - refacere traversare râu Argeș, zona Valea Danului, et.I și et.II | E157: 13819 | F157: Albeștii de Argeș | G157: Argeș | H157: 474251.5922 | I157: 409341.5399 | J157: 461815.1715 | K157: 401058.3432 | L157: - | M157: - | N157: SM1244D0 | O157: Albești de Argeș | P157: - | Q157: - | R157: - | S157: - | T157: SM-SD001 | U157: Cez Vânzare, E.on Energie, Electric Planners, Electrica Furnizare, Electrocentrale București, Enel Energie, Energy Distribution, Engie, Met România, Monsson, Premier Energy Trading, RWE, Aderro GP, Cis Gaz, Conef Gaz, Cyeb, Distrigaz Vest, Electric&Gas, Electrocentrale Constanța, Enel Muntenia, Gas Provider, Entrex, Euro Seven, Gaz Est, Hargaz, Megaconstruct, Next Energy, Nova Power, Oligopol | V157: Distrigaz Sud Rețele | W157: octombrie - decembrie 2019 aprilie - iunie 2020 | AB157: Craiova | AD157: Necesitate modificare proiect | AP157: PMDI 2019_2.1.A.11 | AY157: =IF(B157="X",IF(AN157="DA",IF(AX157>24,IF(#REF!="NU",0,LEN(TRIM(V157))-LEN(SUBSTITUTE(V157,CHAR(44),""))+1),0),"-"),"") ->  | BF157: Afectat sau NU? | BG157: - | BH157: - | BI157: Afectat sau NU? | BJ157: - | BK157: - | BL157: Afectat sau NU? | BM157: - | BN157: -
A158: 143 | B158: - | C158: X | D158: 20” Schitu Golești - Tigveni - refacere traversare râu Argeș, zona Valea Danului, et.I și et.II | E158: 19249 | F158: Blaju | G158: Argeș | H158: 474251.5922 | I158: 409341.5399 | J158: 461815.1715 | K158: 401058.3432 | L158: - | M158: - | N158: - | O158: - | P158: - | Q158: - | R158: PM0288 | S158: Ciofrângeni | T158: PM-PP001 | U158: Amromco | V158: Amromco | W158: octombrie - decembrie 2019 aprilie - iunie 2020 | AB158: Craiova | AD158: Necesitate modificare proiect | AP158: PMDI 2019_2.1.A.11 | AY158: =IF(B158="X",IF(AN158="DA",IF(AX158>24,IF(#REF!="NU",0,LEN(TRIM(V158))-LEN(SUBSTITUTE(V158,CHAR(44),""))+1),0),"-"),"") ->  | BF158: Afectat sau NU? | BG158: - | BH158: - | BI158: Afectat sau NU? | BJ158: - | BK158: - | BL158: Afectat sau NU? | BM158: - | BN158: -
A159: 144 | B159: - | C159: X | D159: Reparație 6" racord alimentare ELSID Titu, zona SRM Elsid | E159: 66081 | F159: Titu | G159: Dâmbovița | H159: 540271.56 | I159: 360541.04 | J159: 540271.56 | K159: 360541.04 | L159: - | M159: - | N159: SM0147D0 | O159: SC Elsid Titu | P159: - | Q159: - | R159: - | S159: - | T159: SM-CF001 | U159: E.on Energie | V159: Elsid Titu | W159: aprilie - septembrie 2020 | AB159: București | AP159: PRRASM 2019_A1_2 | AR159: =IF(B159="X",IF(AN159="","Afectat sau NU?",IF(AN159="DA",IF(((AK159+AL159)-(AE159+AF159))*24<-720,"Neinformat",((AK159+AL159)-(AE159+AF159))*24),"Nu a fost afectat producator/consumator")),"") ->  | AS159: =IF(B159="X",IF(AN159="DA",IF(AR159<6,LEN(TRIM(V159))-LEN(SUBSTITUTE(V159,CHAR(44),""))+1,0),"-"),"") ->  | AT159: =IF(B159="X",IF(AN159="DA",LEN(TRIM(V159))-LEN(SUBSTITUTE(V159,CHAR(44),""))+1,"-"),"") ->  | AU159: =IF(B159="X",IF(AN159="","Afectat sau NU?",IF(AN159="DA",IF(((AI159+AJ159)-(AE159+AF159))*24<-720,"Neinformat",((AI159+AJ159)-(AE159+AF159))*24),"Nu a fost afectat producator/consumator")),"") ->  | AV159: =IF(B159="X",IF(AN159="DA",IF(AU159<6,LEN(TRIM(U159))-LEN(SUBSTITUTE(U159,CHAR(44),""))+1,0),"-"),"") ->  | AW159: =IF(B159="X",IF(AN159="DA",LEN(TRIM(U159))-LEN(SUBSTITUTE(U159,CHAR(44),""))+1,"-"),"") ->  | AX159: =IF(B159="X",IF(AN159="","Afectat sau NU?",IF(AN159="DA",((AG159+AH159)-(AE159+AF159))*24,"Nu a fost afectat producator/consumator")),"") ->  | AY159: =IF(B159="X",IF(AN159="DA",IF(AX159>24,IF(#REF!="NU",0,LEN(TRIM(V159))-LEN(SUBSTITUTE(V159,CHAR(44),""))+1),0),"-"),"") ->  | AZ159: =IF(B159="X",IF(AN159="DA",IF(AX159>24,LEN(TRIM(V159))-LEN(SUBSTITUTE(V159,CHAR(44),""))+1,0),"-"),"") ->  | BF159: =IF(C159="X",IF(AN159="","Afectat sau NU?",IF(AN159="DA",IF(AK159="","Neinformat",NETWORKDAYS(AK159+AL159,AE159+AF159,$BR$2:$BR$14)-2),"Nu a fost afectat producator/consumator")),"") -> Afectat sau NU? | BG159: =IF(C159="X",IF(AN159="DA",IF(AND(BF159>=5,AK159<>""),LEN(TRIM(V159))-LEN(SUBSTITUTE(V159,CHAR(44),""))+1,0),"-"),"") -> - | BH159: =IF(C159="X",IF(AN159="DA",LEN(TRIM(V159))-LEN(SUBSTITUTE(V159,CHAR(44),""))+1,"-"),"") -> - | BI159: =IF(C159="X",IF(AN159="","Afectat sau NU?",IF(AN159="DA",IF(AI159="","Neinformat",NETWORKDAYS(AI159+AJ159,AE159+AF159,$BR$2:$BR$14)-2),"Nu a fost afectat producator/consumator")),"") -> Afectat sau NU? | BJ159: =IF(C159="X",IF(AN159="DA",IF(AND(BI159>=5,AI159<>""),LEN(TRIM(U159))-LEN(SUBSTITUTE(U159,CHAR(44),""))+1,0),"-"),"") -> - | BK159: =IF(C159="X",IF(AN159="DA",LEN(TRIM(U159))-LEN(SUBSTITUTE(U159,CHAR(44),""))+1,"-"),"") -> - | BL159: =IF(C159="X",IF(AN159="","Afectat sau NU?",IF(AN159="DA",((AG159+AH159)-(Z159+AA159))*24,"Nu a fost afectat producator/consumator")),"") -> Afectat sau NU? | BM159: =IF(C159="X",IF(AN159<>"DA","-",IF(AND(AN159="DA",BL159<=0),LEN(TRIM(V159))-LEN(SUBSTITUTE(V159,CHAR(44),""))+1+LEN(TRIM(U159))-LEN(SUBSTITUTE(U159,CHAR(44),""))+1,0)),"") -> - | BN159: =IF(C159="X",IF(AN159="DA",LEN(TRIM(V159))-LEN(SUBSTITUTE(V159,CHAR(44),""))+1+LEN(TRIM(U159))-LEN(SUBSTITUTE(U159,CHAR(44),""))+1,"-"),"") -> -
A160: 145 | B160: - | C160: X | D160: Punere în siguranță a conductei 12" Vlădeni - Mănești, zona Vlădeni | E160: 67256 | F160: Vlădeni | G160: Dâmbovița | H160: 561830.12 | I160: 373144.01 | J160: 567501.55 | K160: 372878.02 | L160: - | M160: - | N160: SM0137D0 | O160: Vlădeni | P160: - | Q160: - | R160: - | S160: - | T160: SM-SD001 | U160: Cez Vânzare, E.on Energie, Electric Planners, Electrica Furnizare, Electrocentrale București, Enel Energie, Energy Distribution, Engie, Met România, Monsson, Premier Energy Trading, RWE, Aderro GP, Cis Gaz, Conef Gaz, Cyeb, Distrigaz Vest, Electric&Gas, Electrocentrale Constanța, Enel Muntenia, Gas Provider, Entrex, Euro Seven, Gaz Est, Hargaz, Megaconstruct, Next Energy, Nova Power, Oligopol | V160: Distrigaz Sud Rețele | W160: aprilie - septembrie 2020 | AB160: București | AR160: =IF(B160="X",IF(AN160="","Afectat sau NU?",IF(AN160="DA",IF(((AK160+AL160)-(AE160+AF160))*24<-720,"Neinformat",((AK160+AL160)-(AE160+AF160))*24),"Nu a fost afectat producator/consumator")),"") ->  | AS160: =IF(B160="X",IF(AN160="DA",IF(AR160<6,LEN(TRIM(V160))-LEN(SUBSTITUTE(V160,CHAR(44),""))+1,0),"-"),"") ->  | AT160: =IF(B160="X",IF(AN160="DA",LEN(TRIM(V160))-LEN(SUBSTITUTE(V160,CHAR(44),""))+1,"-"),"") ->  | AU160: =IF(B160="X",IF(AN160="","Afectat sau NU?",IF(AN160="DA",IF(((AI160+AJ160)-(AE160+AF160))*24<-720,"Neinformat",((AI160+AJ160)-(AE160+AF160))*24),"Nu a fost afectat producator/consumator")),"") ->  | AV160: =IF(B160="X",IF(AN160="DA",IF(AU160<6,LEN(TRIM(U160))-LEN(SUBSTITUTE(U160,CHAR(44),""))+1,0),"-"),"") ->  | AW160: =IF(B160="X",IF(AN160="DA",LEN(TRIM(U160))-LEN(SUBSTITUTE(U160,CHAR(44),""))+1,"-"),"") ->  | AX160: =IF(B160="X",IF(AN160="","Afectat sau NU?",IF(AN160="DA",((AG160+AH160)-(AE160+AF160))*24,"Nu a fost afectat producator/consumator")),"") ->  | AY160: =IF(B160="X",IF(AN160="DA",IF(AX160>24,IF(#REF!="NU",0,LEN(TRIM(V160))-LEN(SUBSTITUTE(V160,CHAR(44),""))+1),0),"-"),"") ->  | AZ160: =IF(B160="X",IF(AN160="DA",IF(AX160>24,LEN(TRIM(V160))-LEN(SUBSTITUTE(V160,CHAR(44),""))+1,0),"-"),"") ->  | BF160: =IF(C160="X",IF(AN160="","Afectat sau NU?",IF(AN160="DA",IF(AK160="","Neinformat",NETWORKDAYS(AK160+AL160,AE160+AF160,$BR$2:$BR$14)-2),"Nu a fost afectat producator/consumator")),"") -> Afectat sau NU? | BG160: =IF(C160="X",IF(AN160="DA",IF(AND(BF160>=5,AK160<>""),LEN(TRIM(V160))-LEN(SUBSTITUTE(V160,CHAR(44),""))+1,0),"-"),"") -> - | BH160: =IF(C160="X",IF(AN160="DA",LEN(TRIM(V160))-LEN(SUBSTITUTE(V160,CHAR(44),""))+1,"-"),"") -> - | BI160: =IF(C160="X",IF(AN160="","Afectat sau NU?",IF(AN160="DA",IF(AI160="","Neinformat",NETWORKDAYS(AI160+AJ160,AE160+AF160,$BR$2:$BR$14)-2),"Nu a fost afectat producator/consumator")),"") -> Afectat sau NU? | BJ160: =IF(C160="X",IF(AN160="DA",IF(AND(BI160>=5,AI160<>""),LEN(TRIM(U160))-LEN(SUBSTITUTE(U160,CHAR(44),""))+1,0),"-"),"") -> - | BK160: =IF(C160="X",IF(AN160="DA",LEN(TRIM(U160))-LEN(SUBSTITUTE(U160,CHAR(44),""))+1,"-"),"") -> - | BL160: =IF(C160="X",IF(AN160="","Afectat sau NU?",IF(AN160="DA",((AG160+AH160)-(Z160+AA160))*24,"Nu a fost afectat producator/consumator")),"") -> Afectat sau NU? | BM160: =IF(C160="X",IF(AN160<>"DA","-",IF(AND(AN160="DA",BL160<=0),LEN(TRIM(V160))-LEN(SUBSTITUTE(V160,CHAR(44),""))+1+LEN(TRIM(U160))-LEN(SUBSTITUTE(U160,CHAR(44),""))+1,0)),"") -> - | BN160: =IF(C160="X",IF(AN160="DA",LEN(TRIM(V160))-LEN(SUBSTITUTE(V160,CHAR(44),""))+1+LEN(TRIM(U160))-LEN(SUBSTITUTE(U160,CHAR(44),""))+1,"-"),"") -> -
A161: 146 | B161: - | C161: X | D161: Punere în siguranță a conductei 12" Vlădeni - Mănești, zona Vlădeni | E161: 134194 | F161: Coada Izvorului | G161: Prahova | H161: 561830.12 | I161: 373144.01 | J161: 567501.55 | K161: 372878.02 | L161: - | M161: - | N161: SM0033D0 | O161: Coada Izvorului | P161: - | Q161: - | R161: - | S161: - | T161: SM-SD001 | U161: Cez Vânzare, E.on Energie, Electric Planners, Electrica Furnizare, Electrocentrale București, Enel Energie, Energy Distribution, Engie, Met România, Monsson, Premier Energy Trading, RWE, Aderro GP, Cis Gaz, Conef Gaz, Cyeb, Distrigaz Vest, Electric&Gas, Electrocentrale Constanța, Enel Muntenia, Gas Provider, Entrex, Euro Seven, Gaz Est, Hargaz, Megaconstruct, Next Energy, Nova Power, Oligopol | V161: Distrigaz Sud Rețele | W161: aprilie - septembrie 2020 | AB161: București | AR161: =IF(B161="X",IF(AN161="","Afectat sau NU?",IF(AN161="DA",IF(((AK161+AL161)-(AE161+AF161))*24<-720,"Neinformat",((AK161+AL161)-(AE161+AF161))*24),"Nu a fost afectat producator/consumator")),"") ->  | AS161: =IF(B161="X",IF(AN161="DA",IF(AR161<6,LEN(TRIM(V161))-LEN(SUBSTITUTE(V161,CHAR(44),""))+1,0),"-"),"") ->  | AT161: =IF(B161="X",IF(AN161="DA",LEN(TRIM(V161))-LEN(SUBSTITUTE(V161,CHAR(44),""))+1,"-"),"") ->  | AU161: =IF(B161="X",IF(AN161="","Afectat sau NU?",IF(AN161="DA",IF(((AI161+AJ161)-(AE161+AF161))*24<-720,"Neinformat",((AI161+AJ161)-(AE161+AF161))*24),"Nu a fost afectat producator/consumator")),"") ->  | AV161: =IF(B161="X",IF(AN161="DA",IF(AU161<6,LEN(TRIM(U161))-LEN(SUBSTITUTE(U161,CHAR(44),""))+1,0),"-"),"") ->  | AW161: =IF(B161="X",IF(AN161="DA",LEN(TRIM(U161))-LEN(SUBSTITUTE(U161,CHAR(44),""))+1,"-"),"") ->  | AX161: =IF(B161="X",IF(AN161="","Afectat sau NU?",IF(AN161="DA",((AG161+AH161)-(AE161+AF161))*24,"Nu a fost afectat producator/consumator")),"") ->  | AY161: =IF(B161="X",IF(AN161="DA",IF(AX161>24,IF(#REF!="NU",0,LEN(TRIM(V161))-LEN(SUBSTITUTE(V161,CHAR(44),""))+1),0),"-"),"") ->  | AZ161: =IF(B161="X",IF(AN161="DA",IF(AX161>24,LEN(TRIM(V161))-LEN(SUBSTITUTE(V161,CHAR(44),""))+1,0),"-"),"") ->  | BF161: =IF(C161="X",IF(AN161="","Afectat sau NU?",IF(AN161="DA",IF(AK161="","Neinformat",NETWORKDAYS(AK161+AL161,AE161+AF161,$BR$2:$BR$14)-2),"Nu a fost afectat producator/consumator")),"") -> Afectat sau NU? | BG161: =IF(C161="X",IF(AN161="DA",IF(AND(BF161>=5,AK161<>""),LEN(TRIM(V161))-LEN(SUBSTITUTE(V161,CHAR(44),""))+1,0),"-"),"") -> - | BH161: =IF(C161="X",IF(AN161="DA",LEN(TRIM(V161))-LEN(SUBSTITUTE(V161,CHAR(44),""))+1,"-"),"") -> - | BI161: =IF(C161="X",IF(AN161="","Afectat sau NU?",IF(AN161="DA",IF(AI161="","Neinformat",NETWORKDAYS(AI161+AJ161,AE161+AF161,$BR$2:$BR$14)-2),"Nu a fost afectat producator/consumator")),"") -> Afectat sau NU? | BJ161: =IF(C161="X",IF(AN161="DA",IF(AND(BI161>=5,AI161<>""),LEN(TRIM(U161))-LEN(SUBSTITUTE(U161,CHAR(44),""))+1,0),"-"),"") -> - | BK161: =IF(C161="X",IF(AN161="DA",LEN(TRIM(U161))-LEN(SUBSTITUTE(U161,CHAR(44),""))+1,"-"),"") -> - | BL161: =IF(C161="X",IF(AN161="","Afectat sau NU?",IF(AN161="DA",((AG161+AH161)-(Z161+AA161))*24,"Nu a fost afectat producator/consumator")),"") -> Afectat sau NU? | BM161: =IF(C161="X",IF(AN161<>"DA","-",IF(AND(AN161="DA",BL161<=0),LEN(TRIM(V161))-LEN(SUBSTITUTE(V161,CHAR(44),""))+1+LEN(TRIM(U161))-LEN(SUBSTITUTE(U161,CHAR(44),""))+1,0)),"") -> - | BN161: =IF(C161="X",IF(AN161="DA",LEN(TRIM(V161))-LEN(SUBSTITUTE(V161,CHAR(44),""))+1+LEN(TRIM(U161))-LEN(SUBSTITUTE(U161,CHAR(44),""))+1,"-"),"") -> -
A162: 147 | B162: - | C162: X | D162: Punere în siguranță a conductei 12" Vlădeni - Mănești, zona Vlădeni | E162: 67256 | F162: Vlădeni | G162: Dâmbovița | H162: 561830.12 | I162: 373144.01 | J162: 567501.55 | K162: 372878.02 | L162: - | M162: - | N162: - | O162: - | P162: - | Q162: - | R162: PM0014 | S162: Vlădeni | T162: PM-PP001 | U162: Romgaz, Amromco | V162: Romgaz, Amromco | W162: aprilie - septembrie 2020 | AB162: București | AR162: =IF(B162="X",IF(AN162="","Afectat sau NU?",IF(AN162="DA",IF(((AK162+AL162)-(AE162+AF162))*24<-720,"Neinformat",((AK162+AL162)-(AE162+AF162))*24),"Nu a fost afectat producator/consumator")),"") ->  | AS162: =IF(B162="X",IF(AN162="DA",IF(AR162<6,LEN(TRIM(V162))-LEN(SUBSTITUTE(V162,CHAR(44),""))+1,0),"-"),"") ->  | AT162: =IF(B162="X",IF(AN162="DA",LEN(TRIM(V162))-LEN(SUBSTITUTE(V162,CHAR(44),""))+1,"-"),"") ->  | AU162: =IF(B162="X",IF(AN162="","Afectat sau NU?",IF(AN162="DA",IF(((AI162+AJ162)-(AE162+AF162))*24<-720,"Neinformat",((AI162+AJ162)-(AE162+AF162))*24),"Nu a fost afectat producator/consumator")),"") ->  | AV162: =IF(B162="X",IF(AN162="DA",IF(AU162<6,LEN(TRIM(U162))-LEN(SUBSTITUTE(U162,CHAR(44),""))+1,0),"-"),"") ->  | AW162: =IF(B162="X",IF(AN162="DA",LEN(TRIM(U162))-LEN(SUBSTITUTE(U162,CHAR(44),""))+1,"-"),"") ->  | AX162: =IF(B162="X",IF(AN162="","Afectat sau NU?",IF(AN162="DA",((AG162+AH162)-(AE162+AF162))*24,"Nu a fost afectat producator/consumator")),"") ->  | AY162: =IF(B162="X",IF(AN162="DA",IF(AX162>24,IF(#REF!="NU",0,LEN(TRIM(V162))-LEN(SUBSTITUTE(V162,CHAR(44),""))+1),0),"-"),"") ->  | AZ162: =IF(B162="X",IF(AN162="DA",IF(AX162>24,LEN(TRIM(V162))-LEN(SUBSTITUTE(V162,CHAR(44),""))+1,0),"-"),"") ->  | BF162: =IF(C162="X",IF(AN162="","Afectat sau NU?",IF(AN162="DA",IF(AK162="","Neinformat",NETWORKDAYS(AK162+AL162,AE162+AF162,$BR$2:$BR$14)-2),"Nu a fost afectat producator/consumator")),"") -> Afectat sau NU? | BG162: =IF(C162="X",IF(AN162="DA",IF(AND(BF162>=5,AK162<>""),LEN(TRIM(V162))-LEN(SUBSTITUTE(V162,CHAR(44),""))+1,0),"-"),"") -> - | BH162: =IF(C162="X",IF(AN162="DA",LEN(TRIM(V162))-LEN(SUBSTITUTE(V162,CHAR(44),""))+1,"-"),"") -> - | BI162: =IF(C162="X",IF(AN162="","Afectat sau NU?",IF(AN162="DA",IF(AI162="","Neinformat",NETWORKDAYS(AI162+AJ162,AE162+AF162,$BR$2:$BR$14)-2),"Nu a fost afectat producator/consumator")),"") -> Afectat sau NU? | BJ162: =IF(C162="X",IF(AN162="DA",IF(AND(BI162>=5,AI162<>""),LEN(TRIM(U162))-LEN(SUBSTITUTE(U162,CHAR(44),""))+1,0),"-"),"") -> - | BK162: =IF(C162="X",IF(AN162="DA",LEN(TRIM(U162))-LEN(SUBSTITUTE(U162,CHAR(44),""))+1,"-"),"") -> - | BL162: =IF(C162="X",IF(AN162="","Afectat sau NU?",IF(AN162="DA",((AG162+AH162)-(Z162+AA162))*24,"Nu a fost afectat producator/consumator")),"") -> Afectat sau NU? | BM162: =IF(C162="X",IF(AN162<>"DA","-",IF(AND(AN162="DA",BL162<=0),LEN(TRIM(V162))-LEN(SUBSTITUTE(V162,CHAR(44),""))+1+LEN(TRIM(U162))-LEN(SUBSTITUTE(U162,CHAR(44),""))+1,0)),"") -> - | BN162: =IF(C162="X",IF(AN162="DA",LEN(TRIM(V162))-LEN(SUBSTITUTE(V162,CHAR(44),""))+1+LEN(TRIM(U162))-LEN(SUBSTITUTE(U162,CHAR(44),""))+1,"-"),"") -> -
A163: 148 | B163: - | C163: X | D163: Înlocuire tronson conductă 32" pe conducta de transport 28" Platou Izvor Sinaia - Filipești (fir II), zona Drăgăneasa, lucrări de mentenanță robinete în NT Filipești, punere în siguranță a conductei 6” racord alimentare SRM Măgureni, zona Măgureni | E163: 134050 | F163: Măgureni | G163: Prahova | H163: 554239.9 | I163: 400506.9 | J163: 561557.84 | K163: 386871.14 | L163: - | M163: - | N163: SM0506D0 | O163: Măgureni | P163: - | Q163: - | R163: - | S163: - | T163: SM-SD001 | U163: Enel Muntenia, Engie, Enel, MM Data | V163: MMDATA | W163: aprilie - septembrie 2020 | AB163: București | AR163: =IF(B163="X",IF(AN163="","Afectat sau NU?",IF(AN163="DA",IF(((AK163+AL163)-(AE163+AF163))*24<-720,"Neinformat",((AK163+AL163)-(AE163+AF163))*24),"Nu a fost afectat producator/consumator")),"") ->  | AS163: =IF(B163="X",IF(AN163="DA",IF(AR163<6,LEN(TRIM(V163))-LEN(SUBSTITUTE(V163,CHAR(44),""))+1,0),"-"),"") ->  | AT163: =IF(B163="X",IF(AN163="DA",LEN(TRIM(V163))-LEN(SUBSTITUTE(V163,CHAR(44),""))+1,"-"),"") ->  | AU163: =IF(B163="X",IF(AN163="","Afectat sau NU?",IF(AN163="DA",IF(((AI163+AJ163)-(AE163+AF163))*24<-720,"Neinformat",((AI163+AJ163)-(AE163+AF163))*24),"Nu a fost afectat producator/consumator")),"") ->  | AV163: =IF(B163="X",IF(AN163="DA",IF(AU163<6,LEN(TRIM(U163))-LEN(SUBSTITUTE(U163,CHAR(44),""))+1,0),"-"),"") ->  | AW163: =IF(B163="X",IF(AN163="DA",LEN(TRIM(U163))-LEN(SUBSTITUTE(U163,CHAR(44),""))+1,"-"),"") ->  | AX163: =IF(B163="X",IF(AN163="","Afectat sau NU?",IF(AN163="DA",((AG163+AH163)-(AE163+AF163))*24,"Nu a fost afectat producator/consumator")),"") ->  | AY163: =IF(B163="X",IF(AN163="DA",IF(AX163>24,IF(#REF!="NU",0,LEN(TRIM(V163))-LEN(SUBSTITUTE(V163,CHAR(44),""))+1),0),"-"),"") ->  | AZ163: =IF(B163="X",IF(AN163="DA",IF(AX163>24,LEN(TRIM(V163))-LEN(SUBSTITUTE(V163,CHAR(44),""))+1,0),"-"),"") ->  | BF163: =IF(C163="X",IF(AN163="","Afectat sau NU?",IF(AN163="DA",IF(AK163="","Neinformat",NETWORKDAYS(AK163+AL163,AE163+AF163,$BR$2:$BR$14)-2),"Nu a fost afectat producator/consumator")),"") -> Afectat sau NU? | BG163: =IF(C163="X",IF(AN163="DA",IF(AND(BF163>=5,AK163<>""),LEN(TRIM(V163))-LEN(SUBSTITUTE(V163,CHAR(44),""))+1,0),"-"),"") -> - | BH163: =IF(C163="X",IF(AN163="DA",LEN(TRIM(V163))-LEN(SUBSTITUTE(V163,CHAR(44),""))+1,"-"),"") -> - | BI163: =IF(C163="X",IF(AN163="","Afectat sau NU?",IF(AN163="DA",IF(AI163="","Neinformat",NETWORKDAYS(AI163+AJ163,AE163+AF163,$BR$2:$BR$14)-2),"Nu a fost afectat producator/consumator")),"") -> Afectat sau NU? | BJ163: =IF(C163="X",IF(AN163="DA",IF(AND(BI163>=5,AI163<>""),LEN(TRIM(U163))-LEN(SUBSTITUTE(U163,CHAR(44),""))+1,0),"-"),"") -> - | BK163: =IF(C163="X",IF(AN163="DA",LEN(TRIM(U163))-LEN(SUBSTITUTE(U163,CHAR(44),""))+1,"-"),"") -> - | BL163: =IF(C163="X",IF(AN163="","Afectat sau NU?",IF(AN163="DA",((AG163+AH163)-(Z163+AA163))*24,"Nu a fost afectat producator/consumator")),"") -> Afectat sau NU? | BM163: =IF(C163="X",IF(AN163<>"DA","-",IF(AND(AN163="DA",BL163<=0),LEN(TRIM(V163))-LEN(SUBSTITUTE(V163,CHAR(44),""))+1+LEN(TRIM(U163))-LEN(SUBSTITUTE(U163,CHAR(44),""))+1,0)),"") -> - | BN163: =IF(C163="X",IF(AN163="DA",LEN(TRIM(V163))-LEN(SUBSTITUTE(V163,CHAR(44),""))+1+LEN(TRIM(U163))-LEN(SUBSTITUTE(U163,CHAR(44),""))+1,"-"),"") -> -
A164: 149 | B164: - | C164: X | D164: Modernizare alimentare cu gaze naturale a municipiului Ploiești | E164: 130892 | F164: Strejnic | G164: Prahova | H164: 582017.66 | I164: 384857.52 | J164: 580681.36 | K164: 385825.57 | L164: - | M164: - | N164: SM0124D0 | O164: Strejnic | P164: - | Q164: - | R164: - | S164: - | T164: SM-SD001 | U164: Cez Vânzare, E.on Energie, Electric Planners, Electrica Furnizare, Electrocentrale București, Enel Energie, Energy Distribution, Engie, Met România, Monsson, Premier Energy Trading, RWE, Aderro GP, Cis Gaz, Conef Gaz, Cyeb, Distrigaz Vest, Electric&Gas, Electrocentrale Constanța, Enel Muntenia, Gas Provider, Entrex, Euro Seven, Gaz Est, Hargaz, Megaconstruct, Next Energy, Nova Power, Oligopol | V164: Distrigaz Sud Rețele | W164: aprilie - septembrie 2020 | AB164: București | AR164: =IF(B164="X",IF(AN164="","Afectat sau NU?",IF(AN164="DA",IF(((AK164+AL164)-(AE164+AF164))*24<-720,"Neinformat",((AK164+AL164)-(AE164+AF164))*24),"Nu a fost afectat producator/consumator")),"") ->  | AS164: =IF(B164="X",IF(AN164="DA",IF(AR164<6,LEN(TRIM(V164))-LEN(SUBSTITUTE(V164,CHAR(44),""))+1,0),"-"),"") ->  | AT164: =IF(B164="X",IF(AN164="DA",LEN(TRIM(V164))-LEN(SUBSTITUTE(V164,CHAR(44),""))+1,"-"),"") ->  | AU164: =IF(B164="X",IF(AN164="","Afectat sau NU?",IF(AN164="DA",IF(((AI164+AJ164)-(AE164+AF164))*24<-720,"Neinformat",((AI164+AJ164)-(AE164+AF164))*24),"Nu a fost afectat producator/consumator")),"") ->  | AV164: =IF(B164="X",IF(AN164="DA",IF(AU164<6,LEN(TRIM(U164))-LEN(SUBSTITUTE(U164,CHAR(44),""))+1,0),"-"),"") ->  | AW164: =IF(B164="X",IF(AN164="DA",LEN(TRIM(U164))-LEN(SUBSTITUTE(U164,CHAR(44),""))+1,"-"),"") ->  | AX164: =IF(B164="X",IF(AN164="","Afectat sau NU?",IF(AN164="DA",((AG164+AH164)-(AE164+AF164))*24,"Nu a fost afectat producator/consumator")),"") ->  | AY164: =IF(B164="X",IF(AN164="DA",IF(AX164>24,IF(#REF!="NU",0,LEN(TRIM(V164))-LEN(SUBSTITUTE(V164,CHAR(44),""))+1),0),"-"),"") ->  | AZ164: =IF(B164="X",IF(AN164="DA",IF(AX164>24,LEN(TRIM(V164))-LEN(SUBSTITUTE(V164,CHAR(44),""))+1,0),"-"),"") ->  | BF164: =IF(C164="X",IF(AN164="","Afectat sau NU?",IF(AN164="DA",IF(AK164="","Neinformat",NETWORKDAYS(AK164+AL164,AE164+AF164,$BR$2:$BR$14)-2),"Nu a fost afectat producator/consumator")),"") -> Afectat sau NU? | BG164: =IF(C164="X",IF(AN164="DA",IF(AND(BF164>=5,AK164<>""),LEN(TRIM(V164))-LEN(SUBSTITUTE(V164,CHAR(44),""))+1,0),"-"),"") -> - | BH164: =IF(C164="X",IF(AN164="DA",LEN(TRIM(V164))-LEN(SUBSTITUTE(V164,CHAR(44),""))+1,"-"),"") -> - | BI164: =IF(C164="X",IF(AN164="","Afectat sau NU?",IF(AN164="DA",IF(AI164="","Neinformat",NETWORKDAYS(AI164+AJ164,AE164+AF164,$BR$2:$BR$14)-2),"Nu a fost afectat producator/consumator")),"") -> Afectat sau NU? | BJ164: =IF(C164="X",IF(AN164="DA",IF(AND(BI164>=5,AI164<>""),LEN(TRIM(U164))-LEN(SUBSTITUTE(U164,CHAR(44),""))+1,0),"-"),"") -> - | BK164: =IF(C164="X",IF(AN164="DA",LEN(TRIM(U164))-LEN(SUBSTITUTE(U164,CHAR(44),""))+1,"-"),"") -> - | BL164: =IF(C164="X",IF(AN164="","Afectat sau NU?",IF(AN164="DA",((AG164+AH164)-(Z164+AA164))*24,"Nu a fost afectat producator/consumator")),"") -> Afectat sau NU? | BM164: =IF(C164="X",IF(AN164<>"DA","-",IF(AND(AN164="DA",BL164<=0),LEN(TRIM(V164))-LEN(SUBSTITUTE(V164,CHAR(44),""))+1+LEN(TRIM(U164))-LEN(SUBSTITUTE(U164,CHAR(44),""))+1,0)),"") -> - | BN164: =IF(C164="X",IF(AN164="DA",LEN(TRIM(V164))-LEN(SUBSTITUTE(V164,CHAR(44),""))+1+LEN(TRIM(U164))-LEN(SUBSTITUTE(U164,CHAR(44),""))+1,"-"),"") -> -
A165: 150 | B165: - | C165: X | D165: Modernizare alimentare cu gaze naturale a municipiului Ploiești | E165: 130534 | F165: Ploiești | G165: Prahova | H165: 582017.66 | I165: 384857.52 | J165: 580681.36 | K165: 385825.57 | L165: - | M165: - | N165: SM0130D1 | O165: SC VEGA Ploiești | P165: - | Q165: - | R165: - | S165: - | T165: SM-CF001 | U165: Petrom | V165: Rompetrol Vega Ploiești | W165: aprilie - septembrie 2020 | AB165: București | AR165: =IF(B165="X",IF(AN165="","Afectat sau NU?",IF(AN165="DA",IF(((AK165+AL165)-(AE165+AF165))*24<-720,"Neinformat",((AK165+AL165)-(AE165+AF165))*24),"Nu a fost afectat producator/consumator")),"") ->  | AS165: =IF(B165="X",IF(AN165="DA",IF(AR165<6,LEN(TRIM(V165))-LEN(SUBSTITUTE(V165,CHAR(44),""))+1,0),"-"),"") ->  | AT165: =IF(B165="X",IF(AN165="DA",LEN(TRIM(V165))-LEN(SUBSTITUTE(V165,CHAR(44),""))+1,"-"),"") ->  | AU165: =IF(B165="X",IF(AN165="","Afectat sau NU?",IF(AN165="DA",IF(((AI165+AJ165)-(AE165+AF165))*24<-720,"Neinformat",((AI165+AJ165)-(AE165+AF165))*24),"Nu a fost afectat producator/consumator")),"") ->  | AV165: =IF(B165="X",IF(AN165="DA",IF(AU165<6,LEN(TRIM(U165))-LEN(SUBSTITUTE(U165,CHAR(44),""))+1,0),"-"),"") ->  | AW165: =IF(B165="X",IF(AN165="DA",LEN(TRIM(U165))-LEN(SUBSTITUTE(U165,CHAR(44),""))+1,"-"),"") ->  | AX165: =IF(B165="X",IF(AN165="","Afectat sau NU?",IF(AN165="DA",((AG165+AH165)-(AE165+AF165))*24,"Nu a fost afectat producator/consumator")),"") ->  | AY165: =IF(B165="X",IF(AN165="DA",IF(AX165>24,IF(#REF!="NU",0,LEN(TRIM(V165))-LEN(SUBSTITUTE(V165,CHAR(44),""))+1),0),"-"),"") ->  | AZ165: =IF(B165="X",IF(AN165="DA",IF(AX165>24,LEN(TRIM(V165))-LEN(SUBSTITUTE(V165,CHAR(44),""))+1,0),"-"),"") ->  | BF165: =IF(C165="X",IF(AN165="","Afectat sau NU?",IF(AN165="DA",IF(AK165="","Neinformat",NETWORKDAYS(AK165+AL165,AE165+AF165,$BR$2:$BR$14)-2),"Nu a fost afectat producator/consumator")),"") -> Afectat sau NU? | BG165: =IF(C165="X",IF(AN165="DA",IF(AND(BF165>=5,AK165<>""),LEN(TRIM(V165))-LEN(SUBSTITUTE(V165,CHAR(44),""))+1,0),"-"),"") -> - | BH165: =IF(C165="X",IF(AN165="DA",LEN(TRIM(V165))-LEN(SUBSTITUTE(V165,CHAR(44),""))+1,"-"),"") -> - | BI165: =IF(C165="X",IF(AN165="","Afectat sau NU?",IF(AN165="DA",IF(AI165="","Neinformat",NETWORKDAYS(AI165+AJ165,AE165+AF165,$BR$2:$BR$14)-2),"Nu a fost afectat producator/consumator")),"") -> Afectat sau NU? | BJ165: =IF(C165="X",IF(AN165="DA",IF(AND(BI165>=5,AI165<>""),LEN(TRIM(U165))-LEN(SUBSTITUTE(U165,CHAR(44),""))+1,0),"-"),"") -> - | BK165: =IF(C165="X",IF(AN165="DA",LEN(TRIM(U165))-LEN(SUBSTITUTE(U165,CHAR(44),""))+1,"-"),"") -> - | BL165: =IF(C165="X",IF(AN165="","Afectat sau NU?",IF(AN165="DA",((AG165+AH165)-(Z165+AA165))*24,"Nu a fost afectat producator/consumator")),"") -> Afectat sau NU? | BM165: =IF(C165="X",IF(AN165<>"DA","-",IF(AND(AN165="DA",BL165<=0),LEN(TRIM(V165))-LEN(SUBSTITUTE(V165,CHAR(44),""))+1+LEN(TRIM(U165))-LEN(SUBSTITUTE(U165,CHAR(44),""))+1,0)),"") -> - | BN165: =IF(C165="X",IF(AN165="DA",LEN(TRIM(V165))-LEN(SUBSTITUTE(V165,CHAR(44),""))+1+LEN(TRIM(U165))-LEN(SUBSTITUTE(U165,CHAR(44),""))+1,"-"),"") -> -
A166: 151 | B166: - | C166: X | D166: Modernizare alimentare cu gaze naturale a municipiului Ploiești | E166: 130534 | F166: Ploiești | G166: Prahova | H166: 582017.66 | I166: 384857.52 | J166: 580681.36 | K166: 385825.57 | L166: - | M166: - | N166: SM0130D0 | O166: Ploiești Nord Colonie | P166: - | Q166: - | R166: - | S166: - | T166: SM-SD001 | U166: Cez Vânzare, E.on Energie, Electric Planners, Electrica Furnizare, Electrocentrale București, Enel Energie, Energy Distribution, Engie, Met România, Monsson, Premier Energy Trading, RWE, Aderro GP, Cis Gaz, Conef Gaz, Cyeb, Distrigaz Vest, Electric&Gas, Electrocentrale Constanța, Enel Muntenia, Gas Provider, Entrex, Euro Seven, Gaz Est, Hargaz, Megaconstruct, Next Energy, Nova Power, Oligopol | V166: Distrigaz Sud Rețele | W166: aprilie - septembrie 2020 | AB166: București | AR166: =IF(B166="X",IF(AN166="","Afectat sau NU?",IF(AN166="DA",IF(((AK166+AL166)-(AE166+AF166))*24<-720,"Neinformat",((AK166+AL166)-(AE166+AF166))*24),"Nu a fost afectat producator/consumator")),"") ->  | AS166: =IF(B166="X",IF(AN166="DA",IF(AR166<6,LEN(TRIM(V166))-LEN(SUBSTITUTE(V166,CHAR(44),""))+1,0),"-"),"") ->  | AT166: =IF(B166="X",IF(AN166="DA",LEN(TRIM(V166))-LEN(SUBSTITUTE(V166,CHAR(44),""))+1,"-"),"") ->  | AU166: =IF(B166="X",IF(AN166="","Afectat sau NU?",IF(AN166="DA",IF(((AI166+AJ166)-(AE166+AF166))*24<-720,"Neinformat",((AI166+AJ166)-(AE166+AF166))*24),"Nu a fost afectat producator/consumator")),"") ->  | AV166: =IF(B166="X",IF(AN166="DA",IF(AU166<6,LEN(TRIM(U166))-LEN(SUBSTITUTE(U166,CHAR(44),""))+1,0),"-"),"") ->  | AW166: =IF(B166="X",IF(AN166="DA",LEN(TRIM(U166))-LEN(SUBSTITUTE(U166,CHAR(44),""))+1,"-"),"") ->  | AX166: =IF(B166="X",IF(AN166="","Afectat sau NU?",IF(AN166="DA",((AG166+AH166)-(AE166+AF166))*24,"Nu a fost afectat producator/consumator")),"") ->  | AY166: =IF(B166="X",IF(AN166="DA",IF(AX166>24,IF(#REF!="NU",0,LEN(TRIM(V166))-LEN(SUBSTITUTE(V166,CHAR(44),""))+1),0),"-"),"") ->  | AZ166: =IF(B166="X",IF(AN166="DA",IF(AX166>24,LEN(TRIM(V166))-LEN(SUBSTITUTE(V166,CHAR(44),""))+1,0),"-"),"") ->  | BF166: =IF(C166="X",IF(AN166="","Afectat sau NU?",IF(AN166="DA",IF(AK166="","Neinformat",NETWORKDAYS(AK166+AL166,AE166+AF166,$BR$2:$BR$14)-2),"Nu a fost afectat producator/consumator")),"") -> Afectat sau NU? | BG166: =IF(C166="X",IF(AN166="DA",IF(AND(BF166>=5,AK166<>""),LEN(TRIM(V166))-LEN(SUBSTITUTE(V166,CHAR(44),""))+1,0),"-"),"") -> - | BH166: =IF(C166="X",IF(AN166="DA",LEN(TRIM(V166))-LEN(SUBSTITUTE(V166,CHAR(44),""))+1,"-"),"") -> - | BI166: =IF(C166="X",IF(AN166="","Afectat sau NU?",IF(AN166="DA",IF(AI166="","Neinformat",NETWORKDAYS(AI166+AJ166,AE166+AF166,$BR$2:$BR$14)-2),"Nu a fost afectat producator/consumator")),"") -> Afectat sau NU? | BJ166: =IF(C166="X",IF(AN166="DA",IF(AND(BI166>=5,AI166<>""),LEN(TRIM(U166))-LEN(SUBSTITUTE(U166,CHAR(44),""))+1,0),"-"),"") -> - | BK166: =IF(C166="X",IF(AN166="DA",LEN(TRIM(U166))-LEN(SUBSTITUTE(U166,CHAR(44),""))+1,"-"),"") -> - | BL166: =IF(C166="X",IF(AN166="","Afectat sau NU?",IF(AN166="DA",((AG166+AH166)-(Z166+AA166))*24,"Nu a fost afectat producator/consumator")),"") -> Afectat sau NU? | BM166: =IF(C166="X",IF(AN166<>"DA","-",IF(AND(AN166="DA",BL166<=0),LEN(TRIM(V166))-LEN(SUBSTITUTE(V166,CHAR(44),""))+1+LEN(TRIM(U166))-LEN(SUBSTITUTE(U166,CHAR(44),""))+1,0)),"") -> - | BN166: =IF(C166="X",IF(AN166="DA",LEN(TRIM(V166))-LEN(SUBSTITUTE(V166,CHAR(44),""))+1+LEN(TRIM(U166))-LEN(SUBSTITUTE(U166,CHAR(44),""))+1,"-"),"") -> -
A167: 152 | B167: - | C167: X | D167: Modernizare alimentare cu gaze naturale a municipiului Ploiești | E167: 132075 | F167: Stoenești | G167: Prahova | H167: 582017.66 | I167: 384857.52 | J167: 580681.36 | K167: 385825.57 | L167: - | M167: - | N167: SM0121D0 | O167: Stoienești | P167: - | Q167: - | R167: - | S167: - | T167: SM-SD001 | U167: Cez Vânzare, E.on Energie, Electric Planners, Electrica Furnizare, Electrocentrale București, Enel Energie, Energy Distribution, Engie, Met România, Monsson, Premier Energy Trading, RWE, Aderro GP, Cis Gaz, Conef Gaz, Cyeb, Distrigaz Vest, Electric&Gas, Electrocentrale Constanța, Enel Muntenia, Gas Provider, Entrex, Euro Seven, Gaz Est, Hargaz, Megaconstruct, Next Energy, Nova Power, Oligopol | V167: Distrigaz Sud Rețele | W167: aprilie - septembrie 2020 | AB167: București | AR167: =IF(B167="X",IF(AN167="","Afectat sau NU?",IF(AN167="DA",IF(((AK167+AL167)-(AE167+AF167))*24<-720,"Neinformat",((AK167+AL167)-(AE167+AF167))*24),"Nu a fost afectat producator/consumator")),"") ->  | AS167: =IF(B167="X",IF(AN167="DA",IF(AR167<6,LEN(TRIM(V167))-LEN(SUBSTITUTE(V167,CHAR(44),""))+1,0),"-"),"") ->  | AT167: =IF(B167="X",IF(AN167="DA",LEN(TRIM(V167))-LEN(SUBSTITUTE(V167,CHAR(44),""))+1,"-"),"") ->  | AU167: =IF(B167="X",IF(AN167="","Afectat sau NU?",IF(AN167="DA",IF(((AI167+AJ167)-(AE167+AF167))*24<-720,"Neinformat",((AI167+AJ167)-(AE167+AF167))*24),"Nu a fost afectat producator/consumator")),"") ->  | AV167: =IF(B167="X",IF(AN167="DA",IF(AU167<6,LEN(TRIM(U167))-LEN(SUBSTITUTE(U167,CHAR(44),""))+1,0),"-"),"") ->  | AW167: =IF(B167="X",IF(AN167="DA",LEN(TRIM(U167))-LEN(SUBSTITUTE(U167,CHAR(44),""))+1,"-"),"") ->  | AX167: =IF(B167="X",IF(AN167="","Afectat sau NU?",IF(AN167="DA",((AG167+AH167)-(AE167+AF167))*24,"Nu a fost afectat producator/consumator")),"") ->  | AY167: =IF(B167="X",IF(AN167="DA",IF(AX167>24,IF(#REF!="NU",0,LEN(TRIM(V167))-LEN(SUBSTITUTE(V167,CHAR(44),""))+1),0),"-"),"") ->  | AZ167: =IF(B167="X",IF(AN167="DA",IF(AX167>24,LEN(TRIM(V167))-LEN(SUBSTITUTE(V167,CHAR(44),""))+1,0),"-"),"") ->  | BF167: =IF(C167="X",IF(AN167="","Afectat sau NU?",IF(AN167="DA",IF(AK167="","Neinformat",NETWORKDAYS(AK167+AL167,AE167+AF167,$BR$2:$BR$14)-2),"Nu a fost afectat producator/consumator")),"") -> Afectat sau NU? | BG167: =IF(C167="X",IF(AN167="DA",IF(AND(BF167>=5,AK167<>""),LEN(TRIM(V167))-LEN(SUBSTITUTE(V167,CHAR(44),""))+1,0),"-"),"") -> - | BH167: =IF(C167="X",IF(AN167="DA",LEN(TRIM(V167))-LEN(SUBSTITUTE(V167,CHAR(44),""))+1,"-"),"") -> - | BI167: =IF(C167="X",IF(AN167="","Afectat sau NU?",IF(AN167="DA",IF(AI167="","Neinformat",NETWORKDAYS(AI167+AJ167,AE167+AF167,$BR$2:$BR$14)-2),"Nu a fost afectat producator/consumator")),"") -> Afectat sau NU? | BJ167: =IF(C167="X",IF(AN167="DA",IF(AND(BI167>=5,AI167<>""),LEN(TRIM(U167))-LEN(SUBSTITUTE(U167,CHAR(44),""))+1,0),"-"),"") -> - | BK167: =IF(C167="X",IF(AN167="DA",LEN(TRIM(U167))-LEN(SUBSTITUTE(U167,CHAR(44),""))+1,"-"),"") -> - | BL167: =IF(C167="X",IF(AN167="","Afectat sau NU?",IF(AN167="DA",((AG167+AH167)-(Z167+AA167))*24,"Nu a fost afectat producator/consumator")),"") -> Afectat sau NU? | BM167: =IF(C167="X",IF(AN167<>"DA","-",IF(AND(AN167="DA",BL167<=0),LEN(TRIM(V167))-LEN(SUBSTITUTE(V167,CHAR(44),""))+1+LEN(TRIM(U167))-LEN(SUBSTITUTE(U167,CHAR(44),""))+1,0)),"") -> - | BN167: =IF(C167="X",IF(AN167="DA",LEN(TRIM(V167))-LEN(SUBSTITUTE(V167,CHAR(44),""))+1+LEN(TRIM(U167))-LEN(SUBSTITUTE(U167,CHAR(44),""))+1,"-"),"") -> -
A168: 153 | B168: - | C168: X | D168: Modernizare alimentare cu gaze naturale a municipiului Ploiești | E168: 132075 | F168: Aricești Rahtivani | G168: Prahova | H168: 582017.66 | I168: 384857.52 | J168: 580681.36 | K168: 385825.57 | L168: - | M168: - | N168: SM0120D0 | O168: Aricești | P168: - | Q168: - | R168: - | S168: - | T168: SM-SD001 | U168: Cez Vânzare, E.on Energie, Electric Planners, Electrica Furnizare, Electrocentrale București, Enel Energie, Energy Distribution, Engie, Met România, Monsson, Premier Energy Trading, RWE, Aderro GP, Cis Gaz, Conef Gaz, Cyeb, Distrigaz Vest, Electric&Gas, Electrocentrale Constanța, Enel Muntenia, Gas Provider, Entrex, Euro Seven, Gaz Est, Hargaz, Megaconstruct, Next Energy, Nova Power, Oligopol | V168: Distrigaz Sud Rețele | W168: aprilie - septembrie 2020 | AB168: București | AR168: =IF(B168="X",IF(AN168="","Afectat sau NU?",IF(AN168="DA",IF(((AK168+AL168)-(AE168+AF168))*24<-720,"Neinformat",((AK168+AL168)-(AE168+AF168))*24),"Nu a fost afectat producator/consumator")),"") ->  | AS168: =IF(B168="X",IF(AN168="DA",IF(AR168<6,LEN(TRIM(V168))-LEN(SUBSTITUTE(V168,CHAR(44),""))+1,0),"-"),"") ->  | AT168: =IF(B168="X",IF(AN168="DA",LEN(TRIM(V168))-LEN(SUBSTITUTE(V168,CHAR(44),""))+1,"-"),"") ->  | AU168: =IF(B168="X",IF(AN168="","Afectat sau NU?",IF(AN168="DA",IF(((AI168+AJ168)-(AE168+AF168))*24<-720,"Neinformat",((AI168+AJ168)-(AE168+AF168))*24),"Nu a fost afectat producator/consumator")),"") ->  | AV168: =IF(B168="X",IF(AN168="DA",IF(AU168<6,LEN(TRIM(U168))-LEN(SUBSTITUTE(U168,CHAR(44),""))+1,0),"-"),"") ->  | AW168: =IF(B168="X",IF(AN168="DA",LEN(TRIM(U168))-LEN(SUBSTITUTE(U168,CHAR(44),""))+1,"-"),"") ->  | AX168: =IF(B168="X",IF(AN168="","Afectat sau NU?",IF(AN168="DA",((AG168+AH168)-(AE168+AF168))*24,"Nu a fost afectat producator/consumator")),"") ->  | AY168: =IF(B168="X",IF(AN168="DA",IF(AX168>24,IF(#REF!="NU",0,LEN(TRIM(V168))-LEN(SUBSTITUTE(V168,CHAR(44),""))+1),0),"-"),"") ->  | AZ168: =IF(B168="X",IF(AN168="DA",IF(AX168>24,LEN(TRIM(V168))-LEN(SUBSTITUTE(V168,CHAR(44),""))+1,0),"-"),"") ->  | BF168: =IF(C168="X",IF(AN168="","Afectat sau NU?",IF(AN168="DA",IF(AK168="","Neinformat",NETWORKDAYS(AK168+AL168,AE168+AF168,$BR$2:$BR$14)-2),"Nu a fost afectat producator/consumator")),"") -> Afectat sau NU? | BG168: =IF(C168="X",IF(AN168="DA",IF(AND(BF168>=5,AK168<>""),LEN(TRIM(V168))-LEN(SUBSTITUTE(V168,CHAR(44),""))+1,0),"-"),"") -> - | BH168: =IF(C168="X",IF(AN168="DA",LEN(TRIM(V168))-LEN(SUBSTITUTE(V168,CHAR(44),""))+1,"-"),"") -> - | BI168: =IF(C168="X",IF(AN168="","Afectat sau NU?",IF(AN168="DA",IF(AI168="","Neinformat",NETWORKDAYS(AI168+AJ168,AE168+AF168,$BR$2:$BR$14)-2),"Nu a fost afectat producator/consumator")),"") -> Afectat sau NU? | BJ168: =IF(C168="X",IF(AN168="DA",IF(AND(BI168>=5,AI168<>""),LEN(TRIM(U168))-LEN(SUBSTITUTE(U168,CHAR(44),""))+1,0),"-"),"") -> - | BK168: =IF(C168="X",IF(AN168="DA",LEN(TRIM(U168))-LEN(SUBSTITUTE(U168,CHAR(44),""))+1,"-"),"") -> - | BL168: =IF(C168="X",IF(AN168="","Afectat sau NU?",IF(AN168="DA",((AG168+AH168)-(Z168+AA168))*24,"Nu a fost afectat producator/consumator")),"") -> Afectat sau NU? | BM168: =IF(C168="X",IF(AN168<>"DA","-",IF(AND(AN168="DA",BL168<=0),LEN(TRIM(V168))-LEN(SUBSTITUTE(V168,CHAR(44),""))+1+LEN(TRIM(U168))-LEN(SUBSTITUTE(U168,CHAR(44),""))+1,0)),"") -> - | BN168: =IF(C168="X",IF(AN168="DA",LEN(TRIM(V168))-LEN(SUBSTITUTE(V168,CHAR(44),""))+1+LEN(TRIM(U168))-LEN(SUBSTITUTE(U168,CHAR(44),""))+1,"-"),"") -> -
A169: 154 | B169: - | C169: X | D169: Modernizare alimentare cu gaze naturale a municipiului Ploiești | E169: 130534 | F169: Ploiești | G169: Prahova | H169: 582017.66 | I169: 384857.52 | J169: 580681.36 | K169: 385825.57 | L169: - | M169: - | N169: SM0122D0 | O169: Crângul lui Bot | P169: - | Q169: - | R169: - | S169: - | T169: SM-SD001 | U169: Cez Vânzare, E.on Energie, Electric Planners, Electrica Furnizare, Electrocentrale București, Enel Energie, Energy Distribution, Engie, Met România, Monsson, Premier Energy Trading, RWE, Aderro GP, Cis Gaz, Conef Gaz, Cyeb, Distrigaz Vest, Electric&Gas, Electrocentrale Constanța, Enel Muntenia, Gas Provider, Entrex, Euro Seven, Gaz Est, Hargaz, Megaconstruct, Next Energy, Nova Power, Oligopol | V169: Distrigaz Sud Rețele | W169: aprilie - septembrie 2020 | AB169: București | AR169: =IF(B169="X",IF(AN169="","Afectat sau NU?",IF(AN169="DA",IF(((AK169+AL169)-(AE169+AF169))*24<-720,"Neinformat",((AK169+AL169)-(AE169+AF169))*24),"Nu a fost afectat producator/consumator")),"") ->  | AS169: =IF(B169="X",IF(AN169="DA",IF(AR169<6,LEN(TRIM(V169))-LEN(SUBSTITUTE(V169,CHAR(44),""))+1,0),"-"),"") ->  | AT169: =IF(B169="X",IF(AN169="DA",LEN(TRIM(V169))-LEN(SUBSTITUTE(V169,CHAR(44),""))+1,"-"),"") ->  | AU169: =IF(B169="X",IF(AN169="","Afectat sau NU?",IF(AN169="DA",IF(((AI169+AJ169)-(AE169+AF169))*24<-720,"Neinformat",((AI169+AJ169)-(AE169+AF169))*24),"Nu a fost afectat producator/consumator")),"") ->  | AV169: =IF(B169="X",IF(AN169="DA",IF(AU169<6,LEN(TRIM(U169))-LEN(SUBSTITUTE(U169,CHAR(44),""))+1,0),"-"),"") ->  | AW169: =IF(B169="X",IF(AN169="DA",LEN(TRIM(U169))-LEN(SUBSTITUTE(U169,CHAR(44),""))+1,"-"),"") ->  | AX169: =IF(B169="X",IF(AN169="","Afectat sau NU?",IF(AN169="DA",((AG169+AH169)-(AE169+AF169))*24,"Nu a fost afectat producator/consumator")),"") ->  | AY169: =IF(B169="X",IF(AN169="DA",IF(AX169>24,IF(#REF!="NU",0,LEN(TRIM(V169))-LEN(SUBSTITUTE(V169,CHAR(44),""))+1),0),"-"),"") ->  | AZ169: =IF(B169="X",IF(AN169="DA",IF(AX169>24,LEN(TRIM(V169))-LEN(SUBSTITUTE(V169,CHAR(44),""))+1,0),"-"),"") ->  | BF169: =IF(C169="X",IF(AN169="","Afectat sau NU?",IF(AN169="DA",IF(AK169="","Neinformat",NETWORKDAYS(AK169+AL169,AE169+AF169,$BR$2:$BR$14)-2),"Nu a fost afectat producator/consumator")),"") -> Afectat sau NU? | BG169: =IF(C169="X",IF(AN169="DA",IF(AND(BF169>=5,AK169<>""),LEN(TRIM(V169))-LEN(SUBSTITUTE(V169,CHAR(44),""))+1,0),"-"),"") -> - | BH169: =IF(C169="X",IF(AN169="DA",LEN(TRIM(V169))-LEN(SUBSTITUTE(V169,CHAR(44),""))+1,"-"),"") -> - | BI169: =IF(C169="X",IF(AN169="","Afectat sau NU?",IF(AN169="DA",IF(AI169="","Neinformat",NETWORKDAYS(AI169+AJ169,AE169+AF169,$BR$2:$BR$14)-2),"Nu a fost afectat producator/consumator")),"") -> Afectat sau NU? | BJ169: =IF(C169="X",IF(AN169="DA",IF(AND(BI169>=5,AI169<>""),LEN(TRIM(U169))-LEN(SUBSTITUTE(U169,CHAR(44),""))+1,0),"-"),"") -> - | BK169: =IF(C169="X",IF(AN169="DA",LEN(TRIM(U169))-LEN(SUBSTITUTE(U169,CHAR(44),""))+1,"-"),"") -> - | BL169: =IF(C169="X",IF(AN169="","Afectat sau NU?",IF(AN169="DA",((AG169+AH169)-(Z169+AA169))*24,"Nu a fost afectat producator/consumator")),"") -> Afectat sau NU? | BM169: =IF(C169="X",IF(AN169<>"DA","-",IF(AND(AN169="DA",BL169<=0),LEN(TRIM(V169))-LEN(SUBSTITUTE(V169,CHAR(44),""))+1+LEN(TRIM(U169))-LEN(SUBSTITUTE(U169,CHAR(44),""))+1,0)),"") -> - | BN169: =IF(C169="X",IF(AN169="DA",LEN(TRIM(V169))-LEN(SUBSTITUTE(V169,CHAR(44),""))+1+LEN(TRIM(U169))-LEN(SUBSTITUTE(U169,CHAR(44),""))+1,"-"),"") -> -
A170: 155 | B170: - | C170: X | D170: Subtraversare râu Dâmbovița cu conducta Inel București, zona Bălăceanca | E170: 101742 | F170: Cernica | G170: Ilfov | H170: 589779.55 | I170: 323979.3 | J170: 600995.25 | K170: 320576.43 | L170: - | M170: - | N170: SM1133D0 | O170: Cernica II (Bălăceanca) | P170: - | Q170: - | R170: - | S170: - | T170: SM-SD001 | U170: Cez Vânzare, E.On Energie, Electric Planners, Electrica Furnizare, Enel Energie, Energy Distribution, Engie, Met România, Aderro GP, Cis Gaz, Conef Gaz, Electric&Gas, Enel Muntenia, Gas Provider, Gaz Est, Megaconstruct, Next Energy, Nova Power, Petrom, Premier Energy, Renovatio, Restart Energy, Tinmar, Wiee, Transenergo | V170: Premier Energy | W170: aprilie - septembrie 2020 | AB170: București | AR170: =IF(B170="X",IF(AN170="","Afectat sau NU?",IF(AN170="DA",IF(((AK170+AL170)-(AE170+AF170))*24<-720,"Neinformat",((AK170+AL170)-(AE170+AF170))*24),"Nu a fost afectat producator/consumator")),"") ->  | AS170: =IF(B170="X",IF(AN170="DA",IF(AR170<6,LEN(TRIM(V170))-LEN(SUBSTITUTE(V170,CHAR(44),""))+1,0),"-"),"") ->  | AT170: =IF(B170="X",IF(AN170="DA",LEN(TRIM(V170))-LEN(SUBSTITUTE(V170,CHAR(44),""))+1,"-"),"") ->  | AU170: =IF(B170="X",IF(AN170="","Afectat sau NU?",IF(AN170="DA",IF(((AI170+AJ170)-(AE170+AF170))*24<-720,"Neinformat",((AI170+AJ170)-(AE170+AF170))*24),"Nu a fost afectat producator/consumator")),"") ->  | AV170: =IF(B170="X",IF(AN170="DA",IF(AU170<6,LEN(TRIM(U170))-LEN(SUBSTITUTE(U170,CHAR(44),""))+1,0),"-"),"") ->  | AW170: =IF(B170="X",IF(AN170="DA",LEN(TRIM(U170))-LEN(SUBSTITUTE(U170,CHAR(44),""))+1,"-"),"") ->  | AX170: =IF(B170="X",IF(AN170="","Afectat sau NU?",IF(AN170="DA",((AG170+AH170)-(AE170+AF170))*24,"Nu a fost afectat producator/consumator")),"") ->  | AY170: =IF(B170="X",IF(AN170="DA",IF(AX170>24,IF(#REF!="NU",0,LEN(TRIM(V170))-LEN(SUBSTITUTE(V170,CHAR(44),""))+1),0),"-"),"") ->  | AZ170: =IF(B170="X",IF(AN170="DA",IF(AX170>24,LEN(TRIM(V170))-LEN(SUBSTITUTE(V170,CHAR(44),""))+1,0),"-"),"") ->  | BF170: =IF(C170="X",IF(AN170="","Afectat sau NU?",IF(AN170="DA",IF(AK170="","Neinformat",NETWORKDAYS(AK170+AL170,AE170+AF170,$BR$2:$BR$14)-2),"Nu a fost afectat producator/consumator")),"") -> Afectat sau NU? | BG170: =IF(C170="X",IF(AN170="DA",IF(AND(BF170>=5,AK170<>""),LEN(TRIM(V170))-LEN(SUBSTITUTE(V170,CHAR(44),""))+1,0),"-"),"") -> - | BH170: =IF(C170="X",IF(AN170="DA",LEN(TRIM(V170))-LEN(SUBSTITUTE(V170,CHAR(44),""))+1,"-"),"") -> - | BI170: =IF(C170="X",IF(AN170="","Afectat sau NU?",IF(AN170="DA",IF(AI170="","Neinformat",NETWORKDAYS(AI170+AJ170,AE170+AF170,$BR$2:$BR$14)-2),"Nu a fost afectat producator/consumator")),"") -> Afectat sau NU? | BJ170: =IF(C170="X",IF(AN170="DA",IF(AND(BI170>=5,AI170<>""),LEN(TRIM(U170))-LEN(SUBSTITUTE(U170,CHAR(44),""))+1,0),"-"),"") -> - | BK170: =IF(C170="X",IF(AN170="DA",LEN(TRIM(U170))-LEN(SUBSTITUTE(U170,CHAR(44),""))+1,"-"),"") -> - | BL170: =IF(C170="X",IF(AN170="","Afectat sau NU?",IF(AN170="DA",((AG170+AH170)-(Z170+AA170))*24,"Nu a fost afectat producator/consumator")),"") -> Afectat sau NU? | BM170: =IF(C170="X",IF(AN170<>"DA","-",IF(AND(AN170="DA",BL170<=0),LEN(TRIM(V170))-LEN(SUBSTITUTE(V170,CHAR(44),""))+1+LEN(TRIM(U170))-LEN(SUBSTITUTE(U170,CHAR(44),""))+1,0)),"") -> - | BN170: =IF(C170="X",IF(AN170="DA",LEN(TRIM(V170))-LEN(SUBSTITUTE(V170,CHAR(44),""))+1+LEN(TRIM(U170))-LEN(SUBSTITUTE(U170,CHAR(44),""))+1,"-"),"") -> -
A171: 156 | B171: - | C171: X | D171: Relocare instalație mecanică veche de la Aricești II la Stăncești | E171: 130892 | F171: Ploiești | G171: Prahova | H171: 571593.42 | I171: 373696.77 | J171: 571593.42 | K171: 373696.77 | L171: - | M171: - | N171: SM0140D0 | O171: Stâncești | P171: - | Q171: - | R171: - | S171: - | T171: SM-SD001 | U171: Cez Vânzare, E.on Energie, Electric Planners, Electrica Furnizare, Electrocentrale București, Enel Energie, Energy Distribution, Engie, Met România, Monsson, Premier Energy Trading, RWE, Aderro GP, Cis Gaz, Conef Gaz, Cyeb, Distrigaz Vest, Electric&Gas, Electrocentrale Constanța, Enel Muntenia, Gas Provider, Entrex, Euro Seven, Gaz Est, Hargaz, Megaconstruct, Next Energy, Nova Power, Oligopol | V171: Distrigaz Sud Rețele | W171: aprilie - septembrie 2020 | AB171: București | AR171: =IF(B171="X",IF(AN171="","Afectat sau NU?",IF(AN171="DA",IF(((AK171+AL171)-(AE171+AF171))*24<-720,"Neinformat",((AK171+AL171)-(AE171+AF171))*24),"Nu a fost afectat producator/consumator")),"") ->  | AS171: =IF(B171="X",IF(AN171="DA",IF(AR171<6,LEN(TRIM(V171))-LEN(SUBSTITUTE(V171,CHAR(44),""))+1,0),"-"),"") ->  | AT171: =IF(B171="X",IF(AN171="DA",LEN(TRIM(V171))-LEN(SUBSTITUTE(V171,CHAR(44),""))+1,"-"),"") ->  | AU171: =IF(B171="X",IF(AN171="","Afectat sau NU?",IF(AN171="DA",IF(((AI171+AJ171)-(AE171+AF171))*24<-720,"Neinformat",((AI171+AJ171)-(AE171+AF171))*24),"Nu a fost afectat producator/consumator")),"") ->  | AV171: =IF(B171="X",IF(AN171="DA",IF(AU171<6,LEN(TRIM(U171))-LEN(SUBSTITUTE(U171,CHAR(44),""))+1,0),"-"),"") ->  | AW171: =IF(B171="X",IF(AN171="DA",LEN(TRIM(U171))-LEN(SUBSTITUTE(U171,CHAR(44),""))+1,"-"),"") ->  | AX171: =IF(B171="X",IF(AN171="","Afectat sau NU?",IF(AN171="DA",((AG171+AH171)-(AE171+AF171))*24,"Nu a fost afectat producator/consumator")),"") ->  | AY171: =IF(B171="X",IF(AN171="DA",IF(AX171>24,IF(#REF!="NU",0,LEN(TRIM(V171))-LEN(SUBSTITUTE(V171,CHAR(44),""))+1),0),"-"),"") ->  | AZ171: =IF(B171="X",IF(AN171="DA",IF(AX171>24,LEN(TRIM(V171))-LEN(SUBSTITUTE(V171,CHAR(44),""))+1,0),"-"),"") ->  | BF171: =IF(C171="X",IF(AN171="","Afectat sau NU?",IF(AN171="DA",IF(AK171="","Neinformat",NETWORKDAYS(AK171+AL171,AE171+AF171,$BR$2:$BR$14)-2),"Nu a fost afectat producator/consumator")),"") -> Afectat sau NU? | BG171: =IF(C171="X",IF(AN171="DA",IF(AND(BF171>=5,AK171<>""),LEN(TRIM(V171))-LEN(SUBSTITUTE(V171,CHAR(44),""))+1,0),"-"),"") -> - | BH171: =IF(C171="X",IF(AN171="DA",LEN(TRIM(V171))-LEN(SUBSTITUTE(V171,CHAR(44),""))+1,"-"),"") -> - | BI171: =IF(C171="X",IF(AN171="","Afectat sau NU?",IF(AN171="DA",IF(AI171="","Neinformat",NETWORKDAYS(AI171+AJ171,AE171+AF171,$BR$2:$BR$14)-2),"Nu a fost afectat producator/consumator")),"") -> Afectat sau NU? | BJ171: =IF(C171="X",IF(AN171="DA",IF(AND(BI171>=5,AI171<>""),LEN(TRIM(U171))-LEN(SUBSTITUTE(U171,CHAR(44),""))+1,0),"-"),"") -> - | BK171: =IF(C171="X",IF(AN171="DA",LEN(TRIM(U171))-LEN(SUBSTITUTE(U171,CHAR(44),""))+1,"-"),"") -> - | BL171: =IF(C171="X",IF(AN171="","Afectat sau NU?",IF(AN171="DA",((AG171+AH171)-(Z171+AA171))*24,"Nu a fost afectat producator/consumator")),"") -> Afectat sau NU? | BM171: =IF(C171="X",IF(AN171<>"DA","-",IF(AND(AN171="DA",BL171<=0),LEN(TRIM(V171))-LEN(SUBSTITUTE(V171,CHAR(44),""))+1+LEN(TRIM(U171))-LEN(SUBSTITUTE(U171,CHAR(44),""))+1,0)),"") -> - | BN171: =IF(C171="X",IF(AN171="DA",LEN(TRIM(V171))-LEN(SUBSTITUTE(V171,CHAR(44),""))+1+LEN(TRIM(U171))-LEN(SUBSTITUTE(U171,CHAR(44),""))+1,"-"),"") -> -
A172: 157 | B172: - | C172: X | D172: Montare/înlocuire îmbinare electroizolantă pe conducta de racord SRM Videle | E172: 151905 | F172: Videle | G172: Teleorman | H172: 543744.14 | I172: 321212.96 | J172: 543274.57 | K172: 310044.62 | L172: - | M172: - | N172: SM1111D0 | O172: Videle | P172: - | Q172: - | R172: - | S172: - | T172: SM-SD001 | U172: Cez Vânzare, E.On Energie, Electric Planners, Electrica Furnizare, Enel Energie, Energy Distribution, Engie, Met România, Aderro GP, Cis Gaz, Conef Gaz, Electric&Gas, Enel Muntenia, Gas Provider, Gaz Est, Megaconstruct, Next Energy, Nova Power, Petrom, Premier Energy, Renovatio, Restart Energy, Tinmar, Wiee, Transenergo | V172: Premier Energy | W172: aprilie - septembrie 2020 | AB172: București | AR172: =IF(B172="X",IF(AN172="","Afectat sau NU?",IF(AN172="DA",IF(((AK172+AL172)-(AE172+AF172))*24<-720,"Neinformat",((AK172+AL172)-(AE172+AF172))*24),"Nu a fost afectat producator/consumator")),"") ->  | AS172: =IF(B172="X",IF(AN172="DA",IF(AR172<6,LEN(TRIM(V172))-LEN(SUBSTITUTE(V172,CHAR(44),""))+1,0),"-"),"") ->  | AT172: =IF(B172="X",IF(AN172="DA",LEN(TRIM(V172))-LEN(SUBSTITUTE(V172,CHAR(44),""))+1,"-"),"") ->  | AU172: =IF(B172="X",IF(AN172="","Afectat sau NU?",IF(AN172="DA",IF(((AI172+AJ172)-(AE172+AF172))*24<-720,"Neinformat",((AI172+AJ172)-(AE172+AF172))*24),"Nu a fost afectat producator/consumator")),"") ->  | AV172: =IF(B172="X",IF(AN172="DA",IF(AU172<6,LEN(TRIM(U172))-LEN(SUBSTITUTE(U172,CHAR(44),""))+1,0),"-"),"") ->  | AW172: =IF(B172="X",IF(AN172="DA",LEN(TRIM(U172))-LEN(SUBSTITUTE(U172,CHAR(44),""))+1,"-"),"") ->  | AX172: =IF(B172="X",IF(AN172="","Afectat sau NU?",IF(AN172="DA",((AG172+AH172)-(AE172+AF172))*24,"Nu a fost afectat producator/consumator")),"") ->  | AY172: =IF(B172="X",IF(AN172="DA",IF(AX172>24,IF(#REF!="NU",0,LEN(TRIM(V172))-LEN(SUBSTITUTE(V172,CHAR(44),""))+1),0),"-"),"") ->  | AZ172: =IF(B172="X",IF(AN172="DA",IF(AX172>24,LEN(TRIM(V172))-LEN(SUBSTITUTE(V172,CHAR(44),""))+1,0),"-"),"") ->  | BF172: =IF(C172="X",IF(AN172="","Afectat sau NU?",IF(AN172="DA",IF(AK172="","Neinformat",NETWORKDAYS(AK172+AL172,AE172+AF172,$BR$2:$BR$14)-2),"Nu a fost afectat producator/consumator")),"") -> Afectat sau NU? | BG172: =IF(C172="X",IF(AN172="DA",IF(AND(BF172>=5,AK172<>""),LEN(TRIM(V172))-LEN(SUBSTITUTE(V172,CHAR(44),""))+1,0),"-"),"") -> - | BH172: =IF(C172="X",IF(AN172="DA",LEN(TRIM(V172))-LEN(SUBSTITUTE(V172,CHAR(44),""))+1,"-"),"") -> - | BI172: =IF(C172="X",IF(AN172="","Afectat sau NU?",IF(AN172="DA",IF(AI172="","Neinformat",NETWORKDAYS(AI172+AJ172,AE172+AF172,$BR$2:$BR$14)-2),"Nu a fost afectat producator/consumator")),"") -> Afectat sau NU? | BJ172: =IF(C172="X",IF(AN172="DA",IF(AND(BI172>=5,AI172<>""),LEN(TRIM(U172))-LEN(SUBSTITUTE(U172,CHAR(44),""))+1,0),"-"),"") -> - | BK172: =IF(C172="X",IF(AN172="DA",LEN(TRIM(U172))-LEN(SUBSTITUTE(U172,CHAR(44),""))+1,"-"),"") -> - | BL172: =IF(C172="X",IF(AN172="","Afectat sau NU?",IF(AN172="DA",((AG172+AH172)-(Z172+AA172))*24,"Nu a fost afectat producator/consumator")),"") -> Afectat sau NU? | BM172: =IF(C172="X",IF(AN172<>"DA","-",IF(AND(AN172="DA",BL172<=0),LEN(TRIM(V172))-LEN(SUBSTITUTE(V172,CHAR(44),""))+1+LEN(TRIM(U172))-LEN(SUBSTITUTE(U172,CHAR(44),""))+1,0)),"") -> - | BN172: =IF(C172="X",IF(AN172="DA",LEN(TRIM(V172))-LEN(SUBSTITUTE(V172,CHAR(44),""))+1+LEN(TRIM(U172))-LEN(SUBSTITUTE(U172,CHAR(44),""))+1,"-"),"") -> -
A173: 158 | B173: - | C173: X | D173: Montare/înlocuire îmbinare electroizolantă pe conducta de racord SRM Videle | E173: 104225 | F173: Mârșa | G173: Giurgiu | H173: 543744.14 | I173: 321212.96 | J173: 543274.57 | K173: 310044.62 | L173: - | M173: - | N173: SM1165D0 | O173: Depozit 160 Videle | P173: - | Q173: - | R173: - | S173: - | T173: SM-SD001 | U173: Cez Vânzare, E.On Energie, Electric&Gas, Enel, Petrom, Restart Energy | V173: Petrom | W173: aprilie - septembrie 2020 | AB173: București | AR173: =IF(B173="X",IF(AN173="","Afectat sau NU?",IF(AN173="DA",IF(((AK173+AL173)-(AE173+AF173))*24<-720,"Neinformat",((AK173+AL173)-(AE173+AF173))*24),"Nu a fost afectat producator/consumator")),"") ->  | AS173: =IF(B173="X",IF(AN173="DA",IF(AR173<6,LEN(TRIM(V173))-LEN(SUBSTITUTE(V173,CHAR(44),""))+1,0),"-"),"") ->  | AT173: =IF(B173="X",IF(AN173="DA",LEN(TRIM(V173))-LEN(SUBSTITUTE(V173,CHAR(44),""))+1,"-"),"") ->  | AU173: =IF(B173="X",IF(AN173="","Afectat sau NU?",IF(AN173="DA",IF(((AI173+AJ173)-(AE173+AF173))*24<-720,"Neinformat",((AI173+AJ173)-(AE173+AF173))*24),"Nu a fost afectat producator/consumator")),"") ->  | AV173: =IF(B173="X",IF(AN173="DA",IF(AU173<6,LEN(TRIM(U173))-LEN(SUBSTITUTE(U173,CHAR(44),""))+1,0),"-"),"") ->  | AW173: =IF(B173="X",IF(AN173="DA",LEN(TRIM(U173))-LEN(SUBSTITUTE(U173,CHAR(44),""))+1,"-"),"") ->  | AX173: =IF(B173="X",IF(AN173="","Afectat sau NU?",IF(AN173="DA",((AG173+AH173)-(AE173+AF173))*24,"Nu a fost afectat producator/consumator")),"") ->  | AY173: =IF(B173="X",IF(AN173="DA",IF(AX173>24,IF(#REF!="NU",0,LEN(TRIM(V173))-LEN(SUBSTITUTE(V173,CHAR(44),""))+1),0),"-"),"") ->  | AZ173: =IF(B173="X",IF(AN173="DA",IF(AX173>24,LEN(TRIM(V173))-LEN(SUBSTITUTE(V173,CHAR(44),""))+1,0),"-"),"") ->  | BF173: =IF(C173="X",IF(AN173="","Afectat sau NU?",IF(AN173="DA",IF(AK173="","Neinformat",NETWORKDAYS(AK173+AL173,AE173+AF173,$BR$2:$BR$14)-2),"Nu a fost afectat producator/consumator")),"") -> Afectat sau NU? | BG173: =IF(C173="X",IF(AN173="DA",IF(AND(BF173>=5,AK173<>""),LEN(TRIM(V173))-LEN(SUBSTITUTE(V173,CHAR(44),""))+1,0),"-"),"") -> - | BH173: =IF(C173="X",IF(AN173="DA",LEN(TRIM(V173))-LEN(SUBSTITUTE(V173,CHAR(44),""))+1,"-"),"") -> - | BI173: =IF(C173="X",IF(AN173="","Afectat sau NU?",IF(AN173="DA",IF(AI173="","Neinformat",NETWORKDAYS(AI173+AJ173,AE173+AF173,$BR$2:$BR$14)-2),"Nu a fost afectat producator/consumator")),"") -> Afectat sau NU? | BJ173: =IF(C173="X",IF(AN173="DA",IF(AND(BI173>=5,AI173<>""),LEN(TRIM(U173))-LEN(SUBSTITUTE(U173,CHAR(44),""))+1,0),"-"),"") -> - | BK173: =IF(C173="X",IF(AN173="DA",LEN(TRIM(U173))-LEN(SUBSTITUTE(U173,CHAR(44),""))+1,"-"),"") -> - | BL173: =IF(C173="X",IF(AN173="","Afectat sau NU?",IF(AN173="DA",((AG173+AH173)-(Z173+AA173))*24,"Nu a fost afectat producator/consumator")),"") -> Afectat sau NU? | BM173: =IF(C173="X",IF(AN173<>"DA","-",IF(AND(AN173="DA",BL173<=0),LEN(TRIM(V173))-LEN(SUBSTITUTE(V173,CHAR(44),""))+1+LEN(TRIM(U173))-LEN(SUBSTITUTE(U173,CHAR(44),""))+1,0)),"") -> - | BN173: =IF(C173="X",IF(AN173="DA",LEN(TRIM(V173))-LEN(SUBSTITUTE(V173,CHAR(44),""))+1+LEN(TRIM(U173))-LEN(SUBSTITUTE(U173,CHAR(44),""))+1,"-"),"") -> -
A174: 159 | B174: - | C174: X | D174: Lucrări de mentenanță în SRM Valea Călugărească | E174: 135949 | F174: Valea Călugărească | G174: Prahova | H174: 591733.46 | I174: 384306.79 | J174: 591733.46 | K174: 384306.79 | L174: - | M174: - | N174: SM0136D1 | O174: Valea Călugărească | P174: - | Q174: - | R174: - | S174: - | T174: SM-SD001 | U174: Cez Vânzare, E.on Energie, Electric Planners, Electrica Furnizare, Electrocentrale București, Enel Energie, Energy Distribution, Engie, Met România, Monsson, Premier Energy Trading, RWE, Aderro GP, Cis Gaz, Conef Gaz, Cyeb, Distrigaz Vest, Electric&Gas, Electrocentrale Constanța, Enel Muntenia, Gas Provider, Entrex, Euro Seven, Gaz Est, Hargaz, Megaconstruct, Next Energy, Nova Power, Oligopol | V174: Distrigaz Sud Rețele | W174: aprilie - septembrie 2020 | AB174: București | AR174: =IF(B174="X",IF(AN174="","Afectat sau NU?",IF(AN174="DA",IF(((AK174+AL174)-(AE174+AF174))*24<-720,"Neinformat",((AK174+AL174)-(AE174+AF174))*24),"Nu a fost afectat producator/consumator")),"") ->  | AS174: =IF(B174="X",IF(AN174="DA",IF(AR174<6,LEN(TRIM(V174))-LEN(SUBSTITUTE(V174,CHAR(44),""))+1,0),"-"),"") ->  | AT174: =IF(B174="X",IF(AN174="DA",LEN(TRIM(V174))-LEN(SUBSTITUTE(V174,CHAR(44),""))+1,"-"),"") ->  | AU174: =IF(B174="X",IF(AN174="","Afectat sau NU?",IF(AN174="DA",IF(((AI174+AJ174)-(AE174+AF174))*24<-720,"Neinformat",((AI174+AJ174)-(AE174+AF174))*24),"Nu a fost afectat producator/consumator")),"") ->  | AV174: =IF(B174="X",IF(AN174="DA",IF(AU174<6,LEN(TRIM(U174))-LEN(SUBSTITUTE(U174,CHAR(44),""))+1,0),"-"),"") ->  | AW174: =IF(B174="X",IF(AN174="DA",LEN(TRIM(U174))-LEN(SUBSTITUTE(U174,CHAR(44),""))+1,"-"),"") ->  | AX174: =IF(B174="X",IF(AN174="","Afectat sau NU?",IF(AN174="DA",((AG174+AH174)-(AE174+AF174))*24,"Nu a fost afectat producator/consumator")),"") ->  | AY174: =IF(B174="X",IF(AN174="DA",IF(AX174>24,IF(#REF!="NU",0,LEN(TRIM(V174))-LEN(SUBSTITUTE(V174,CHAR(44),""))+1),0),"-"),"") ->  | AZ174: =IF(B174="X",IF(AN174="DA",IF(AX174>24,LEN(TRIM(V174))-LEN(SUBSTITUTE(V174,CHAR(44),""))+1,0),"-"),"") ->  | BF174: =IF(C174="X",IF(AN174="","Afectat sau NU?",IF(AN174="DA",IF(AK174="","Neinformat",NETWORKDAYS(AK174+AL174,AE174+AF174,$BR$2:$BR$14)-2),"Nu a fost afectat producator/consumator")),"") -> Afectat sau NU? | BG174: =IF(C174="X",IF(AN174="DA",IF(AND(BF174>=5,AK174<>""),LEN(TRIM(V174))-LEN(SUBSTITUTE(V174,CHAR(44),""))+1,0),"-"),"") -> - | BH174: =IF(C174="X",IF(AN174="DA",LEN(TRIM(V174))-LEN(SUBSTITUTE(V174,CHAR(44),""))+1,"-"),"") -> - | BI174: =IF(C174="X",IF(AN174="","Afectat sau NU?",IF(AN174="DA",IF(AI174="","Neinformat",NETWORKDAYS(AI174+AJ174,AE174+AF174,$BR$2:$BR$14)-2),"Nu a fost afectat producator/consumator")),"") -> Afectat sau NU? | BJ174: =IF(C174="X",IF(AN174="DA",IF(AND(BI174>=5,AI174<>""),LEN(TRIM(U174))-LEN(SUBSTITUTE(U174,CHAR(44),""))+1,0),"-"),"") -> - | BK174: =IF(C174="X",IF(AN174="DA",LEN(TRIM(U174))-LEN(SUBSTITUTE(U174,CHAR(44),""))+1,"-"),"") -> - | BL174: =IF(C174="X",IF(AN174="","Afectat sau NU?",IF(AN174="DA",((AG174+AH174)-(Z174+AA174))*24,"Nu a fost afectat producator/consumator")),"") -> Afectat sau NU? | BM174: =IF(C174="X",IF(AN174<>"DA","-",IF(AND(AN174="DA",BL174<=0),LEN(TRIM(V174))-LEN(SUBSTITUTE(V174,CHAR(44),""))+1+LEN(TRIM(U174))-LEN(SUBSTITUTE(U174,CHAR(44),""))+1,0)),"") -> - | BN174: =IF(C174="X",IF(AN174="DA",LEN(TRIM(V174))-LEN(SUBSTITUTE(V174,CHAR(44),""))+1+LEN(TRIM(U174))-LEN(SUBSTITUTE(U174,CHAR(44),""))+1,"-"),"") -> -
A175: 160 | B175: - | C175: X | D175: Lucrări de mentenanță în SRM Valea Călugărească | E175: 135949 | F175: Valea Călugărească | G175: Prahova | H175: 591733.46 | I175: 384306.79 | J175: 591733.46 | K175: 384306.79 | L175: - | M175: - | N175: SM1112D0 | O175: Urlați | P175: - | Q175: - | R175: - | S175: - | T175: SM-SD001 | U175: Cez Vânzare, E.on Energie, Electric Planners, Electrica Furnizare, Electrocentrale București, Enel Energie, Energy Distribution, Engie, Met România, Monsson, Premier Energy Trading, RWE, Aderro GP, Cis Gaz, Conef Gaz, Cyeb, Distrigaz Vest, Electric&Gas, Electrocentrale Constanța, Enel Muntenia, Gas Provider, Entrex, Euro Seven, Gaz Est, Hargaz, Megaconstruct, Next Energy, Nova Power, Oligopol | V175: Distrigaz Sud Rețele | W175: aprilie - septembrie 2020 | AB175: București | AR175: =IF(B175="X",IF(AN175="","Afectat sau NU?",IF(AN175="DA",IF(((AK175+AL175)-(AE175+AF175))*24<-720,"Neinformat",((AK175+AL175)-(AE175+AF175))*24),"Nu a fost afectat producator/consumator")),"") ->  | AS175: =IF(B175="X",IF(AN175="DA",IF(AR175<6,LEN(TRIM(V175))-LEN(SUBSTITUTE(V175,CHAR(44),""))+1,0),"-"),"") ->  | AT175: =IF(B175="X",IF(AN175="DA",LEN(TRIM(V175))-LEN(SUBSTITUTE(V175,CHAR(44),""))+1,"-"),"") ->  | AU175: =IF(B175="X",IF(AN175="","Afectat sau NU?",IF(AN175="DA",IF(((AI175+AJ175)-(AE175+AF175))*24<-720,"Neinformat",((AI175+AJ175)-(AE175+AF175))*24),"Nu a fost afectat producator/consumator")),"") ->  | AV175: =IF(B175="X",IF(AN175="DA",IF(AU175<6,LEN(TRIM(U175))-LEN(SUBSTITUTE(U175,CHAR(44),""))+1,0),"-"),"") ->  | AW175: =IF(B175="X",IF(AN175="DA",LEN(TRIM(U175))-LEN(SUBSTITUTE(U175,CHAR(44),""))+1,"-"),"") ->  | AX175: =IF(B175="X",IF(AN175="","Afectat sau NU?",IF(AN175="DA",((AG175+AH175)-(AE175+AF175))*24,"Nu a fost afectat producator/consumator")),"") ->  | AY175: =IF(B175="X",IF(AN175="DA",IF(AX175>24,IF(#REF!="NU",0,LEN(TRIM(V175))-LEN(SUBSTITUTE(V175,CHAR(44),""))+1),0),"-"),"") ->  | AZ175: =IF(B175="X",IF(AN175="DA",IF(AX175>24,LEN(TRIM(V175))-LEN(SUBSTITUTE(V175,CHAR(44),""))+1,0),"-"),"") ->  | BF175: =IF(C175="X",IF(AN175="","Afectat sau NU?",IF(AN175="DA",IF(AK175="","Neinformat",NETWORKDAYS(AK175+AL175,AE175+AF175,$BR$2:$BR$14)-2),"Nu a fost afectat producator/consumator")),"") -> Afectat sau NU? | BG175: =IF(C175="X",IF(AN175="DA",IF(AND(BF175>=5,AK175<>""),LEN(TRIM(V175))-LEN(SUBSTITUTE(V175,CHAR(44),""))+1,0),"-"),"") -> - | BH175: =IF(C175="X",IF(AN175="DA",LEN(TRIM(V175))-LEN(SUBSTITUTE(V175,CHAR(44),""))+1,"-"),"") -> - | BI175: =IF(C175="X",IF(AN175="","Afectat sau NU?",IF(AN175="DA",IF(AI175="","Neinformat",NETWORKDAYS(AI175+AJ175,AE175+AF175,$BR$2:$BR$14)-2),"Nu a fost afectat producator/consumator")),"") -> Afectat sau NU? | BJ175: =IF(C175="X",IF(AN175="DA",IF(AND(BI175>=5,AI175<>""),LEN(TRIM(U175))-LEN(SUBSTITUTE(U175,CHAR(44),""))+1,0),"-"),"") -> - | BK175: =IF(C175="X",IF(AN175="DA",LEN(TRIM(U175))-LEN(SUBSTITUTE(U175,CHAR(44),""))+1,"-"),"") -> - | BL175: =IF(C175="X",IF(AN175="","Afectat sau NU?",IF(AN175="DA",((AG175+AH175)-(Z175+AA175))*24,"Nu a fost afectat producator/consumator")),"") -> Afectat sau NU? | BM175: =IF(C175="X",IF(AN175<>"DA","-",IF(AND(AN175="DA",BL175<=0),LEN(TRIM(V175))-LEN(SUBSTITUTE(V175,CHAR(44),""))+1+LEN(TRIM(U175))-LEN(SUBSTITUTE(U175,CHAR(44),""))+1,0)),"") -> - | BN175: =IF(C175="X",IF(AN175="DA",LEN(TRIM(V175))-LEN(SUBSTITUTE(V175,CHAR(44),""))+1+LEN(TRIM(U175))-LEN(SUBSTITUTE(U175,CHAR(44),""))+1,"-"),"") -> -
A176: 161 | B176: X | C176: - | D176: Demontare instalație de odorizare prin evaporare SRM Ghiroda | E176: 155289 | F176: Ghiroda | G176: Timiș | H176: 213312 | I176: 480707 | J176: 213312 | K176: 480707 | L176: - | M176: - | N176: SM0344D0 | O176: Ghiroda | P176: - | Q176: - | R176: - | S176: - | T176: SM-SD001 | U176: Engie, Electrica Furnizare, Premier Energy Trading, Premier Energy, Restart Energy, Wiee, E.on Energie, E.On Gaz Furnizare, Cez Vânzare, Enel Energie, Gas&Power, Gaz Est, Met România, Nova Power, Energy Distribution, CPL Concordia, Hargaz, Prisma Serv, Conef Gaz, Distrigaz Vest, Next Energy, Cis Gaz, Aderro GP, Tinmar, Enel Muntenia, RWE, Cyeb, Entrex, Petrom, Electric&Gas, Pado Group, Design Proiect, Gazmir, SST Grup, Tetarom, Gas Provider, Renovatio, Electric Planners, Monsson, Mihoc Oil | V176: Delgaz Grid | W176: - | X176: 2019-10-01 | Y176: 10:10:00 | Z176: 2019-10-01 | AA176: 14:00:00 | AB176: Arad | AC176: Efectuată | AD176: - | AE176: 2019-10-01 | AF176: 10:10:00 | AG176: 2019-10-01 | AH176: 11:00:00 | AI176: 2019-10-01 | AJ176: 10:39:00 | AK176: 2019-10-01 | AL176: 10:25:00 | AM176: 10041/30.09.2019 | AN176: DA | AR176: 0.2500000001 | AS176: 1 | AT176: 1 | AU176: 0.4833333333 | AV176: 40 | AW176: 40 | AX176: 0.8333333334 | AY176: =IF(B176="X",IF(AN176="DA",IF(AX176>24,IF(#REF!="NU",0,LEN(TRIM(V176))-LEN(SUBSTITUTE(V176,CHAR(44),""))+1),0),"-"),"") -> 0 | AZ176: 0
A177: =A176+1 -> 162 | B177: X | C177: - | D177: Remediere defect pe conducta 20” Ișalnița - PM402 | E177: 72418 | F177: Ghercești | G177: Dolj | H177: 404868.97 | I177: 317927.2 | J177: 404868.97 | K177: 317927.2 | L177: - | M177: - | N177: - | O177: - | P177: PM0275 | Q177: Stația Centrală Ghercești Extracție | R177: - | S177: - | T177: VPM01 | U177: E.On Energie, E.On Furnizare, Cez Vânzare, Nova Power, Met România, Romgaz, Engie, Alpha Metal, Hargaz, Petrom, Wirom Gas | V177: Romgaz Depogaz Ploiești | W177: - | X177: 2019-10-09 | Y177: 08:47:00 | Z177: 2019-10-09 | AA177: 20:00:00 | AB177: Craiova | AC177: Efectuată | AD177: - | AE177: 2019-10-09 | AF177: 08:47:00 | AG177: 2019-10-09 | AH177: 14:50:00 | AI177: 2019-10-09 | AJ177: 09:25:00 | AK177: 2019-10-09 | AL177: 09:12:00 | AM177: 2355/09.10.2019 | AN177: DA | AR177: =IF(B177="X",IF(AN177="","Afectat sau NU?",IF(AN177="DA",IF(((AK177+AL177)-(AE177+AF177))*24<-720,"Neinformat",((AK177+AL177)-(AE177+AF177))*24),"Nu a fost afectat producator/consumator")),"") -> 0.4166666666 | AS177: =IF(B177="X",IF(AN177="DA",IF(AR177<6,LEN(TRIM(V177))-LEN(SUBSTITUTE(V177,CHAR(44),""))+1,0),"-"),"") -> 1 | AT177: =IF(B177="X",IF(AN177="DA",LEN(TRIM(V177))-LEN(SUBSTITUTE(V177,CHAR(44),""))+1,"-"),"") -> 1 | AU177: =IF(B177="X",IF(AN177="","Afectat sau NU?",IF(AN177="DA",IF(((AI177+AJ177)-(AE177+AF177))*24<-720,"Neinformat",((AI177+AJ177)-(AE177+AF177))*24),"Nu a fost afectat producator/consumator")),"") -> 0.6333333333 | AV177: =IF(B177="X",IF(AN177="DA",IF(AU177<6,LEN(TRIM(U177))-LEN(SUBSTITUTE(U177,CHAR(44),""))+1,0),"-"),"") -> 11 | AW177: =IF(B177="X",IF(AN177="DA",LEN(TRIM(U177))-LEN(SUBSTITUTE(U177,CHAR(44),""))+1,"-"),"") -> 11 | AX177: =IF(B177="X",IF(AN177="","Afectat sau NU?",IF(AN177="DA",((AG177+AH177)-(AE177+AF177))*24,"Nu a fost afectat producator/consumator")),"") -> 6.05 | AY177: =IF(B177="X",IF(AN177="DA",IF(AX177>24,IF(#REF!="NU",0,LEN(TRIM(V177))-LEN(SUBSTITUTE(V177,CHAR(44),""))+1),0),"-"),"") -> 0 | AZ177: =IF(B177="X",IF(AN177="DA",IF(AX177>24,LEN(TRIM(V177))-LEN(SUBSTITUTE(V177,CHAR(44),""))+1,0),"-"),"") -> 0 | BF177: =IF(C177="X",IF(AN177="","Afectat sau NU?",IF(AN177="DA",IF(AK177="","Neinformat",NETWORKDAYS(AK177+AL177,AE177+AF177,$BR$2:$BR$14)-2),"Nu a fost afectat producator/consumator")),"") ->  | BG177: =IF(C177="X",IF(AN177="DA",IF(AND(BF177>=5,AK177<>""),LEN(TRIM(V177))-LEN(SUBSTITUTE(V177,CHAR(44),""))+1,0),"-"),"") ->  | BH177: =IF(C177="X",IF(AN177="DA",LEN(TRIM(V177))-LEN(SUBSTITUTE(V177,CHAR(44),""))+1,"-"),"") ->  | BI177: =IF(C177="X",IF(AN177="","Afectat sau NU?",IF(AN177="DA",IF(AI177="","Neinformat",NETWORKDAYS(AI177+AJ177,AE177+AF177,$BR$2:$BR$14)-2),"Nu a fost afectat producator/consumator")),"") ->  | BJ177: =IF(C177="X",IF(AN177="DA",IF(AND(BI177>=5,AI177<>""),LEN(TRIM(U177))-LEN(SUBSTITUTE(U177,CHAR(44),""))+1,0),"-"),"") ->  | BK177: =IF(C177="X",IF(AN177="DA",LEN(TRIM(U177))-LEN(SUBSTITUTE(U177,CHAR(44),""))+1,"-"),"") ->  | BL177: =IF(C177="X",IF(AN177="","Afectat sau NU?",IF(AN177="DA",((AG177+AH177)-(Z177+AA177))*24,"Nu a fost afectat producator/consumator")),"") ->  | BM177: =IF(C177="X",IF(AN177<>"DA","-",IF(AND(AN177="DA",BL177<=0),LEN(TRIM(V177))-LEN(SUBSTITUTE(V177,CHAR(44),""))+1+LEN(TRIM(U177))-LEN(SUBSTITUTE(U177,CHAR(44),""))+1,0)),"") ->  | BN177: =IF(C177="X",IF(AN177="DA",LEN(TRIM(V177))-LEN(SUBSTITUTE(V177,CHAR(44),""))+1+LEN(TRIM(U177))-LEN(SUBSTITUTE(U177,CHAR(44),""))+1,"-"),"") -> 
A178: 163 | B178: X | C178: - | D178: Înlocuire robinet R10 pană defect în SRM Orțișoara | E178: 158029 | F178: Orțișoara | G178: Timiș | H178: 106237 | I178: 502974 | J178: 106237 | K178: 502974 | L178: - | M178: - | N178: SM0116D0 | O178: Orțișoara | P178: - | Q178: - | R178: - | S178: - | T178: SM-SD001 | U178: Nova Power, Cez Vânzare, Distrigaz Vest, Engie, E.on Energie, E.On Furnizare, Electric&Gas, Energy Distribution, Enel Energie, Enel Muntenia, Premier Energy Trading, Premier Energy, Gaz Est, Gaz Vest, Met România, Petrom, Gas Provider, Renovatio, Restart Energy, Tinmar | V178: Gaz Vest | W178: - | X178: 2019-10-22 | Y178: 10:00:00 | Z178: 2019-10-22 | AA178: 11:30:00 | AB178: Arad | AC178: Efectuată | AD178: - | AE178: 2019-10-22 | AF178: 10:00:00 | AG178: 2019-10-22 | AH178: 10:30:00 | AI178: 2019-10-22 | AJ178: 10:26:00 | AK178: 2019-10-22 | AL178: 10:16:00 | AM178: 10769/17.10.2019 | AN178: DA | AR178: =IF(B178="X",IF(AN178="","Afectat sau NU?",IF(AN178="DA",IF(((AK178+AL178)-(AE178+AF178))*24<-720,"Neinformat",((AK178+AL178)-(AE178+AF178))*24),"Nu a fost afectat producator/consumator")),"") -> 0.2666666667 | AS178: =IF(B178="X",IF(AN178="DA",IF(AR178<6,LEN(TRIM(V178))-LEN(SUBSTITUTE(V178,CHAR(44),""))+1,0),"-"),"") -> 1 | AT178: =IF(B178="X",IF(AN178="DA",LEN(TRIM(V178))-LEN(SUBSTITUTE(V178,CHAR(44),""))+1,"-"),"") -> 1 | AU178: =IF(B178="X",IF(AN178="","Afectat sau NU?",IF(AN178="DA",IF(((AI178+AJ178)-(AE178+AF178))*24<-720,"Neinformat",((AI178+AJ178)-(AE178+AF178))*24),"Nu a fost afectat producator/consumator")),"") -> 0.4333333333 | AV178: =IF(B178="X",IF(AN178="DA",IF(AU178<6,LEN(TRIM(U178))-LEN(SUBSTITUTE(U178,CHAR(44),""))+1,0),"-"),"") -> 20 | AW178: =IF(B178="X",IF(AN178="DA",LEN(TRIM(U178))-LEN(SUBSTITUTE(U178,CHAR(44),""))+1,"-"),"") -> 20 | AX178: =IF(B178="X",IF(AN178="","Afectat sau NU?",IF(AN178="DA",((AG178+AH178)-(AE178+AF178))*24,"Nu a fost afectat producator/consumator")),"") -> 0.5000000001 | AY178: =IF(B178="X",IF(AN178="DA",IF(AX178>24,IF(#REF!="NU",0,LEN(TRIM(V178))-LEN(SUBSTITUTE(V178,CHAR(44),""))+1),0),"-"),"") -> 0 | AZ178: =IF(B178="X",IF(AN178="DA",IF(AX178>24,LEN(TRIM(V178))-LEN(SUBSTITUTE(V178,CHAR(44),""))+1,0),"-"),"") -> 0 | BF178: =IF(C178="X",IF(AN178="","Afectat sau NU?",IF(AN178="DA",IF(AK178="","Neinformat",NETWORKDAYS(AK178+AL178,AE178+AF178,$BR$2:$BR$14)-2),"Nu a fost afectat producator/consumator")),"") ->  | BG178: =IF(C178="X",IF(AN178="DA",IF(AND(BF178>=5,AK178<>""),LEN(TRIM(V178))-LEN(SUBSTITUTE(V178,CHAR(44),""))+1,0),"-"),"") ->  | BH178: =IF(C178="X",IF(AN178="DA",LEN(TRIM(V178))-LEN(SUBSTITUTE(V178,CHAR(44),""))+1,"-"),"") ->  | BI178: =IF(C178="X",IF(AN178="","Afectat sau NU?",IF(AN178="DA",IF(AI178="","Neinformat",NETWORKDAYS(AI178+AJ178,AE178+AF178,$BR$2:$BR$14)-2),"Nu a fost afectat producator/consumator")),"") ->  | BJ178: =IF(C178="X",IF(AN178="DA",IF(AND(BI178>=5,AI178<>""),LEN(TRIM(U178))-LEN(SUBSTITUTE(U178,CHAR(44),""))+1,0),"-"),"") ->  | BK178: =IF(C178="X",IF(AN178="DA",LEN(TRIM(U178))-LEN(SUBSTITUTE(U178,CHAR(44),""))+1,"-"),"") ->  | BL178: =IF(C178="X",IF(AN178="","Afectat sau NU?",IF(AN178="DA",((AG178+AH178)-(Z178+AA178))*24,"Nu a fost afectat producator/consumator")),"") ->  | BM178: =IF(C178="X",IF(AN178<>"DA","-",IF(AND(AN178="DA",BL178<=0),LEN(TRIM(V178))-LEN(SUBSTITUTE(V178,CHAR(44),""))+1+LEN(TRIM(U178))-LEN(SUBSTITUTE(U178,CHAR(44),""))+1,0)),"") ->  | BN178: =IF(C178="X",IF(AN178="DA",LEN(TRIM(V178))-LEN(SUBSTITUTE(V178,CHAR(44),""))+1+LEN(TRIM(U178))-LEN(SUBSTITUTE(U178,CHAR(44),""))+1,"-"),"") -> 
A179: 164 | B179: X | C179: - | D179: Remediere defect pe conducta magistrala 20” Sărmășel - Ceanu Mare | E179: 56853 | F179: Ceanu Mare | G179: Cluj | H179: 422564.66 | I179: 573752.26 | J179: 422564.66 | K179: 573752.26 | L179: - | M179: - | N179: SM0631D0 | O179: Ceanu Mare - Cătun | P179: - | Q179: - | R179: - | S179: - | T179: SM-SD001 | U179: Engie, Electrica Furnizare, Premier Energy Trading, Premier Energy, Restart Energy, Wiee, E.on Energie, E.On Gaz Furnizare, Petrom, Cez Vânzare, Enel Energie, Gas&Power, Gaz Est, Met România, Nova Power, Energy Distribution, CPL Concordia, Hargaz, Prisma Serv, Conef Gaz, Distrigaz Vest, Next Energy, Cis Gaz, Aderro GP, Tinmar, Enel Muntenia, RWE, Cyeb, Entrex, Electric&Gas, Pado Group, Design Proiect, Gazmir, SST Grup, Tetarom, Gas Provider, Renovatio, Electric Planners, Monsson, Gaz Vest, Mihoc Oil | V179: Delgaz Grid | W179: - | X179: 2019-10-24 | Y179: 08:00:00 | Z179: 2019-10-24 | AA179: 17:00:00 | AB179: Cluj | AC179: Efectuată | AD179: - | AE179: 2019-10-24 | AF179: 08:00:00 | AG179: 2019-10-24 | AH179: 16:43:00 | AI179: 2019-10-24 | AJ179: 08:29:00 | AK179: 2019-10-24 | AL179: 08:02:00 | AM179: 11334/23.10.2019 | AN179: DA | AR179: =IF(B179="X",IF(AN179="","Afectat sau NU?",IF(AN179="DA",IF(((AK179+AL179)-(AE179+AF179))*24<-720,"Neinformat",((AK179+AL179)-(AE179+AF179))*24),"Nu a fost afectat producator/consumator")),"") -> 0.03333333327 | AS179: =IF(B179="X",IF(AN179="DA",IF(AR179<6,LEN(TRIM(V179))-LEN(SUBSTITUTE(V179,CHAR(44),""))+1,0),"-"),"") -> 1 | AT179: =IF(B179="X",IF(AN179="DA",LEN(TRIM(V179))-LEN(SUBSTITUTE(V179,CHAR(44),""))+1,"-"),"") -> 1 | AU179: =IF(B179="X",IF(AN179="","Afectat sau NU?",IF(AN179="DA",IF(((AI179+AJ179)-(AE179+AF179))*24<-720,"Neinformat",((AI179+AJ179)-(AE179+AF179))*24),"Nu a fost afectat producator/consumator")),"") -> 0.4833333333 | AV179: =IF(B179="X",IF(AN179="DA",IF(AU179<6,LEN(TRIM(U179))-LEN(SUBSTITUTE(U179,CHAR(44),""))+1,0),"-"),"") -> 41 | AW179: =IF(B179="X",IF(AN179="DA",LEN(TRIM(U179))-LEN(SUBSTITUTE(U179,CHAR(44),""))+1,"-"),"") -> 41 | AX179: =IF(B179="X",IF(AN179="","Afectat sau NU?",IF(AN179="DA",((AG179+AH179)-(AE179+AF179))*24,"Nu a fost afectat producator/consumator")),"") -> 8.716666667 | AY179: =IF(B179="X",IF(AN179="DA",IF(AX179>24,IF(#REF!="NU",0,LEN(TRIM(V179))-LEN(SUBSTITUTE(V179,CHAR(44),""))+1),0),"-"),"") -> 0 | AZ179: =IF(B179="X",IF(AN179="DA",IF(AX179>24,LEN(TRIM(V179))-LEN(SUBSTITUTE(V179,CHAR(44),""))+1,0),"-"),"") -> 0 | BF179: =IF(C179="X",IF(AN179="","Afectat sau NU?",IF(AN179="DA",IF(AK179="","Neinformat",NETWORKDAYS(AK179+AL179,AE179+AF179,$BR$2:$BR$14)-2),"Nu a fost afectat producator/consumator")),"") ->  | BG179: =IF(C179="X",IF(AN179="DA",IF(AND(BF179>=5,AK179<>""),LEN(TRIM(V179))-LEN(SUBSTITUTE(V179,CHAR(44),""))+1,0),"-"),"") ->  | BH179: =IF(C179="X",IF(AN179="DA",LEN(TRIM(V179))-LEN(SUBSTITUTE(V179,CHAR(44),""))+1,"-"),"") ->  | BI179: =IF(C179="X",IF(AN179="","Afectat sau NU?",IF(AN179="DA",IF(AI179="","Neinformat",NETWORKDAYS(AI179+AJ179,AE179+AF179,$BR$2:$BR$14)-2),"Nu a fost afectat producator/consumator")),"") ->  | BJ179: =IF(C179="X",IF(AN179="DA",IF(AND(BI179>=5,AI179<>""),LEN(TRIM(U179))-LEN(SUBSTITUTE(U179,CHAR(44),""))+1,0),"-"),"") ->  | BK179: =IF(C179="X",IF(AN179="DA",LEN(TRIM(U179))-LEN(SUBSTITUTE(U179,CHAR(44),""))+1,"-"),"") ->  | BL179: =IF(C179="X",IF(AN179="","Afectat sau NU?",IF(AN179="DA",((AG179+AH179)-(Z179+AA179))*24,"Nu a fost afectat producator/consumator")),"") ->  | BM179: =IF(C179="X",IF(AN179<>"DA","-",IF(AND(AN179="DA",BL179<=0),LEN(TRIM(V179))-LEN(SUBSTITUTE(V179,CHAR(44),""))+1+LEN(TRIM(U179))-LEN(SUBSTITUTE(U179,CHAR(44),""))+1,0)),"") ->  | BN179: =IF(C179="X",IF(AN179="DA",LEN(TRIM(V179))-LEN(SUBSTITUTE(V179,CHAR(44),""))+1+LEN(TRIM(U179))-LEN(SUBSTITUTE(U179,CHAR(44),""))+1,"-"),"") -> 
A180: 165 | B180: X | C180: - | D180: Remediere defect pe conducta magistrala 20” Sărmășel - Ceanu Mare | E180: 56933 | F180: Iacobeni | G180: Cluj | H180: 496796.78 | I180: 576407.13 | J180: 496796.78 | K180: 576407.13 | L180: - | M180: - | N180: SM0634D0 | O180: Iacobeni | P180: - | Q180: - | R180: - | S180: - | T180: SM-SD001 | U180: Engie, Electrica Furnizare, Premier Energy Trading, Premier Energy, Restart Energy, Wiee, E.on Energie, E.On Gaz Furnizare, Petrom, Cez Vânzare, Enel Energie, Gas&Power, Gaz Est, Met România, Nova Power, Energy Distribution, CPL Concordia, Hargaz, Prisma Serv, Conef Gaz, Distrigaz Vest, Next Energy, Cis Gaz, Aderro GP, Tinmar, Enel Muntenia, RWE, Cyeb, Entrex, Electric&Gas, Pado Group, Design Proiect, Gazmir, SST Grup, Tetarom, Gas Provider, Renovatio, Electric Planners, Monsson, Gaz Vest, Mihoc Oil | V180: Delgaz Grid | W180: - | X180: 2019-10-24 | Y180: 08:10:00 | Z180: 2019-10-24 | AA180: 17:00:00 | AB180: Cluj | AC180: Efectuată | AD180: - | AE180: 2019-10-24 | AF180: 08:10:00 | AG180: 2019-10-24 | AH180: 16:55:00 | AI180: 2019-10-24 | AJ180: 08:39:00 | AK180: 2019-10-24 | AL180: 08:23:00 | AM180: 11334/23.10.2019 | AN180: DA | AR180: =IF(B180="X",IF(AN180="","Afectat sau NU?",IF(AN180="DA",IF(((AK180+AL180)-(AE180+AF180))*24<-720,"Neinformat",((AK180+AL180)-(AE180+AF180))*24),"Nu a fost afectat producator/consumator")),"") -> 0.2166666667 | AS180: =IF(B180="X",IF(AN180="DA",IF(AR180<6,LEN(TRIM(V180))-LEN(SUBSTITUTE(V180,CHAR(44),""))+1,0),"-"),"") -> 1 | AT180: =IF(B180="X",IF(AN180="DA",LEN(TRIM(V180))-LEN(SUBSTITUTE(V180,CHAR(44),""))+1,"-"),"") -> 1 | AU180: =IF(B180="X",IF(AN180="","Afectat sau NU?",IF(AN180="DA",IF(((AI180+AJ180)-(AE180+AF180))*24<-720,"Neinformat",((AI180+AJ180)-(AE180+AF180))*24),"Nu a fost afectat producator/consumator")),"") -> 0.4833333333 | AV180: =IF(B180="X",IF(AN180="DA",IF(AU180<6,LEN(TRIM(U180))-LEN(SUBSTITUTE(U180,CHAR(44),""))+1,0),"-"),"") -> 41 | AW180: =IF(B180="X",IF(AN180="DA",LEN(TRIM(U180))-LEN(SUBSTITUTE(U180,CHAR(44),""))+1,"-"),"") -> 41 | AX180: =IF(B180="X",IF(AN180="","Afectat sau NU?",IF(AN180="DA",((AG180+AH180)-(AE180+AF180))*24,"Nu a fost afectat producator/consumator")),"") -> 8.75 | AY180: =IF(B180="X",IF(AN180="DA",IF(AX180>24,IF(#REF!="NU",0,LEN(TRIM(V180))-LEN(SUBSTITUTE(V180,CHAR(44),""))+1),0),"-"),"") -> 0 | AZ180: =IF(B180="X",IF(AN180="DA",IF(AX180>24,LEN(TRIM(V180))-LEN(SUBSTITUTE(V180,CHAR(44),""))+1,0),"-"),"") -> 0 | BF180: =IF(C180="X",IF(AN180="","Afectat sau NU?",IF(AN180="DA",IF(AK180="","Neinformat",NETWORKDAYS(AK180+AL180,AE180+AF180,$BR$2:$BR$14)-2),"Nu a fost afectat producator/consumator")),"") ->  | BG180: =IF(C180="X",IF(AN180="DA",IF(AND(BF180>=5,AK180<>""),LEN(TRIM(V180))-LEN(SUBSTITUTE(V180,CHAR(44),""))+1,0),"-"),"") ->  | BH180: =IF(C180="X",IF(AN180="DA",LEN(TRIM(V180))-LEN(SUBSTITUTE(V180,CHAR(44),""))+1,"-"),"") ->  | BI180: =IF(C180="X",IF(AN180="","Afectat sau NU?",IF(AN180="DA",IF(AI180="","Neinformat",NETWORKDAYS(AI180+AJ180,AE180+AF180,$BR$2:$BR$14)-2),"Nu a fost afectat producator/consumator")),"") ->  | BJ180: =IF(C180="X",IF(AN180="DA",IF(AND(BI180>=5,AI180<>""),LEN(TRIM(U180))-LEN(SUBSTITUTE(U180,CHAR(44),""))+1,0),"-"),"") ->  | BK180: =IF(C180="X",IF(AN180="DA",LEN(TRIM(U180))-LEN(SUBSTITUTE(U180,CHAR(44),""))+1,"-"),"") ->  | BL180: =IF(C180="X",IF(AN180="","Afectat sau NU?",IF(AN180="DA",((AG180+AH180)-(Z180+AA180))*24,"Nu a fost afectat producator/consumator")),"") ->  | BM180: =IF(C180="X",IF(AN180<>"DA","-",IF(AND(AN180="DA",BL180<=0),LEN(TRIM(V180))-LEN(SUBSTITUTE(V180,CHAR(44),""))+1+LEN(TRIM(U180))-LEN(SUBSTITUTE(U180,CHAR(44),""))+1,0)),"") ->  | BN180: =IF(C180="X",IF(AN180="DA",LEN(TRIM(V180))-LEN(SUBSTITUTE(V180,CHAR(44),""))+1+LEN(TRIM(U180))-LEN(SUBSTITUTE(U180,CHAR(44),""))+1,"-"),"") -> 
A181: 166 | B181: X | C181: - | D181: Remediere defect pe conducta magistrala 20” Sărmășel - Ceanu Mare | E181: 56933 | F181: Iacobeni | G181: Cluj | H181: 423542.38 | I181: 575969.28 | J181: 423542.38 | K181: 575969.28 | L181: - | M181: - | N181: SM0633D0 | O181: Iacobeni Moara | P181: - | Q181: - | R181: - | S181: - | T181: SM-SD001 | U181: Engie, Electrica Furnizare, Premier Energy Trading, Premier Energy, Restart Energy, Wiee, E.on Energie, E.On Gaz Furnizare, Petrom, Cez Vânzare, Enel Energie, Gas&Power, Gaz Est, Met România, Nova Power, Energy Distribution, CPL Concordia, Hargaz, Prisma Serv, Conef Gaz, Distrigaz Vest, Next Energy, Cis Gaz, Aderro GP, Tinmar, Enel Muntenia, RWE, Cyeb, Entrex, Electric&Gas, Pado Group, Design Proiect, Gazmir, SST Grup, Tetarom, Gas Provider, Renovatio, Electric Planners, Monsson, Gaz Vest, Mihoc Oil | V181: Delgaz Grid | W181: - | X181: 2019-10-24 | Y181: 08:10:00 | Z181: 2019-10-24 | AA181: 17:00:00 | AB181: Cluj | AC181: Efectuată | AD181: - | AE181: 2019-10-24 | AF181: 08:10:00 | AG181: 2019-10-24 | AH181: 16:50:00 | AI181: 2019-10-24 | AJ181: 08:44:00 | AK181: 2019-10-24 | AL181: 08:25:00 | AM181: 11334/23.10.2019 | AN181: DA | AR181: =IF(B181="X",IF(AN181="","Afectat sau NU?",IF(AN181="DA",IF(((AK181+AL181)-(AE181+AF181))*24<-720,"Neinformat",((AK181+AL181)-(AE181+AF181))*24),"Nu a fost afectat producator/consumator")),"") -> 0.2499999999 | AS181: =IF(B181="X",IF(AN181="DA",IF(AR181<6,LEN(TRIM(V181))-LEN(SUBSTITUTE(V181,CHAR(44),""))+1,0),"-"),"") -> 1 | AT181: =IF(B181="X",IF(AN181="DA",LEN(TRIM(V181))-LEN(SUBSTITUTE(V181,CHAR(44),""))+1,"-"),"") -> 1 | AU181: =IF(B181="X",IF(AN181="","Afectat sau NU?",IF(AN181="DA",IF(((AI181+AJ181)-(AE181+AF181))*24<-720,"Neinformat",((AI181+AJ181)-(AE181+AF181))*24),"Nu a fost afectat producator/consumator")),"") -> 0.5666666666 | AV181: =IF(B181="X",IF(AN181="DA",IF(AU181<6,LEN(TRIM(U181))-LEN(SUBSTITUTE(U181,CHAR(44),""))+1,0),"-"),"") -> 41 | AW181: =IF(B181="X",IF(AN181="DA",LEN(TRIM(U181))-LEN(SUBSTITUTE(U181,CHAR(44),""))+1,"-"),"") -> 41 | AX181: =IF(B181="X",IF(AN181="","Afectat sau NU?",IF(AN181="DA",((AG181+AH181)-(AE181+AF181))*24,"Nu a fost afectat producator/consumator")),"") -> 8.666666667 | AY181: =IF(B181="X",IF(AN181="DA",IF(AX181>24,IF(#REF!="NU",0,LEN(TRIM(V181))-LEN(SUBSTITUTE(V181,CHAR(44),""))+1),0),"-"),"") -> 0 | AZ181: =IF(B181="X",IF(AN181="DA",IF(AX181>24,LEN(TRIM(V181))-LEN(SUBSTITUTE(V181,CHAR(44),""))+1,0),"-"),"") -> 0 | BF181: =IF(C181="X",IF(AN181="","Afectat sau NU?",IF(AN181="DA",IF(AK181="","Neinformat",NETWORKDAYS(AK181+AL181,AE181+AF181,$BR$2:$BR$14)-2),"Nu a fost afectat producator/consumator")),"") ->  | BG181: =IF(C181="X",IF(AN181="DA",IF(AND(BF181>=5,AK181<>""),LEN(TRIM(V181))-LEN(SUBSTITUTE(V181,CHAR(44),""))+1,0),"-"),"") ->  | BH181: =IF(C181="X",IF(AN181="DA",LEN(TRIM(V181))-LEN(SUBSTITUTE(V181,CHAR(44),""))+1,"-"),"") ->  | BI181: =IF(C181="X",IF(AN181="","Afectat sau NU?",IF(AN181="DA",IF(AI181="","Neinformat",NETWORKDAYS(AI181+AJ181,AE181+AF181,$BR$2:$BR$14)-2),"Nu a fost afectat producator/consumator")),"") ->  | BJ181: =IF(C181="X",IF(AN181="DA",IF(AND(BI181>=5,AI181<>""),LEN(TRIM(U181))-LEN(SUBSTITUTE(U181,CHAR(44),""))+1,0),"-"),"") ->  | BK181: =IF(C181="X",IF(AN181="DA",LEN(TRIM(U181))-LEN(SUBSTITUTE(U181,CHAR(44),""))+1,"-"),"") ->  | BL181: =IF(C181="X",IF(AN181="","Afectat sau NU?",IF(AN181="DA",((AG181+AH181)-(Z181+AA181))*24,"Nu a fost afectat producator/consumator")),"") ->  | BM181: =IF(C181="X",IF(AN181<>"DA","-",IF(AND(AN181="DA",BL181<=0),LEN(TRIM(V181))-LEN(SUBSTITUTE(V181,CHAR(44),""))+1+LEN(TRIM(U181))-LEN(SUBSTITUTE(U181,CHAR(44),""))+1,0)),"") ->  | BN181: =IF(C181="X",IF(AN181="DA",LEN(TRIM(V181))-LEN(SUBSTITUTE(V181,CHAR(44),""))+1+LEN(TRIM(U181))-LEN(SUBSTITUTE(U181,CHAR(44),""))+1,"-"),"") -> 
A182: 167 | B182: X | C182: - | D182: Remediere defect pe conducta magistrala 20” Sărmășel - Ceanu Mare | E182: 57822 | F182: Soporu de Câmpie | G182: Cluj | H182: 424723.37 | I182: 577407.955 | J182: 424723.37 | K182: 577407.955 | L182: - | M182: - | N182: SM0635D0 | O182: Sopor | P182: - | Q182: - | R182: - | S182: - | T182: SM-SD001 | U182: Engie, Electrica Furnizare, Premier Energy Trading, Premier Energy, Restart Energy, Wiee, E.on Energie, E.On Gaz Furnizare, Petrom, Cez Vânzare, Enel Energie, Gas&Power, Gaz Est, Met România, Nova Power, Energy Distribution, CPL Concordia, Hargaz, Prisma Serv, Conef Gaz, Distrigaz Vest, Next Energy, Cis Gaz, Aderro GP, Tinmar, Enel Muntenia, RWE, Cyeb, Entrex, Electric&Gas, Pado Group, Design Proiect, Gazmir, SST Grup, Tetarom, Gas Provider, Renovatio, Electric Planners, Monsson, Gaz Vest, Mihoc Oil | V182: Delgaz Grid | W182: - | X182: 2019-10-24 | Y182: 08:15:00 | Z182: 2019-10-24 | AA182: 17:00:00 | AB182: Cluj | AC182: Efectuată | AD182: - | AE182: 2019-10-24 | AF182: 08:15:00 | AG182: 2019-10-24 | AH182: 17:00:00 | AI182: 2019-10-24 | AJ182: 08:47:00 | AK182: 2019-10-24 | AL182: 08:27:00 | AM182: 11334/23.10.2019 | AN182: DA | AR182: =IF(B182="X",IF(AN182="","Afectat sau NU?",IF(AN182="DA",IF(((AK182+AL182)-(AE182+AF182))*24<-720,"Neinformat",((AK182+AL182)-(AE182+AF182))*24),"Nu a fost afectat producator/consumator")),"") -> 0.2 | AS182: =IF(B182="X",IF(AN182="DA",IF(AR182<6,LEN(TRIM(V182))-LEN(SUBSTITUTE(V182,CHAR(44),""))+1,0),"-"),"") -> 1 | AT182: =IF(B182="X",IF(AN182="DA",LEN(TRIM(V182))-LEN(SUBSTITUTE(V182,CHAR(44),""))+1,"-"),"") -> 1 | AU182: =IF(B182="X",IF(AN182="","Afectat sau NU?",IF(AN182="DA",IF(((AI182+AJ182)-(AE182+AF182))*24<-720,"Neinformat",((AI182+AJ182)-(AE182+AF182))*24),"Nu a fost afectat producator/consumator")),"") -> 0.5333333333 | AV182: =IF(B182="X",IF(AN182="DA",IF(AU182<6,LEN(TRIM(U182))-LEN(SUBSTITUTE(U182,CHAR(44),""))+1,0),"-"),"") -> 41 | AW182: =IF(B182="X",IF(AN182="DA",LEN(TRIM(U182))-LEN(SUBSTITUTE(U182,CHAR(44),""))+1,"-"),"") -> 41 | AX182: =IF(B182="X",IF(AN182="","Afectat sau NU?",IF(AN182="DA",((AG182+AH182)-(AE182+AF182))*24,"Nu a fost afectat producator/consumator")),"") -> 8.75 | AY182: =IF(B182="X",IF(AN182="DA",IF(AX182>24,IF(#REF!="NU",0,LEN(TRIM(V182))-LEN(SUBSTITUTE(V182,CHAR(44),""))+1),0),"-"),"") -> 0 | AZ182: =IF(B182="X",IF(AN182="DA",IF(AX182>24,LEN(TRIM(V182))-LEN(SUBSTITUTE(V182,CHAR(44),""))+1,0),"-"),"") -> 0 | BF182: =IF(C182="X",IF(AN182="","Afectat sau NU?",IF(AN182="DA",IF(AK182="","Neinformat",NETWORKDAYS(AK182+AL182,AE182+AF182,$BR$2:$BR$14)-2),"Nu a fost afectat producator/consumator")),"") ->  | BG182: =IF(C182="X",IF(AN182="DA",IF(AND(BF182>=5,AK182<>""),LEN(TRIM(V182))-LEN(SUBSTITUTE(V182,CHAR(44),""))+1,0),"-"),"") ->  | BH182: =IF(C182="X",IF(AN182="DA",LEN(TRIM(V182))-LEN(SUBSTITUTE(V182,CHAR(44),""))+1,"-"),"") ->  | BI182: =IF(C182="X",IF(AN182="","Afectat sau NU?",IF(AN182="DA",IF(AI182="","Neinformat",NETWORKDAYS(AI182+AJ182,AE182+AF182,$BR$2:$BR$14)-2),"Nu a fost afectat producator/consumator")),"") ->  | BJ182: =IF(C182="X",IF(AN182="DA",IF(AND(BI182>=5,AI182<>""),LEN(TRIM(U182))-LEN(SUBSTITUTE(U182,CHAR(44),""))+1,0),"-"),"") ->  | BK182: =IF(C182="X",IF(AN182="DA",LEN(TRIM(U182))-LEN(SUBSTITUTE(U182,CHAR(44),""))+1,"-"),"") ->  | BL182: =IF(C182="X",IF(AN182="","Afectat sau NU?",IF(AN182="DA",((AG182+AH182)-(Z182+AA182))*24,"Nu a fost afectat producator/consumator")),"") ->  | BM182: =IF(C182="X",IF(AN182<>"DA","-",IF(AND(AN182="DA",BL182<=0),LEN(TRIM(V182))-LEN(SUBSTITUTE(V182,CHAR(44),""))+1+LEN(TRIM(U182))-LEN(SUBSTITUTE(U182,CHAR(44),""))+1,0)),"") ->  | BN182: =IF(C182="X",IF(AN182="DA",LEN(TRIM(V182))-LEN(SUBSTITUTE(V182,CHAR(44),""))+1+LEN(TRIM(U182))-LEN(SUBSTITUTE(U182,CHAR(44),""))+1,"-"),"") -> 
A183: 168 | B183: X | C183: - | D183: Înlocuire robinet R9 de pe interconectarea conductei 6” racord SRM Orlat cu conducta 16” Vinț - Sibiu | E183: 145211 | F183: Orlat | G183: Sibiu | H183: 419808.83 | I183: 473980.92 | J183: 419808.83 | K183: 473980.92 | L183: - | M183: - | N183: SM0889D0 | O183: Orlat | P183: - | Q183: - | R183: - | S183: - | T183: SM-SD001 | U183: Engie, Electrica Furnizare, Premier Energy Trading, Premier Energy, Restart Energy, Wiee, E.on Energie, E.On Gaz Furnizare, Petrom, Cez Vânzare, Enel Energie, Gas&Power, Gaz Est, Met România, Nova Power, Energy Distribution, CPL Concordia, Hargaz, Prisma Serv, Conef Gaz, Distrigaz Vest, Next Energy, Cis Gaz, Aderro GP, Tinmar, Enel Muntenia, RWE, Cyeb, Entrex, Electric&Gas, Pado Group, Design Proiect, Gazmir, SST Grup, Tetarom, Gas Provider, Renovatio, Electric Planners, Monsson, Gaz Vest, Mihoc Oil | V183: Delgaz Grid | W183: - | X183: 2019-10-31 | Y183: 08:13:00 | Z183: 2019-10-31 | AA183: 16:00:00 | AB183: Mediaș | AC183: Efectuată | AD183: - | AE183: 2019-10-31 | AF183: 08:13:00 | AG183: 2019-10-31 | AH183: 16:00:00 | AI183: 2019-10-31 | AJ183: 09:03:00 | AK183: 2019-10-31 | AL183: 08:23:00 | AM183: 8324/30.10.20019 | AN183: DA | AR183: =IF(B183="X",IF(AN183="","Afectat sau NU?",IF(AN183="DA",IF(((AK183+AL183)-(AE183+AF183))*24<-720,"Neinformat",((AK183+AL183)-(AE183+AF183))*24),"Nu a fost afectat producator/consumator")),"") -> 0.1666666667 | AS183: =IF(B183="X",IF(AN183="DA",IF(AR183<6,LEN(TRIM(V183))-LEN(SUBSTITUTE(V183,CHAR(44),""))+1,0),"-"),"") -> 1 | AT183: =IF(B183="X",IF(AN183="DA",LEN(TRIM(V183))-LEN(SUBSTITUTE(V183,CHAR(44),""))+1,"-"),"") -> 1 | AU183: =IF(B183="X",IF(AN183="","Afectat sau NU?",IF(AN183="DA",IF(((AI183+AJ183)-(AE183+AF183))*24<-720,"Neinformat",((AI183+AJ183)-(AE183+AF183))*24),"Nu a fost afectat producator/consumator")),"") -> 0.8333333333 | AV183: =IF(B183="X",IF(AN183="DA",IF(AU183<6,LEN(TRIM(U183))-LEN(SUBSTITUTE(U183,CHAR(44),""))+1,0),"-"),"") -> 41 | AW183: =IF(B183="X",IF(AN183="DA",LEN(TRIM(U183))-LEN(SUBSTITUTE(U183,CHAR(44),""))+1,"-"),"") -> 41 | AX183: =IF(B183="X",IF(AN183="","Afectat sau NU?",IF(AN183="DA",((AG183+AH183)-(AE183+AF183))*24,"Nu a fost afectat producator/consumator")),"") -> 7.783333333 | AY183: =IF(B183="X",IF(AN183="DA",IF(AX183>24,IF(#REF!="NU",0,LEN(TRIM(V183))-LEN(SUBSTITUTE(V183,CHAR(44),""))+1),0),"-"),"") -> 0 | AZ183: =IF(B183="X",IF(AN183="DA",IF(AX183>24,LEN(TRIM(V183))-LEN(SUBSTITUTE(V183,CHAR(44),""))+1,0),"-"),"") -> 0 | BF183: =IF(C183="X",IF(AN183="","Afectat sau NU?",IF(AN183="DA",IF(AK183="","Neinformat",NETWORKDAYS(AK183+AL183,AE183+AF183,$BR$2:$BR$14)-2),"Nu a fost afectat producator/consumator")),"") ->  | BG183: =IF(C183="X",IF(AN183="DA",IF(AND(BF183>=5,AK183<>""),LEN(TRIM(V183))-LEN(SUBSTITUTE(V183,CHAR(44),""))+1,0),"-"),"") ->  | BH183: =IF(C183="X",IF(AN183="DA",LEN(TRIM(V183))-LEN(SUBSTITUTE(V183,CHAR(44),""))+1,"-"),"") ->  | BI183: =IF(C183="X",IF(AN183="","Afectat sau NU?",IF(AN183="DA",IF(AI183="","Neinformat",NETWORKDAYS(AI183+AJ183,AE183+AF183,$BR$2:$BR$14)-2),"Nu a fost afectat producator/consumator")),"") ->  | BJ183: =IF(C183="X",IF(AN183="DA",IF(AND(BI183>=5,AI183<>""),LEN(TRIM(U183))-LEN(SUBSTITUTE(U183,CHAR(44),""))+1,0),"-"),"") ->  | BK183: =IF(C183="X",IF(AN183="DA",LEN(TRIM(U183))-LEN(SUBSTITUTE(U183,CHAR(44),""))+1,"-"),"") ->  | BL183: =IF(C183="X",IF(AN183="","Afectat sau NU?",IF(AN183="DA",((AG183+AH183)-(Z183+AA183))*24,"Nu a fost afectat producator/consumator")),"") ->  | BM183: =IF(C183="X",IF(AN183<>"DA","-",IF(AND(AN183="DA",BL183<=0),LEN(TRIM(V183))-LEN(SUBSTITUTE(V183,CHAR(44),""))+1+LEN(TRIM(U183))-LEN(SUBSTITUTE(U183,CHAR(44),""))+1,0)),"") ->  | BN183: =IF(C183="X",IF(AN183="DA",LEN(TRIM(V183))-LEN(SUBSTITUTE(V183,CHAR(44),""))+1+LEN(TRIM(U183))-LEN(SUBSTITUTE(U183,CHAR(44),""))+1,"-"),"") -> 
A184: 169 | B184: X | C184: - | D184: Deviere și protejare conductă de transport gaze 4” Racord SRM Tămășeu | E184: 27490 | F184: Tămășeu | G184: Bihor | H184: 266439.79 | I184: 640357.18 | J184: 266439.79 | K184: 640357.18 | L184: - | M184: - | N184: SM1100D0 | O184: Tămășeu | P184: - | Q184: - | R184: - | S184: - | T184: SM-SD001 | U184: Nova Power, Cez Vânzare, Distrigaz Vest, Engie, E.on Energie, Electric&Gas, Energy Distribution, Enel Energie, Enel Muntenia, Premier Energy Trading, Premier Energy, Gaz Est, Gaz Vest, Met România, Petrom, Gas Provider, Renovatio, Restart Energy, Tinmar, Electrica Furnizare | V184: Gaz Vest | W184: - | X184: 2019-11-06 | Y184: 08:10:00 | Z184: 2019-11-06 | AA184: 17:00:00 | AB184: Cluj | AC184: Efectuată | AD184: - | AE184: 2019-11-06 | AF184: 08:10:00 | AG184: 2019-11-06 | AH184: 16:55:00 | AI184: 2019-11-06 | AJ184: 08:48:00 | AK184: 2019-11-06 | AL184: 08:12:00 | AM184: 11842/04.11.2019 | AN184: DA | AR184: =IF(B184="X",IF(AN184="","Afectat sau NU?",IF(AN184="DA",IF(((AK184+AL184)-(AE184+AF184))*24<-720,"Neinformat",((AK184+AL184)-(AE184+AF184))*24),"Nu a fost afectat producator/consumator")),"") -> 0.03333333327 | AS184: =IF(B184="X",IF(AN184="DA",IF(AR184<6,LEN(TRIM(V184))-LEN(SUBSTITUTE(V184,CHAR(44),""))+1,0),"-"),"") -> 1 | AT184: =IF(B184="X",IF(AN184="DA",LEN(TRIM(V184))-LEN(SUBSTITUTE(V184,CHAR(44),""))+1,"-"),"") -> 1 | AU184: =IF(B184="X",IF(AN184="","Afectat sau NU?",IF(AN184="DA",IF(((AI184+AJ184)-(AE184+AF184))*24<-720,"Neinformat",((AI184+AJ184)-(AE184+AF184))*24),"Nu a fost afectat producator/consumator")),"") -> 0.6333333333 | AV184: =IF(B184="X",IF(AN184="DA",IF(AU184<6,LEN(TRIM(U184))-LEN(SUBSTITUTE(U184,CHAR(44),""))+1,0),"-"),"") -> 20 | AW184: =IF(B184="X",IF(AN184="DA",LEN(TRIM(U184))-LEN(SUBSTITUTE(U184,CHAR(44),""))+1,"-"),"") -> 20 | AX184: =IF(B184="X",IF(AN184="","Afectat sau NU?",IF(AN184="DA",((AG184+AH184)-(AE184+AF184))*24,"Nu a fost afectat producator/consumator")),"") -> 8.75 | AY184: =IF(B184="X",IF(AN184="DA",IF(AX184>24,IF(#REF!="NU",0,LEN(TRIM(V184))-LEN(SUBSTITUTE(V184,CHAR(44),""))+1),0),"-"),"") -> 0 | AZ184: =IF(B184="X",IF(AN184="DA",IF(AX184>24,LEN(TRIM(V184))-LEN(SUBSTITUTE(V184,CHAR(44),""))+1,0),"-"),"") -> 0 | BF184: =IF(C184="X",IF(AN184="","Afectat sau NU?",IF(AN184="DA",IF(AK184="","Neinformat",NETWORKDAYS(AK184+AL184,AE184+AF184,$BR$2:$BR$14)-2),"Nu a fost afectat producator/consumator")),"") ->  | BG184: =IF(C184="X",IF(AN184="DA",IF(AND(BF184>=5,AK184<>""),LEN(TRIM(V184))-LEN(SUBSTITUTE(V184,CHAR(44),""))+1,0),"-"),"") ->  | BH184: =IF(C184="X",IF(AN184="DA",LEN(TRIM(V184))-LEN(SUBSTITUTE(V184,CHAR(44),""))+1,"-"),"") ->  | BI184: =IF(C184="X",IF(AN184="","Afectat sau NU?",IF(AN184="DA",IF(AI184="","Neinformat",NETWORKDAYS(AI184+AJ184,AE184+AF184,$BR$2:$BR$14)-2),"Nu a fost afectat producator/consumator")),"") ->  | BJ184: =IF(C184="X",IF(AN184="DA",IF(AND(BI184>=5,AI184<>""),LEN(TRIM(U184))-LEN(SUBSTITUTE(U184,CHAR(44),""))+1,0),"-"),"") ->  | BK184: =IF(C184="X",IF(AN184="DA",LEN(TRIM(U184))-LEN(SUBSTITUTE(U184,CHAR(44),""))+1,"-"),"") ->  | BL184: =IF(C184="X",IF(AN184="","Afectat sau NU?",IF(AN184="DA",((AG184+AH184)-(Z184+AA184))*24,"Nu a fost afectat producator/consumator")),"") ->  | BM184: =IF(C184="X",IF(AN184<>"DA","-",IF(AND(AN184="DA",BL184<=0),LEN(TRIM(V184))-LEN(SUBSTITUTE(V184,CHAR(44),""))+1+LEN(TRIM(U184))-LEN(SUBSTITUTE(U184,CHAR(44),""))+1,0)),"") ->  | BN184: =IF(C184="X",IF(AN184="DA",LEN(TRIM(V184))-LEN(SUBSTITUTE(V184,CHAR(44),""))+1+LEN(TRIM(U184))-LEN(SUBSTITUTE(U184,CHAR(44),""))+1,"-"),"") -> 
A185: 170 | B185: X | C185: - | D185: Înlocuire conductă de gaze naturale 3" Racord SRM Săcălășeni | E185: 108801 | F185: Săcălășeni | G185: Maramureș | H185: 391083.006 | I185: 678964.409 | J185: 391083.006 | K185: 678964.409 | L185: - | M185: - | N185: SM0559D0 | O185: Săcălășeni | P185: - | Q185: - | R185: - | S185: - | T185: SM-SD001 | U185: Engie, Electrica Furnizare, Premier Energy Trading, Premier Energy, Restart Energy, Wiee, E.on Energie, E.On Gaz Furnizare, Petrom, Cez Vânzare, Enel Energie, Gas&Power, Gaz Est, Met România, Nova Power, Energy Distribution, CPL Concordia, Hargaz, Prisma Serv, Conef Gaz, Distrigaz Vest, Next Energy, Cis Gaz, Aderro GP, Tinmar, Enel Muntenia, RWE, Cyeb, Entrex, Electric&Gas, Pado Group, Design Proiect, Gazmir, SST Grup, Tetarom, Gas Provider, Renovatio, Electric Planners, Monsson, Gaz Vest, Mihoc Oil | V185: Delgaz Grid | W185: - | X185: 2019-11-07 | Y185: 08:10:00 | Z185: 2019-11-07 | AA185: 16:00:00 | AB185: Cluj | AC185: Efectuată | AD185: - | AE185: 2019-11-07 | AF185: 08:10:00 | AG185: 2019-11-07 | AH185: 11:30:00 | AI185: 2019-11-07 | AJ185: 08:44:00 | AK185: 2019-11-07 | AL185: 08:21:00 | AM185: 11928/05.11.2019 | AN185: DA | AR185: =IF(B185="X",IF(AN185="","Afectat sau NU?",IF(AN185="DA",IF(((AK185+AL185)-(AE185+AF185))*24<-720,"Neinformat",((AK185+AL185)-(AE185+AF185))*24),"Nu a fost afectat producator/consumator")),"") -> 0.1833333332 | AS185: =IF(B185="X",IF(AN185="DA",IF(AR185<6,LEN(TRIM(V185))-LEN(SUBSTITUTE(V185,CHAR(44),""))+1,0),"-"),"") -> 1 | AT185: =IF(B185="X",IF(AN185="DA",LEN(TRIM(V185))-LEN(SUBSTITUTE(V185,CHAR(44),""))+1,"-"),"") -> 1 | AU185: =IF(B185="X",IF(AN185="","Afectat sau NU?",IF(AN185="DA",IF(((AI185+AJ185)-(AE185+AF185))*24<-720,"Neinformat",((AI185+AJ185)-(AE185+AF185))*24),"Nu a fost afectat producator/consumator")),"") -> 0.5666666666 | AV185: =IF(B185="X",IF(AN185="DA",IF(AU185<6,LEN(TRIM(U185))-LEN(SUBSTITUTE(U185,CHAR(44),""))+1,0),"-"),"") -> 41 | AW185: =IF(B185="X",IF(AN185="DA",LEN(TRIM(U185))-LEN(SUBSTITUTE(U185,CHAR(44),""))+1,"-"),"") -> 41 | AX185: =IF(B185="X",IF(AN185="","Afectat sau NU?",IF(AN185="DA",((AG185+AH185)-(AE185+AF185))*24,"Nu a fost afectat producator/consumator")),"") -> 3.333333333 | AY185: =IF(B185="X",IF(AN185="DA",IF(AX185>24,IF(#REF!="NU",0,LEN(TRIM(V185))-LEN(SUBSTITUTE(V185,CHAR(44),""))+1),0),"-"),"") -> 0 | AZ185: =IF(B185="X",IF(AN185="DA",IF(AX185>24,LEN(TRIM(V185))-LEN(SUBSTITUTE(V185,CHAR(44),""))+1,0),"-"),"") -> 0 | BF185: =IF(C185="X",IF(AN185="","Afectat sau NU?",IF(AN185="DA",IF(AK185="","Neinformat",NETWORKDAYS(AK185+AL185,AE185+AF185,$BR$2:$BR$14)-2),"Nu a fost afectat producator/consumator")),"") ->  | BG185: =IF(C185="X",IF(AN185="DA",IF(AND(BF185>=5,AK185<>""),LEN(TRIM(V185))-LEN(SUBSTITUTE(V185,CHAR(44),""))+1,0),"-"),"") ->  | BH185: =IF(C185="X",IF(AN185="DA",LEN(TRIM(V185))-LEN(SUBSTITUTE(V185,CHAR(44),""))+1,"-"),"") ->  | BI185: =IF(C185="X",IF(AN185="","Afectat sau NU?",IF(AN185="DA",IF(AI185="","Neinformat",NETWORKDAYS(AI185+AJ185,AE185+AF185,$BR$2:$BR$14)-2),"Nu a fost afectat producator/consumator")),"") ->  | BJ185: =IF(C185="X",IF(AN185="DA",IF(AND(BI185>=5,AI185<>""),LEN(TRIM(U185))-LEN(SUBSTITUTE(U185,CHAR(44),""))+1,0),"-"),"") ->  | BK185: =IF(C185="X",IF(AN185="DA",LEN(TRIM(U185))-LEN(SUBSTITUTE(U185,CHAR(44),""))+1,"-"),"") ->  | BL185: =IF(C185="X",IF(AN185="","Afectat sau NU?",IF(AN185="DA",((AG185+AH185)-(Z185+AA185))*24,"Nu a fost afectat producator/consumator")),"") ->  | BM185: =IF(C185="X",IF(AN185<>"DA","-",IF(AND(AN185="DA",BL185<=0),LEN(TRIM(V185))-LEN(SUBSTITUTE(V185,CHAR(44),""))+1+LEN(TRIM(U185))-LEN(SUBSTITUTE(U185,CHAR(44),""))+1,0)),"") ->  | BN185: =IF(C185="X",IF(AN185="DA",LEN(TRIM(V185))-LEN(SUBSTITUTE(V185,CHAR(44),""))+1+LEN(TRIM(U185))-LEN(SUBSTITUTE(U185,CHAR(44),""))+1,"-"),"") -> 
A186: 171 | B186: X | C186: - | D186: Înlocuire contor cu turbina 4” G400 în SRM HAI Sântana | E186: 12108 | F186: Sântana | G186: Arad | H186: 227820 | I186: 541815 | J186: 227820 | K186: 541815 | L186: SM1115D0 | M186: SC HAMMERER ALUMINIUM INDUSTRIES Sântana | N186: - | O186: - | P186: - | Q186: - | R186: - | S186: - | T186: SM-CF001 | U186: Petrom | V186: SC HAMMERER ALUMINIUM INDUSTRIES Sântana SRL | W186: - | X186: 2019-11-12 | Y186: 09:33:00 | Z186: 2019-11-12 | AA186: 11:30:00 | AB186: Arad | AC186: Efectuată | AD186: - | AE186: 2019-11-12 | AF186: 09:33:00 | AG186: 2019-11-12 | AH186: 10:15:00 | AI186: 2019-11-12 | AJ186: 10:24:00 | AK186: 2019-11-12 | AL186: 10:00:00 | AM186: 11844/11.11.2019 | AN186: DA | AR186: =IF(B186="X",IF(AN186="","Afectat sau NU?",IF(AN186="DA",IF(((AK186+AL186)-(AE186+AF186))*24<-720,"Neinformat",((AK186+AL186)-(AE186+AF186))*24),"Nu a fost afectat producator/consumator")),"") -> 0.4499999999 | AS186: =IF(B186="X",IF(AN186="DA",IF(AR186<6,LEN(TRIM(V186))-LEN(SUBSTITUTE(V186,CHAR(44),""))+1,0),"-"),"") -> 0 | AT186: =IF(B186="X",IF(AN186="DA",LEN(TRIM(V186))-LEN(SUBSTITUTE(V186,CHAR(44),""))+1,"-"),"") -> 0 | AU186: =IF(B186="X",IF(AN186="","Afectat sau NU?",IF(AN186="DA",IF(((AI186+AJ186)-(AE186+AF186))*24<-720,"Neinformat",((AI186+AJ186)-(AE186+AF186))*24),"Nu a fost afectat producator/consumator")),"") -> 0.85 | AV186: =IF(B186="X",IF(AN186="DA",IF(AU186<6,LEN(TRIM(U186))-LEN(SUBSTITUTE(U186,CHAR(44),""))+1,0),"-"),"") -> 1 | AW186: =IF(B186="X",IF(AN186="DA",LEN(TRIM(U186))-LEN(SUBSTITUTE(U186,CHAR(44),""))+1,"-"),"") -> 1 | AX186: =IF(B186="X",IF(AN186="","Afectat sau NU?",IF(AN186="DA",((AG186+AH186)-(AE186+AF186))*24,"Nu a fost afectat producator/consumator")),"") -> 0.7 | AY186: =IF(B186="X",IF(AN186="DA",IF(AX186>24,IF(#REF!="NU",0,LEN(TRIM(V186))-LEN(SUBSTITUTE(V186,CHAR(44),""))+1),0),"-"),"") -> 0 | AZ186: =IF(B186="X",IF(AN186="DA",IF(AX186>24,LEN(TRIM(V186))-LEN(SUBSTITUTE(V186,CHAR(44),""))+1,0),"-"),"") -> 0 | BF186: =IF(C186="X",IF(AN186="","Afectat sau NU?",IF(AN186="DA",IF(AK186="","Neinformat",NETWORKDAYS(AK186+AL186,AE186+AF186,$BR$2:$BR$14)-2),"Nu a fost afectat producator/consumator")),"") ->  | BG186: =IF(C186="X",IF(AN186="DA",IF(AND(BF186>=5,AK186<>""),LEN(TRIM(V186))-LEN(SUBSTITUTE(V186,CHAR(44),""))+1,0),"-"),"") ->  | BH186: =IF(C186="X",IF(AN186="DA",LEN(TRIM(V186))-LEN(SUBSTITUTE(V186,CHAR(44),""))+1,"-"),"") ->  | BI186: =IF(C186="X",IF(AN186="","Afectat sau NU?",IF(AN186="DA",IF(AI186="","Neinformat",NETWORKDAYS(AI186+AJ186,AE186+AF186,$BR$2:$BR$14)-2),"Nu a fost afectat producator/consumator")),"") ->  | BJ186: =IF(C186="X",IF(AN186="DA",IF(AND(BI186>=5,AI186<>""),LEN(TRIM(U186))-LEN(SUBSTITUTE(U186,CHAR(44),""))+1,0),"-"),"") ->  | BK186: =IF(C186="X",IF(AN186="DA",LEN(TRIM(U186))-LEN(SUBSTITUTE(U186,CHAR(44),""))+1,"-"),"") ->  | BL186: =IF(C186="X",IF(AN186="","Afectat sau NU?",IF(AN186="DA",((AG186+AH186)-(Z186+AA186))*24,"Nu a fost afectat producator/consumator")),"") ->  | BM186: =IF(C186="X",IF(AN186<>"DA","-",IF(AND(AN186="DA",BL186<=0),LEN(TRIM(V186))-LEN(SUBSTITUTE(V186,CHAR(44),""))+1+LEN(TRIM(U186))-LEN(SUBSTITUTE(U186,CHAR(44),""))+1,0)),"") ->  | BN186: =IF(C186="X",IF(AN186="DA",LEN(TRIM(V186))-LEN(SUBSTITUTE(V186,CHAR(44),""))+1+LEN(TRIM(U186))-LEN(SUBSTITUTE(U186,CHAR(44),""))+1,"-"),"") -> 
